Workbook

Sheet AER Changes
A3: Issues | B3: Location | C3: Comment
A5: 1 | B5: DNSP Inputs General'!D6:D14 | C5: Incorrect inputs for actual Capex & O & M
A8: =A5+1 -> 2 | B8: DNSP Inputs General'!P6:P14 | C8: Introduced 2021 6 month period - Capex for inclusion in RAB
B9: DNSP Inputs General'!P20 | C9: Introduced 2021 6 month period - O & M
B10: DNSP Inputs General'!P41:P80 | C10: Introduced 2021 6 month period - Light volumes
A12: =A8+1 -> 3 | B12: DNSP Inputs General'!C30 | C12: Update for actual CPI
A14: =A12+1 -> 4 | B14: DNSP Inputs General'!D31:D35 | C14: Update for AER Draft Decision CPI Forecast
A16: =A14+1 -> 5 | B16: DNSP Inputs General'!B26:F26 | C16: Update for AER Draft Decision Real Pre Tax WACC
A18: =A16+1 -> 6 | B18: DNSP Inputs General'!Q84:U84 | C18: Update for AER Draft Decision Real Labour Escalator
A20: =A18+1 -> 7 | B20: DNSP Inputs General'!E74:E76 | C20: Prices not consistent with "2020 Powercor GSC Pricing Schedule"
A22: =A20+1 -> 8 | B22: DNSP Inputs General'!J20:K20 | C22: Actual O & M not consistent with Annual RIN Data
B23: DNSP Inputs General'!M20
A26: =A22+1 -> 9 | B26: DNSP Inputs O & M'!C210:H210 | C26: Incorrect unit cost calculation
B27: DNSP Inputs O & M'!C239:H239
A30: =A26+1 -> 10 | B30: O & M 2021-2025'!BS39:CP40 | C30: Incorrect cell references
B31: O & M 2021-2025'!BS256:DI261
A33: =A30+1 -> 11 | B33: Capex 2021-2025'!U143:CL143 | C33: Incorrect cell reference
B34: Capex 2021-2025'!B90
A36: =A33+1 -> 12 | B36: WACC!E4:I4 | C36: Corrected Labels
B37: WACC!A13:A18
A39: =A36+1 -> 13 | B39: WACC!C14:D14 | C39: Update for CPI to be applied to prices in 2021/22
A41: =A36+1 -> 13 | B41: Depn & WACC Post 2004 | C41: Amended unitisation code
A43: =A41+1 -> 14 | B43: Total RAB'!S6:T161 | C43: Introduced 2021 6 month period - RAB roll forward
A45: =A43+1 -> 15 | B45: RAB 2001 to 2004 | C45: Introduced 2021 6 month period
A47: =A45+1 -> 16 | B47: DNSP Inputs O & M'!E12:H13 | C47: Applied AER real labour escalation from 2022/23 onwards
A49: =A47+1 -> 17 | B49: DNSP Inputs O & M'!D224:H224 | C49: AER Draft Decision V LED Luminaire cost

Sheet Instructions
A1: ='DNSP Inputs O & M'!$A$3 -> Powercor
A3: Instructions
A5: This model is to be used for the setting of Public Lighting Tariffs for the Regulatory Period 2021 to 2026 based on forecast inflation rates, Real Pre Tax WACC and Nominal vanilla WACC.
A7: Distributor data input fields are shaded | C7: and located in tabs "DNSP Inputs General" , "DNSP Inputs O & M" and "DNSP Inputs Capex"
A8: NOTE : All Distributor data input fields have been populated with the distributor's regulatory proposal data in this model.
A10: The 'PL Tariffs (smoothed)' sheet is new and is used to smooth PL tariffs. The 'solve prices' macro on this sheet needs to be run to calculate the Xo for light types.
A12: This model will also to be used for the annual Public Lighting Tariff Approvals in the Regulatory Period 2021 to 2026 based on actual inflation rates, Real Pre Tax WACC and Nominal Vanilla WACC
H70: =G70 -> 0 | I70: =H70 -> 0 | J70: =I70 -> 0 | K70: =J70 -> 0 | L70: =K70 -> 0

Sheet DNSP Inputs General
A1: ='DNSP Inputs O & M'!$A$3 -> Powercor
B2: 2009 | D2: 2009 | E2: 2010 | F2: 2011 | G2: 2012 | H2: 2013 | I2: 2014 | J2: 2015 | K2: 2016 | L2: 2017 | M2: 2018 | N2: 2019 | O2: 2020 | P2: HY2021 | Q2: 2021/22 | R2: 2022/23 | S2: 2023/24 | T2: 2024/25 | U2: 2025/26
A3: Capital Expenditure | B3: Submission Model | D3: Nominal $ - Actual | P3: Real 2021 $ - Forecast
A4: (Net of customer contributions)
A6: Poles and Brackets | B6: 216473.8747 | C6: =B6/B$14 -> 0.2 | D6: =D$14*C6 -> 243213.85 | E6: 1063986.649 | F6: 735187.596 | G6: 1695675.389 | H6: 2267621.471 | I6: 2677229.504 | J6: 430006.6694 | K6: 1437430.533 | L6: 649839.5586 | M6: 1370922.434 | N6: =M6/M14*N14 -> 1221011.567 | O6: =N6/N14*O14 -> 1306512.753 | P6: =O6/2*(1+C$30) -> 661222.9178 | Q6: ='Capex 2021-2025'!B24 -> 947544.9858 | R6: ='Capex 2021-2025'!C24 -> 948421.6435 | S6: ='Capex 2021-2025'!D24 -> 949578.2144 | T6: ='Capex 2021-2025'!E24 -> 951354.0007 | U6: ='Capex 2021-2025'!F24 -> 953714.4115
A8: Existing Lights
A9: Luminaires | B9: 622405.6845 | C9: =B9/B$14 -> 0.57504 | D9: =D$14*C9 -> 699288.4615 | E9: 540539.0458 | F9: 437172.5959 | G9: 389009.3207 | H9: 487489.2078 | I9: 717784.7034 | J9: 316108.462 | K9: 430772.2499 | L9: 407618.4414 | M9: 727132.4661 | N9: =M9/2 -> 363566.2331 | O9: =N9/2 -> 181783.1165 | P9: =O9/2*(1+C$30) -> 91999.9919 | Q9: ='Capex 2021-2025'!B13-'Capex 2021-2025'!B31-'Capex 2021-2025'!B37 -> -454835.6883 | R9: ='Capex 2021-2025'!C13-'Capex 2021-2025'!C31-'Capex 2021-2025'!C37 -> -222832.7267 | S9: ='Capex 2021-2025'!D13-'Capex 2021-2025'!D31-'Capex 2021-2025'!D37 -> -171657.9107 | T9: ='Capex 2021-2025'!E13-'Capex 2021-2025'!E31-'Capex 2021-2025'!E37 -> -125124.5854 | U9: ='Capex 2021-2025'!F13-'Capex 2021-2025'!F31-'Capex 2021-2025'!F37 -> -46358.50831
A11: Energy Efficient Lights
A12: Luminaires and Ballasts | B12: 243489.8142 | C12: =B12/B$14 -> 0.22496 | D12: =D$14*C12 -> 273566.9385 | E12: 211462.9656 | F12: 171025.2281 | G12: 152183.3904 | H12: 190709.4675 | I12: 762732.3509 | J12: 667416.3649 | K12: 1658272.757 | L12: 1077401 | M12: 2340192.35 | N12: =N14-N9-N6 -> 2368345.497 | O12: 1177105.569 | P12: =O12/2*(1+C$30) -> 595730.2577 | Q12: ='Capex 2021-2025'!B19 -> 542372.5233 | R12: ='Capex 2021-2025'!C19 -> 618265.1565 | S12: ='Capex 2021-2025'!D19 -> 685113.5194 | T12: ='Capex 2021-2025'!E19 -> 745061.5971 | U12: ='Capex 2021-2025'!F19 -> 775904.9226
A14: Total Net Capex | B14: =SUM(B6,B9,B12) -> 1082369.373 | D14: 1216069.25 | E14: =SUM(E6,E9,E12) -> 1815988.66 | F14: 1343385.42 | G14: 2236868.1 | H14: 2945820.147 | I14: 4157746.558 | J14: 1413531.496 | K14: 3526475.54 | L14: 2134859 | M14: 4438247.25 | N14: 3952923.297 | O14: 4229726.27 | P14: =SUM(P6,P9,P12) -> 1348953.167 | Q14: 1035081.821 | R14: 1343854.073 | S14: 1463033.823 | T14: 1571291.012 | U14: 1683260.826
F17: 2011 | G17: 2012 | H17: 2013 | I17: 2014 | J17: 2015 | K17: 2016 | L17: 2017 | M17: 2018 | N17: 2019 | O17: 2020 | P17: =P2 -> HY2021 | Q17: 2021/22 | R17: 2022/23 | S17: 2023/24 | T17: 2024/25 | U17: 2025/26
A18: Operating and Maintenance Expenditure | F18: Nominal $ - Actual | P18: Real 2021 $ - Forecast
A20: Total O & M | F20: 7601585.57 | G20: 7887657.121 | H20: 6534655.772 | I20: 6930542.029 | J20: 5334919.711 | K20: 4914077.632 | L20: 4446484 | M20: 6331782.69 | N20: 4010943.244 | O20: 4311462.158 | P20: =O20/2*(1+C$30) -> 2182020.483 | Q20: ='Cashflow Summary'!K89 -> 6151773.343 | R20: ='Cashflow Summary'!L89 -> 5829450.208 | S20: ='Cashflow Summary'!M89 -> 5578898.278 | T20: ='Cashflow Summary'!N89 -> 5400600.369 | U20: ='Cashflow Summary'!O89 -> 5360691.459
A24: WACC
A25: Regulatory Period | B25: 2021/22 | C25: 2022/23 | D25: 2023/24 | E25: 2024/25 | F25: 2025/26 | J25: Updated/changed calculations are highlighted in green throughout the model, to reflect the change in practice to replace all lights with LED alternaties, to include all costs of pole replacement and to introduce a new light type
A26: Real Pre Tax WACC | B26: 0.02317948504 | C26: 0.02317948504 | D26: 0.02317948504 | E26: 0.02317948504 | F26: 0.02317948504
A29: CPI Index | B29: CPI Index | C29: Actual CPI | D29: F'cast CPI
A30: 1H2021 | C30: =116.2/114.8-1 -> 0.01219512195
A31: 2021/22 | D31: 0.02374308679
A32: 2022/23 | D32: 0.02374308679
A33: 2023/24 | D33: 0.02374308679
A34: 2024/25 | D34: 0.02374308679
A35: 2025/26 | D35: 0.02374308679
A38: Number Of Lights | E38: 2020 | F38: 2011 | G38: 2012 | H38: 2013 | I38: 2014 | J38: 2015 | K38: 2016 | L38: 2017 | M38: 2018 | N38: 2019 | O38: 2020 | P38: =P2 -> HY2021 | Q38: =Q$2 -> 2021/22 | R38: 2022/23 | S38: 2023/24 | T38: 2024/25 | U38: 2025/26
E39: Actual Prices | F39: Actual Volumes | P39: Forecast Volumes
A40: Existing Lights | B40: Reference Light | D40: Price Factor
A41: Mercury vapour 80 watt | B41: =A$41 -> Mercury vapour 80 watt | D41: 1 | E41: 56.62 | F41: 106615 | G41: 105072 | H41: 104640 | I41: 88974 | J41: 51963 | K41: 42074 | L41: 39259 | M41: 36090 | N41: 36090 | O41: 30676.5 | P41: =O41 -> 30676.5 | Q41: 24119.39812 | R41: 20501.48841 | S41: 17426.26515 | T41: 14812.32537 | U41: 13611.32602
A42: Sodium high pressure 150 watt | B42: =A$42 -> Sodium high pressure 150 watt | D42: 1 | E42: 103.28 | F42: 25668 | G42: 26440 | H42: 27226 | I42: 27857 | J42: 28554 | K42: 29405 | L42: 28960 | M42: 26236 | N42: 26236 | O42: 23612.4 | P42: =O42 -> 23612.4 | Q42: 19657.323 | R42: 16708.72455 | S42: 14202.41587 | T42: 12072.05349 | U42: 11093.23834
A43: Sodium high pressure 250 watt | B43: =A$43 -> Sodium high pressure 250 watt | D43: 1 | E43: 105.08 | F43: 11647 | G43: 12125 | H43: 12627 | I43: 12943 | J43: 13453 | K43: 13972 | L43: 13861 | M43: 13179 | N43: 13179 | O43: 11861.1 | P43: 11861.1 | Q43: 9874.36575 | R43: 8393.210887 | S43: 7134.229254 | T43: 6064.094866 | U43: 5572.411499
A44: Fluorescent 20 watt | B44: =A$41 -> Mercury vapour 80 watt | D44: 2.12 | F44: 3 | G44: 130 | H44: 0 | I44: 0 | J44: 0 | K44: 0 | L44: 0 | M44: 0 | N44: 0 | O44: 0 | P44: 0 | Q44: 0 | R44: 0 | S44: 0 | T44: 0 | U44: 0
A45: Fluorescent 40 watt | B45: =A$41 -> Mercury vapour 80 watt | D45: 2.12 | F45: 118 | G45: 242 | H45: 4 | I45: 0 | J45: 0 | K45: 0 | L45: 0 | M45: 0 | N45: 0 | O45: 0 | P45: 0 | Q45: 0 | R45: 0 | S45: 0 | T45: 0 | U45: 0
A46: Mercury vapour 50 watt | B46: =A$41 -> Mercury vapour 80 watt | D46: 1.39 | E46: 78.7 | F46: 444 | G46: 378 | H46: 361 | I46: 306 | J46: 198 | K46: 192 | L46: 176 | M46: 81 | N46: 81 | O46: 56.7 | P46: 56.7 | Q46: 33.7365 | R46: 13.8915 | S46: 0 | T46: 0 | U46: 0
A47: Mercury vapour 125 watt | B47: =A$41 -> Mercury vapour 80 watt | D47: 1.35 | E47: 76.44 | F47: 1485 | G47: 1493 | H47: 1507 | I47: 1170 | J47: 870 | K47: 831 | L47: 790 | M47: 532 | N47: 532 | O47: 452.2 | P47: 452.2 | Q47: 269.059 | R47: 110.789 | S47: 0 | T47: 0 | U47: 0
A48: Mercury vapour 250 watt | B48: =A$43 -> Sodium high pressure 250 watt | D48: 0.76 | E48: 79.86 | F48: 486 | G48: 345 | H48: 316 | I48: 287 | J48: 264 | K48: 256 | L48: 242 | M48: 220 | N48: 220 | O48: 154 | P48: 154 | Q48: 91.63 | R48: 37.73 | S48: 0 | T48: 0 | U48: 0
A49: Mercury vapour 400 watt | B49: =A$43 -> Sodium high pressure 250 watt | D49: 0.88 | E49: 92.47 | F49: 160 | G49: 121 | H49: 115 | I49: 102 | J49: 88 | K49: 84 | L49: 82 | M49: 65 | N49: 65 | O49: 45.5 | P49: 45.5 | Q49: 27.0725 | R49: 11.1475 | S49: 0 | T49: 0 | U49: 0
A50: Mercury vapour 700 watt | B50: =A$43 -> Sodium high pressure 250 watt | D50: 1.33 | F50: 2 | G50: 2 | H50: 0 | I50: 0 | J50: 0 | K50: 0 | L50: 0 | M50: 0 | N50: 0 | O50: 0 | P50: 0 | Q50: 0 | R50: 0 | S50: 0 | T50: 0 | U50: 0
A51: Sodium low pressure 90 watt | B51: =A$42 -> Sodium high pressure 150 watt | D51: 1.35 | F51: 0 | G51: 0 | H51: 0 | I51: 2 | J51: 0 | K51: 0 | L51: 0 | M51: 0 | N51: 0 | O51: 0 | P51: 0 | Q51: 0 | R51: 0 | S51: 0 | T51: 0 | U51: 0
A52: Sodium low pressure 180 watt | B52: =A$42 -> Sodium high pressure 150 watt | D52: 1.35 | F52: 0 | G52: 0 | H52: 0 | I52: 0 | J52: 0 | K52: 0 | L52: 0 | M52: 0 | N52: 0 | O52: 0 | P52: 0 | Q52: 0 | R52: 0 | S52: 0 | T52: 0 | U52: 0
A53: Sodium high pressure 400 watt | B53: =A$43 -> Sodium high pressure 250 watt | D53: 1.33 | E53: 139.75 | F53: 759 | G53: 766 | H53: 770 | I53: 774 | J53: 751 | K53: 765 | L53: 758 | M53: 717 | N53: 717 | O53: 645.3 | P53: 645.3 | Q53: 537.21225 | R53: 456.6304125 | S53: 388.1358506 | T53: 329.915473 | U53: 303.1655698
A54: Incandescent 100 watt | B54: =A$41 -> Mercury vapour 80 watt | D54: 2.78 | F54: 13 | G54: 13 | H54: 0 | I54: 0 | J54: 0 | K54: 0 | L54: 0 | M54: 0 | N54: 0 | O54: 0 | P54: 0 | Q54: 0 | R54: 0 | S54: 0 | T54: 0 | U54: 0
A55: Incandescent 150 watt | B55: =A$41 -> Mercury vapour 80 watt | D55: 2.78 | F55: 5 | G55: 5 | H55: 0 | I55: 0 | J55: 0 | K55: 0 | L55: 0 | M55: 0 | N55: 0 | O55: 0 | P55: 0 | Q55: 0 | R55: 0 | S55: 0 | T55: 0 | U55: 0
A56: Metal halide 250 watt | B56: =A$43 -> Sodium high pressure 250 watt | D56: 1.33 | E56: 139.75 | F56: 0 | G56: 15 | H56: 8 | I56: 7 | J56: 8 | K56: 7 | L56: 8 | M56: 11 | N56: 11 | O56: 9.35 | P56: 9.35 | Q56: 7.3514375 | R56: 5.74206875 | S56: 4.019448125 | T56: 1.655066875 | U56: 0
A57: Metal halide 400 watt | B57: =A$43 -> Sodium high pressure 250 watt | D57: 1.33 | E57: 139.75 | F57: 0 | G57: 0 | H57: 35 | I57: 47 | J57: 77 | K57: 88 | L57: 87 | M57: 87 | N57: 87 | O57: 73.95 | P57: 73.95 | Q57: 58.1431875 | R57: 45.41454375 | S57: 31.79018062 | T57: 22.25312644 | U57: 18.32610412
A58: Metal halide 70 watt | B58: =A$41 -> Mercury vapour 80 watt | D58: 2.12 | E58: 120.03 | F58: 406 | G58: 418 | H58: 351 | I58: 366 | J58: 365 | K58: 354 | L58: 351 | M58: 314 | N58: 314 | O58: 266.9 | P58: 266.9 | Q58: 209.850125 | R58: 163.9099625 | S58: 114.7369737 | T58: 80.31588162 | U58: 66.14249075
A59: Metal halide 150 watt | B59: =A$42 -> Sodium high pressure 150 watt | D59: 1.33 | F59: 17 | G59: 17 | H59: 0 | I59: 0 | J59: 0 | K59: 0 | L59: 0 | M59: 0 | N59: 0 | O59: 0 | P59: 0 | Q59: 0 | R59: 0 | S59: 0 | T59: 0 | U59: 0
A65: Total Existing Lights | F65: =SUM(F41:F64) -> 147828 | G65: =SUM(G41:G64) -> 147582 | H65: 147960 | I65: 132835 | J65: 96591 | K65: 88028 | L65: 84574 | M65: 77532 | N65: 77532 | O65: 67853.9 | P65: 67853.9 | Q65: 54885.14188 | R65: 46448.67883 | S65: 39301.59272 | T65: 33382.61328 | U65: 30664.61002
A67: Energy Efficient Lights | B67: Reference Light | D67: Price Factor
A68: T5 2X14W | B68: =A$68 -> T5 2X14W | D68: 1 | E68: 40.18 | F68: 1468 | G68: 2090 | H68: 3251 | I68: 10327 | J68: 12529 | K68: 12439 | L68: 12286 | M68: 11664 | N68: 11664 | O68: 9914.4 | P68: =O68 -> 9914.4 | Q68: 7795.197 | R68: 6625.91745 | S68: 5632.029832 | T68: 4787.225358 | U68: 4399.07195
A69: T5 2X24W | B69: =A$68 -> T5 2X14W | D69: 0.9837858113 | E69: 39.53 | F69: 82 | G69: 159 | H69: 272 | I69: 819 | J69: 1632 | K69: 1823 | L69: 1848 | M69: 1137 | N69: 1137 | O69: 966.45 | P69: 966.45 | Q69: 759.8713125 | R69: 645.8906156 | S69: 549.0070233 | T69: 466.6559698 | U69: 428.8189993
A70: CF32 | B70: T5 2X14W | D70: 0.9612856452 | E70: 38.62 | F70: 281 | G70: 2006 | H70: 2071 | I70: 3092 | J70: 4806 | K70: 5051 | L70: 5164 | M70: 5126 | N70: 5126 | O70: 3588.2 | P70: 3588.2 | Q70: 2134.979 | R70: 1494.4853 | S70: 1046.13971 | T70: 732.297797 | U70: 603.068774
A71: CF42 | B71: T5 2X14W | D71: 0.9612856452 | E71: 38.62 | F71: 700 | G71: 1789 | H71: 3214 | I71: 4139 | J71: 4636 | K71: 5172 | L71: 5038 | M71: 4783 | N71: 4783 | O71: 3348.1 | P71: 3348.1 | Q71: 1992.1195 | R71: 1394.48365 | S71: 976.138555 | T71: 683.2969885 | U71: 562.715167
A72: Category P LED Standard Output | B72: =A$72 -> Category P LED Standard Output | D72: 1 | E72: 25.63 | F72: 0 | G72: 0 | H72: 0 | I72: 8017 | J72: 42042 | K72: 53607 | L72: 59484 | M72: 70340 | N72: 70340 | O72: 83899.192 | P72: 83899.192 | Q72: 101359.3163 | R72: 111539.9968 | S72: 120366.8212 | T72: 128252.4732 | U72: 132054.0461
A73: Category P LED High Output | B73: =A$72 -> Category P LED Standard Output | D73: 1 | E73: 25.63 | F73: 0 | G73: 0 | H73: 0 | I73: 0 | J73: 1 | K73: 45 | L73: 50 | M73: 230 | N73: 230 | O73: 315.996 | P73: 315.996 | Q73: 513.7266312 | R73: 685.4365638 | S73: 812.1500751 | T73: 828.3930766 | U73: 836.5949883
A74: Category V LED L1 Standard Output | B74: Category V LED L1 Standard Output | D74: 1 | E74: 54.53 | F74: 0 | G74: 0 | H74: 0 | I74: 0 | J74: 0 | K74: 0 | L74: 1499 | M74: 5992 | N74: 5992 | O74: 8868.543 | P74: 8868.543 | Q74: 13274.96092 | R74: 16615.99177 | S74: 19557.12791 | T74: 22130.9679 | U74: 23342.55868
A75: Category V LED L2 Medium Output | B75: Category V LED L1 Standard Output | D75: =E75/E74 -> 1.108013937 | E75: 60.42 | F75: 0 | G75: 0 | H75: 0 | I75: 0 | J75: 0 | K75: 0 | L75: 721 | M75: 1914 | N75: 1914 | O75: 3364.47 | P75: 3364.47 | Q75: 5582.17876 | R75: 7267.702761 | S75: 8758.744981 | T75: 10060.56647 | U75: 10671.04128
A76: Category V L4 LED High Output | B76: Category V LED L1 Standard Output | D76: =E76/E74 -> 1.254905557 | E76: 68.43 | F76: 0 | G76: 0 | H76: 0 | I76: 0 | J76: 0 | K76: 0 | L76: 12 | M76: 81 | N76: 81 | O76: 102.51 | P76: 102.51 | Q76: 124.541082 | R76: 143.2754036 | S76: 157.5113617 | T76: 160.6615889 | U76: 162.2522977
A78: Total Energy Efficient Lights | F78: =SUM(F68:F77) -> 2531 | G78: =SUM(G68:G77) -> 6044 | H78: 8808 | I78: 26394 | J78: 65646 | K78: 78137 | L78: 86102 | M78: 101267 | N78: 101267 | O78: 114367.861 | P78: =SUM(P68:P77) -> 114367.861 | Q78: =SUM(Q68:Q77) -> 133536.8905 | R78: =SUM(R68:R77) -> 146413.1803 | S78: 157855.6706 | T78: 168102.5384 | U78: 173060.1682
A80: Total Number of Lights | F80: =SUM(F65,F78) -> 150359 | G80: =SUM(G65,G78) -> 153626 | H80: =SUM(H65,H78) -> 156768 | I80: 159229 | J80: 162237 | K80: 166165 | L80: 170676 | M80: 178799 | N80: 178799 | O80: 182221.761 | P80: =SUM(P65,P78) -> 182221.761 | Q80: 188422.0324 | R80: 192861.8592 | S80: 197157.2633 | T80: 201485.1517 | U80: 203724.7782
Q83: =Q2 -> 2021/22 | R83: =R2 -> 2022/23 | S83: =S2 -> 2023/24 | T83: 2024/25 | U83: 2025/26
P84: Real Labour Escalation | Q84: 0.007762137193 | R84: 0.004960893439 | S84: 0.006512577699 | T84: 0.009934640482 | U84: 0.01307542378

Sheet DNSP Inputs O & M
A1: Public Lighting Cost Build-up Model
A3: Powercor | C3: O & M Data Inputs
C5: Real 2021 $
A7: Input parameters | C7: 2020 | D7: 2021/22 | E7: 2022/23 | F7: 2023/24 | G7: 2024/25 | H7: 2025/26
A9: Inputs - all lamps
A11: Material premium for rural areas | C11: 0.05 | D11: 0.05 | E11: 0.05 | F11: 0.05 | G11: 0.05 | H11: 0.05
A12: Labour rate (per hour) | C12: 114.1167364 | D12: 117.0289293 | E12: =D12*(1+'DNSP Inputs General'!R$84) -> 117.6094974 | F12: =E12*(1+'DNSP Inputs General'!S$84) -> 118.3754384 | G12: =F12*(1+'DNSP Inputs General'!T$84) -> 119.5514558 | H12: =G12*(1+'DNSP Inputs General'!U$84) -> 121.1146417 | M12: 119.497966 | N12: 122.1045034 | O12: 124.5717501 | P12: 126.8053865
A13: Labour rate for night patrols (per hour) | C13: 136.6890268 | D13: 140.1772516 | E13: =D13*(1+'DNSP Inputs General'!R$84) -> 140.872656 | F13: =E13*(1+'DNSP Inputs General'!S$84) -> 141.7901001 | G13: =F13*(1+'DNSP Inputs General'!T$84) -> 143.1987338 | H13: =G13*(1+'DNSP Inputs General'!U$84) -> 145.0711179 | M13: 143.1346637 | N13: 146.2567741 | O13: 149.2120422 | P13: 151.8874919
A14: Elevated platform vehicle (per hour) - urban MV,urban T5 | C14: 50.19214533 | D14: 50.17768159 | E14: 50.17768159 | F14: 50.17768159 | G14: 50.17768159 | H14: 50.17768159
A15: Elevated platform vehicle (per hour) - rural MV, rural T5, S-HP | C15: 68.4646212 | D15: 63.6381438 | E15: 63.6381438 | F15: 63.6381438 | G15: 63.6381438 | H15: 63.6381438
A16: Patrol vehicle (per hour) | C16: 34.37575753 | D16: 34.36585156 | E16: 34.36585156 | F16: 34.36585156 | G16: 34.36585156 | H16: 34.36585156
A17: Crane truck rate (per hour) | D17: 160.0206222 | E17: 160.0206222 | F17: 160.0206222 | G17: 160.0206222 | H17: 160.0206222
A18: Tipper (per hour) | D18: 21.43057778 | E18: 21.43057778 | F18: 21.43057778 | G18: 21.43057778 | H18: 21.43057778
A19: Number of hours in a day | C19: 8 | D19: 8 | E19: 8 | F19: 8 | G19: 8 | H19: 8
A20: Indirect overheads | C20: 0.25 | D20: 0.25 | E20: 0.25 | F20: 0.25 | G20: 0.25 | H20: 0.25
A24: Inputs - MV80
A26: Depreciation period | B26: years | C26: 20 | D26: 20 | E26: 20 | F26: 20 | G26: 20 | H26: 20
A27: Lamps - bulk change | B27: years | C27: 4 | D27: 4 | E27: 4 | F27: 4 | G27: 4 | H27: 4
A28: PE cells - bulk change | B28: years | C28: 8 | D28: 8 | E28: 8 | F28: 8 | G28: 8 | H28: 8
A29: Proportion of lamps that fail between bulk change | C29: 0.1554544767 | D29: 0.5324658987 | E29: 0.5324658987 | F29: 0.5324658987 | G29: 0.5324658987 | H29: 0.5324658987
A30: Unit cost - lamp | C30: 6.31702094 | D30: 6.31520058 | E30: 6.31520058 | F30: 6.31520058 | G30: 6.31520058 | H30: 6.31520058
A31: Unit cost - PE cell | C31: 25.50307141 | D31: 25.49572226 | E31: 25.49572226 | F31: 25.49572226 | G31: 25.49572226 | H31: 25.49572226
A32: Unit cost - luminaire | C32: 219.1605405 | D32: 219.0973856 | E32: 219.0973856 | F32: 219.0973856 | G32: 219.0973856 | H32: 219.0973856
A33: Unit cost - miscellaneous materials (bulk lamp) | C33: 1.382280293 | D33: 1.578800145 | E33: 1.578800145 | F33: 1.578800145 | G33: 1.578800145 | H33: 1.578800145
A34: Unit cost - miscellaneous materials (repair) | C34: 13.82280293 | D34: 13.81881965 | E34: 13.81881965 | F34: 13.81881965 | G34: 13.81881965 | H34: 13.81881965
A35: Number of men in crew | C35: 2 | D35: 2 | E35: 2 | F35: 2 | G35: 2 | H35: 2
A36: Number of bulk lamp changes in 1 day - urban | C36: 86.4 | D36: 86.4 | E36: 86.4 | F36: 86.4 | G36: 86.4 | H36: 86.4
A37: Number of bulk lamp changes in 1 day - rural | C37: 72 | D37: 72 | E37: 72 | F37: 72 | G37: 72 | H37: 72
A38: Number of bulk lamp changes in 1 day - remote | C38: 60 | D38: 60 | E38: 60 | F38: 60 | G38: 60 | H38: 60
A39: Number of repairs in 1 day - urban | C39: 28.8 | D39: 28.8 | E39: 28.8 | F39: 28.8 | G39: 28.8 | H39: 28.8
A40: Number of repairs in 1 day - rural | C40: 24 | D40: 24 | E40: 24 | F40: 24 | G40: 24 | H40: 24
A41: Number of repairs in 1 day - remote | C41: 19.2 | D41: 19.2 | E41: 19.2 | F41: 19.2 | G41: 19.2 | H41: 19.2
A42: % of repairs - lamps | C42: 0.6 | D42: 0.6 | E42: 0.6 | F42: 0.6 | G42: 0.6 | H42: 0.6
A43: % of repairs - PE cells | C43: 0.5 | D43: 0.5 | E43: 0.5 | F43: 0.5 | G43: 0.5 | H43: 0.5
A44: % of repairs - luminaires | C44: 0.15 | D44: 0.15 | E44: 0.15 | F44: 0.15 | G44: 0.15 | H44: 0.15
A45: % of repairs - other | C45: 0.1 | D45: 0.1 | E45: 0.1 | F45: 0.1 | G45: 0.1 | H45: 0.1
A47: Other Maintenance and Repair costs
A48: Traffic control costs | C48: 39249.92166 | D48: 17395.16144 | E48: 15027.82279 | F48: 12989.74025 | G48: 11214.30797 | H48: 10448.34451
A49: Other costs : Describe……………………………………. | C49: 0 | D49: 0 | E49: 0 | F49: 0 | G49: 0 | H49: 0
C50: =SUM(C48:C49) -> 39249.92166 | D50: =SUM(D48:D49) -> 17395.16144 | E50: 15027.82279 | F50: 12989.74025 | G50: 11214.30797 | H50: 10448.34451
A51: Number of Lights | C51: 30676.5 | D51: 24119.39812 | E51: 20501.48841 | F51: 17426.26515 | G51: 14812.32537 | H51: 13611.32602
A52: Unit Cost | C52: 1.101169849 | D52: 0.7212104279 | E52: 0.7330113057 | F52: 0.7454116038 | G52: 0.7570930081 | H52: 0.7676213543
A54: Location of selected public lighting assets within distributors' areas (%)
A55: Urban | C55: 0.7537060972 | D55: 0.7537060972 | E55: 0.7537060972 | F55: 0.7537060972 | G55: 0.7537060972 | H55: 0.7537060972
A56: Rural | C56: 0.1885136274 | D56: 0.1885136274 | E56: 0.1885136274 | F56: 0.1885136274 | G56: 0.1885136274 | H56: 0.1885136274
A57: Remote | C57: 0.05778027536 | D57: 0.05778027536 | E57: 0.05778027536 | F57: 0.05778027536 | G57: 0.05778027536 | H57: 0.05778027536
A61: Inputs - S-HP150
A63: Depreciation period | B63: years | C63: 20 | D63: 20 | E63: 20 | F63: 20 | G63: 20 | H63: 20
A64: Number of patrols per year | C64: 3 | D64: 3 | E64: 3 | F64: 3 | G64: 3 | H64: 3
A65: Lamps - frequency of replacement | B65: years | C65: 5 | D65: 5 | E65: 5 | F65: 5 | G65: 5 | H65: 5
A66: PE cells - frequency of replacement | B66: years | C66: 10 | D66: 10 | E66: 10 | F66: 10 | G66: 10 | H66: 10
A67: Unit cost - lamp | C67: 45.68436369 | D67: 45.67119895 | E67: 45.67119895 | F67: 45.67119895 | G67: 45.67119895 | H67: 45.67119895
A68: Unit cost - PE cell | C68: 24.81193126 | D68: 87.71 | E68: 87.71 | F68: 87.71 | G68: 87.71 | H68: 87.71
A69: Unit cost - miscellaneous materials | C69: 2.764560587 | D69: 2.76376393 | E69: 2.76376393 | F69: 2.76376393 | G69: 2.76376393 | H69: 2.76376393
A70: Number of men in crew - road patrols | C70: 2 | D70: 2 | E70: 2 | F70: 2 | G70: 2 | H70: 2
A71: Number of men in crew - repairs | C71: 2 | D71: 2 | E71: 2 | F71: 2 | G71: 2 | H71: 2
A72: Number of lamps patrolled in 1 day - urban | C72: 3000 | D72: 3000 | E72: 3000 | F72: 3000 | G72: 3000 | H72: 3000
A73: Number of lamps patrolled in 1 day - rural | C73: 2000 | D73: 2000 | E73: 2000 | F73: 2000 | G73: 2000 | H73: 2000
A74: Number of lamps patrolled in 1 day - remote | C74: 1000 | D74: 1000 | E74: 1000 | F74: 1000 | G74: 1000 | H74: 1000
A75: Number of repairs in 1 day - urban | C75: 19.2 | D75: 19.2 | E75: 19.2 | F75: 19.2 | G75: 19.2 | H75: 19.2
A76: Number of repairs in 1 day - rural | C76: 15.36 | D76: 15.36 | E76: 15.36 | F76: 15.36 | G76: 15.36 | H76: 15.36
A77: Number of repairs in 1 day - remote | C77: 11.52 | D77: 11.52 | E77: 11.52 | F77: 11.52 | G77: 11.52 | H77: 11.52
A79: Other Maintenance and Repair costs
A80: Traffic control costs | C80: 81893.07365 | D80: 46257.08068 | E80: 39318.51858 | F80: 33420.74079 | G80: 28407.62967 | H80: 26104.30835
A81: Other costs : Describe……………………………………. | C81: 0 | D81: 0 | E81: 0 | F81: 0 | G81: 0 | H81: 0
C82: =SUM(C80:C81) -> 81893.07365 | D82: =SUM(D80:D81) -> 46257.08068 | E82: =SUM(E80:E81) -> 39318.51858 | F82: =SUM(F80:F81) -> 33420.74079 | G82: =SUM(G80:G81) -> 28407.62967 | H82: =SUM(H80:H81) -> 26104.30835
A83: Number of Lights | C83: 23612.4 | D83: 19657.323 | E83: 16708.72455 | F83: 14202.41587 | G83: 12072.05349 | H83: 11093.23834
A84: Unit Cost | C84: 2.329713105 | D84: 2.384138588 | E84: 2.423149294 | F84: 2.464141531 | G84: 2.502757289 | H84: 2.537561329
A86: Location of selected public lighting assets within distributors' areas (%)
A87: Urban | C87: 0.7849450786 | D87: 0.7849450786 | E87: 0.7849450786 | F87: 0.7849450786 | G87: 0.7849450786 | H87: 0.7849450786
A88: Rural | C88: 0.185117381 | D88: 0.185117381 | E88: 0.185117381 | F88: 0.185117381 | G88: 0.185117381 | H88: 0.185117381
A89: Remote | C89: 0.02993754038 | D89: 0.02993754038 | E89: 0.02993754038 | F89: 0.02993754038 | G89: 0.02993754038 | H89: 0.02993754038
A93: Inputs - S-HP250
A95: Depreciation period | B95: years | C95: 20 | D95: 20 | E95: 20 | F95: 20 | G95: 20 | H95: 20
A96: Number of patrols per year | C96: 3 | D96: 3 | E96: 3 | F96: 3 | G96: 3 | H96: 3
A97: Lamps - frequency of replacement | B97: years | C97: 5 | D97: 5 | E97: 5 | F97: 5 | G97: 5 | H97: 5
A98: PE cells - frequency of replacement | B98: years | C98: 10 | D98: 10 | E98: 10 | F98: 10 | G98: 10 | H98: 10
A99: Unit cost - lamp | C99: 45.68436369 | D99: 45.67119895 | E99: 45.67119895 | F99: 45.67119895 | G99: 45.67119895 | H99: 45.67119895
A100: Unit cost - PE cell | C100: 24.81193126 | D100: 87.71 | E100: 87.71 | F100: 87.71 | G100: 87.71 | H100: 87.71
A101: Unit cost - miscellaneous materials | C101: 2.764560587 | D101: 2.76376393 | E101: 2.76376393 | F101: 2.76376393 | G101: 2.76376393 | H101: 2.76376393
A102: Number of men in crew - road patrols | C102: 2 | D102: 2 | E102: 2 | F102: 2 | G102: 2 | H102: 2
A103: Number of men in crew - repairs | C103: 2 | D103: 2 | E103: 2 | F103: 2 | G103: 2 | H103: 2
A104: Number of lamps patrolled in 1 day - urban | C104: 3000 | D104: 3000 | E104: 3000 | F104: 3000 | G104: 3000 | H104: 3000
A105: Number of lamps patrolled in 1 day - rural | C105: 2000 | D105: 2000 | E105: 2000 | F105: 2000 | G105: 2000 | H105: 2000
A106: Number of lamps patrolled in 1 day - remote | C106: 1000 | D106: 1000 | E106: 1000 | F106: 1000 | G106: 1000 | H106: 1000
A107: Number of repairs in 1 day - urban | C107: 19.2 | D107: 19.2 | E107: 19.2 | F107: 19.2 | G107: 19.2 | H107: 19.2
A108: Number of repairs in 1 day - rural | C108: 15.36 | D108: 15.36 | E108: 15.36 | F108: 15.36 | G108: 15.36 | H108: 15.36
A109: Number of repairs in 1 day - remote | C109: 11.52 | D109: 11.52 | E109: 11.52 | F109: 11.52 | G109: 11.52 | H109: 11.52
A111: Other Maintenance and Repair costs
A112: Traffic control costs | C112: 35759.77146 | D112: 23316.39767 | E112: 19818.93802 | F112: 16846.09732 | G112: 14319.18272 | H112: 13158.16791
A113: Other costs : Describe……………………………………. | C113: 0 | D113: 0 | E113: 0 | F113: 0 | G113: 0 | H113: 0
C114: =SUM(C112:C113) -> 35759.77146 | D114: =SUM(D112:D113) -> 23316.39767 | E114: =SUM(E112:E113) -> 19818.93802 | F114: =SUM(F112:F113) -> 16846.09732 | G114: =SUM(G112:G113) -> 14319.18272 | H114: =SUM(H112:H113) -> 13158.16791
A115: Number of Lights | C115: 11861.1 | D115: 9874.36575 | E115: 8393.210887 | F115: 7134.229254 | G115: 6064.094866 | H115: 5572.411499
A116: Unit Cost | C116: 2.307401603 | D116: 2.361305856 | E116: 2.39994296 | F116: 2.440542617 | G116: 2.478788554 | H116: 2.513259278
A118: Location of selected public lighting assets within distributors' areas (%)
A119: Urban | C119: 0.7724111283 | D119: 0.7724111283 | E119: 0.7724111283 | F119: 0.7724111283 | G119: 0.7724111283 | H119: 0.7724111283
A120: Rural | C120: 0.2045595054 | D120: 0.2045595054 | E120: 0.2045595054 | F120: 0.2045595054 | G120: 0.2045595054 | H120: 0.2045595054
A121: Remote | C121: 0.02302936631 | D121: 0.02302936631 | E121: 0.02302936631 | F121: 0.02302936631 | G121: 0.02302936631 | H121: 0.02302936631
A125: Dedicated street lighting poles
A127: Period of inspection | B127: years | C127: 5 | D127: 5 | E127: 5 | F127: 5 | G127: 5 | H127: 5
A128: Pole inspection rate | B128: per day | C128: 72 | D128: 72 | E128: 72 | F128: 72 | G128: 72 | H128: 72
A129: Depreciation of dedicated street lighting pole & bracket | B129: years | C129: 35 | D129: 35 | E129: 35 | F129: 35 | G129: 35 | H129: 35
A130: Proportion of lights on dedicated poles | C130: 0.504 | D130: 0.5596134309 | E130: 0.5740572578 | F130: 0.5882816491 | G130: 0.6018024107 | H130: 0.6210560203
A134: Other direct costs
A135: Call centre
A136: Number of calls | C136: 6728.483712 | D136: 3277.598719 | E136: 2785.958911 | F136: 2368.065074 | G136: 2012.855313 | H136: 1849.650828
A137: Average cost per call $ | C137: 12.54721161 | D137: 12.70865836 | E137: 12.91660506 | F137: 13.13511431 | G137: 13.34095572 | H137: 13.52647877
C138: =C136*C137 -> 84423.70894 | D138: =D136*D137 -> 41653.88236 | E138: 35985.13095 | F138: 31104.80544 | G138: 26853.41361 | H138: 25019.26266
A140: GIS and other | C140: 125472.1161 | D140: 127086.5836 | E140: 129166.0506 | F140: 131351.1431 | G140: 133409.5572 | H140: 135264.7877
A141: Complaints handling | C141: 37641.63482 | D141: 38125.97508 | E141: 38749.81517 | F141: 39405.34292 | G141: 40022.86717 | H141: 40579.43631
A144: ENERGY EFFICIENT LIGHTS
A146: Inputs - T5 (2 X 14W)
A148: Depreciation period | B148: years | C148: 20 | D148: 20 | E148: 20 | F148: 20 | G148: 20 | H148: 20
A149: Lamps - bulk change | B149: years | C149: 4 | D149: 4 | E149: 4 | F149: 4 | G149: 4 | H149: 4
A150: PE cells - bulk change | B150: years | C150: 8 | D150: 8 | E150: 8 | F150: 8 | G150: 8 | H150: 8
A151: Ballast unit life | B151: years | C151: 20 | D151: 20 | E151: 20 | F151: 20 | G151: 20 | H151: 20
A152: Proportion of luminaires that fail between bulk change | C152: 0.114 | D152: 0.37 | E152: 0.37 | F152: 0.37 | G152: 0.37 | H152: 0.37
A153: Unit cost - lamp | C153: 11.05824235 | D153: 11.05505572 | E153: 11.05505572 | F153: 11.05505572 | G153: 11.05505572 | H153: 11.05505572
A154: Unit cost - PE cell | C154: 18.66078396 | D154: 25.49572226 | E154: 25.49572226 | F154: 25.49572226 | G154: 25.49572226 | H154: 25.49572226
A155: Unit cost - luminaire | C155: 333.3783611 | D155: 205 | E155: 205 | F155: 205 | G155: 205 | H155: 205
A156: Unit cost - miscellaneous materials (bulk lamp) | C156: 1.382280293 | D156: 1.578800145 | E156: 1.578800145 | F156: 1.578800145 | G156: 1.578800145 | H156: 1.578800145
A157: Unit cost - miscellaneous materials (repair) | C157: 13.82280293 | D157: 13.81881965 | E157: 13.81881965 | F157: 13.81881965 | G157: 13.81881965 | H157: 13.81881965
A158: Number of men in crew | C158: 2 | D158: 2 | E158: 2 | F158: 2 | G158: 2 | H158: 2
A159: Number of bulk lamp changes in 1 day - urban | C159: 73.92 | D159: 73.92 | E159: 73.92 | F159: 73.92 | G159: 73.92 | H159: 73.92
A160: Number of bulk lamp changes in 1 day - rural | C160: 61.44 | D160: 61.44 | E160: 61.44 | F160: 61.44 | G160: 61.44 | H160: 61.44
A161: Number of bulk lamp changes in 1 day - remote | C161: 48.96 | D161: 48.96 | E161: 48.96 | F161: 48.96 | G161: 48.96 | H161: 48.96
A162: Number of repairs in 1 day - urban | C162: 24.96 | D162: 24.96 | E162: 24.96 | F162: 24.96 | G162: 24.96 | H162: 24.96
A163: Number of repairs in 1 day - rural | C163: 20.16 | D163: 20.16 | E163: 20.16 | F163: 20.16 | G163: 20.16 | H163: 20.16
A164: Number of repairs in 1 day - remote | C164: 16.32 | D164: 16.32 | E164: 16.32 | F164: 16.32 | G164: 16.32 | H164: 16.32
A165: % of repairs - lamps | C165: 0.6 | D165: 0.6 | E165: 0.6 | F165: 0.6 | G165: 0.6 | H165: 0.6
A166: % of repairs - PE cells | C166: 0.5 | D166: 0.5 | E166: 0.5 | F166: 0.5 | G166: 0.5 | H166: 0.5
A167: % of repairs - luminaires | C167: 0.15 | D167: 0.15 | E167: 0.15 | F167: 0.15 | G167: 0.15 | H167: 0.15
A168: % of repairs - other | C168: 0.1 | D168: 0.1 | E168: 0.1 | F168: 0.1 | G168: 0.1 | H168: 0.1
A170: Other Maintenance and Repair costs
A171: Traffic control costs | C171: 10306.89193 | D171: 8623.170732 | E171: 7449.627992 | F171: 6332.183794 | G171: 5382.356225 | H171: 4945.948963
A172: Other costs : Describe……………………………………. | C172: 0 | D172: 0 | E172: 0 | F172: 0 | G172: 0 | H172: 0
C173: =SUM(C171:C172) -> 10306.89193 | D173: =SUM(D171:D172) -> 8623.170732 | E173: 7449.627992 | F173: 6332.183794 | G173: 5382.356225 | H173: 4945.948963
A174: Number of Lights | C174: 9914.4 | D174: 7795.197 | E174: 6625.91745 | F174: 5632.029832 | G174: 4787.225358 | H174: 4399.07195
A175: Unit Cost | C175: 1.069144693 | D175: 1.106215883 | E175: 1.124316451 | F175: 1.143336429 | G175: 1.161253745 | H175: 1.177402463
A177: Location of selected public lighting assets within distributors' areas (%)
A178: Urban | C178: 0.7798005229 | D178: 0.7798005229 | E178: 0.7798005229 | F178: 0.7798005229 | G178: 0.7798005229 | H178: 0.7798005229
A179: Rural | C179: 0.2198121429 | D179: 0.2198121429 | E179: 0.2198121429 | F179: 0.2198121429 | G179: 0.2198121429 | H179: 0.2198121429
A180: Remote | C180: 0.0003873341726 | D180: 0.0003873341726 | E180: 0.0003873341726 | F180: 0.0003873341726 | G180: 0.0003873341726 | H180: 0.0003873341726
A186: Inputs - Category P LED Standard Output
A188: Depreciation period | B188: years | C188: 20 | D188: 20 | E188: 20 | F188: 20 | G188: 20 | H188: 20
A189: PE cells - bulk change | B189: years | C189: 8 | D189: 8 | E189: 8 | F189: 8 | G189: 8 | H189: 8
A190: Proportion of luminaires that fail between bulk change | C190: 0.114 | D190: 0.1197969911 | E190: 0.1197969911 | F190: 0.1197969911 | G190: 0.1197969911 | H190: 0.1197969911
A191: Unit cost - PE cell | C191: 18.66078396 | D191: 18.65540653 | E191: 18.65540653 | F191: 18.65540653 | G191: 18.65540653 | H191: 18.65540653
A192: Unit cost - luminaire | C192: 390.1324981 | D192: 205 | E192: 205 | F192: 205 | G192: 205 | H192: 205
A193: Unit cost - miscellaneous materials (repair) | C193: 13.82280293 | D193: 13.81881965 | E193: 13.81881965 | F193: 13.81881965 | G193: 13.81881965 | H193: 13.81881965
A194: Number of men in crew | C194: 2 | D194: 2 | E194: 2 | F194: 2 | G194: 2 | H194: 2
A195: Number of bulk PE cells changes in 1 day - urban | C195: 73.92 | D195: 73.92 | E195: 73.92 | F195: 73.92 | G195: 73.92 | H195: 73.92
A196: Number of bulk PE cells changes in 1 day - rural | C196: 61.44 | D196: 61.44 | E196: 61.44 | F196: 61.44 | G196: 61.44 | H196: 61.44
A197: Number of bulk PE cells changes in 1 day - remote | C197: 48.96 | D197: 48.96 | E197: 48.96 | F197: 48.96 | G197: 48.96 | H197: 48.96
A198: Number of repairs in 1 day - urban | C198: 24.96 | D198: 24.96 | E198: 24.96 | F198: 24.96 | G198: 24.96 | H198: 24.96
A199: Number of repairs in 1 day - rural | C199: 20.16 | D199: 20.16 | E199: 20.16 | F199: 20.16 | G199: 20.16 | H199: 20.16
A200: Number of repairs in 1 day - remote | C200: 16.32 | D200: 16.32 | E200: 16.32 | F200: 16.32 | G200: 16.32 | H200: 16.32
A201: % of repairs - PE cells | C201: 0.5 | D201: 0.5 | E201: 0.5 | F201: 0.5 | G201: 0.5 | H201: 0.5
A202: % of repairs - luminaires | C202: 0.15 | D202: 0.15 | E202: 0.15 | F202: 0.15 | G202: 0.15 | H202: 0.15
A203: % of repairs - other | C203: 0.1 | D203: 0.1 | E203: 0.1 | F203: 0.1 | G203: 0.1 | H203: 0.1
C204: 0
A205: Other Maintenance and Repair costs
A206: Traffic control costs | C206: 3740.228086 | D206: 6147.237554 | E206: 6764.675239 | F206: 7300.004285 | G206: 7778.253137 | H206: 8008.81084
A207: Other costs : Describe……………………………………. | C207: 0 | D207: 0 | E207: 0 | F207: 0 | G207: 0 | H207: 0
C208: =SUM(C206:C207) -> 3740.228086 | D208: =SUM(D206:D207) -> 6147.237554 | E208: =SUM(E206:E207) -> 6764.675239 | F208: =SUM(F206:F207) -> 7300.004285 | G208: =SUM(G206:G207) -> 7778.253137 | H208: =SUM(H206:H207) -> 8008.81084
A209: Number of Lights | C209: 83899.192 | D209: 101359.3163 | E209: 111539.9968 | F209: 120366.8212 | G209: 128252.4732 | H209: 132054.0461
A210: Unit Cost | C210: 0.05610099465 | D210: =D208/D209 -> 0.06064797769 | E210: 0.06064797769 | F210: 0.06064797769 | G210: 0.06064797769 | H210: 0.06064797769
A212: Location of selected public lighting assets within distributors' areas (%)
A213: Urban | C213: 0.284894599 | D213: 0.6061337397 | E213: 0.6061337397 | F213: 0.6061337397 | G213: 0.6061337397 | H213: 0.6061337397
A214: Rural | C214: 0.6372707996 | D214: 0.34853219 | E214: 0.34853219 | F214: 0.34853219 | G214: 0.34853219 | H214: 0.34853219
A215: Remote | C215: 0.07783460147 | D215: 0.04533407033 | E215: 0.04533407033 | F215: 0.04533407033 | G215: 0.04533407033 | H215: 0.04533407033
A218: Inputs - Category V LED
A220: Depreciation period | B220: years | D220: 20 | E220: 20 | F220: 20 | G220: 20 | H220: 20
A221: Number of patrols per year | D221: 3 | E221: 3 | F221: 3 | G221: 3 | H221: 3
A222: PE cells - frequency of replacement | B222: years | D222: 10 | E222: 10 | F222: 10 | G222: 10 | H222: 10
A223: Unit cost - PE cell | D223: 87.71 | E223: 87.71 | F223: 87.71 | G223: 87.71 | H223: 87.71
A224: Unit cost - luminaire | D224: 402 | E224: 402 | F224: 402 | G224: 402 | H224: 402 | L224: 565 | M224: 565 | N224: 565 | O224: 565 | P224: 565
A225: Number of men in crew - road patrols | D225: 2 | E225: 2 | F225: 2 | G225: 2 | H225: 2
A226: Number of men in crew - repairs | D226: 2 | E226: 2 | F226: 2 | G226: 2 | H226: 2
A227: Number of lamps patrolled in 1 day - urban | D227: 3000 | E227: 3000 | F227: 3000 | G227: 3000 | H227: 3000
A228: Number of lamps patrolled in 1 day - rural | D228: 2000 | E228: 2000 | F228: 2000 | G228: 2000 | H228: 2000
A229: Number of lamps patrolled in 1 day - remote | D229: 1000 | E229: 1000 | F229: 1000 | G229: 1000 | H229: 1000
A230: Number of repairs in 1 day - urban | D230: 19.2 | E230: 19.2 | F230: 19.2 | G230: 19.2 | H230: 19.2
A231: Number of repairs in 1 day - rural | D231: 15.36 | E231: 15.36 | F231: 15.36 | G231: 15.36 | H231: 15.36
A232: Number of repairs in 1 day - remote | D232: 11.52 | E232: 11.52 | F232: 11.52 | G232: 11.52 | H232: 11.52
A234: Other Maintenance and Repair costs
A235: Traffic control costs | D235: 30939.11204 | E235: 38725.8414 | F235: 45580.56144 | G235: 51579.24754 | H235: 54403.02558
A236: Other costs : Describe……………………………………. | D236: 0 | E236: 0 | F236: 0 | G236: 0 | H236: 0
D237: =SUM(D235:D236) -> 30939.11204 | E237: =SUM(E235:E236) -> 38725.8414 | F237: =SUM(F235:F236) -> 45580.56144 | G237: =SUM(G235:G236) -> 51579.24754 | H237: =SUM(H235:H236) -> 54403.02558
A238: Number of Lights | C238: 8868.543 | D238: 13274.96092 | E238: 16615.99177 | F238: 19557.12791 | G238: 22130.9679 | H238: 23342.55868
A239: Unit Cost | D239: =D237/D238 -> 2.33063677 | E239: 2.33063677 | F239: 2.33063677 | G239: 2.33063677 | H239: 2.33063677
A241: Location of selected public lighting assets within distributors' areas (%)
A242: Urban | D242: 0.614083602 | E242: 0.614083602 | F242: 0.614083602 | G242: 0.614083602 | H242: 0.614083602
A243: Rural | D243: 0.3423158953 | E243: 0.3423158953 | F243: 0.3423158953 | G243: 0.3423158953 | H243: 0.3423158953
A244: Remote | D244: 0.04360050272 | E244: 0.04360050272 | F244: 0.04360050272 | G244: 0.04360050272 | H244: 0.04360050272

Sheet DNSP Inputs Capex
A1: Public Lighting Cost Build-up Model
A3: ='DNSP Inputs O & M'!$A$3 -> Powercor | C3: Capex Data Inputs
C5: Real 2021 $
A7: Input parameters | C7: 2020 | D7: 2021/22 | E7: 2022/23 | F7: 2023/24 | G7: 2024/25 | H7: 2025/26
A9: Inputs - all lamps
A11: Material premium for rural areas | C11: ='DNSP Inputs O & M'!C11 -> 0.05 | D11: ='DNSP Inputs O & M'!D11 -> 0.05 | E11: ='DNSP Inputs O & M'!E11 -> 0.05 | F11: ='DNSP Inputs O & M'!F11 -> 0.05 | G11: ='DNSP Inputs O & M'!G11 -> 0.05 | H11: ='DNSP Inputs O & M'!H11 -> 0.05
A12: Labour rate (per hour) | C12: ='DNSP Inputs O & M'!C12 -> 114.1167364 | D12: ='DNSP Inputs O & M'!D12 -> 117.0289293 | E12: ='DNSP Inputs O & M'!E12 -> 117.6094974 | F12: ='DNSP Inputs O & M'!F12 -> 118.3754384 | G12: ='DNSP Inputs O & M'!G12 -> 119.5514558 | H12: ='DNSP Inputs O & M'!H12 -> 121.1146417
A13: Elevated platform vehicle (per hour) - urban MV,urban T5 | C13: ='DNSP Inputs O & M'!C14 -> 50.19214533 | D13: ='DNSP Inputs O & M'!D14 -> 50.17768159 | E13: ='DNSP Inputs O & M'!E14 -> 50.17768159 | F13: ='DNSP Inputs O & M'!F14 -> 50.17768159 | G13: ='DNSP Inputs O & M'!G14 -> 50.17768159 | H13: ='DNSP Inputs O & M'!H14 -> 50.17768159
A14: Elevated platform vehicle (per hour) - rural MV, rural T5, S-HP | C14: ='DNSP Inputs O & M'!C15 -> 68.4646212 | D14: ='DNSP Inputs O & M'!D15 -> 63.6381438 | E14: ='DNSP Inputs O & M'!E15 -> 63.6381438 | F14: ='DNSP Inputs O & M'!F15 -> 63.6381438 | G14: ='DNSP Inputs O & M'!G15 -> 63.6381438 | H14: ='DNSP Inputs O & M'!H15 -> 63.6381438
A15: Number of hours in a day | C15: ='DNSP Inputs O & M'!C19 -> 8 | D15: ='DNSP Inputs O & M'!D19 -> 8 | E15: ='DNSP Inputs O & M'!E19 -> 8 | F15: ='DNSP Inputs O & M'!F19 -> 8 | G15: ='DNSP Inputs O & M'!G19 -> 8 | H15: ='DNSP Inputs O & M'!H19 -> 8
A19: Inputs - MV80
A21: Unit cost - luminaire | C21: ='DNSP Inputs O & M'!C32 -> 219.1605405 | D21: ='DNSP Inputs O & M'!D32 -> 219.0973856 | E21: ='DNSP Inputs O & M'!E32 -> 219.0973856 | F21: ='DNSP Inputs O & M'!F32 -> 219.0973856 | G21: ='DNSP Inputs O & M'!G32 -> 219.0973856 | H21: ='DNSP Inputs O & M'!H32 -> 219.0973856
A22: Unit cost - miscellaneous materials (bulk lamp) | C22: ='DNSP Inputs O & M'!C33 -> 1.382280293 | D22: ='DNSP Inputs O & M'!D33 -> 1.578800145 | E22: ='DNSP Inputs O & M'!E33 -> 1.578800145 | F22: ='DNSP Inputs O & M'!F33 -> 1.578800145 | G22: ='DNSP Inputs O & M'!G33 -> 1.578800145 | H22: ='DNSP Inputs O & M'!H33 -> 1.578800145
A23: Number of men in crew | C23: ='DNSP Inputs O & M'!C35 -> 2 | D23: ='DNSP Inputs O & M'!D35 -> 2 | E23: ='DNSP Inputs O & M'!E35 -> 2 | F23: ='DNSP Inputs O & M'!F35 -> 2 | G23: ='DNSP Inputs O & M'!G35 -> 2 | H23: ='DNSP Inputs O & M'!H35 -> 2
A24: Number of luminaires replaced per day - urban | C24: 15.36 | D24: 0 | E24: 0 | F24: 0 | G24: 0 | H24: 0
A25: Number of luminaires replaced per day - rural | C25: 12.48 | D25: 0 | E25: 0 | F25: 0 | G25: 0 | H25: 0
A26: Number of luminaires replaced per day - remote | C26: 9.6 | D26: 0 | E26: 0 | F26: 0 | G26: 0 | H26: 0
A28: Other Capex unit costs Describe :……………………… | C28: 0 | D28: 0 | E28: 0 | F28: 0 | G28: 0 | H28: 0
A30: Forecast Quantities to be replaced
A31: Number of luminaires replaced per year - urban | C31: 57.43871001 | D31: 0 | E31: 0 | F31: 0 | G31: 0 | H31: 0
A32: Number of luminaires replaced per year - rural | C32: 14.36631549 | D32: 0 | E32: 0 | F32: 0 | G32: 0 | H32: 0
A33: Number of luminaires replaced per year - remote | C33: 4.403340364 | D33: 0 | E33: 0 | F33: 0 | G33: 0 | H33: 0
A35: MV80 Lights replaced with T5 Energy Efficient Lights
A36: Number of Lights MV80 replaced with T5 per year | C36: 0 | D36: 0 | E36: 0 | F36: 0 | G36: 0 | H36: 0
A38: MV80 Lights replaced with Cat P LED Energy Efficient Lights
A39: Number of Lights MV80 replaced with Cat P LED per year - urban | D39: 257.3141064 | E39: 217.3139828 | F39: 183.5915525 | G39: 156.0342663 | H39: 143.3668201
A40: Number of Lights MV80 replaced with Cat P LED per year - rural | D40: 64.35826348 | E40: 54.35360991 | F40: 45.91910515 | G40: 39.0265989 | H40: 35.85827342
A41: Number of Lights MV80 replaced with Cat P LED per year - remote | D41: 19.72609745 | E41: 16.6596261 | F41: 14.07441242 | G41: 11.96182823 | H41: 10.99072221
A43: MV80 Lights replaced with Cat P LED Energy Efficient Lights BY COUNCILS
A44: Number of Lights MV80 replaced with Cat P LED per year - urban | D44: =('DNSP Inputs General'!O$41-'DNSP Inputs General'!Q$41)*'DNSP Inputs O & M'!D87-'DNSP Inputs Capex'!D39 -> 4889.65074 | E44: =('DNSP Inputs General'!Q$41-'DNSP Inputs General'!R$41)*'DNSP Inputs O & M'!E87-'DNSP Inputs Capex'!E39 -> 2622.546446 | F44: =('DNSP Inputs General'!R$41-'DNSP Inputs General'!S$41)*'DNSP Inputs O & M'!F87-'DNSP Inputs Capex'!F39 -> 2230.289812 | G44: =('DNSP Inputs General'!S$41-'DNSP Inputs General'!T$41)*'DNSP Inputs O & M'!G87-'DNSP Inputs Capex'!G39 -> 1895.764893 | H44: =('DNSP Inputs General'!T$41-'DNSP Inputs General'!U$41)*'DNSP Inputs O & M'!H87-'DNSP Inputs Capex'!H39 -> 799.3517127
A45: Number of Lights MV80 replaced with Cat P LED per year - rural | D45: =('DNSP Inputs General'!O$41-'DNSP Inputs General'!Q$41)*'DNSP Inputs O & M'!D88-'DNSP Inputs Capex'!D40 -> 1149.475263 | E45: =('DNSP Inputs General'!Q$41-'DNSP Inputs General'!R$41)*'DNSP Inputs O & M'!E88-'DNSP Inputs Capex'!E40 -> 615.3843619 | F45: =('DNSP Inputs General'!R$41-'DNSP Inputs General'!S$41)*'DNSP Inputs O & M'!F88-'DNSP Inputs Capex'!F40 -> 523.3581709 | G45: =('DNSP Inputs General'!S$41-'DNSP Inputs General'!T$41)*'DNSP Inputs O & M'!G88-'DNSP Inputs Capex'!G40 -> 444.8590858 | H45: =('DNSP Inputs General'!T$41-'DNSP Inputs General'!U$41)*'DNSP Inputs O & M'!H88-'DNSP Inputs Capex'!H40 -> 186.4675817
A46: Number of Lights MV80 replaced with Cat P LED per year - remote | D46: =('DNSP Inputs General'!O$41-'DNSP Inputs General'!Q$41)*'DNSP Inputs O & M'!D89-'DNSP Inputs Capex'!D41 -> 176.5774047 | E46: =('DNSP Inputs General'!Q$41-'DNSP Inputs General'!R$41)*'DNSP Inputs O & M'!E89-'DNSP Inputs Capex'!E41 -> 91.65169221 | F46: =('DNSP Inputs General'!R$41-'DNSP Inputs General'!S$41)*'DNSP Inputs O & M'!F89-'DNSP Inputs Capex'!F41 -> 77.99020814 | G46: =('DNSP Inputs General'!S$41-'DNSP Inputs General'!T$41)*'DNSP Inputs O & M'!G89-'DNSP Inputs Capex'!G41 -> 66.29309925 | H46: =('DNSP Inputs General'!T$41-'DNSP Inputs General'!U$41)*'DNSP Inputs O & M'!H89-'DNSP Inputs Capex'!H41 -> 24.96424447
A50: Inputs - S-HP150
A52: Unit cost - luminaire | C52: 259.3710742 | D52: =C52 -> 259.3710742 | E52: =D52 -> 259.3710742 | F52: 259.3710742 | G52: 259.3710742 | H52: 259.3710742
A53: Unit cost - miscellaneous materials | C53: ='DNSP Inputs O & M'!C69 -> 2.764560587 | D53: ='DNSP Inputs O & M'!D69 -> 2.76376393 | E53: ='DNSP Inputs O & M'!E69 -> 2.76376393 | F53: ='DNSP Inputs O & M'!F69 -> 2.76376393 | G53: ='DNSP Inputs O & M'!G69 -> 2.76376393 | H53: ='DNSP Inputs O & M'!H69 -> 2.76376393
A54: Number of men in crew | C54: ='DNSP Inputs O & M'!C71 -> 2 | D54: ='DNSP Inputs O & M'!D71 -> 2 | E54: ='DNSP Inputs O & M'!E71 -> 2 | F54: ='DNSP Inputs O & M'!F71 -> 2 | G54: ='DNSP Inputs O & M'!G71 -> 2 | H54: ='DNSP Inputs O & M'!H71 -> 2
A55: Number of luminaires replaced per day - urban | C55: 15.36 | D55: 0 | E55: 0 | F55: 0 | G55: 0 | H55: 0
A56: Number of luminaires replaced per day - rural | C56: 12.48 | D56: 0 | E56: 0 | F56: 0 | G56: 0 | H56: 0
A57: Number of luminaires replaced per day - remote | C57: 9.6 | D57: 0 | E57: 0 | F57: 0 | G57: 0 | H57: 0
A59: Other Capex unit costs Describe :……………………… | C59: 0 | D59: 0 | E59: 0 | F59: 0 | G59: 0 | H59: 0
A61: Forecast Quantities to be replaced
A62: Number of luminaires replaced per year - urban | C62: 887.9148928 | D62: 0 | E62: 0 | F62: 0 | G62: 0 | H62: 0
A63: Number of luminaires replaced per year - rural | C63: 209.4012485 | D63: 0 | E63: 0 | F63: 0 | G63: 0 | H63: 0
A64: Number of luminaires replaced per day - remote | C64: 33.86477434 | D64: 0 | E64: 0 | F64: 0 | G64: 0 | H64: 0
A66: HPS150 Lights replaced with Cat V LED Energy Efficient Lights
A67: Number of Lights HPS150 replaced with Cat V LED per year - urban | D67: 191.7182004 | E67: 162.9215036 | F67: 138.4170347 | G67: 117.6081091 | H67: 108.0516747
A68: Number of Lights HPS150 replaced with Cat V LED per year - rural | D68: 45.2138272 | E68: 38.42256342 | F68: 32.64355641 | G68: 27.7360872 | H68: 25.4823472
A69: Number of Lights HPS150 replaced with Cat V LED per year - remote | D69: 7.312067459 | E69: 6.213771163 | F69: 5.279178988 | G69: 4.48553359 | H69: 4.121054405
A72: Inputs - S-HP250
A74: Unit cost - luminaire | C74: 263.2414591 | D74: =C74 -> 263.2414591 | E74: =D74 -> 263.2414591 | F74: 263.2414591 | G74: 263.2414591 | H74: 263.2414591
A75: Unit cost - miscellaneous materials | C75: ='DNSP Inputs O & M'!C101 -> 2.764560587 | D75: ='DNSP Inputs O & M'!D101 -> 2.76376393 | E75: ='DNSP Inputs O & M'!E101 -> 2.76376393 | F75: ='DNSP Inputs O & M'!F101 -> 2.76376393 | G75: ='DNSP Inputs O & M'!G101 -> 2.76376393 | H75: ='DNSP Inputs O & M'!H101 -> 2.76376393
A76: Number of men in crew | C76: ='DNSP Inputs O & M'!C103 -> 2 | D76: ='DNSP Inputs O & M'!D103 -> 2 | E76: ='DNSP Inputs O & M'!E103 -> 2 | F76: ='DNSP Inputs O & M'!F103 -> 2 | G76: ='DNSP Inputs O & M'!G103 -> 2 | H76: ='DNSP Inputs O & M'!H103 -> 2
A77: Number of luminaires replaced per day - urban | C77: 15.36 | D77: 0 | E77: 0 | F77: 0 | G77: 0 | H77: 0
A78: Number of luminaires replaced per day - rural | C78: 12.48 | D78: 0 | E78: 0 | F78: 0 | G78: 0 | H78: 0
A79: Number of luminaires replaced per day - remote | C79: 9.6 | D79: 0 | E79: 0 | F79: 0 | G79: 0 | H79: 0
A81: Other Capex unit costs Describe :……………………… | C81: 0 | D81: 0 | E81: 0 | F81: 0 | G81: 0 | H81: 0
A83: Forecast Quantities to be replaced
A84: Number of luminaires replaced per year - urban | C84: 409.4967892 | D84: 0 | E84: 0 | F84: 0 | G84: 0 | H84: 0
A85: Number of luminaires replaced per year - rural | C85: 108.4480241 | D85: 0 | E85: 0 | F85: 0 | G85: 0 | H85: 0
A86: Number of luminaires replaced per day - remote | C86: 12.20910887 | D86: 0 | E86: 0 | F86: 0 | G86: 0 | H86: 0
A88: HPS150 Lights replaced with Cat V LED Energy Efficient Lights
A89: Number of Lights HPS150 replaced with Cat V LED per year - urban | D89: 145.2194473 | E89: 122.5376102 | F89: 103.2627797 | G89: 87.54065556 | H89: 80.33917471
A90: Number of Lights HPS150 replaced with Cat V LED per year - rural | D90: 38.45881712 | E90: 32.45193139 | F90: 27.34733146 | G90: 23.18360333 | H90: 21.27641775
A91: Number of Lights HPS150 replaced with Cat V LED per year - remote | D91: 4.329704383 | E91: 3.653447509 | F91: 3.078770222 | G91: 2.610016544 | H91: 2.395305059
A94: Dedicated street lighting poles
A96: Cost of pole & bracket | C96: 1767.731998 | D96: 1605 | E96: 1605 | F96: 1605 | G96: 1605 | H96: 1605
A97: Number of poles & brackets replaced per day | C97: 3.84 | D97: 3.84 | E97: 3.84 | F97: 3.84 | G97: 3.84 | H97: 3.84
A98: Cost of bracket on non-dedicated poles | C98: 53.61312621 | D98: 52.91420603 | E98: 52.91420603 | F98: 52.91420603 | G98: 52.91420603 | H98: 52.91420603
A99: Number of brackets replaced per day | C99: 19.2 | D99: 19.2 | E99: 19.2 | F99: 19.2 | G99: 19.2 | H99: 19.2
A101: Other poles & brackets Capex unit costs Describe :………………… | C101: 0 | D101: 0 | E101: 0 | F101: 0 | G101: 0 | H101: 0
A104: Forecast Quantities to be replaced
A105: Number of poles & brackets replaced per year - urban | C105: 101.1444851 | D105: 101.1444851 | E105: 101.1444851 | F105: 101.1444851 | G105: 101.1444851 | H105: 101.1444851
A106: Number of poles & brackets replaced per year - rural | C106: 240.3972324 | D106: 240.3972324 | E106: 240.3972324 | F106: 240.3972324 | G106: 240.3972324 | H106: 240.3972324
A107: Number of poles & brackets replaced per year - remote | C107: 10.45828246 | D107: 10.45828246 | E107: 10.45828246 | F107: 10.45828246 | G107: 10.45828246 | H107: 10.45828246
A109: Brackets on non-dedicated poles :
A110: Number of brackets replaced per year - urban | C110: 20 | D110: 20 | E110: 20 | F110: 20 | G110: 20 | H110: 20
A111: Number of brackets replaced per year - rural | C111: 30 | D111: 30 | E111: 30 | F111: 30 | G111: 30 | H111: 30
A112: Number of brackets replaced per year - remote | C112: 2 | D112: 2 | E112: 2 | F112: 2 | G112: 2 | H112: 2
A116: Luminaire Replacements - Other Light types (excluding T5s)
A117: Number of luminaires replaced per year | C117: 1894.648412 | D117: 0 | E117: 0 | F117: 0 | G117: 0 | H117: 0
A118: Forecast Capex | C118: 1436304 | D118: 0 | E118: 0 | F118: 0 | G118: 0 | H118: 0
A120: Inputs - T5 (2 X 14W)
A122: Unit cost - luminaire | C122: 0 | D122: 0 | E122: 0 | F122: 0 | G122: 0 | H122: 0
A123: Unit cost - miscellaneous materials (bulk lamp) | C123: ='DNSP Inputs O & M'!C156 -> 1.382280293 | D123: ='DNSP Inputs O & M'!D156 -> 1.578800145 | E123: ='DNSP Inputs O & M'!E156 -> 1.578800145 | F123: ='DNSP Inputs O & M'!F156 -> 1.578800145 | G123: ='DNSP Inputs O & M'!G156 -> 1.578800145 | H123: ='DNSP Inputs O & M'!H156 -> 1.578800145
A124: Number of men in crew | C124: ='DNSP Inputs O & M'!C158 -> 2 | D124: ='DNSP Inputs O & M'!D158 -> 2 | E124: ='DNSP Inputs O & M'!E158 -> 2 | F124: ='DNSP Inputs O & M'!F158 -> 2 | G124: ='DNSP Inputs O & M'!G158 -> 2 | H124: ='DNSP Inputs O & M'!H158 -> 2
A125: Number of luminaires replaced per day - urban | C125: 15.36 | D125: 0 | E125: 0 | F125: 0 | G125: 0 | H125: 0
A126: Number of luminaires replaced per day - rural | C126: 12.48 | D126: 0 | E126: 0 | F126: 0 | G126: 0 | H126: 0
A127: Number of luminaires replaced per day - remote | C127: 9.6 | D127: 0 | E127: 0 | F127: 0 | G127: 0 | H127: 0
A129: Other Capex unit costs Describe :……………………… | C129: 0 | D129: 0 | E129: 0 | F129: 0 | G129: 0 | H129: 0
A131: Forecast Quantities to be replaced
A132: Number of luminaires replaced per year - urban | C132: 16.0728513 | D132: 0 | E132: 0 | F132: 0 | G132: 0 | H132: 0
A133: Number of luminaires replaced per year - rural | C133: 4.53065596 | D133: 0 | E133: 0 | F133: 0 | G133: 0 | H133: 0
A134: Number of luminaires replaced per year - remote | C134: 0.007983534732 | D134: 0 | E134: 0 | F134: 0 | G134: 0 | H134: 0
A136: T5 Lights replaced with Cat P LED Energy Efficient Lights
A137: Number of Lights T5 replaced with Cat P LED per year - urban | D137: 148.3434047 | E137: 118.8506884 | F137: 95.95424131 | G137: 78.0129144 | H137: 70.10806221
A138: Number of Lights T5 replaced with Cat P LED per year - rural | D138: 41.81541396 | E138: 33.50193254 | F138: 27.04782414 | G138: 21.99047755 | H138: 19.76223783
A139: Number of Lights T5 replaced with Cat P LED per year - remote | D139: 0.07368354883 | E139: 0.05903424237 | F139: 0.04766136412 | G139: 0.03874974017 | H139: 0.03482332656
A142: Inputs - Category P LED
A144: Unit cost - luminaire | C144: ='DNSP Inputs O & M'!C192 -> 390.1324981 | D144: ='DNSP Inputs O & M'!D192 -> 205 | E144: ='DNSP Inputs O & M'!E192 -> 205 | F144: ='DNSP Inputs O & M'!F192 -> 205 | G144: ='DNSP Inputs O & M'!G192 -> 205 | H144: ='DNSP Inputs O & M'!H192 -> 205
A145: Number of men in crew | C145: ='DNSP Inputs O & M'!C194 -> 2 | D145: ='DNSP Inputs O & M'!D194 -> 2 | E145: ='DNSP Inputs O & M'!E194 -> 2 | F145: ='DNSP Inputs O & M'!F194 -> 2 | G145: ='DNSP Inputs O & M'!G194 -> 2 | H145: ='DNSP Inputs O & M'!H194 -> 2
A146: Number of luminaires replaced per day - urban | C146: 15.36 | D146: 15.36 | E146: 15.36 | F146: 15.36 | G146: 15.36 | H146: 15.36
A147: Number of luminaires replaced per day - rural | C147: 12.48 | D147: 12.48 | E147: 12.48 | F147: 12.48 | G147: 12.48 | H147: 12.48
A148: Number of luminaires replaced per day - remote | C148: 9.6 | D148: 9.6 | E148: 9.6 | F148: 9.6 | G148: 9.6 | H148: 9.6
A150: Other Capex unit costs Describe :……………………… | C150: 0 | D150: 0 | E150: 0 | F150: 0 | G150: 0 | H150: 0
A152: Forecast Quantities to be replaced
A153: Number of luminaires replaced per year - urban | C153: 40.60971188 | D153: 679.2355734 | E153: 748.2598378 | F153: 807.9572931 | G153: 860.6429505 | H153: 886.0445136
A154: Number of luminaires replaced per year - rural | C154: 90.83844921 | D154: 390.5663823 | E154: 430.2559367 | F154: 464.5824944 | G154: 494.8772073 | H154: 509.4833277
A155: Number of luminaires replaced per year - remote | C155: 11.09477242 | D155: 50.80151663 | E155: 55.96399259 | F155: 60.42889605 | G155: 64.3693718 | H155: 66.26921035
A157: Forecast Quantities to replace other light types
A158: Number of luminaires replaced per year - urban | D158: =$C158 -> 0 | E158: 0 | F158: 0 | G158: 0 | H158: 0
A159: Number of luminaires replaced per year - rural | D159: 0 | E159: 0 | F159: 0 | G159: 0 | H159: 0
A160: Number of luminaires replaced per year - remote | D160: 0 | E160: 0 | F160: 0 | G160: 0 | H160: 0
A162: Inputs - Category V LED
A164: Unit cost - luminaire | D164: ='DNSP Inputs O & M'!D224 -> 402 | E164: ='DNSP Inputs O & M'!E224 -> 402 | F164: ='DNSP Inputs O & M'!F224 -> 402 | G164: ='DNSP Inputs O & M'!G224 -> 402 | H164: ='DNSP Inputs O & M'!H224 -> 402
A165: Number of men in crew | D165: ='DNSP Inputs O & M'!D226 -> 2 | E165: ='DNSP Inputs O & M'!E226 -> 2 | F165: ='DNSP Inputs O & M'!F226 -> 2 | G165: ='DNSP Inputs O & M'!G226 -> 2 | H165: ='DNSP Inputs O & M'!H226 -> 2
A166: Number of luminaires replaced per day - urban | D166: 15.36 | E166: 15.36 | F166: 15.36 | G166: 15.36 | H166: 15.36
A167: Number of luminaires replaced per day - rural | D167: 12.48 | E167: 12.48 | F167: 12.48 | G167: 12.48 | H167: 12.48
A168: Number of luminaires replaced per day - remote | D168: 9.6 | E168: 9.6 | F168: 9.6 | G168: 9.6 | H168: 9.6
A170: Other Capex unit costs Describe :……………………… | D170: 0 | E170: 0 | F170: 0 | G170: 0 | H170: 0
A172: Forecast Quantities to be replaced
A173: Number of luminaires replaced per year - urban | D173: 128.2197278 | E173: 162.3002507 | F173: 192.335422 | G173: 218.5364833 | H173: 230.855135
A174: Number of luminaires replaced per year - rural | D174: 71.47504149 | E174: 90.47295099 | F174: 107.2158123 | G174: 121.8213802 | H174: 128.6883121
A175: Number of luminaires replaced per year - remote | D175: 9.10371906 | E175: 11.52346765 | F175: 13.65599255 | G175: 15.51629209 | H175: 16.39092773
A177: Forecast Quantities to replace other light types
A178: Number of luminaires replaced per year - urban | D178: =$C178 -> 0 | E178: 0 | F178: 0 | G178: 0 | H178: 0
A179: Number of luminaires replaced per year - rural | D179: 0 | E179: 0 | F179: 0 | G179: 0 | H179: 0
A180: Number of luminaires replaced per year - remote | D180: 0 | E180: 0 | F180: 0 | G180: 0 | H180: 0
A183: New lights total
A184: Cat P | C184: =C137+C138+C139+C39+C40+C41 -> 0 | D184: =D137+D138+D139+D39+D40+D41 -> 531.6309696 | E184: 440.7388741 | F184: 366.6347969 | G184: 307.0648351 | H184: 280.1209391
A185: Cat V | C185: =C89+C90+C91+C67+C68+C69 -> 0 | D185: =D89+D90+D91+D67+D68+D69 -> 432.2520639 | E185: 366.2008273 | F185: 310.0286515 | G185: 263.1640053 | H185: 241.6659738
A186: Replaced lights

Sheet PL Tariffs
A1: ='DNSP Inputs O & M'!$A$3 -> Powercor | E1: Global Check | F1: =IF(SUM('Total RAB'!F1,'Depn & WACC Post 2004'!F1,'Cashflow Summary'!F1)<1,"Ok","Error") -> Ok
V2: Average
A3: Public Lighting Tariffs (unsmoothed) | C3: Nominal Prices | J3: Nominal Price Movement | P3: Real Price Movement (Implied X Factor) | V3: Nubmer | W3: % of | Y3: Draft Decision | AE3: Difference
C4: Actual | V4: of Lights | W4: Total Lights
A5: ='DNSP Inputs General'!A$40 -> Existing Lights | C5: 1H2021 | D5: ='DNSP Inputs General'!Q$2 -> 2021/22 | E5: ='DNSP Inputs General'!R$2 -> 2022/23 | F5: ='DNSP Inputs General'!S$2 -> 2023/24 | G5: ='DNSP Inputs General'!T$2 -> 2024/25 | H5: ='DNSP Inputs General'!U$2 -> 2025/26 | J5: =D5 -> 2021/22 | K5: =E5 -> 2022/23 | L5: =F5 -> 2023/24 | M5: =G5 -> 2024/25 | N5: =H5 -> 2025/26 | P5: =J5 -> 2021/22 | Q5: =K5 -> 2022/23 | R5: 2023/24 | S5: 2024/25 | T5: 2025/26 | V5: 2022-26 | W5: 2022-26 | Y5: 2021/22 | Z5: 2022/23 | AA5: 2023/24 | AB5: 2024/25 | AC5: 2025/26 | AE5: =Y5 -> 2021/22 | AF5: =Z5 -> 2022/23 | AG5: 2023/24 | AH5: 2024/25 | AI5: 2025/26
A6: ='DNSP Inputs General'!A41 -> Mercury vapour 80 watt | C6: =IF('DNSP Inputs General'!E41="","",'DNSP Inputs General'!E41) -> 56.62 | D6: ='Charges Summary'!D$31 -> 70.28273168 | E6: ='Charges Summary'!E$31 -> 69.9954478 | F6: ='Charges Summary'!F$31 -> 68.17648826 | G6: ='Charges Summary'!G$31 -> 71.04352621 | H6: ='Charges Summary'!H$31 -> 73.20292065 | J6: =IF(C6="","",D6/C6-1) -> 0.241305752 | K6: =IF(D6="","",E6/D6-1) -> -0.004087545654 | L6: =IF(E6="","",F6/E6-1) -> -0.02598682632 | M6: =IF(F6="","",G6/F6-1) -> 0.0420531774 | N6: =IF(G6="","",H6/G6-1) -> 0.03039537237 | P6: =IF(C6="","",(D6/'Charges Summary'!D$4)/(C6/'Charges Summary'!C$4)-1) -> 0.212516859 | Q6: =IF(D6="","",(E6/'Charges Summary'!E$4)/(D6/'Charges Summary'!D$4)-1) -> -0.02718517253 | R6: =IF(E6="","",(F6/'Charges Summary'!F$4)/(E6/'Charges Summary'!E$4)-1) -> -0.04857655573 | S6: =IF(F6="","",(G6/'Charges Summary'!G$4)/(F6/'Charges Summary'!F$4)-1) -> 0.01788543518 | T6: =IF(G6="","",(H6/'Charges Summary'!H$4)/(G6/'Charges Summary'!G$4)-1) -> 0.006498002929 | V6: =SUM('DNSP Inputs General'!Q41:U41)/5 -> 18094.16061 | W6: =V6/V$41 -> 0.09197448615 | Y6: 70.28273168 | Z6: 69.8228533 | AA6: 67.82634776 | AB6: 70.52783168 | AC6: 72.5874265 | AE6: =D6-Y6 -> 0 | AF6: 0.172594503 | AG6: 0.3501404963 | AH6: 0.5156945376 | AI6: 0.6154941411
A7: ='DNSP Inputs General'!A42 -> Sodium high pressure 150 watt | C7: =IF('DNSP Inputs General'!E42="","",'DNSP Inputs General'!E42) -> 103.28 | D7: ='Charges Summary'!D$55 -> 110.7596508 | E7: ='Charges Summary'!E$55 -> 111.5449696 | F7: ='Charges Summary'!F$55 -> 113.0416046 | G7: ='Charges Summary'!G$55 -> 117.451372 | H7: ='Charges Summary'!H$55 -> 121.0922351 | J7: =IF(C7="","",D7/C7-1) -> 0.07242109647 | K7: 0.007090296598 | L7: 0.01341732411 | M7: 0.03901012757 | N7: 0.03099889723 | P7: =IF(C7="","",(D7/'Charges Summary'!D$4)/(C7/'Charges Summary'!C$4)-1) -> 0.04754904849 | Q7: =IF(D7="","",(E7/'Charges Summary'!E$4)/(D7/'Charges Summary'!D$4)-1) -> -0.01626657157 | R7: =IF(E7="","",(F7/'Charges Summary'!F$4)/(E7/'Charges Summary'!E$4)-1) -> -0.01008628318 | S7: =IF(F7="","",(G7/'Charges Summary'!G$4)/(F7/'Charges Summary'!F$4)-1) -> 0.01491296105 | T7: =IF(G7="","",(H7/'Charges Summary'!H$4)/(G7/'Charges Summary'!G$4)-1) -> 0.007087530586 | V7: =SUM('DNSP Inputs General'!Q42:U42)/5 -> 14746.75105 | W7: =V7/V$41 -> 0.0749592578 | Y7: 110.7596508 | Z7: 111.2000411 | AA7: 112.3430892 | AB7: 116.4243416 | AC7: 119.8693001 | AE7: 0 | AF7: 0.3449284854 | AG7: 0.6985154048 | AH7: 1.027030481 | AI7: 1.222935006
A8: ='DNSP Inputs General'!A43 -> Sodium high pressure 250 watt | C8: =IF('DNSP Inputs General'!E43="","",'DNSP Inputs General'!E43) -> 105.08 | D8: ='Charges Summary'!D$78 -> 112.4461558 | E8: ='Charges Summary'!E$78 -> 113.0843553 | F8: ='Charges Summary'!F$78 -> 113.2613547 | G8: ='Charges Summary'!G$78 -> 117.6947567 | H8: ='Charges Summary'!H$78 -> 121.3422765 | J8: 0.07010045505 | K8: 0.005675600779 | L8: 0.001565197861 | M8: 0.03914311314 | N8: 0.030991353 | P8: =IF(C8="","",(D8/'Charges Summary'!D$4)/(C8/'Charges Summary'!C$4)-1) -> 0.04528222838 | Q8: =IF(D8="","",(E8/'Charges Summary'!E$4)/(D8/'Charges Summary'!D$4)-1) -> -0.01764845716 | R8: =IF(E8="","",(F8/'Charges Summary'!F$4)/(E8/'Charges Summary'!E$4)-1) -> -0.02166352986 | S8: =IF(F8="","",(G8/'Charges Summary'!G$4)/(F8/'Charges Summary'!F$4)-1) -> 0.01504286236 | T8: =IF(G8="","",(H8/'Charges Summary'!H$4)/(G8/'Charges Summary'!G$4)-1) -> 0.007080161322 | V8: =SUM('DNSP Inputs General'!Q43:U43)/5 -> 7407.662451 | W8: 0.03765391289 | Y8: 112.4461558 | Z8: 112.7394436 | AA8: 112.5628733 | AB8: 116.6677762 | AC8: 120.1194008 | AE8: 0 | AF8: 0.3449116586 | AG8: 0.6984813892 | AH8: 1.026980554 | AI8: 1.222875695
A9: ='DNSP Inputs General'!A44 -> Fluorescent 20 watt | C9: =IF('DNSP Inputs General'!E44="","",'DNSP Inputs General'!E44) ->  | D9: =IF(SUM('DNSP Inputs General'!$O44:$U44)=0,"",IF('DNSP Inputs General'!$B44='DNSP Inputs General'!$A$41,D$6,IF('DNSP Inputs General'!$B44='DNSP Inputs General'!$A$42,D$7,D$8))*'DNSP Inputs General'!$D44) ->  | E9: =IF(SUM('DNSP Inputs General'!$O44:$U44)=0,"",IF('DNSP Inputs General'!$B44='DNSP Inputs General'!$A$41,E$6,IF('DNSP Inputs General'!$B44='DNSP Inputs General'!$A$42,E$7,E$8))*'DNSP Inputs General'!$D44) ->  | F9: =IF(SUM('DNSP Inputs General'!$O44:$U44)=0,"",IF('DNSP Inputs General'!$B44='DNSP Inputs General'!$A$41,F$6,IF('DNSP Inputs General'!$B44='DNSP Inputs General'!$A$42,F$7,F$8))*'DNSP Inputs General'!$D44) ->  | G9: =IF(SUM('DNSP Inputs General'!$O44:$U44)=0,"",IF('DNSP Inputs General'!$B44='DNSP Inputs General'!$A$41,G$6,IF('DNSP Inputs General'!$B44='DNSP Inputs General'!$A$42,G$7,G$8))*'DNSP Inputs General'!$D44) ->  | H9: =IF(SUM('DNSP Inputs General'!$O44:$U44)=0,"",IF('DNSP Inputs General'!$B44='DNSP Inputs General'!$A$41,H$6,IF('DNSP Inputs General'!$B44='DNSP Inputs General'!$A$42,H$7,H$8))*'DNSP Inputs General'!$D44) ->  | P9: =IF(C9="","",(D9/'Charges Summary'!D$4)/(C9/'Charges Summary'!C$4)-1) ->  | Q9: =IF(D9="","",(E9/'Charges Summary'!E$4)/(D9/'Charges Summary'!D$4)-1) ->  | R9: =IF(E9="","",(F9/'Charges Summary'!F$4)/(E9/'Charges Summary'!E$4)-1) ->  | S9: =IF(F9="","",(G9/'Charges Summary'!G$4)/(F9/'Charges Summary'!F$4)-1) ->  | T9: =IF(G9="","",(H9/'Charges Summary'!H$4)/(G9/'Charges Summary'!G$4)-1) -> 
A10: ='DNSP Inputs General'!A45 -> Fluorescent 40 watt | C10: =IF('DNSP Inputs General'!E45="","",'DNSP Inputs General'!E45) ->  | D10: =IF(SUM('DNSP Inputs General'!$O45:$U45)=0,"",IF('DNSP Inputs General'!$B45='DNSP Inputs General'!$A$41,D$6,IF('DNSP Inputs General'!$B45='DNSP Inputs General'!$A$42,D$7,D$8))*'DNSP Inputs General'!$D45) ->  | E10: =IF(SUM('DNSP Inputs General'!$O45:$U45)=0,"",IF('DNSP Inputs General'!$B45='DNSP Inputs General'!$A$41,E$6,IF('DNSP Inputs General'!$B45='DNSP Inputs General'!$A$42,E$7,E$8))*'DNSP Inputs General'!$D45) ->  | F10: =IF(SUM('DNSP Inputs General'!$O45:$U45)=0,"",IF('DNSP Inputs General'!$B45='DNSP Inputs General'!$A$41,F$6,IF('DNSP Inputs General'!$B45='DNSP Inputs General'!$A$42,F$7,F$8))*'DNSP Inputs General'!$D45) ->  | G10: =IF(SUM('DNSP Inputs General'!$O45:$U45)=0,"",IF('DNSP Inputs General'!$B45='DNSP Inputs General'!$A$41,G$6,IF('DNSP Inputs General'!$B45='DNSP Inputs General'!$A$42,G$7,G$8))*'DNSP Inputs General'!$D45) ->  | H10: =IF(SUM('DNSP Inputs General'!$O45:$U45)=0,"",IF('DNSP Inputs General'!$B45='DNSP Inputs General'!$A$41,H$6,IF('DNSP Inputs General'!$B45='DNSP Inputs General'!$A$42,H$7,H$8))*'DNSP Inputs General'!$D45) ->  | P10: =IF(C10="","",(D10/'Charges Summary'!D$4)/(C10/'Charges Summary'!C$4)-1) ->  | Q10: =IF(D10="","",(E10/'Charges Summary'!E$4)/(D10/'Charges Summary'!D$4)-1) ->  | R10: =IF(E10="","",(F10/'Charges Summary'!F$4)/(E10/'Charges Summary'!E$4)-1) ->  | S10: =IF(F10="","",(G10/'Charges Summary'!G$4)/(F10/'Charges Summary'!F$4)-1) ->  | T10: =IF(G10="","",(H10/'Charges Summary'!H$4)/(G10/'Charges Summary'!G$4)-1) -> 
A11: ='DNSP Inputs General'!A46 -> Mercury vapour 50 watt | C11: =IF('DNSP Inputs General'!E46="","",'DNSP Inputs General'!E46) -> 78.7 | D11: =IF(SUM('DNSP Inputs General'!$O46:$U46)=0,"",IF('DNSP Inputs General'!$B46='DNSP Inputs General'!$A$41,D$6,IF('DNSP Inputs General'!$B46='DNSP Inputs General'!$A$42,D$7,D$8))*'DNSP Inputs General'!$D46) -> 97.69299703 | E11: =IF(SUM('DNSP Inputs General'!$O46:$U46)=0,"",IF('DNSP Inputs General'!$B46='DNSP Inputs General'!$A$41,E$6,IF('DNSP Inputs General'!$B46='DNSP Inputs General'!$A$42,E$7,E$8))*'DNSP Inputs General'!$D46) -> 97.29367245 | F11: =IF(SUM('DNSP Inputs General'!$O46:$U46)=0,"",IF('DNSP Inputs General'!$B46='DNSP Inputs General'!$A$41,F$6,IF('DNSP Inputs General'!$B46='DNSP Inputs General'!$A$42,F$7,F$8))*'DNSP Inputs General'!$D46) -> 94.76531868 | G11: =IF(SUM('DNSP Inputs General'!$O46:$U46)=0,"",IF('DNSP Inputs General'!$B46='DNSP Inputs General'!$A$41,G$6,IF('DNSP Inputs General'!$B46='DNSP Inputs General'!$A$42,G$7,G$8))*'DNSP Inputs General'!$D46) -> 98.75050144 | H11: =IF(SUM('DNSP Inputs General'!$O46:$U46)=0,"",IF('DNSP Inputs General'!$B46='DNSP Inputs General'!$A$41,H$6,IF('DNSP Inputs General'!$B46='DNSP Inputs General'!$A$42,H$7,H$8))*'DNSP Inputs General'!$D46) -> 101.7520597 | J11: 0.2413341427 | K11: -0.004087545654 | L11: -0.02598682632 | M11: 0.0420531774 | N11: 0.03039537237 | P11: =IF(C11="","",(D11/'Charges Summary'!D$4)/(C11/'Charges Summary'!C$4)-1) -> 0.2125445912 | Q11: =IF(D11="","",(E11/'Charges Summary'!E$4)/(D11/'Charges Summary'!D$4)-1) -> -0.02718517253 | R11: =IF(E11="","",(F11/'Charges Summary'!F$4)/(E11/'Charges Summary'!E$4)-1) -> -0.04857655573 | S11: =IF(F11="","",(G11/'Charges Summary'!G$4)/(F11/'Charges Summary'!F$4)-1) -> 0.01788543518 | T11: =IF(G11="","",(H11/'Charges Summary'!H$4)/(G11/'Charges Summary'!G$4)-1) -> 0.006498002929 | V11: =SUM('DNSP Inputs General'!Q46:U46)/5 -> 9.5256 | W11: 4.841960807e-05 | Y11: 97.69299703 | Z11: 97.05376609 | AA11: 94.27862339 | AB11: 98.03368603 | AC11: 100.8965228 | AE11: 0 | AF11: 0.2399063592 | AG11: 0.4866952899 | AH11: 0.7168154072 | AI11: 0.8555368561
A12: ='DNSP Inputs General'!A47 -> Mercury vapour 125 watt | C12: =IF('DNSP Inputs General'!E47="","",'DNSP Inputs General'!E47) -> 76.44 | D12: =IF(SUM('DNSP Inputs General'!$O47:$U47)=0,"",IF('DNSP Inputs General'!$B47='DNSP Inputs General'!$A$41,D$6,IF('DNSP Inputs General'!$B47='DNSP Inputs General'!$A$42,D$7,D$8))*'DNSP Inputs General'!$D47) -> 94.88168776 | E12: =IF(SUM('DNSP Inputs General'!$O47:$U47)=0,"",IF('DNSP Inputs General'!$B47='DNSP Inputs General'!$A$41,E$6,IF('DNSP Inputs General'!$B47='DNSP Inputs General'!$A$42,E$7,E$8))*'DNSP Inputs General'!$D47) -> 94.49385453 | F12: =IF(SUM('DNSP Inputs General'!$O47:$U47)=0,"",IF('DNSP Inputs General'!$B47='DNSP Inputs General'!$A$41,F$6,IF('DNSP Inputs General'!$B47='DNSP Inputs General'!$A$42,F$7,F$8))*'DNSP Inputs General'!$D47) -> 92.03825915 | G12: =IF(SUM('DNSP Inputs General'!$O47:$U47)=0,"",IF('DNSP Inputs General'!$B47='DNSP Inputs General'!$A$41,G$6,IF('DNSP Inputs General'!$B47='DNSP Inputs General'!$A$42,G$7,G$8))*'DNSP Inputs General'!$D47) -> 95.90876039 | H12: =IF(SUM('DNSP Inputs General'!$O47:$U47)=0,"",IF('DNSP Inputs General'!$B47='DNSP Inputs General'!$A$41,H$6,IF('DNSP Inputs General'!$B47='DNSP Inputs General'!$A$42,H$7,H$8))*'DNSP Inputs General'!$D47) -> 98.82394287 | J12: 0.2412570351 | K12: -0.004087545654 | L12: -0.02598682632 | M12: 0.0420531774 | N12: 0.03039537237 | P12: =IF(C12="","",(D12/'Charges Summary'!D$4)/(C12/'Charges Summary'!C$4)-1) -> 0.212469272 | Q12: =IF(D12="","",(E12/'Charges Summary'!E$4)/(D12/'Charges Summary'!D$4)-1) -> -0.02718517253 | R12: =IF(E12="","",(F12/'Charges Summary'!F$4)/(E12/'Charges Summary'!E$4)-1) -> -0.04857655573 | S12: =IF(F12="","",(G12/'Charges Summary'!G$4)/(F12/'Charges Summary'!F$4)-1) -> 0.01788543518 | T12: =IF(G12="","",(H12/'Charges Summary'!H$4)/(G12/'Charges Summary'!G$4)-1) -> 0.006498002929 | V12: =SUM('DNSP Inputs General'!Q47:U47)/5 -> 75.9696 | W12: 0.0003861613187 | Y12: 94.88168776 | Z12: 94.26085195 | AA12: 91.56556948 | AB12: 95.21257276 | AC12: 97.99302578 | AE12: 0 | AF12: 0.2330025791 | AG12: 0.4726896701 | AH12: 0.6961876257 | AI12: 0.8309170905
A13: ='DNSP Inputs General'!A48 -> Mercury vapour 250 watt | C13: =IF('DNSP Inputs General'!E48="","",'DNSP Inputs General'!E48) -> 79.86 | D13: =IF(SUM('DNSP Inputs General'!$O48:$U48)=0,"",IF('DNSP Inputs General'!$B48='DNSP Inputs General'!$A$41,D$6,IF('DNSP Inputs General'!$B48='DNSP Inputs General'!$A$42,D$7,D$8))*'DNSP Inputs General'!$D48) -> 85.45907842 | E13: =IF(SUM('DNSP Inputs General'!$O48:$U48)=0,"",IF('DNSP Inputs General'!$B48='DNSP Inputs General'!$A$41,E$6,IF('DNSP Inputs General'!$B48='DNSP Inputs General'!$A$42,E$7,E$8))*'DNSP Inputs General'!$D48) -> 85.94411003 | F13: =IF(SUM('DNSP Inputs General'!$O48:$U48)=0,"",IF('DNSP Inputs General'!$B48='DNSP Inputs General'!$A$41,F$6,IF('DNSP Inputs General'!$B48='DNSP Inputs General'!$A$42,F$7,F$8))*'DNSP Inputs General'!$D48) -> 86.07862957 | G13: =IF(SUM('DNSP Inputs General'!$O48:$U48)=0,"",IF('DNSP Inputs General'!$B48='DNSP Inputs General'!$A$41,G$6,IF('DNSP Inputs General'!$B48='DNSP Inputs General'!$A$42,G$7,G$8))*'DNSP Inputs General'!$D48) -> 89.44801511 | H13: =IF(SUM('DNSP Inputs General'!$O48:$U48)=0,"",IF('DNSP Inputs General'!$B48='DNSP Inputs General'!$A$41,H$6,IF('DNSP Inputs General'!$B48='DNSP Inputs General'!$A$42,H$7,H$8))*'DNSP Inputs General'!$D48) -> 92.22013012 | J13: 0.07011117481 | K13: 0.005675600779 | L13: 0.001565197861 | M13: 0.03914311314 | N13: 0.030991353 | P13: =IF(C13="","",(D13/'Charges Summary'!D$4)/(C13/'Charges Summary'!C$4)-1) -> 0.04529269953 | Q13: =IF(D13="","",(E13/'Charges Summary'!E$4)/(D13/'Charges Summary'!D$4)-1) -> -0.01764845716 | R13: =IF(E13="","",(F13/'Charges Summary'!F$4)/(E13/'Charges Summary'!E$4)-1) -> -0.02166352986 | S13: =IF(F13="","",(G13/'Charges Summary'!G$4)/(F13/'Charges Summary'!F$4)-1) -> 0.01504286236 | T13: =IF(G13="","",(H13/'Charges Summary'!H$4)/(G13/'Charges Summary'!G$4)-1) -> 0.007080161322 | V13: =SUM('DNSP Inputs General'!Q48:U48)/5 -> 25.872 | W13: 0.0001315100466 | Y13: 85.45907842 | Z13: 85.68197717 | AA13: 85.54778371 | AB13: 88.66750989 | AC13: 91.29074459 | AE13: 0 | AF13: 0.2621328605 | AG13: 0.5308458558 | AH13: 0.7805052208 | AI13: 0.9293855279
A14: ='DNSP Inputs General'!A49 -> Mercury vapour 400 watt | C14: =IF('DNSP Inputs General'!E49="","",'DNSP Inputs General'!E49) -> 92.47 | D14: =IF(SUM('DNSP Inputs General'!$O49:$U49)=0,"",IF('DNSP Inputs General'!$B49='DNSP Inputs General'!$A$41,D$6,IF('DNSP Inputs General'!$B49='DNSP Inputs General'!$A$42,D$7,D$8))*'DNSP Inputs General'!$D49) -> 98.95261712 | E14: =IF(SUM('DNSP Inputs General'!$O49:$U49)=0,"",IF('DNSP Inputs General'!$B49='DNSP Inputs General'!$A$41,E$6,IF('DNSP Inputs General'!$B49='DNSP Inputs General'!$A$42,E$7,E$8))*'DNSP Inputs General'!$D49) -> 99.51423267 | F14: =IF(SUM('DNSP Inputs General'!$O49:$U49)=0,"",IF('DNSP Inputs General'!$B49='DNSP Inputs General'!$A$41,F$6,IF('DNSP Inputs General'!$B49='DNSP Inputs General'!$A$42,F$7,F$8))*'DNSP Inputs General'!$D49) -> 99.66999213 | G14: =IF(SUM('DNSP Inputs General'!$O49:$U49)=0,"",IF('DNSP Inputs General'!$B49='DNSP Inputs General'!$A$41,G$6,IF('DNSP Inputs General'!$B49='DNSP Inputs General'!$A$42,G$7,G$8))*'DNSP Inputs General'!$D49) -> 103.5713859 | H14: =IF(SUM('DNSP Inputs General'!$O49:$U49)=0,"",IF('DNSP Inputs General'!$B49='DNSP Inputs General'!$A$41,H$6,IF('DNSP Inputs General'!$B49='DNSP Inputs General'!$A$42,H$7,H$8))*'DNSP Inputs General'!$D49) -> 106.7812033 | J14: 0.07010508401 | K14: 0.005675600779 | L14: 0.001565197861 | M14: 0.03914311314 | N14: 0.030991353 | P14: =IF(C14="","",(D14/'Charges Summary'!D$4)/(C14/'Charges Summary'!C$4)-1) -> 0.04528674999 | Q14: =IF(D14="","",(E14/'Charges Summary'!E$4)/(D14/'Charges Summary'!D$4)-1) -> -0.01764845716 | R14: =IF(E14="","",(F14/'Charges Summary'!F$4)/(E14/'Charges Summary'!E$4)-1) -> -0.02166352986 | S14: =IF(F14="","",(G14/'Charges Summary'!G$4)/(F14/'Charges Summary'!F$4)-1) -> 0.01504286236 | T14: =IF(G14="","",(H14/'Charges Summary'!H$4)/(G14/'Charges Summary'!G$4)-1) -> 0.007080161322 | V14: =SUM('DNSP Inputs General'!Q49:U49)/5 -> 7.644 | W14: 3.885524104e-05 | Y14: 98.95261712 | Z14: 99.21071041 | AA14: 99.05532851 | AB14: 102.667643 | AC14: 105.7050727 | AE14: 0 | AF14: 0.3035222595 | AG14: 0.6146636225 | AH14: 0.9037428872 | AI14: 1.076130611
A15: ='DNSP Inputs General'!A50 -> Mercury vapour 700 watt | C15: =IF('DNSP Inputs General'!E50="","",'DNSP Inputs General'!E50) ->  | D15: =IF(SUM('DNSP Inputs General'!$O50:$U50)=0,"",IF('DNSP Inputs General'!$B50='DNSP Inputs General'!$A$41,D$6,IF('DNSP Inputs General'!$B50='DNSP Inputs General'!$A$42,D$7,D$8))*'DNSP Inputs General'!$D50) ->  | E15: =IF(SUM('DNSP Inputs General'!$O50:$U50)=0,"",IF('DNSP Inputs General'!$B50='DNSP Inputs General'!$A$41,E$6,IF('DNSP Inputs General'!$B50='DNSP Inputs General'!$A$42,E$7,E$8))*'DNSP Inputs General'!$D50) ->  | F15: =IF(SUM('DNSP Inputs General'!$O50:$U50)=0,"",IF('DNSP Inputs General'!$B50='DNSP Inputs General'!$A$41,F$6,IF('DNSP Inputs General'!$B50='DNSP Inputs General'!$A$42,F$7,F$8))*'DNSP Inputs General'!$D50) ->  | G15: =IF(SUM('DNSP Inputs General'!$O50:$U50)=0,"",IF('DNSP Inputs General'!$B50='DNSP Inputs General'!$A$41,G$6,IF('DNSP Inputs General'!$B50='DNSP Inputs General'!$A$42,G$7,G$8))*'DNSP Inputs General'!$D50) ->  | H15: =IF(SUM('DNSP Inputs General'!$O50:$U50)=0,"",IF('DNSP Inputs General'!$B50='DNSP Inputs General'!$A$41,H$6,IF('DNSP Inputs General'!$B50='DNSP Inputs General'!$A$42,H$7,H$8))*'DNSP Inputs General'!$D50) ->  | P15: =IF(C15="","",(D15/'Charges Summary'!D$4)/(C15/'Charges Summary'!C$4)-1) ->  | Q15: =IF(D15="","",(E15/'Charges Summary'!E$4)/(D15/'Charges Summary'!D$4)-1) ->  | R15: =IF(E15="","",(F15/'Charges Summary'!F$4)/(E15/'Charges Summary'!E$4)-1) ->  | S15: =IF(F15="","",(G15/'Charges Summary'!G$4)/(F15/'Charges Summary'!F$4)-1) ->  | T15: =IF(G15="","",(H15/'Charges Summary'!H$4)/(G15/'Charges Summary'!G$4)-1) -> 
A16: ='DNSP Inputs General'!A51 -> Sodium low pressure 90 watt | C16: =IF('DNSP Inputs General'!E51="","",'DNSP Inputs General'!E51) ->  | D16: =IF(SUM('DNSP Inputs General'!$O51:$U51)=0,"",IF('DNSP Inputs General'!$B51='DNSP Inputs General'!$A$41,D$6,IF('DNSP Inputs General'!$B51='DNSP Inputs General'!$A$42,D$7,D$8))*'DNSP Inputs General'!$D51) ->  | E16: =IF(SUM('DNSP Inputs General'!$O51:$U51)=0,"",IF('DNSP Inputs General'!$B51='DNSP Inputs General'!$A$41,E$6,IF('DNSP Inputs General'!$B51='DNSP Inputs General'!$A$42,E$7,E$8))*'DNSP Inputs General'!$D51) ->  | F16: =IF(SUM('DNSP Inputs General'!$O51:$U51)=0,"",IF('DNSP Inputs General'!$B51='DNSP Inputs General'!$A$41,F$6,IF('DNSP Inputs General'!$B51='DNSP Inputs General'!$A$42,F$7,F$8))*'DNSP Inputs General'!$D51) ->  | G16: =IF(SUM('DNSP Inputs General'!$O51:$U51)=0,"",IF('DNSP Inputs General'!$B51='DNSP Inputs General'!$A$41,G$6,IF('DNSP Inputs General'!$B51='DNSP Inputs General'!$A$42,G$7,G$8))*'DNSP Inputs General'!$D51) ->  | H16: =IF(SUM('DNSP Inputs General'!$O51:$U51)=0,"",IF('DNSP Inputs General'!$B51='DNSP Inputs General'!$A$41,H$6,IF('DNSP Inputs General'!$B51='DNSP Inputs General'!$A$42,H$7,H$8))*'DNSP Inputs General'!$D51) ->  | P16: =IF(C16="","",(D16/'Charges Summary'!D$4)/(C16/'Charges Summary'!C$4)-1) ->  | Q16: =IF(D16="","",(E16/'Charges Summary'!E$4)/(D16/'Charges Summary'!D$4)-1) ->  | R16: =IF(E16="","",(F16/'Charges Summary'!F$4)/(E16/'Charges Summary'!E$4)-1) ->  | S16: =IF(F16="","",(G16/'Charges Summary'!G$4)/(F16/'Charges Summary'!F$4)-1) ->  | T16: =IF(G16="","",(H16/'Charges Summary'!H$4)/(G16/'Charges Summary'!G$4)-1) -> 
A17: ='DNSP Inputs General'!A52 -> Sodium low pressure 180 watt | C17: =IF('DNSP Inputs General'!E52="","",'DNSP Inputs General'!E52) ->  | D17: =IF(SUM('DNSP Inputs General'!$O52:$U52)=0,"",IF('DNSP Inputs General'!$B52='DNSP Inputs General'!$A$41,D$6,IF('DNSP Inputs General'!$B52='DNSP Inputs General'!$A$42,D$7,D$8))*'DNSP Inputs General'!$D52) ->  | E17: =IF(SUM('DNSP Inputs General'!$O52:$U52)=0,"",IF('DNSP Inputs General'!$B52='DNSP Inputs General'!$A$41,E$6,IF('DNSP Inputs General'!$B52='DNSP Inputs General'!$A$42,E$7,E$8))*'DNSP Inputs General'!$D52) ->  | F17: =IF(SUM('DNSP Inputs General'!$O52:$U52)=0,"",IF('DNSP Inputs General'!$B52='DNSP Inputs General'!$A$41,F$6,IF('DNSP Inputs General'!$B52='DNSP Inputs General'!$A$42,F$7,F$8))*'DNSP Inputs General'!$D52) ->  | G17: =IF(SUM('DNSP Inputs General'!$O52:$U52)=0,"",IF('DNSP Inputs General'!$B52='DNSP Inputs General'!$A$41,G$6,IF('DNSP Inputs General'!$B52='DNSP Inputs General'!$A$42,G$7,G$8))*'DNSP Inputs General'!$D52) ->  | H17: =IF(SUM('DNSP Inputs General'!$O52:$U52)=0,"",IF('DNSP Inputs General'!$B52='DNSP Inputs General'!$A$41,H$6,IF('DNSP Inputs General'!$B52='DNSP Inputs General'!$A$42,H$7,H$8))*'DNSP Inputs General'!$D52) ->  | P17: =IF(C17="","",(D17/'Charges Summary'!D$4)/(C17/'Charges Summary'!C$4)-1) ->  | Q17: =IF(D17="","",(E17/'Charges Summary'!E$4)/(D17/'Charges Summary'!D$4)-1) ->  | R17: =IF(E17="","",(F17/'Charges Summary'!F$4)/(E17/'Charges Summary'!E$4)-1) ->  | S17: =IF(F17="","",(G17/'Charges Summary'!G$4)/(F17/'Charges Summary'!F$4)-1) ->  | T17: =IF(G17="","",(H17/'Charges Summary'!H$4)/(G17/'Charges Summary'!G$4)-1) -> 
A18: ='DNSP Inputs General'!A53 -> Sodium high pressure 400 watt | C18: =IF('DNSP Inputs General'!E53="","",'DNSP Inputs General'!E53) -> 139.75 | D18: =IF(SUM('DNSP Inputs General'!$O53:$U53)=0,"",IF('DNSP Inputs General'!$B53='DNSP Inputs General'!$A$41,D$6,IF('DNSP Inputs General'!$B53='DNSP Inputs General'!$A$42,D$7,D$8))*'DNSP Inputs General'!$D53) -> 149.5533872 | E18: =IF(SUM('DNSP Inputs General'!$O53:$U53)=0,"",IF('DNSP Inputs General'!$B53='DNSP Inputs General'!$A$41,E$6,IF('DNSP Inputs General'!$B53='DNSP Inputs General'!$A$42,E$7,E$8))*'DNSP Inputs General'!$D53) -> 150.4021926 | F18: =IF(SUM('DNSP Inputs General'!$O53:$U53)=0,"",IF('DNSP Inputs General'!$B53='DNSP Inputs General'!$A$41,F$6,IF('DNSP Inputs General'!$B53='DNSP Inputs General'!$A$42,F$7,F$8))*'DNSP Inputs General'!$D53) -> 150.6376017 | G18: =IF(SUM('DNSP Inputs General'!$O53:$U53)=0,"",IF('DNSP Inputs General'!$B53='DNSP Inputs General'!$A$41,G$6,IF('DNSP Inputs General'!$B53='DNSP Inputs General'!$A$42,G$7,G$8))*'DNSP Inputs General'!$D53) -> 156.5340264 | H18: =IF(SUM('DNSP Inputs General'!$O53:$U53)=0,"",IF('DNSP Inputs General'!$B53='DNSP Inputs General'!$A$41,H$6,IF('DNSP Inputs General'!$B53='DNSP Inputs General'!$A$42,H$7,H$8))*'DNSP Inputs General'!$D53) -> 161.3852277 | J18: 0.07014946144 | K18: 0.005675600779 | L18: 0.001565197861 | M18: 0.03914311314 | N18: 0.030991353 | P18: =IF(C18="","",(D18/'Charges Summary'!D$4)/(C18/'Charges Summary'!C$4)-1) -> 0.04533009819 | Q18: =IF(D18="","",(E18/'Charges Summary'!E$4)/(D18/'Charges Summary'!D$4)-1) -> -0.01764845716 | R18: =IF(E18="","",(F18/'Charges Summary'!F$4)/(E18/'Charges Summary'!E$4)-1) -> -0.02166352986 | S18: =IF(F18="","",(G18/'Charges Summary'!G$4)/(F18/'Charges Summary'!F$4)-1) -> 0.01504286236 | T18: =IF(G18="","",(H18/'Charges Summary'!H$4)/(G18/'Charges Summary'!G$4)-1) -> 0.007080161322 | V18: =SUM('DNSP Inputs General'!Q53:U53)/5 -> 403.0119112 | W18: 0.002048551145 | Y18: 149.5533872 | Z18: 149.9434601 | AA18: 149.7086215 | AB18: 155.1681423 | AC18: 159.758803 | AE18: =D18-Y18 -> 0 | AF18: 0.4587325059 | AG18: 0.9289802477 | AH18: 1.365884136 | AI18: 1.626424674
A19: ='DNSP Inputs General'!A54 -> Incandescent 100 watt | C19: =IF('DNSP Inputs General'!E54="","",'DNSP Inputs General'!E54) ->  | D19: =IF(SUM('DNSP Inputs General'!$O54:$U54)=0,"",IF('DNSP Inputs General'!$B54='DNSP Inputs General'!$A$41,D$6,IF('DNSP Inputs General'!$B54='DNSP Inputs General'!$A$42,D$7,D$8))*'DNSP Inputs General'!$D54) ->  | E19: =IF(SUM('DNSP Inputs General'!$O54:$U54)=0,"",IF('DNSP Inputs General'!$B54='DNSP Inputs General'!$A$41,E$6,IF('DNSP Inputs General'!$B54='DNSP Inputs General'!$A$42,E$7,E$8))*'DNSP Inputs General'!$D54) ->  | F19: =IF(SUM('DNSP Inputs General'!$O54:$U54)=0,"",IF('DNSP Inputs General'!$B54='DNSP Inputs General'!$A$41,F$6,IF('DNSP Inputs General'!$B54='DNSP Inputs General'!$A$42,F$7,F$8))*'DNSP Inputs General'!$D54) ->  | G19: =IF(SUM('DNSP Inputs General'!$O54:$U54)=0,"",IF('DNSP Inputs General'!$B54='DNSP Inputs General'!$A$41,G$6,IF('DNSP Inputs General'!$B54='DNSP Inputs General'!$A$42,G$7,G$8))*'DNSP Inputs General'!$D54) ->  | H19: =IF(SUM('DNSP Inputs General'!$O54:$U54)=0,"",IF('DNSP Inputs General'!$B54='DNSP Inputs General'!$A$41,H$6,IF('DNSP Inputs General'!$B54='DNSP Inputs General'!$A$42,H$7,H$8))*'DNSP Inputs General'!$D54) ->  | P19: =IF(C19="","",(D19/'Charges Summary'!D$4)/(C19/'Charges Summary'!C$4)-1) ->  | Q19: =IF(D19="","",(E19/'Charges Summary'!E$4)/(D19/'Charges Summary'!D$4)-1) ->  | R19: =IF(E19="","",(F19/'Charges Summary'!F$4)/(E19/'Charges Summary'!E$4)-1) ->  | S19: =IF(F19="","",(G19/'Charges Summary'!G$4)/(F19/'Charges Summary'!F$4)-1) ->  | T19: =IF(G19="","",(H19/'Charges Summary'!H$4)/(G19/'Charges Summary'!G$4)-1) -> 
A20: ='DNSP Inputs General'!A55 -> Incandescent 150 watt | C20: =IF('DNSP Inputs General'!E55="","",'DNSP Inputs General'!E55) ->  | D20: =IF(SUM('DNSP Inputs General'!$O55:$U55)=0,"",IF('DNSP Inputs General'!$B55='DNSP Inputs General'!$A$41,D$6,IF('DNSP Inputs General'!$B55='DNSP Inputs General'!$A$42,D$7,D$8))*'DNSP Inputs General'!$D55) ->  | E20: =IF(SUM('DNSP Inputs General'!$O55:$U55)=0,"",IF('DNSP Inputs General'!$B55='DNSP Inputs General'!$A$41,E$6,IF('DNSP Inputs General'!$B55='DNSP Inputs General'!$A$42,E$7,E$8))*'DNSP Inputs General'!$D55) ->  | F20: =IF(SUM('DNSP Inputs General'!$O55:$U55)=0,"",IF('DNSP Inputs General'!$B55='DNSP Inputs General'!$A$41,F$6,IF('DNSP Inputs General'!$B55='DNSP Inputs General'!$A$42,F$7,F$8))*'DNSP Inputs General'!$D55) ->  | G20: =IF(SUM('DNSP Inputs General'!$O55:$U55)=0,"",IF('DNSP Inputs General'!$B55='DNSP Inputs General'!$A$41,G$6,IF('DNSP Inputs General'!$B55='DNSP Inputs General'!$A$42,G$7,G$8))*'DNSP Inputs General'!$D55) ->  | H20: =IF(SUM('DNSP Inputs General'!$O55:$U55)=0,"",IF('DNSP Inputs General'!$B55='DNSP Inputs General'!$A$41,H$6,IF('DNSP Inputs General'!$B55='DNSP Inputs General'!$A$42,H$7,H$8))*'DNSP Inputs General'!$D55) ->  | P20: =IF(C20="","",(D20/'Charges Summary'!D$4)/(C20/'Charges Summary'!C$4)-1) ->  | Q20: =IF(D20="","",(E20/'Charges Summary'!E$4)/(D20/'Charges Summary'!D$4)-1) ->  | R20: =IF(E20="","",(F20/'Charges Summary'!F$4)/(E20/'Charges Summary'!E$4)-1) ->  | S20: =IF(F20="","",(G20/'Charges Summary'!G$4)/(F20/'Charges Summary'!F$4)-1) ->  | T20: =IF(G20="","",(H20/'Charges Summary'!H$4)/(G20/'Charges Summary'!G$4)-1) -> 
A21: ='DNSP Inputs General'!A56 -> Metal halide 250 watt | C21: =IF('DNSP Inputs General'!E56="","",'DNSP Inputs General'!E56) -> 139.75 | D21: =IF(SUM('DNSP Inputs General'!$O56:$U56)=0,"",IF('DNSP Inputs General'!$B56='DNSP Inputs General'!$A$41,D$6,IF('DNSP Inputs General'!$B56='DNSP Inputs General'!$A$42,D$7,D$8))*'DNSP Inputs General'!$D56) -> 149.5533872 | E21: =IF(SUM('DNSP Inputs General'!$O56:$U56)=0,"",IF('DNSP Inputs General'!$B56='DNSP Inputs General'!$A$41,E$6,IF('DNSP Inputs General'!$B56='DNSP Inputs General'!$A$42,E$7,E$8))*'DNSP Inputs General'!$D56) -> 150.4021926 | F21: =IF(SUM('DNSP Inputs General'!$O56:$U56)=0,"",IF('DNSP Inputs General'!$B56='DNSP Inputs General'!$A$41,F$6,IF('DNSP Inputs General'!$B56='DNSP Inputs General'!$A$42,F$7,F$8))*'DNSP Inputs General'!$D56) -> 150.6376017 | G21: =IF(SUM('DNSP Inputs General'!$O56:$U56)=0,"",IF('DNSP Inputs General'!$B56='DNSP Inputs General'!$A$41,G$6,IF('DNSP Inputs General'!$B56='DNSP Inputs General'!$A$42,G$7,G$8))*'DNSP Inputs General'!$D56) -> 156.5340264 | H21: =IF(SUM('DNSP Inputs General'!$O56:$U56)=0,"",IF('DNSP Inputs General'!$B56='DNSP Inputs General'!$A$41,H$6,IF('DNSP Inputs General'!$B56='DNSP Inputs General'!$A$42,H$7,H$8))*'DNSP Inputs General'!$D56) -> 161.3852277 | J21: 0.07014946144 | K21: 0.005675600779 | L21: 0.001565197861 | M21: 0.03914311314 | N21: 0.030991353 | P21: =IF(C21="","",(D21/'Charges Summary'!D$4)/(C21/'Charges Summary'!C$4)-1) -> 0.04533009819 | Q21: =IF(D21="","",(E21/'Charges Summary'!E$4)/(D21/'Charges Summary'!D$4)-1) -> -0.01764845716 | R21: =IF(E21="","",(F21/'Charges Summary'!F$4)/(E21/'Charges Summary'!E$4)-1) -> -0.02166352986 | S21: =IF(F21="","",(G21/'Charges Summary'!G$4)/(F21/'Charges Summary'!F$4)-1) -> 0.01504286236 | T21: =IF(G21="","",(H21/'Charges Summary'!H$4)/(G21/'Charges Summary'!G$4)-1) -> 0.007080161322 | V21: =SUM('DNSP Inputs General'!Q56:U56)/5 -> 3.75360425 | W21: 1.907995786e-05 | Y21: 149.5533872 | Z21: 149.9434601 | AA21: 149.7086215 | AB21: 155.1681423 | AC21: 159.758803
A22: ='DNSP Inputs General'!A57 -> Metal halide 400 watt | C22: =IF('DNSP Inputs General'!E57="","",'DNSP Inputs General'!E57) -> 139.75 | D22: =IF(SUM('DNSP Inputs General'!$O57:$U57)=0,"",IF('DNSP Inputs General'!$B57='DNSP Inputs General'!$A$41,D$6,IF('DNSP Inputs General'!$B57='DNSP Inputs General'!$A$42,D$7,D$8))*'DNSP Inputs General'!$D57) -> 149.5533872 | E22: =IF(SUM('DNSP Inputs General'!$O57:$U57)=0,"",IF('DNSP Inputs General'!$B57='DNSP Inputs General'!$A$41,E$6,IF('DNSP Inputs General'!$B57='DNSP Inputs General'!$A$42,E$7,E$8))*'DNSP Inputs General'!$D57) -> 150.4021926 | F22: =IF(SUM('DNSP Inputs General'!$O57:$U57)=0,"",IF('DNSP Inputs General'!$B57='DNSP Inputs General'!$A$41,F$6,IF('DNSP Inputs General'!$B57='DNSP Inputs General'!$A$42,F$7,F$8))*'DNSP Inputs General'!$D57) -> 150.6376017 | G22: =IF(SUM('DNSP Inputs General'!$O57:$U57)=0,"",IF('DNSP Inputs General'!$B57='DNSP Inputs General'!$A$41,G$6,IF('DNSP Inputs General'!$B57='DNSP Inputs General'!$A$42,G$7,G$8))*'DNSP Inputs General'!$D57) -> 156.5340264 | H22: =IF(SUM('DNSP Inputs General'!$O57:$U57)=0,"",IF('DNSP Inputs General'!$B57='DNSP Inputs General'!$A$41,H$6,IF('DNSP Inputs General'!$B57='DNSP Inputs General'!$A$42,H$7,H$8))*'DNSP Inputs General'!$D57) -> 161.3852277 | J22: 0.07014946144 | K22: 0.005675600779 | L22: 0.001565197861 | M22: 0.03914311314 | N22: 0.030991353 | P22: =IF(C22="","",(D22/'Charges Summary'!D$4)/(C22/'Charges Summary'!C$4)-1) -> 0.04533009819 | Q22: =IF(D22="","",(E22/'Charges Summary'!E$4)/(D22/'Charges Summary'!D$4)-1) -> -0.01764845716 | R22: =IF(E22="","",(F22/'Charges Summary'!F$4)/(E22/'Charges Summary'!E$4)-1) -> -0.02166352986 | S22: =IF(F22="","",(G22/'Charges Summary'!G$4)/(F22/'Charges Summary'!F$4)-1) -> 0.01504286236 | T22: =IF(G22="","",(H22/'Charges Summary'!H$4)/(G22/'Charges Summary'!G$4)-1) -> 0.007080161322 | V22: =SUM('DNSP Inputs General'!Q57:U57)/5 -> 35.18542849 | W22: 0.000178851165 | Y22: 149.5533872 | Z22: 149.9434601 | AA22: 149.7086215 | AB22: 155.1681423 | AC22: 159.758803 | AE22: =D22-Y22 -> 0 | AF22: 0.4587325059 | AG22: 0.9289802477 | AH22: 1.365884136 | AI22: 1.626424674
A23: ='DNSP Inputs General'!A58 -> Metal halide 70 watt | C23: =IF('DNSP Inputs General'!E58="","",'DNSP Inputs General'!E58) -> 120.03 | D23: =IF(SUM('DNSP Inputs General'!$O58:$U58)=0,"",IF('DNSP Inputs General'!$B58='DNSP Inputs General'!$A$41,D$6,IF('DNSP Inputs General'!$B58='DNSP Inputs General'!$A$42,D$7,D$8))*'DNSP Inputs General'!$D58) -> 148.9993912 | E23: =IF(SUM('DNSP Inputs General'!$O58:$U58)=0,"",IF('DNSP Inputs General'!$B58='DNSP Inputs General'!$A$41,E$6,IF('DNSP Inputs General'!$B58='DNSP Inputs General'!$A$42,E$7,E$8))*'DNSP Inputs General'!$D58) -> 148.3903493 | F23: =IF(SUM('DNSP Inputs General'!$O58:$U58)=0,"",IF('DNSP Inputs General'!$B58='DNSP Inputs General'!$A$41,F$6,IF('DNSP Inputs General'!$B58='DNSP Inputs General'!$A$42,F$7,F$8))*'DNSP Inputs General'!$D58) -> 144.5341551 | G23: =IF(SUM('DNSP Inputs General'!$O58:$U58)=0,"",IF('DNSP Inputs General'!$B58='DNSP Inputs General'!$A$41,G$6,IF('DNSP Inputs General'!$B58='DNSP Inputs General'!$A$42,G$7,G$8))*'DNSP Inputs General'!$D58) -> 150.6122756 | H23: =IF(SUM('DNSP Inputs General'!$O58:$U58)=0,"",IF('DNSP Inputs General'!$B58='DNSP Inputs General'!$A$41,H$6,IF('DNSP Inputs General'!$B58='DNSP Inputs General'!$A$42,H$7,H$8))*'DNSP Inputs General'!$D58) -> 155.1901918 | J23: 0.2413512551 | K23: -0.004087545654 | L23: -0.02598682632 | M23: 0.0420531774 | N23: 0.03039537237 | P23: =IF(C23="","",(D23/'Charges Summary'!D$4)/(C23/'Charges Summary'!C$4)-1) -> 0.2125613068 | Q23: =IF(D23="","",(E23/'Charges Summary'!E$4)/(D23/'Charges Summary'!D$4)-1) -> -0.02718517253 | R23: =IF(E23="","",(F23/'Charges Summary'!F$4)/(E23/'Charges Summary'!E$4)-1) -> -0.04857655573 | S23: =IF(F23="","",(G23/'Charges Summary'!G$4)/(F23/'Charges Summary'!F$4)-1) -> 0.01788543518 | T23: =IF(G23="","",(H23/'Charges Summary'!H$4)/(G23/'Charges Summary'!G$4)-1) -> 0.006498002929 | V23: =SUM('DNSP Inputs General'!Q58:U58)/5 -> 126.9910867 | W23: 0.0006455088023 | Y23: 148.9993912 | Z23: 148.024449 | AA23: 143.7918573 | AB23: 149.5190032 | AC23: 153.8853442 | AE23: 0 | AF23: 0.3659003464 | AG23: 0.7422978522 | AH23: 1.09327242 | AI23: 1.304847579
C24: =IF('DNSP Inputs General'!E59="","",'DNSP Inputs General'!E59) ->  | D24: =IF(SUM('DNSP Inputs General'!$O59:$U59)=0,"",IF('DNSP Inputs General'!$B59='DNSP Inputs General'!$A$41,D$6,IF('DNSP Inputs General'!$B59='DNSP Inputs General'!$A$42,D$7,D$8))*'DNSP Inputs General'!$D59) ->  | E24: =IF(SUM('DNSP Inputs General'!$O59:$U59)=0,"",IF('DNSP Inputs General'!$B59='DNSP Inputs General'!$A$41,E$6,IF('DNSP Inputs General'!$B59='DNSP Inputs General'!$A$42,E$7,E$8))*'DNSP Inputs General'!$D59) ->  | F24: =IF(SUM('DNSP Inputs General'!$O59:$U59)=0,"",IF('DNSP Inputs General'!$B59='DNSP Inputs General'!$A$41,F$6,IF('DNSP Inputs General'!$B59='DNSP Inputs General'!$A$42,F$7,F$8))*'DNSP Inputs General'!$D59) ->  | G24: =IF(SUM('DNSP Inputs General'!$O59:$U59)=0,"",IF('DNSP Inputs General'!$B59='DNSP Inputs General'!$A$41,G$6,IF('DNSP Inputs General'!$B59='DNSP Inputs General'!$A$42,G$7,G$8))*'DNSP Inputs General'!$D59) ->  | H24: =IF(SUM('DNSP Inputs General'!$O59:$U59)=0,"",IF('DNSP Inputs General'!$B59='DNSP Inputs General'!$A$41,H$6,IF('DNSP Inputs General'!$B59='DNSP Inputs General'!$A$42,H$7,H$8))*'DNSP Inputs General'!$D59) ->  | J24: =IF(C24="","",D24/C24-1) ->  | K24: =IF(D24="","",E24/D24-1) ->  | L24: =IF(E24="","",F24/E24-1) ->  | M24: =IF(F24="","",G24/F24-1) ->  | N24: =IF(G24="","",H24/G24-1) ->  | P24: =IF(C24="","",(D24/'Charges Summary'!D$4)/(C24/'Charges Summary'!C$4)-1) ->  | Q24: =IF(D24="","",(E24/'Charges Summary'!E$4)/(D24/'Charges Summary'!D$4)-1) ->  | R24: =IF(E24="","",(F24/'Charges Summary'!F$4)/(E24/'Charges Summary'!E$4)-1) ->  | S24: =IF(F24="","",(G24/'Charges Summary'!G$4)/(F24/'Charges Summary'!F$4)-1) ->  | T24: =IF(G24="","",(H24/'Charges Summary'!H$4)/(G24/'Charges Summary'!G$4)-1) -> 
C25: =IF('DNSP Inputs General'!E60="","",'DNSP Inputs General'!E60) ->  | D25: =IF(SUM('DNSP Inputs General'!$O60:$U60)=0,"",IF('DNSP Inputs General'!$B60='DNSP Inputs General'!$A$41,D$6,IF('DNSP Inputs General'!$B60='DNSP Inputs General'!$A$42,D$7,D$8))*'DNSP Inputs General'!$D60) ->  | E25: =IF(SUM('DNSP Inputs General'!$O60:$U60)=0,"",IF('DNSP Inputs General'!$B60='DNSP Inputs General'!$A$41,E$6,IF('DNSP Inputs General'!$B60='DNSP Inputs General'!$A$42,E$7,E$8))*'DNSP Inputs General'!$D60) ->  | F25: =IF(SUM('DNSP Inputs General'!$O60:$U60)=0,"",IF('DNSP Inputs General'!$B60='DNSP Inputs General'!$A$41,F$6,IF('DNSP Inputs General'!$B60='DNSP Inputs General'!$A$42,F$7,F$8))*'DNSP Inputs General'!$D60) ->  | G25: =IF(SUM('DNSP Inputs General'!$O60:$U60)=0,"",IF('DNSP Inputs General'!$B60='DNSP Inputs General'!$A$41,G$6,IF('DNSP Inputs General'!$B60='DNSP Inputs General'!$A$42,G$7,G$8))*'DNSP Inputs General'!$D60) ->  | H25: =IF(SUM('DNSP Inputs General'!$O60:$U60)=0,"",IF('DNSP Inputs General'!$B60='DNSP Inputs General'!$A$41,H$6,IF('DNSP Inputs General'!$B60='DNSP Inputs General'!$A$42,H$7,H$8))*'DNSP Inputs General'!$D60) ->  | J25: =IF(C25="","",D25/C25-1) ->  | K25: =IF(D25="","",E25/D25-1) ->  | L25: =IF(E25="","",F25/E25-1) ->  | M25: =IF(F25="","",G25/F25-1) ->  | N25: =IF(G25="","",H25/G25-1) ->  | P25: =IF(C25="","",(D25/'Charges Summary'!D$4)/(C25/'Charges Summary'!C$4)-1) ->  | Q25: =IF(D25="","",(E25/'Charges Summary'!E$4)/(D25/'Charges Summary'!D$4)-1) ->  | R25: =IF(E25="","",(F25/'Charges Summary'!F$4)/(E25/'Charges Summary'!E$4)-1) ->  | S25: =IF(F25="","",(G25/'Charges Summary'!G$4)/(F25/'Charges Summary'!F$4)-1) ->  | T25: =IF(G25="","",(H25/'Charges Summary'!H$4)/(G25/'Charges Summary'!G$4)-1) -> 
C26: =IF('DNSP Inputs General'!E61="","",'DNSP Inputs General'!E61) ->  | D26: =IF(SUM('DNSP Inputs General'!$O61:$U61)=0,"",IF('DNSP Inputs General'!$B61='DNSP Inputs General'!$A$41,D$6,IF('DNSP Inputs General'!$B61='DNSP Inputs General'!$A$42,D$7,D$8))*'DNSP Inputs General'!$D61) ->  | E26: =IF(SUM('DNSP Inputs General'!$O61:$U61)=0,"",IF('DNSP Inputs General'!$B61='DNSP Inputs General'!$A$41,E$6,IF('DNSP Inputs General'!$B61='DNSP Inputs General'!$A$42,E$7,E$8))*'DNSP Inputs General'!$D61) ->  | F26: =IF(SUM('DNSP Inputs General'!$O61:$U61)=0,"",IF('DNSP Inputs General'!$B61='DNSP Inputs General'!$A$41,F$6,IF('DNSP Inputs General'!$B61='DNSP Inputs General'!$A$42,F$7,F$8))*'DNSP Inputs General'!$D61) ->  | G26: =IF(SUM('DNSP Inputs General'!$O61:$U61)=0,"",IF('DNSP Inputs General'!$B61='DNSP Inputs General'!$A$41,G$6,IF('DNSP Inputs General'!$B61='DNSP Inputs General'!$A$42,G$7,G$8))*'DNSP Inputs General'!$D61) ->  | H26: =IF(SUM('DNSP Inputs General'!$O61:$U61)=0,"",IF('DNSP Inputs General'!$B61='DNSP Inputs General'!$A$41,H$6,IF('DNSP Inputs General'!$B61='DNSP Inputs General'!$A$42,H$7,H$8))*'DNSP Inputs General'!$D61) ->  | P26: =IF(C26="","",(D26/'Charges Summary'!D$4)/(C26/'Charges Summary'!C$4)-1) ->  | Q26: =IF(D26="","",(E26/'Charges Summary'!E$4)/(D26/'Charges Summary'!D$4)-1) ->  | R26: =IF(E26="","",(F26/'Charges Summary'!F$4)/(E26/'Charges Summary'!E$4)-1) ->  | S26: =IF(F26="","",(G26/'Charges Summary'!G$4)/(F26/'Charges Summary'!F$4)-1) ->  | T26: =IF(G26="","",(H26/'Charges Summary'!H$4)/(G26/'Charges Summary'!G$4)-1) -> 
C27: =IF('DNSP Inputs General'!E62="","",'DNSP Inputs General'!E62) ->  | D27: =IF(SUM('DNSP Inputs General'!$O62:$U62)=0,"",IF('DNSP Inputs General'!$B62='DNSP Inputs General'!$A$41,D$6,IF('DNSP Inputs General'!$B62='DNSP Inputs General'!$A$42,D$7,D$8))*'DNSP Inputs General'!$D62) ->  | E27: =IF(SUM('DNSP Inputs General'!$O62:$U62)=0,"",IF('DNSP Inputs General'!$B62='DNSP Inputs General'!$A$41,E$6,IF('DNSP Inputs General'!$B62='DNSP Inputs General'!$A$42,E$7,E$8))*'DNSP Inputs General'!$D62) ->  | F27: =IF(SUM('DNSP Inputs General'!$O62:$U62)=0,"",IF('DNSP Inputs General'!$B62='DNSP Inputs General'!$A$41,F$6,IF('DNSP Inputs General'!$B62='DNSP Inputs General'!$A$42,F$7,F$8))*'DNSP Inputs General'!$D62) ->  | G27: =IF(SUM('DNSP Inputs General'!$O62:$U62)=0,"",IF('DNSP Inputs General'!$B62='DNSP Inputs General'!$A$41,G$6,IF('DNSP Inputs General'!$B62='DNSP Inputs General'!$A$42,G$7,G$8))*'DNSP Inputs General'!$D62) ->  | H27: =IF(SUM('DNSP Inputs General'!$O62:$U62)=0,"",IF('DNSP Inputs General'!$B62='DNSP Inputs General'!$A$41,H$6,IF('DNSP Inputs General'!$B62='DNSP Inputs General'!$A$42,H$7,H$8))*'DNSP Inputs General'!$D62) ->  | P27: =IF(C27="","",(D27/'Charges Summary'!D$4)/(C27/'Charges Summary'!C$4)-1) ->  | Q27: =IF(D27="","",(E27/'Charges Summary'!E$4)/(D27/'Charges Summary'!D$4)-1) ->  | R27: =IF(E27="","",(F27/'Charges Summary'!F$4)/(E27/'Charges Summary'!E$4)-1) ->  | S27: =IF(F27="","",(G27/'Charges Summary'!G$4)/(F27/'Charges Summary'!F$4)-1) ->  | T27: =IF(G27="","",(H27/'Charges Summary'!H$4)/(G27/'Charges Summary'!G$4)-1) -> 
P28: =IF(C28="","",(D28/'Charges Summary'!D$4)/(C28/'Charges Summary'!C$4)-1) -> 
P29: =IF(C29="","",(D29/'Charges Summary'!D$4)/(C29/'Charges Summary'!C$4)-1) -> 
A30: ='DNSP Inputs General'!A$67 -> Energy Efficient Lights | P30: =IF(C30="","",(D30/'Charges Summary'!D$4)/(C30/'Charges Summary'!C$4)-1) -> 
A31: ='DNSP Inputs General'!A68 -> T5 2X14W | C31: =IF('DNSP Inputs General'!E68="","",'DNSP Inputs General'!E68) -> 40.18 | D31: ='Charges Summary'!D$103 -> 56.60024949 | E31: ='Charges Summary'!E$103 -> 57.27061539 | F31: ='Charges Summary'!F$103 -> 58.23082003 | G31: ='Charges Summary'!G$103 -> 59.44064815 | H31: ='Charges Summary'!H$103 -> 61.14525185 | J31: =IF(C31="","",D31/C31-1) -> 0.4086672348 | K31: =IF(D31="","",E31/D31-1) -> 0.01184386826 | L31: =IF(E31="","",F31/E31-1) -> 0.0167660961 | M31: =IF(F31="","",G31/F31-1) -> 0.02077642247 | N31: =IF(G31="","",H31/G31-1) -> 0.02867740772 | P31: =IF(C31="","",(D31/'Charges Summary'!D$4)/(C31/'Charges Summary'!C$4)-1) -> 0.3759968228 | Q31: =IF(D31="","",(E31/'Charges Summary'!E$4)/(D31/'Charges Summary'!D$4)-1) -> -0.01162324677 | R31: =IF(E31="","",(F31/'Charges Summary'!F$4)/(E31/'Charges Summary'!E$4)-1) -> -0.006815177345 | S31: =IF(F31="","",(G31/'Charges Summary'!G$4)/(F31/'Charges Summary'!F$4)-1) -> -0.002897860173 | T31: =IF(G31="","",(H31/'Charges Summary'!H$4)/(G31/'Charges Summary'!G$4)-1) -> 0.004819882057 | V31: =SUM('DNSP Inputs General'!Q68:U68)/5 -> 5847.888318 | W31: 0.02972541996 | Y31: 56.60024949 | Z31: 57.10636184 | AA31: 57.89673339 | AB31: 58.9473075 | AC31: 60.5543576 | AE31: =D31-Y31 -> 0 | AF31: 0.1642535534 | AG31: 0.3340866412 | AH31: 0.4933406538 | AI31: 0.5908942518
A32: ='DNSP Inputs General'!A69 -> T5 2X24W | C32: =IF('DNSP Inputs General'!E69="","",'DNSP Inputs General'!E69) -> 39.53 | D32: ='DNSP Inputs General'!$D69*D31 -> 55.68252237 | E32: ='DNSP Inputs General'!$D69*E31 -> 56.34201883 | F32: ='DNSP Inputs General'!$D69*F31 -> 57.28665453 | G32: ='DNSP Inputs General'!$D69*G31 -> 58.47686626 | H32: ='DNSP Inputs General'!$D69*H31 -> 60.1538312 | J32: 0.4086142769 | K32: 0.01184386826 | L32: 0.0167660961 | M32: 0.02077642247 | N32: 0.02867740772 | P32: =IF(C32="","",(D32/'Charges Summary'!D$4)/(C32/'Charges Summary'!C$4)-1) -> 0.3759450932 | Q32: =IF(D32="","",(E32/'Charges Summary'!E$4)/(D32/'Charges Summary'!D$4)-1) -> -0.01162324677 | R32: =IF(E32="","",(F32/'Charges Summary'!F$4)/(E32/'Charges Summary'!E$4)-1) -> -0.006815177345 | S32: =IF(F32="","",(G32/'Charges Summary'!G$4)/(F32/'Charges Summary'!F$4)-1) -> -0.002897860173 | T32: =IF(G32="","",(H32/'Charges Summary'!H$4)/(G32/'Charges Summary'!G$4)-1) -> 0.004819882057 | V32: =SUM('DNSP Inputs General'!Q69:U69)/5 -> 570.0487841 | W32: 0.002897616812 | Y32: 55.68252237 | Z32: 56.18042851 | AA32: 56.95798483 | AB32: 57.99152473 | AC32: 59.57251782 | AE32: 0 | AF32: 0.1615903152 | AG32: 0.3286696973 | AH32: 0.4853415353 | AI32: 0.5813133809
A33: ='DNSP Inputs General'!A70 -> CF32 | C33: =IF('DNSP Inputs General'!E70="","",'DNSP Inputs General'!E70) -> 38.62 | D33: ='DNSP Inputs General'!$D70*D31 -> 54.40900736 | E33: ='DNSP Inputs General'!$D70*E31 -> 55.05342047 | F33: ='DNSP Inputs General'!$D70*F31 -> 55.97645141 | G33: ='DNSP Inputs General'!$D70*G31 -> 57.13944181 | H33: ='DNSP Inputs General'!$D70*H31 -> 58.77805288 | J33: 0.4088298124 | K33: 0.01184386826 | L33: 0.0167660961 | M33: 0.02077642247 | N33: 0.02867740772 | P33: =IF(C33="","",(D33/'Charges Summary'!D$4)/(C33/'Charges Summary'!C$4)-1) -> 0.3761556299 | Q33: =IF(D33="","",(E33/'Charges Summary'!E$4)/(D33/'Charges Summary'!D$4)-1) -> -0.01162324677 | R33: =IF(E33="","",(F33/'Charges Summary'!F$4)/(E33/'Charges Summary'!E$4)-1) -> -0.006815177345 | S33: =IF(F33="","",(G33/'Charges Summary'!G$4)/(F33/'Charges Summary'!F$4)-1) -> -0.002897860173 | T33: =IF(G33="","",(H33/'Charges Summary'!H$4)/(G33/'Charges Summary'!G$4)-1) -> 0.004819882057 | V33: =SUM('DNSP Inputs General'!Q70:U70)/5 -> 1202.194116 | W33: 0.006110876788 | Y33: 54.40900736 | Z33: 54.89552589 | AA33: 55.65529872 | AB33: 56.66520052 | AC33: 58.21003472 | AE33: 0 | AF33: 0.157894583 | AG33: 0.3211526924 | AH33: 0.4742412887 | AI33: 0.5680181621
A34: ='DNSP Inputs General'!A71 -> CF42 | C34: =IF('DNSP Inputs General'!E71="","",'DNSP Inputs General'!E71) -> 38.62 | D34: ='DNSP Inputs General'!$D71*D31 -> 54.40900736 | E34: ='DNSP Inputs General'!$D71*E31 -> 55.05342047 | F34: ='DNSP Inputs General'!$D71*F31 -> 55.97645141 | G34: ='DNSP Inputs General'!$D71*G31 -> 57.13944181 | H34: ='DNSP Inputs General'!$D71*H31 -> 58.77805288 | J34: 0.4088298124 | K34: 0.01184386826 | L34: 0.0167660961 | M34: 0.02077642247 | N34: 0.02867740772 | P34: =IF(C34="","",(D34/'Charges Summary'!D$4)/(C34/'Charges Summary'!C$4)-1) -> 0.3761556299 | Q34: =IF(D34="","",(E34/'Charges Summary'!E$4)/(D34/'Charges Summary'!D$4)-1) -> -0.01162324677 | R34: =IF(E34="","",(F34/'Charges Summary'!F$4)/(E34/'Charges Summary'!E$4)-1) -> -0.006815177345 | S34: =IF(F34="","",(G34/'Charges Summary'!G$4)/(F34/'Charges Summary'!F$4)-1) -> -0.002897860173 | T34: =IF(G34="","",(H34/'Charges Summary'!H$4)/(G34/'Charges Summary'!G$4)-1) -> 0.004819882057 | V34: =SUM('DNSP Inputs General'!Q71:U71)/5 -> 1121.750772 | W34: 0.005701974966 | Y34: 54.40900736 | Z34: 54.89552589 | AA34: 55.65529872 | AB34: 56.66520052 | AC34: 58.21003472 | AE34: 0 | AF34: 0.157894583 | AG34: 0.3211526924 | AH34: 0.4742412887 | AI34: 0.5680181621
A35: ='DNSP Inputs General'!A72 -> Category P LED Standard Output | C35: =IF('DNSP Inputs General'!E72="","",'DNSP Inputs General'!E72) -> 25.63 | D35: ='Charges Summary'!D$120 -> 27.63883888 | E35: ='Charges Summary'!E$120 -> 27.52453105 | F35: ='Charges Summary'!F$120 -> 27.65392519 | G35: ='Charges Summary'!G$120 -> 27.95749101 | H35: ='Charges Summary'!H$120 -> 28.68005358 | J35: 0.07837841886 | K35: -0.004135767942 | L35: 0.004701047794 | M35: 0.01097731401 | N35: 0.02584504344 | P35: =IF(C35="","",(D35/'Charges Summary'!D$4)/(C35/'Charges Summary'!C$4)-1) -> 0.05336820613 | Q35: =IF(D35="","",(E35/'Charges Summary'!E$4)/(D35/'Charges Summary'!D$4)-1) -> -0.02723227643 | R35: =IF(E35="","",(F35/'Charges Summary'!F$4)/(E35/'Charges Summary'!E$4)-1) -> -0.0186004079 | S35: =IF(F35="","",(G35/'Charges Summary'!G$4)/(F35/'Charges Summary'!F$4)-1) -> -0.01246970352 | T35: =IF(G35="","",(H35/'Charges Summary'!H$4)/(G35/'Charges Summary'!G$4)-1) -> 0.002053207179 | V35: =SUM('DNSP Inputs General'!Q72:U72)/5 -> 118714.5307 | W35: 0.6034382138 | Y35: 27.63883888 | Z35: 27.4705244 | AA35: 27.54270379 | AB35: 27.79126637 | AC35: 28.47775637 | AE35: 0 | AF35: 0.05400664772 | AG35: 0.1112213935 | AH35: 0.1662246391 | AI35: 0.2022972104
A36: Category P LED High Output | C36: =IF('DNSP Inputs General'!E73="","",'DNSP Inputs General'!E73) -> 25.63 | D36: ='DNSP Inputs General'!$D73*D35 -> 27.63883888 | E36: ='DNSP Inputs General'!$D73*E35 -> 27.52453105 | F36: ='DNSP Inputs General'!$D73*F35 -> 27.65392519 | G36: ='DNSP Inputs General'!$D73*G35 -> 27.95749101 | H36: ='DNSP Inputs General'!$D73*H35 -> 28.68005358 | J36: 0.07837841886 | K36: -0.004135767942 | L36: 0.004701047794 | M36: 0.01097731401 | N36: 0.02584504344 | P36: =IF(C36="","",(D36/'Charges Summary'!D$4)/(C36/'Charges Summary'!C$4)-1) -> 0.05336820613 | Q36: =IF(D36="","",(E36/'Charges Summary'!E$4)/(D36/'Charges Summary'!D$4)-1) -> -0.02723227643 | R36: =IF(E36="","",(F36/'Charges Summary'!F$4)/(E36/'Charges Summary'!E$4)-1) -> -0.0186004079 | S36: =IF(F36="","",(G36/'Charges Summary'!G$4)/(F36/'Charges Summary'!F$4)-1) -> -0.01246970352 | T36: =IF(G36="","",(H36/'Charges Summary'!H$4)/(G36/'Charges Summary'!G$4)-1) -> 0.002053207179 | V36: =SUM('DNSP Inputs General'!Q73:U73)/5 -> 735.260267 | W36: 0.003737403833 | Y36: 27.63883888 | Z36: 27.4705244 | AA36: 27.54270379 | AB36: 27.79126637 | AC36: 28.47775637 | AE36: 0 | AF36: 0.05400664772 | AG36: 0.1112213935 | AH36: 0.1662246391 | AI36: 0.2022972104
A37: Category V LED L1 Standard Output | C37: =IF('DNSP Inputs General'!E74="","",'DNSP Inputs General'!E74) -> 54.53 | D37: ='Charges Summary'!D$138 -> 55.58593779 | E37: ='Charges Summary'!E$138 -> 55.51540944 | F37: ='Charges Summary'!F$138 -> 55.92445667 | G37: ='Charges Summary'!G$138 -> 56.70239925 | H37: ='Charges Summary'!H$138 -> 58.20150408 | J37: 0.01936434609 | K37: -0.001268816512 | L37: 0.007368174651 | M37: 0.01391059703 | N37: 0.02643811996 | P37: =IF(C37="","",(D37/'Charges Summary'!D$4)/(C37/'Charges Summary'!C$4)-1) -> -0.004277187077 | Q37: =IF(D37="","",(E37/'Charges Summary'!E$4)/(D37/'Charges Summary'!D$4)-1) -> -0.02443181656 | R37: =IF(E37="","",(F37/'Charges Summary'!F$4)/(E37/'Charges Summary'!E$4)-1) -> -0.01599513818 | S37: =IF(F37="","",(G37/'Charges Summary'!G$4)/(F37/'Charges Summary'!F$4)-1) -> -0.009604450459 | T37: =IF(G37="","",(H37/'Charges Summary'!H$4)/(G37/'Charges Summary'!G$4)-1) -> 0.002632528808 | V37: =SUM('DNSP Inputs General'!Q74:U74)/5 -> 18984.32144 | W37: 0.09649926549 | Y37: 55.58593779 | Z37: 55.36588441 | AA37: 55.61936795 | AB37: 56.25045866 | AC37: 57.65791191 | AE37: 0 | AF37: 0.1495250237 | AG37: 0.3050887171 | AH37: 0.4519405883 | AI37: 0.5435921684
A38: Category V LED L2 Medium Output | C38: =IF('DNSP Inputs General'!E75="","",'DNSP Inputs General'!E75) -> 60.42 | D38: ='DNSP Inputs General'!$D75*D37 -> 61.58999379 | E38: ='DNSP Inputs General'!$D75*E37 -> 61.51184739 | F38: ='DNSP Inputs General'!$D75*F37 -> 61.96507742 | G38: ='DNSP Inputs General'!$D75*G37 -> 62.82704865 | H38: ='DNSP Inputs General'!$D75*H37 -> 64.48807769 | J38: 0.01936434609 | K38: -0.001268816512 | L38: 0.007368174651 | M38: 0.01391059703 | N38: 0.02643811996 | P38: =IF(C38="","",(D38/'Charges Summary'!D$4)/(C38/'Charges Summary'!C$4)-1) -> -0.004277187077 | Q38: =IF(D38="","",(E38/'Charges Summary'!E$4)/(D38/'Charges Summary'!D$4)-1) -> -0.02443181656 | R38: =IF(E38="","",(F38/'Charges Summary'!F$4)/(E38/'Charges Summary'!E$4)-1) -> -0.01599513818 | S38: =IF(F38="","",(G38/'Charges Summary'!G$4)/(F38/'Charges Summary'!F$4)-1) -> -0.009604450459 | T38: =IF(G38="","",(H38/'Charges Summary'!H$4)/(G38/'Charges Summary'!G$4)-1) -> 0.002632528808 | V38: =SUM('DNSP Inputs General'!Q75:U75)/5 -> 8468.046851 | W38: 0.04304395624 | Y38: 61.58999379 | Z38: 61.34617158 | AA38: 61.62703487 | AB38: 62.32629218 | AC38: 63.88577 | AE38: 0 | AF38: 0.1656758103 | AG38: 0.3380425507 | AH38: 0.5007564706 | AI38: 0.6023076988
A39: Category V LED L4 High Output | C39: =IF('DNSP Inputs General'!E76="","",'DNSP Inputs General'!E76) -> 68.43 | D39: ='DNSP Inputs General'!$D76*D37 -> 69.7551022 | E39: ='DNSP Inputs General'!$D76*E37 -> 69.66659578 | F39: ='DNSP Inputs General'!$D76*F37 -> 70.17991142 | G39: ='DNSP Inputs General'!$D76*G37 -> 71.15615589 | H39: ='DNSP Inputs General'!$D76*H37 -> 73.03739087 | J39: 0.01936434609 | K39: -0.001268816512 | L39: 0.007368174651 | M39: 0.01391059703 | N39: 0.02643811996 | P39: =IF(C39="","",(D39/'Charges Summary'!D$4)/(C39/'Charges Summary'!C$4)-1) -> -0.004277187077 | Q39: =IF(D39="","",(E39/'Charges Summary'!E$4)/(D39/'Charges Summary'!D$4)-1) -> -0.02443181656 | R39: =IF(E39="","",(F39/'Charges Summary'!F$4)/(E39/'Charges Summary'!E$4)-1) -> -0.01599513818 | S39: =IF(F39="","",(G39/'Charges Summary'!G$4)/(F39/'Charges Summary'!F$4)-1) -> -0.009604450459 | T39: =IF(G39="","",(H39/'Charges Summary'!H$4)/(G39/'Charges Summary'!G$4)-1) -> 0.002632528808 | V39: =SUM('DNSP Inputs General'!Q76:U76)/5 -> 149.6483468 | W39: 0.0007606779941 | Y39: 69.7551022 | Z39: 69.47895599 | AA39: 69.7970539 | AB39: 70.58901313 | AC39: 72.35523404 | AE39: 0 | AF39: 0.1876397831 | AG39: 0.3828575264 | AH39: 0.5671427555 | AI39: 0.6821568327
V41: =SUM(V6:V40) -> 196730.217 | W41: 1
A42: Revenue - Nominal ($,000) | D42: ='Cashflow Summary'!D42/10^3 -> 9757.608867 | E42: ='Cashflow Summary'!E42/10^3 -> 9408.129374 | F42: ='Cashflow Summary'!F42/10^3 -> 9153.198306 | G42: ='Cashflow Summary'!G42/10^3 -> 9151.287792 | H42: ='Cashflow Summary'!H42/10^3 -> 9311.199744 | Y42: 9757.608867 | Z42: 9384.172119 | AA42: 9106.536953 | AB42: 9084.605124 | AC42: 9232.211168 | AE42: =D42-Y42 -> 0 | AF42: =E42-Z42 -> 23.95725466 | AG42: =F42-AA42 -> 46.66135376 | AH42: =G42-AB42 -> 66.68266775 | AI42: =H42-AC42 -> 78.98857624
AI44: =SUM(AE42:AI42)/SUM(Y42:AC42) -> 0.004644888412
A45: Written down value (WDV) | D45: =AVERAGE('Charges Summary'!D58,'Charges Summary'!D81) -> 79.88127932 | E45: =AVERAGE('Charges Summary'!E58,'Charges Summary'!E81) -> 74.79299721 | F45: =AVERAGE('Charges Summary'!F58,'Charges Summary'!F81) -> 69.35675828 | G45: =AVERAGE('Charges Summary'!G58,'Charges Summary'!G81) -> 68.10172002 | H45: =AVERAGE('Charges Summary'!H58,'Charges Summary'!H81) -> 61.50902353 | K45: =IF(D45="","",E45/D45-1) -> -0.06369805483 | L45: =IF(E45="","",F45/E45-1) -> -0.0726837958 | M45: =IF(F45="","",G45/F45-1) -> -0.01809539962 | N45: =IF(G45="","",H45/G45-1) -> -0.09680660756 | P45: =IF(C45="","",(D45/'Charges Summary'!D$4)/C45-1) ->  | Q45: =IF(D45="","",(E45/'Charges Summary'!E$4)/(D45/'Charges Summary'!D$4)-1) -> -0.08541316933 | R45: =IF(E45="","",(F45/'Charges Summary'!F$4)/(E45/'Charges Summary'!E$4)-1) -> -0.09419050916 | S45: =IF(F45="","",(G45/'Charges Summary'!G$4)/(F45/'Charges Summary'!F$4)-1) -> -0.04086815037 | T45: =IF(G45="","",(H45/'Charges Summary'!H$4)/(G45/'Charges Summary'!G$4)-1) -> -0.1177538544
A47: Avoided cost | D47: =AVERAGE('Charges Summary'!D63,'Charges Summary'!D86) -> -31.07907752 | E47: =AVERAGE('Charges Summary'!E63,'Charges Summary'!E86) -> -31.9184411 | F47: =AVERAGE('Charges Summary'!F63,'Charges Summary'!F86) -> -32.807712 | G47: =AVERAGE('Charges Summary'!G63,'Charges Summary'!G86) -> -33.77995909 | H47: =AVERAGE('Charges Summary'!H63,'Charges Summary'!H86) -> -34.83577925 | J47: =IF(C47="","",D47/C47-1) ->  | K47: =IF(D47="","",E47/D47-1) -> 0.02700735167 | L47: =IF(E47="","",F47/E47-1) -> 0.02786072464 | M47: =IF(F47="","",G47/F47-1) -> 0.02963471185 | N47: =IF(G47="","",H47/G47-1) -> 0.03125581524 | P47: =IF(C47="","",(D47/'Charges Summary'!D$4)/C47-1) ->  | Q47: =IF(D47="","",(E47/'Charges Summary'!E$4)/(D47/'Charges Summary'!D$4)-1) -> 0.003188558659 | R47: =IF(E47="","",(F47/'Charges Summary'!F$4)/(E47/'Charges Summary'!E$4)-1) -> 0.004022139839 | S47: =IF(F47="","",(G47/'Charges Summary'!G$4)/(F47/'Charges Summary'!F$4)-1) -> 0.005754983977 | T47: =IF(G47="","",(H47/'Charges Summary'!H$4)/(G47/'Charges Summary'!G$4)-1) -> 0.007338490043

Sheet PL Tariff Components
A1: ='DNSP Inputs O & M'!$A$3 -> Powercor | E1: Global Check | F1: =IF(SUM('Total RAB'!F1,'Depn & WACC Post 2004'!F1,'Cashflow Summary'!F1,W1)<1,"Ok","Error") -> Ok | V1: Check | W1: =SUM(V6:Z37) -> 5.186961971e-13
A3: Public Lighting Tariffs | C3: Nominal Prices | J3: Operations, maintenance and repair Tariff | P3: Replacement Tariff | V3: Check
C4: Actual
A5: ='DNSP Inputs General'!A$40 -> Existing Lights | C5: 2020 | D5: ='DNSP Inputs General'!Q$2 -> 2021/22 | E5: ='DNSP Inputs General'!R$2 -> 2022/23 | F5: ='DNSP Inputs General'!S$2 -> 2023/24 | G5: ='DNSP Inputs General'!T$2 -> 2024/25 | H5: ='DNSP Inputs General'!U$2 -> 2025/26 | J5: =D5 -> 2021/22 | K5: =E5 -> 2022/23 | L5: 2023/24 | M5: 2024/25 | N5: 2025/26 | P5: =J5 -> 2021/22 | Q5: =K5 -> 2022/23 | R5: 2023/24 | S5: 2024/25 | T5: 2025/26 | V5: =P5 -> 2021/22 | W5: =Q5 -> 2022/23 | X5: 2023/24 | Y5: 2024/25 | Z5: 2025/26
A6: ='DNSP Inputs General'!A41 -> Mercury vapour 80 watt | C6: ='DNSP Inputs General'!E41 -> 56.62 | D6: ='Charges Summary'!D$31 -> 70.28273168 | E6: ='Charges Summary'!E$31 -> 69.9954478 | F6: ='Charges Summary'!F$31 -> 68.17648826 | G6: ='Charges Summary'!G$31 -> 71.04352621 | H6: ='Charges Summary'!H$31 -> 73.20292065 | J6: =SUM('Charges Summary'!D25,'Charges Summary'!D8) -> 44.82119634 | K6: =SUM('Charges Summary'!E25,'Charges Summary'!E8) -> 46.03652495 | L6: =SUM('Charges Summary'!F25,'Charges Summary'!F8) -> 47.32994938 | M6: =SUM('Charges Summary'!G25,'Charges Summary'!G8) -> 48.74433811 | N6: =SUM('Charges Summary'!H25,'Charges Summary'!H8) -> 50.33335659 | P6: =SUM('Charges Summary'!D27,'Charges Summary'!D11) -> 25.46153533 | Q6: =SUM('Charges Summary'!E27,'Charges Summary'!E11) -> 23.95892286 | R6: =SUM('Charges Summary'!F27,'Charges Summary'!F11) -> 20.84653888 | S6: =SUM('Charges Summary'!G27,'Charges Summary'!G11) -> 22.29918811 | T6: =SUM('Charges Summary'!H27,'Charges Summary'!H11) -> 22.86956406 | V6: =ABS(D6-J6-P6) -> 3.552713679e-15 | W6: =ABS(E6-K6-Q6) -> 3.552713679e-15 | X6: 7.105427358e-15 | Y6: 1.065814104e-14 | Z6: 3.552713679e-15
A7: ='DNSP Inputs General'!A42 -> Sodium high pressure 150 watt | C7: ='DNSP Inputs General'!E42 -> 103.28 | D7: ='Charges Summary'!D$55 -> 110.7596508 | E7: ='Charges Summary'!E$55 -> 111.5449696 | F7: ='Charges Summary'!F$55 -> 113.0416046 | G7: ='Charges Summary'!G$55 -> 117.451372 | H7: ='Charges Summary'!H$55 -> 121.0922351 | J7: =SUM('Charges Summary'!D49,'Charges Summary'!D8) -> 84.94512417 | K7: =SUM('Charges Summary'!E49,'Charges Summary'!E8) -> 87.26338824 | L7: =SUM('Charges Summary'!F49,'Charges Summary'!F8) -> 89.72882436 | M7: =SUM('Charges Summary'!G49,'Charges Summary'!G8) -> 92.43021488 | N7: =SUM('Charges Summary'!H49,'Charges Summary'!H8) -> 95.42172591 | P7: =SUM('Charges Summary'!D51,'Charges Summary'!D11) -> 25.81452667 | Q7: =SUM('Charges Summary'!E51,'Charges Summary'!E11) -> 24.28158137 | R7: =SUM('Charges Summary'!F51,'Charges Summary'!F11) -> 23.31278027 | S7: =SUM('Charges Summary'!G51,'Charges Summary'!G11) -> 25.02115716 | T7: =SUM('Charges Summary'!H51,'Charges Summary'!H11) -> 25.67050915 | V7: =ABS(D7-J7-P7) -> 7.105427358e-15 | W7: 0 | X7: 7.105427358e-15 | Y7: 3.552713679e-15 | Z7: 3.552713679e-15
A8: ='DNSP Inputs General'!A43 -> Sodium high pressure 250 watt | C8: ='DNSP Inputs General'!E43 -> 105.08 | D8: ='Charges Summary'!D$78 -> 112.4461558 | E8: ='Charges Summary'!E$78 -> 113.0843553 | F8: ='Charges Summary'!F$78 -> 113.2613547 | G8: ='Charges Summary'!G$78 -> 117.6947567 | H8: ='Charges Summary'!H$78 -> 121.3422765 | J8: =SUM('Charges Summary'!D72,'Charges Summary'!D8) -> 84.92966051 | K8: =SUM('Charges Summary'!E72,'Charges Summary'!E8) -> 87.2470568 | L8: =SUM('Charges Summary'!F72,'Charges Summary'!F8) -> 89.71156352 | M8: =SUM('Charges Summary'!G72,'Charges Summary'!G8) -> 92.4120127 | N8: =SUM('Charges Summary'!H72,'Charges Summary'!H8) -> 95.4025907 | P8: =SUM('Charges Summary'!D74,'Charges Summary'!D11) -> 27.5164953 | Q8: =SUM('Charges Summary'!E74,'Charges Summary'!E11) -> 25.83729851 | R8: =SUM('Charges Summary'!F74,'Charges Summary'!F11) -> 23.54979117 | S8: =SUM('Charges Summary'!G74,'Charges Summary'!G11) -> 25.28274402 | T8: =SUM('Charges Summary'!H74,'Charges Summary'!H11) -> 25.93968577 | V8: =ABS(D8-J8-P8) -> 0 | W8: 0 | X8: 3.552713679e-15 | Y8: 3.552713679e-15 | Z8: 3.552713679e-15
A9: ='DNSP Inputs General'!A44 -> Fluorescent 20 watt
A10: ='DNSP Inputs General'!A45 -> Fluorescent 40 watt
A11: ='DNSP Inputs General'!A46 -> Mercury vapour 50 watt | C11: ='DNSP Inputs General'!E46 -> 78.7 | D11: =IF('DNSP Inputs General'!$B46='DNSP Inputs General'!$A$41,D$6,IF('DNSP Inputs General'!$B46='DNSP Inputs General'!$A$42,D$7,D$8))*'DNSP Inputs General'!$D46 -> 97.69299703 | E11: =IF('DNSP Inputs General'!$B46='DNSP Inputs General'!$A$41,E$6,IF('DNSP Inputs General'!$B46='DNSP Inputs General'!$A$42,E$7,E$8))*'DNSP Inputs General'!$D46 -> 97.29367245 | F11: =IF('DNSP Inputs General'!$B46='DNSP Inputs General'!$A$41,F$6,IF('DNSP Inputs General'!$B46='DNSP Inputs General'!$A$42,F$7,F$8))*'DNSP Inputs General'!$D46 -> 94.76531868 | G11: =IF('DNSP Inputs General'!$B46='DNSP Inputs General'!$A$41,G$6,IF('DNSP Inputs General'!$B46='DNSP Inputs General'!$A$42,G$7,G$8))*'DNSP Inputs General'!$D46 -> 98.75050144 | H11: =IF('DNSP Inputs General'!$B46='DNSP Inputs General'!$A$41,H$6,IF('DNSP Inputs General'!$B46='DNSP Inputs General'!$A$42,H$7,H$8))*'DNSP Inputs General'!$D46 -> 101.7520597 | J11: =IF('DNSP Inputs General'!$B46='DNSP Inputs General'!$A$41,J$6,IF('DNSP Inputs General'!$B46='DNSP Inputs General'!$A$42,J$7,J$8))*'DNSP Inputs General'!$D46 -> 62.30146292 | K11: =IF('DNSP Inputs General'!$B46='DNSP Inputs General'!$A$41,K$6,IF('DNSP Inputs General'!$B46='DNSP Inputs General'!$A$42,K$7,K$8))*'DNSP Inputs General'!$D46 -> 63.99076968 | L11: =IF('DNSP Inputs General'!$B46='DNSP Inputs General'!$A$41,L$6,IF('DNSP Inputs General'!$B46='DNSP Inputs General'!$A$42,L$7,L$8))*'DNSP Inputs General'!$D46 -> 65.78862964 | M11: =IF('DNSP Inputs General'!$B46='DNSP Inputs General'!$A$41,M$6,IF('DNSP Inputs General'!$B46='DNSP Inputs General'!$A$42,M$7,M$8))*'DNSP Inputs General'!$D46 -> 67.75462997 | N11: =IF('DNSP Inputs General'!$B46='DNSP Inputs General'!$A$41,N$6,IF('DNSP Inputs General'!$B46='DNSP Inputs General'!$A$42,N$7,N$8))*'DNSP Inputs General'!$D46 -> 69.96336566 | P11: =IF('DNSP Inputs General'!$B46='DNSP Inputs General'!$A$41,P$6,IF('DNSP Inputs General'!$B46='DNSP Inputs General'!$A$42,P$7,P$8))*'DNSP Inputs General'!$D46 -> 35.39153411 | Q11: =IF('DNSP Inputs General'!$B46='DNSP Inputs General'!$A$41,Q$6,IF('DNSP Inputs General'!$B46='DNSP Inputs General'!$A$42,Q$7,Q$8))*'DNSP Inputs General'!$D46 -> 33.30290277 | R11: =IF('DNSP Inputs General'!$B46='DNSP Inputs General'!$A$41,R$6,IF('DNSP Inputs General'!$B46='DNSP Inputs General'!$A$42,R$7,R$8))*'DNSP Inputs General'!$D46 -> 28.97668904 | S11: =IF('DNSP Inputs General'!$B46='DNSP Inputs General'!$A$41,S$6,IF('DNSP Inputs General'!$B46='DNSP Inputs General'!$A$42,S$7,S$8))*'DNSP Inputs General'!$D46 -> 30.99587147 | T11: =IF('DNSP Inputs General'!$B46='DNSP Inputs General'!$A$41,T$6,IF('DNSP Inputs General'!$B46='DNSP Inputs General'!$A$42,T$7,T$8))*'DNSP Inputs General'!$D46 -> 31.78869404 | V11: 7.105427358e-15 | W11: 0 | X11: 1.776356839e-14 | Y11: 3.552713679e-15 | Z11: 3.552713679e-15
A12: ='DNSP Inputs General'!A47 -> Mercury vapour 125 watt | C12: ='DNSP Inputs General'!E47 -> 76.44 | D12: =IF('DNSP Inputs General'!$B47='DNSP Inputs General'!$A$41,D$6,IF('DNSP Inputs General'!$B47='DNSP Inputs General'!$A$42,D$7,D$8))*'DNSP Inputs General'!$D47 -> 94.88168776 | E12: =IF('DNSP Inputs General'!$B47='DNSP Inputs General'!$A$41,E$6,IF('DNSP Inputs General'!$B47='DNSP Inputs General'!$A$42,E$7,E$8))*'DNSP Inputs General'!$D47 -> 94.49385453 | F12: =IF('DNSP Inputs General'!$B47='DNSP Inputs General'!$A$41,F$6,IF('DNSP Inputs General'!$B47='DNSP Inputs General'!$A$42,F$7,F$8))*'DNSP Inputs General'!$D47 -> 92.03825915 | G12: =IF('DNSP Inputs General'!$B47='DNSP Inputs General'!$A$41,G$6,IF('DNSP Inputs General'!$B47='DNSP Inputs General'!$A$42,G$7,G$8))*'DNSP Inputs General'!$D47 -> 95.90876039 | H12: =IF('DNSP Inputs General'!$B47='DNSP Inputs General'!$A$41,H$6,IF('DNSP Inputs General'!$B47='DNSP Inputs General'!$A$42,H$7,H$8))*'DNSP Inputs General'!$D47 -> 98.82394287 | J12: =IF('DNSP Inputs General'!$B47='DNSP Inputs General'!$A$41,J$6,IF('DNSP Inputs General'!$B47='DNSP Inputs General'!$A$42,J$7,J$8))*'DNSP Inputs General'!$D47 -> 60.50861506 | K12: =IF('DNSP Inputs General'!$B47='DNSP Inputs General'!$A$41,K$6,IF('DNSP Inputs General'!$B47='DNSP Inputs General'!$A$42,K$7,K$8))*'DNSP Inputs General'!$D47 -> 62.14930868 | L12: =IF('DNSP Inputs General'!$B47='DNSP Inputs General'!$A$41,L$6,IF('DNSP Inputs General'!$B47='DNSP Inputs General'!$A$42,L$7,L$8))*'DNSP Inputs General'!$D47 -> 63.89543167 | M12: =IF('DNSP Inputs General'!$B47='DNSP Inputs General'!$A$41,M$6,IF('DNSP Inputs General'!$B47='DNSP Inputs General'!$A$42,M$7,M$8))*'DNSP Inputs General'!$D47 -> 65.80485644 | N12: =IF('DNSP Inputs General'!$B47='DNSP Inputs General'!$A$41,N$6,IF('DNSP Inputs General'!$B47='DNSP Inputs General'!$A$42,N$7,N$8))*'DNSP Inputs General'!$D47 -> 67.95003139 | P12: =IF('DNSP Inputs General'!$B47='DNSP Inputs General'!$A$41,P$6,IF('DNSP Inputs General'!$B47='DNSP Inputs General'!$A$42,P$7,P$8))*'DNSP Inputs General'!$D47 -> 34.3730727 | Q12: =IF('DNSP Inputs General'!$B47='DNSP Inputs General'!$A$41,Q$6,IF('DNSP Inputs General'!$B47='DNSP Inputs General'!$A$42,Q$7,Q$8))*'DNSP Inputs General'!$D47 -> 32.34454586 | R12: =IF('DNSP Inputs General'!$B47='DNSP Inputs General'!$A$41,R$6,IF('DNSP Inputs General'!$B47='DNSP Inputs General'!$A$42,R$7,R$8))*'DNSP Inputs General'!$D47 -> 28.14282748 | S12: =IF('DNSP Inputs General'!$B47='DNSP Inputs General'!$A$41,S$6,IF('DNSP Inputs General'!$B47='DNSP Inputs General'!$A$42,S$7,S$8))*'DNSP Inputs General'!$D47 -> 30.10390394 | T12: =IF('DNSP Inputs General'!$B47='DNSP Inputs General'!$A$41,T$6,IF('DNSP Inputs General'!$B47='DNSP Inputs General'!$A$42,T$7,T$8))*'DNSP Inputs General'!$D47 -> 30.87391148 | V12: 7.105427358e-15 | W12: 0 | X12: 3.552713679e-15 | Y12: 1.776356839e-14 | Z12: 3.552713679e-15
A13: ='DNSP Inputs General'!A48 -> Mercury vapour 250 watt | C13: ='DNSP Inputs General'!E48 -> 79.86 | D13: =IF('DNSP Inputs General'!$B48='DNSP Inputs General'!$A$41,D$6,IF('DNSP Inputs General'!$B48='DNSP Inputs General'!$A$42,D$7,D$8))*'DNSP Inputs General'!$D48 -> 85.45907842 | E13: =IF('DNSP Inputs General'!$B48='DNSP Inputs General'!$A$41,E$6,IF('DNSP Inputs General'!$B48='DNSP Inputs General'!$A$42,E$7,E$8))*'DNSP Inputs General'!$D48 -> 85.94411003 | F13: =IF('DNSP Inputs General'!$B48='DNSP Inputs General'!$A$41,F$6,IF('DNSP Inputs General'!$B48='DNSP Inputs General'!$A$42,F$7,F$8))*'DNSP Inputs General'!$D48 -> 86.07862957 | G13: =IF('DNSP Inputs General'!$B48='DNSP Inputs General'!$A$41,G$6,IF('DNSP Inputs General'!$B48='DNSP Inputs General'!$A$42,G$7,G$8))*'DNSP Inputs General'!$D48 -> 89.44801511 | H13: =IF('DNSP Inputs General'!$B48='DNSP Inputs General'!$A$41,H$6,IF('DNSP Inputs General'!$B48='DNSP Inputs General'!$A$42,H$7,H$8))*'DNSP Inputs General'!$D48 -> 92.22013012 | J13: =IF('DNSP Inputs General'!$B48='DNSP Inputs General'!$A$41,J$6,IF('DNSP Inputs General'!$B48='DNSP Inputs General'!$A$42,J$7,J$8))*'DNSP Inputs General'!$D48 -> 64.54654199 | K13: =IF('DNSP Inputs General'!$B48='DNSP Inputs General'!$A$41,K$6,IF('DNSP Inputs General'!$B48='DNSP Inputs General'!$A$42,K$7,K$8))*'DNSP Inputs General'!$D48 -> 66.30776317 | L13: =IF('DNSP Inputs General'!$B48='DNSP Inputs General'!$A$41,L$6,IF('DNSP Inputs General'!$B48='DNSP Inputs General'!$A$42,L$7,L$8))*'DNSP Inputs General'!$D48 -> 68.18078828 | M13: =IF('DNSP Inputs General'!$B48='DNSP Inputs General'!$A$41,M$6,IF('DNSP Inputs General'!$B48='DNSP Inputs General'!$A$42,M$7,M$8))*'DNSP Inputs General'!$D48 -> 70.23312965 | N13: =IF('DNSP Inputs General'!$B48='DNSP Inputs General'!$A$41,N$6,IF('DNSP Inputs General'!$B48='DNSP Inputs General'!$A$42,N$7,N$8))*'DNSP Inputs General'!$D48 -> 72.50596893 | P13: =IF('DNSP Inputs General'!$B48='DNSP Inputs General'!$A$41,P$6,IF('DNSP Inputs General'!$B48='DNSP Inputs General'!$A$42,P$7,P$8))*'DNSP Inputs General'!$D48 -> 20.91253643 | Q13: =IF('DNSP Inputs General'!$B48='DNSP Inputs General'!$A$41,Q$6,IF('DNSP Inputs General'!$B48='DNSP Inputs General'!$A$42,Q$7,Q$8))*'DNSP Inputs General'!$D48 -> 19.63634686 | R13: =IF('DNSP Inputs General'!$B48='DNSP Inputs General'!$A$41,R$6,IF('DNSP Inputs General'!$B48='DNSP Inputs General'!$A$42,R$7,R$8))*'DNSP Inputs General'!$D48 -> 17.89784129 | S13: =IF('DNSP Inputs General'!$B48='DNSP Inputs General'!$A$41,S$6,IF('DNSP Inputs General'!$B48='DNSP Inputs General'!$A$42,S$7,S$8))*'DNSP Inputs General'!$D48 -> 19.21488546 | T13: =IF('DNSP Inputs General'!$B48='DNSP Inputs General'!$A$41,T$6,IF('DNSP Inputs General'!$B48='DNSP Inputs General'!$A$42,T$7,T$8))*'DNSP Inputs General'!$D48 -> 19.71416118 | V13: 0 | W13: 3.552713679e-15 | X13: 3.552713679e-15 | Y13: 7.105427358e-15 | Z13: 3.552713679e-15
A14: ='DNSP Inputs General'!A49 -> Mercury vapour 400 watt | C14: ='DNSP Inputs General'!E49 -> 92.47 | D14: =IF('DNSP Inputs General'!$B49='DNSP Inputs General'!$A$41,D$6,IF('DNSP Inputs General'!$B49='DNSP Inputs General'!$A$42,D$7,D$8))*'DNSP Inputs General'!$D49 -> 98.95261712 | E14: =IF('DNSP Inputs General'!$B49='DNSP Inputs General'!$A$41,E$6,IF('DNSP Inputs General'!$B49='DNSP Inputs General'!$A$42,E$7,E$8))*'DNSP Inputs General'!$D49 -> 99.51423267 | F14: =IF('DNSP Inputs General'!$B49='DNSP Inputs General'!$A$41,F$6,IF('DNSP Inputs General'!$B49='DNSP Inputs General'!$A$42,F$7,F$8))*'DNSP Inputs General'!$D49 -> 99.66999213 | G14: =IF('DNSP Inputs General'!$B49='DNSP Inputs General'!$A$41,G$6,IF('DNSP Inputs General'!$B49='DNSP Inputs General'!$A$42,G$7,G$8))*'DNSP Inputs General'!$D49 -> 103.5713859 | H14: =IF('DNSP Inputs General'!$B49='DNSP Inputs General'!$A$41,H$6,IF('DNSP Inputs General'!$B49='DNSP Inputs General'!$A$42,H$7,H$8))*'DNSP Inputs General'!$D49 -> 106.7812033 | J14: =IF('DNSP Inputs General'!$B49='DNSP Inputs General'!$A$41,J$6,IF('DNSP Inputs General'!$B49='DNSP Inputs General'!$A$42,J$7,J$8))*'DNSP Inputs General'!$D49 -> 74.73810125 | K14: =IF('DNSP Inputs General'!$B49='DNSP Inputs General'!$A$41,K$6,IF('DNSP Inputs General'!$B49='DNSP Inputs General'!$A$42,K$7,K$8))*'DNSP Inputs General'!$D49 -> 76.77740998 | L14: =IF('DNSP Inputs General'!$B49='DNSP Inputs General'!$A$41,L$6,IF('DNSP Inputs General'!$B49='DNSP Inputs General'!$A$42,L$7,L$8))*'DNSP Inputs General'!$D49 -> 78.9461759 | M14: =IF('DNSP Inputs General'!$B49='DNSP Inputs General'!$A$41,M$6,IF('DNSP Inputs General'!$B49='DNSP Inputs General'!$A$42,M$7,M$8))*'DNSP Inputs General'!$D49 -> 81.32257117 | N14: =IF('DNSP Inputs General'!$B49='DNSP Inputs General'!$A$41,N$6,IF('DNSP Inputs General'!$B49='DNSP Inputs General'!$A$42,N$7,N$8))*'DNSP Inputs General'!$D49 -> 83.95427982 | P14: =IF('DNSP Inputs General'!$B49='DNSP Inputs General'!$A$41,P$6,IF('DNSP Inputs General'!$B49='DNSP Inputs General'!$A$42,P$7,P$8))*'DNSP Inputs General'!$D49 -> 24.21451587 | Q14: =IF('DNSP Inputs General'!$B49='DNSP Inputs General'!$A$41,Q$6,IF('DNSP Inputs General'!$B49='DNSP Inputs General'!$A$42,Q$7,Q$8))*'DNSP Inputs General'!$D49 -> 22.73682268 | R14: =IF('DNSP Inputs General'!$B49='DNSP Inputs General'!$A$41,R$6,IF('DNSP Inputs General'!$B49='DNSP Inputs General'!$A$42,R$7,R$8))*'DNSP Inputs General'!$D49 -> 20.72381623 | S14: =IF('DNSP Inputs General'!$B49='DNSP Inputs General'!$A$41,S$6,IF('DNSP Inputs General'!$B49='DNSP Inputs General'!$A$42,S$7,S$8))*'DNSP Inputs General'!$D49 -> 22.24881474 | T14: =IF('DNSP Inputs General'!$B49='DNSP Inputs General'!$A$41,T$6,IF('DNSP Inputs General'!$B49='DNSP Inputs General'!$A$42,T$7,T$8))*'DNSP Inputs General'!$D49 -> 22.82692347 | V14: 7.105427358e-15 | W14: 0 | X14: 0 | Y14: 7.105427358e-15 | Z14: 3.552713679e-15
A15: ='DNSP Inputs General'!A50 -> Mercury vapour 700 watt
A16: ='DNSP Inputs General'!A51 -> Sodium low pressure 90 watt
A17: ='DNSP Inputs General'!A52 -> Sodium low pressure 180 watt
A18: ='DNSP Inputs General'!A53 -> Sodium high pressure 400 watt | C18: ='DNSP Inputs General'!E53 -> 139.75 | D18: =IF('DNSP Inputs General'!$B53='DNSP Inputs General'!$A$41,D$6,IF('DNSP Inputs General'!$B53='DNSP Inputs General'!$A$42,D$7,D$8))*'DNSP Inputs General'!$D53 -> 149.5533872 | E18: =IF('DNSP Inputs General'!$B53='DNSP Inputs General'!$A$41,E$6,IF('DNSP Inputs General'!$B53='DNSP Inputs General'!$A$42,E$7,E$8))*'DNSP Inputs General'!$D53 -> 150.4021926 | F18: =IF('DNSP Inputs General'!$B53='DNSP Inputs General'!$A$41,F$6,IF('DNSP Inputs General'!$B53='DNSP Inputs General'!$A$42,F$7,F$8))*'DNSP Inputs General'!$D53 -> 150.6376017 | G18: =IF('DNSP Inputs General'!$B53='DNSP Inputs General'!$A$41,G$6,IF('DNSP Inputs General'!$B53='DNSP Inputs General'!$A$42,G$7,G$8))*'DNSP Inputs General'!$D53 -> 156.5340264 | H18: =IF('DNSP Inputs General'!$B53='DNSP Inputs General'!$A$41,H$6,IF('DNSP Inputs General'!$B53='DNSP Inputs General'!$A$42,H$7,H$8))*'DNSP Inputs General'!$D53 -> 161.3852277 | J18: =IF('DNSP Inputs General'!$B53='DNSP Inputs General'!$A$41,J$6,IF('DNSP Inputs General'!$B53='DNSP Inputs General'!$A$42,J$7,J$8))*'DNSP Inputs General'!$D53 -> 112.9564485 | K18: =IF('DNSP Inputs General'!$B53='DNSP Inputs General'!$A$41,K$6,IF('DNSP Inputs General'!$B53='DNSP Inputs General'!$A$42,K$7,K$8))*'DNSP Inputs General'!$D53 -> 116.0385855 | L18: =IF('DNSP Inputs General'!$B53='DNSP Inputs General'!$A$41,L$6,IF('DNSP Inputs General'!$B53='DNSP Inputs General'!$A$42,L$7,L$8))*'DNSP Inputs General'!$D53 -> 119.3163795 | M18: =IF('DNSP Inputs General'!$B53='DNSP Inputs General'!$A$41,M$6,IF('DNSP Inputs General'!$B53='DNSP Inputs General'!$A$42,M$7,M$8))*'DNSP Inputs General'!$D53 -> 122.9079769 | N18: =IF('DNSP Inputs General'!$B53='DNSP Inputs General'!$A$41,N$6,IF('DNSP Inputs General'!$B53='DNSP Inputs General'!$A$42,N$7,N$8))*'DNSP Inputs General'!$D53 -> 126.8854456 | P18: =IF('DNSP Inputs General'!$B53='DNSP Inputs General'!$A$41,P$6,IF('DNSP Inputs General'!$B53='DNSP Inputs General'!$A$42,P$7,P$8))*'DNSP Inputs General'!$D53 -> 36.59693875 | Q18: =IF('DNSP Inputs General'!$B53='DNSP Inputs General'!$A$41,Q$6,IF('DNSP Inputs General'!$B53='DNSP Inputs General'!$A$42,Q$7,Q$8))*'DNSP Inputs General'!$D53 -> 34.36360701 | R18: =IF('DNSP Inputs General'!$B53='DNSP Inputs General'!$A$41,R$6,IF('DNSP Inputs General'!$B53='DNSP Inputs General'!$A$42,R$7,R$8))*'DNSP Inputs General'!$D53 -> 31.32122226 | S18: =IF('DNSP Inputs General'!$B53='DNSP Inputs General'!$A$41,S$6,IF('DNSP Inputs General'!$B53='DNSP Inputs General'!$A$42,S$7,S$8))*'DNSP Inputs General'!$D53 -> 33.62604955 | T18: =IF('DNSP Inputs General'!$B53='DNSP Inputs General'!$A$41,T$6,IF('DNSP Inputs General'!$B53='DNSP Inputs General'!$A$42,T$7,T$8))*'DNSP Inputs General'!$D53 -> 34.49978207 | V18: 2.131628207e-14 | W18: 7.105427358e-15 | X18: 1.776356839e-14 | Y18: 7.105427358e-15 | Z18: 7.105427358e-15
A19: ='DNSP Inputs General'!A54 -> Incandescent 100 watt
A20: ='DNSP Inputs General'!A55 -> Incandescent 150 watt
A21: ='DNSP Inputs General'!A56 -> Metal halide 250 watt | C21: ='DNSP Inputs General'!E56 -> 139.75 | D21: =IF('DNSP Inputs General'!$B56='DNSP Inputs General'!$A$41,D$6,IF('DNSP Inputs General'!$B56='DNSP Inputs General'!$A$42,D$7,D$8))*'DNSP Inputs General'!$D56 -> 149.5533872 | E21: =IF('DNSP Inputs General'!$B56='DNSP Inputs General'!$A$41,E$6,IF('DNSP Inputs General'!$B56='DNSP Inputs General'!$A$42,E$7,E$8))*'DNSP Inputs General'!$D56 -> 150.4021926 | F21: =IF('DNSP Inputs General'!$B56='DNSP Inputs General'!$A$41,F$6,IF('DNSP Inputs General'!$B56='DNSP Inputs General'!$A$42,F$7,F$8))*'DNSP Inputs General'!$D56 -> 150.6376017 | G21: =IF('DNSP Inputs General'!$B56='DNSP Inputs General'!$A$41,G$6,IF('DNSP Inputs General'!$B56='DNSP Inputs General'!$A$42,G$7,G$8))*'DNSP Inputs General'!$D56 -> 156.5340264 | H21: =IF('DNSP Inputs General'!$B56='DNSP Inputs General'!$A$41,H$6,IF('DNSP Inputs General'!$B56='DNSP Inputs General'!$A$42,H$7,H$8))*'DNSP Inputs General'!$D56 -> 161.3852277 | J21: =IF('DNSP Inputs General'!$B56='DNSP Inputs General'!$A$41,J$6,IF('DNSP Inputs General'!$B56='DNSP Inputs General'!$A$42,J$7,J$8))*'DNSP Inputs General'!$D56 -> 112.9564485 | K21: =IF('DNSP Inputs General'!$B56='DNSP Inputs General'!$A$41,K$6,IF('DNSP Inputs General'!$B56='DNSP Inputs General'!$A$42,K$7,K$8))*'DNSP Inputs General'!$D56 -> 116.0385855 | L21: =IF('DNSP Inputs General'!$B56='DNSP Inputs General'!$A$41,L$6,IF('DNSP Inputs General'!$B56='DNSP Inputs General'!$A$42,L$7,L$8))*'DNSP Inputs General'!$D56 -> 119.3163795 | M21: =IF('DNSP Inputs General'!$B56='DNSP Inputs General'!$A$41,M$6,IF('DNSP Inputs General'!$B56='DNSP Inputs General'!$A$42,M$7,M$8))*'DNSP Inputs General'!$D56 -> 122.9079769 | N21: =IF('DNSP Inputs General'!$B56='DNSP Inputs General'!$A$41,N$6,IF('DNSP Inputs General'!$B56='DNSP Inputs General'!$A$42,N$7,N$8))*'DNSP Inputs General'!$D56 -> 126.8854456 | P21: =IF('DNSP Inputs General'!$B56='DNSP Inputs General'!$A$41,P$6,IF('DNSP Inputs General'!$B56='DNSP Inputs General'!$A$42,P$7,P$8))*'DNSP Inputs General'!$D56 -> 36.59693875 | Q21: =IF('DNSP Inputs General'!$B56='DNSP Inputs General'!$A$41,Q$6,IF('DNSP Inputs General'!$B56='DNSP Inputs General'!$A$42,Q$7,Q$8))*'DNSP Inputs General'!$D56 -> 34.36360701 | R21: =IF('DNSP Inputs General'!$B56='DNSP Inputs General'!$A$41,R$6,IF('DNSP Inputs General'!$B56='DNSP Inputs General'!$A$42,R$7,R$8))*'DNSP Inputs General'!$D56 -> 31.32122226 | S21: =IF('DNSP Inputs General'!$B56='DNSP Inputs General'!$A$41,S$6,IF('DNSP Inputs General'!$B56='DNSP Inputs General'!$A$42,S$7,S$8))*'DNSP Inputs General'!$D56 -> 33.62604955 | T21: =IF('DNSP Inputs General'!$B56='DNSP Inputs General'!$A$41,T$6,IF('DNSP Inputs General'!$B56='DNSP Inputs General'!$A$42,T$7,T$8))*'DNSP Inputs General'!$D56 -> 34.49978207 | V21: 2.131628207e-14 | W21: 7.105427358e-15 | X21: 1.776356839e-14 | Y21: 7.105427358e-15 | Z21: 7.105427358e-15
A22: ='DNSP Inputs General'!A57 -> Metal halide 400 watt | C22: ='DNSP Inputs General'!E57 -> 139.75 | D22: =IF('DNSP Inputs General'!$B57='DNSP Inputs General'!$A$41,D$6,IF('DNSP Inputs General'!$B57='DNSP Inputs General'!$A$42,D$7,D$8))*'DNSP Inputs General'!$D57 -> 149.5533872 | E22: =IF('DNSP Inputs General'!$B57='DNSP Inputs General'!$A$41,E$6,IF('DNSP Inputs General'!$B57='DNSP Inputs General'!$A$42,E$7,E$8))*'DNSP Inputs General'!$D57 -> 150.4021926 | F22: =IF('DNSP Inputs General'!$B57='DNSP Inputs General'!$A$41,F$6,IF('DNSP Inputs General'!$B57='DNSP Inputs General'!$A$42,F$7,F$8))*'DNSP Inputs General'!$D57 -> 150.6376017 | G22: =IF('DNSP Inputs General'!$B57='DNSP Inputs General'!$A$41,G$6,IF('DNSP Inputs General'!$B57='DNSP Inputs General'!$A$42,G$7,G$8))*'DNSP Inputs General'!$D57 -> 156.5340264 | H22: =IF('DNSP Inputs General'!$B57='DNSP Inputs General'!$A$41,H$6,IF('DNSP Inputs General'!$B57='DNSP Inputs General'!$A$42,H$7,H$8))*'DNSP Inputs General'!$D57 -> 161.3852277 | J22: =IF('DNSP Inputs General'!$B57='DNSP Inputs General'!$A$41,J$6,IF('DNSP Inputs General'!$B57='DNSP Inputs General'!$A$42,J$7,J$8))*'DNSP Inputs General'!$D57 -> 112.9564485 | K22: =IF('DNSP Inputs General'!$B57='DNSP Inputs General'!$A$41,K$6,IF('DNSP Inputs General'!$B57='DNSP Inputs General'!$A$42,K$7,K$8))*'DNSP Inputs General'!$D57 -> 116.0385855 | L22: =IF('DNSP Inputs General'!$B57='DNSP Inputs General'!$A$41,L$6,IF('DNSP Inputs General'!$B57='DNSP Inputs General'!$A$42,L$7,L$8))*'DNSP Inputs General'!$D57 -> 119.3163795 | M22: =IF('DNSP Inputs General'!$B57='DNSP Inputs General'!$A$41,M$6,IF('DNSP Inputs General'!$B57='DNSP Inputs General'!$A$42,M$7,M$8))*'DNSP Inputs General'!$D57 -> 122.9079769 | N22: =IF('DNSP Inputs General'!$B57='DNSP Inputs General'!$A$41,N$6,IF('DNSP Inputs General'!$B57='DNSP Inputs General'!$A$42,N$7,N$8))*'DNSP Inputs General'!$D57 -> 126.8854456 | P22: =IF('DNSP Inputs General'!$B57='DNSP Inputs General'!$A$41,P$6,IF('DNSP Inputs General'!$B57='DNSP Inputs General'!$A$42,P$7,P$8))*'DNSP Inputs General'!$D57 -> 36.59693875 | Q22: =IF('DNSP Inputs General'!$B57='DNSP Inputs General'!$A$41,Q$6,IF('DNSP Inputs General'!$B57='DNSP Inputs General'!$A$42,Q$7,Q$8))*'DNSP Inputs General'!$D57 -> 34.36360701 | R22: =IF('DNSP Inputs General'!$B57='DNSP Inputs General'!$A$41,R$6,IF('DNSP Inputs General'!$B57='DNSP Inputs General'!$A$42,R$7,R$8))*'DNSP Inputs General'!$D57 -> 31.32122226 | S22: =IF('DNSP Inputs General'!$B57='DNSP Inputs General'!$A$41,S$6,IF('DNSP Inputs General'!$B57='DNSP Inputs General'!$A$42,S$7,S$8))*'DNSP Inputs General'!$D57 -> 33.62604955 | T22: =IF('DNSP Inputs General'!$B57='DNSP Inputs General'!$A$41,T$6,IF('DNSP Inputs General'!$B57='DNSP Inputs General'!$A$42,T$7,T$8))*'DNSP Inputs General'!$D57 -> 34.49978207 | V22: 2.131628207e-14 | W22: 7.105427358e-15 | X22: 1.776356839e-14 | Y22: 7.105427358e-15 | Z22: 7.105427358e-15
A23: ='DNSP Inputs General'!A58 -> Metal halide 70 watt | C23: ='DNSP Inputs General'!E58 -> 120.03 | D23: =IF('DNSP Inputs General'!$B58='DNSP Inputs General'!$A$41,D$6,IF('DNSP Inputs General'!$B58='DNSP Inputs General'!$A$42,D$7,D$8))*'DNSP Inputs General'!$D58 -> 148.9993912 | E23: =IF('DNSP Inputs General'!$B58='DNSP Inputs General'!$A$41,E$6,IF('DNSP Inputs General'!$B58='DNSP Inputs General'!$A$42,E$7,E$8))*'DNSP Inputs General'!$D58 -> 148.3903493 | F23: =IF('DNSP Inputs General'!$B58='DNSP Inputs General'!$A$41,F$6,IF('DNSP Inputs General'!$B58='DNSP Inputs General'!$A$42,F$7,F$8))*'DNSP Inputs General'!$D58 -> 144.5341551 | G23: =IF('DNSP Inputs General'!$B58='DNSP Inputs General'!$A$41,G$6,IF('DNSP Inputs General'!$B58='DNSP Inputs General'!$A$42,G$7,G$8))*'DNSP Inputs General'!$D58 -> 150.6122756 | H23: =IF('DNSP Inputs General'!$B58='DNSP Inputs General'!$A$41,H$6,IF('DNSP Inputs General'!$B58='DNSP Inputs General'!$A$42,H$7,H$8))*'DNSP Inputs General'!$D58 -> 155.1901918 | J23: =IF('DNSP Inputs General'!$B58='DNSP Inputs General'!$A$41,J$6,IF('DNSP Inputs General'!$B58='DNSP Inputs General'!$A$42,J$7,J$8))*'DNSP Inputs General'!$D58 -> 95.02093625 | K23: =IF('DNSP Inputs General'!$B58='DNSP Inputs General'!$A$41,K$6,IF('DNSP Inputs General'!$B58='DNSP Inputs General'!$A$42,K$7,K$8))*'DNSP Inputs General'!$D58 -> 97.59743289 | L23: =IF('DNSP Inputs General'!$B58='DNSP Inputs General'!$A$41,L$6,IF('DNSP Inputs General'!$B58='DNSP Inputs General'!$A$42,L$7,L$8))*'DNSP Inputs General'!$D58 -> 100.3394927 | M23: =IF('DNSP Inputs General'!$B58='DNSP Inputs General'!$A$41,M$6,IF('DNSP Inputs General'!$B58='DNSP Inputs General'!$A$42,M$7,M$8))*'DNSP Inputs General'!$D58 -> 103.3379968 | N23: =IF('DNSP Inputs General'!$B58='DNSP Inputs General'!$A$41,N$6,IF('DNSP Inputs General'!$B58='DNSP Inputs General'!$A$42,N$7,N$8))*'DNSP Inputs General'!$D58 -> 106.706716 | P23: =IF('DNSP Inputs General'!$B58='DNSP Inputs General'!$A$41,P$6,IF('DNSP Inputs General'!$B58='DNSP Inputs General'!$A$42,P$7,P$8))*'DNSP Inputs General'!$D58 -> 53.97845491 | Q23: =IF('DNSP Inputs General'!$B58='DNSP Inputs General'!$A$41,Q$6,IF('DNSP Inputs General'!$B58='DNSP Inputs General'!$A$42,Q$7,Q$8))*'DNSP Inputs General'!$D58 -> 50.79291645 | R23: =IF('DNSP Inputs General'!$B58='DNSP Inputs General'!$A$41,R$6,IF('DNSP Inputs General'!$B58='DNSP Inputs General'!$A$42,R$7,R$8))*'DNSP Inputs General'!$D58 -> 44.19466242 | S23: =IF('DNSP Inputs General'!$B58='DNSP Inputs General'!$A$41,S$6,IF('DNSP Inputs General'!$B58='DNSP Inputs General'!$A$42,S$7,S$8))*'DNSP Inputs General'!$D58 -> 47.27427879 | T23: =IF('DNSP Inputs General'!$B58='DNSP Inputs General'!$A$41,T$6,IF('DNSP Inputs General'!$B58='DNSP Inputs General'!$A$42,T$7,T$8))*'DNSP Inputs General'!$D58 -> 48.48347581 | V23: 2.131628207e-14 | W23: 0 | X23: 2.131628207e-14 | Y23: 2.131628207e-14 | Z23: 7.105427358e-15
A30: ='DNSP Inputs General'!A$67 -> Energy Efficient Lights
A31: T5 2X14W | C31: ='DNSP Inputs General'!E68 -> 40.18 | D31: ='Charges Summary'!D$103 -> 56.60024949 | E31: ='Charges Summary'!E$103 -> 57.27061539 | F31: ='Charges Summary'!F$103 -> 58.23082003 | G31: ='Charges Summary'!G$103 -> 59.44064815 | H31: ='Charges Summary'!H$103 -> 61.14525185 | J31: =SUM('Charges Summary'!D97,'Charges Summary'!D8) -> 42.48260997 | K31: =SUM('Charges Summary'!E97,'Charges Summary'!E8) -> 43.64482242 | L31: =SUM('Charges Summary'!F97,'Charges Summary'!F8) -> 44.8824457 | M31: =SUM('Charges Summary'!G97,'Charges Summary'!G8) -> 46.23487877 | N31: =SUM('Charges Summary'!H97,'Charges Summary'!H8) -> 47.75533271 | P31: =SUM('Charges Summary'!D99,'Charges Summary'!D11) -> 14.11763953 | Q31: =SUM('Charges Summary'!E99,'Charges Summary'!E11) -> 13.62579297 | R31: =SUM('Charges Summary'!F99,'Charges Summary'!F11) -> 13.34837433 | S31: =SUM('Charges Summary'!G99,'Charges Summary'!G11) -> 13.20576938 | T31: =SUM('Charges Summary'!H99,'Charges Summary'!H11) -> 13.38991915 | V31: =ABS(D31-J31-P31) -> 3.552713679e-15 | W31: 3.552713679e-15 | X31: 1.776356839e-15 | Y31: 3.552713679e-15 | Z31: 7.105427358e-15
A32: T5 2X24W | C32: ='DNSP Inputs General'!E69 -> 39.53 | D32: ='DNSP Inputs General'!$D69*D31 -> 55.68252237 | E32: ='DNSP Inputs General'!$D69*E31 -> 56.34201883 | F32: ='DNSP Inputs General'!$D69*F31 -> 57.28665453 | G32: ='DNSP Inputs General'!$D69*G31 -> 58.47686626 | H32: ='DNSP Inputs General'!$D69*H31 -> 60.1538312 | J32: ='DNSP Inputs General'!$D69*J31 -> 41.79378891 | K32: ='DNSP Inputs General'!$D69*K31 -> 42.93715704 | L32: ='DNSP Inputs General'!$D69*L31 -> 44.15471326 | M32: ='DNSP Inputs General'!$D69*M31 -> 45.48521772 | N32: ='DNSP Inputs General'!$D69*N31 -> 46.98101873 | P32: ='DNSP Inputs General'!$D69*P31 -> 13.88873346 | Q32: ='DNSP Inputs General'!$D69*Q31 -> 13.40486179 | R32: ='DNSP Inputs General'!$D69*R31 -> 13.13194127 | S32: ='DNSP Inputs General'!$D69*S31 -> 12.99164854 | T32: ='DNSP Inputs General'!$D69*T31 -> 13.17281247 | V32: 5.329070518e-15 | W32: 1.776356839e-15 | X32: 5.329070518e-15 | Y32: 3.552713679e-15 | Z32: 3.552713679e-15
A33: CF32 | C33: ='DNSP Inputs General'!E70 -> 38.62 | D33: ='DNSP Inputs General'!$D70*D31 -> 54.40900736 | E33: ='DNSP Inputs General'!$D70*E31 -> 55.05342047 | F33: ='DNSP Inputs General'!$D70*F31 -> 55.97645141 | G33: ='DNSP Inputs General'!$D70*G31 -> 57.13944181 | H33: ='DNSP Inputs General'!$D70*H31 -> 58.77805288 | J33: ='DNSP Inputs General'!$D70*J31 -> 40.83792313 | K33: ='DNSP Inputs General'!$D70*K31 -> 41.95514128 | L33: ='DNSP Inputs General'!$D70*L31 -> 43.14485078 | M33: ='DNSP Inputs General'!$D70*M31 -> 44.44492528 | N33: ='DNSP Inputs General'!$D70*N31 -> 45.90651581 | P33: ='DNSP Inputs General'!$D70*P31 -> 13.57108422 | Q33: ='DNSP Inputs General'!$D70*Q31 -> 13.09827919 | R33: ='DNSP Inputs General'!$D70*R31 -> 12.83160063 | S33: ='DNSP Inputs General'!$D70*S31 -> 12.69451654 | T33: ='DNSP Inputs General'!$D70*T31 -> 12.87153707 | V33: 5.329070518e-15 | W33: 3.552713679e-15 | X33: 0 | Y33: 1.776356839e-15 | Z33: 1.065814104e-14
A34: CF42 | C34: ='DNSP Inputs General'!E71 -> 38.62 | D34: ='DNSP Inputs General'!$D71*D31 -> 54.40900736 | E34: ='DNSP Inputs General'!$D71*E31 -> 55.05342047 | F34: ='DNSP Inputs General'!$D71*F31 -> 55.97645141 | G34: ='DNSP Inputs General'!$D71*G31 -> 57.13944181 | H34: ='DNSP Inputs General'!$D71*H31 -> 58.77805288 | J34: ='DNSP Inputs General'!$D71*J31 -> 40.83792313 | K34: ='DNSP Inputs General'!$D71*K31 -> 41.95514128 | L34: ='DNSP Inputs General'!$D71*L31 -> 43.14485078 | M34: ='DNSP Inputs General'!$D71*M31 -> 44.44492528 | N34: ='DNSP Inputs General'!$D71*N31 -> 45.90651581 | P34: ='DNSP Inputs General'!$D71*P31 -> 13.57108422 | Q34: ='DNSP Inputs General'!$D71*Q31 -> 13.09827919 | R34: ='DNSP Inputs General'!$D71*R31 -> 12.83160063 | S34: ='DNSP Inputs General'!$D71*S31 -> 12.69451654 | T34: ='DNSP Inputs General'!$D71*T31 -> 12.87153707 | V34: 5.329070518e-15 | W34: 3.552713679e-15 | X34: 0 | Y34: 1.776356839e-15 | Z34: 1.065814104e-14
A35: Category P LED 18 Watt | C35: ='DNSP Inputs General'!E72 -> 25.63 | D35: ='Charges Summary'!D$120 -> 27.63883888 | E35: ='Charges Summary'!E$120 -> 27.52453105 | F35: ='Charges Summary'!F$120 -> 27.65392519 | G35: ='Charges Summary'!G$120 -> 27.95749101 | H35: ='Charges Summary'!H$120 -> 28.68005358 | J35: =SUM('Charges Summary'!D114,'Charges Summary'!D8) -> 13.52119935 | K35: =SUM('Charges Summary'!E114,'Charges Summary'!E8) -> 13.89873808 | L35: =SUM('Charges Summary'!F114,'Charges Summary'!F8) -> 14.30555086 | M35: =SUM('Charges Summary'!G114,'Charges Summary'!G8) -> 14.75172163 | N35: =SUM('Charges Summary'!H114,'Charges Summary'!H8) -> 15.29013443 | P35: =SUM('Charges Summary'!D116,'Charges Summary'!D11) -> 14.11763953 | Q35: =SUM('Charges Summary'!E116,'Charges Summary'!E11) -> 13.62579297 | R35: =SUM('Charges Summary'!F116,'Charges Summary'!F11) -> 13.34837433 | S35: =SUM('Charges Summary'!G116,'Charges Summary'!G11) -> 13.20576938 | T35: =SUM('Charges Summary'!H116,'Charges Summary'!H11) -> 13.38991915 | V35: 3.552713679e-15 | W35: 0 | X35: 1.776356839e-15 | Y35: 1.776356839e-15 | Z35: 0
A36: Category P LED 47 Watt | C36: ='DNSP Inputs General'!E73 -> 25.63 | D36: ='DNSP Inputs General'!$D73*D35 -> 27.63883888 | E36: ='DNSP Inputs General'!$D73*E35 -> 27.52453105 | F36: ='DNSP Inputs General'!$D73*F35 -> 27.65392519 | G36: ='DNSP Inputs General'!$D73*G35 -> 27.95749101 | H36: ='DNSP Inputs General'!$D73*H35 -> 28.68005358 | J36: ='DNSP Inputs General'!$D73*J35 -> 13.52119935 | K36: ='DNSP Inputs General'!$D73*K35 -> 13.89873808 | L36: ='DNSP Inputs General'!$D73*L35 -> 14.30555086 | M36: ='DNSP Inputs General'!$D73*M35 -> 14.75172163 | N36: ='DNSP Inputs General'!$D73*N35 -> 15.29013443 | P36: ='DNSP Inputs General'!$D73*P35 -> 14.11763953 | Q36: ='DNSP Inputs General'!$D73*Q35 -> 13.62579297 | R36: ='DNSP Inputs General'!$D73*R35 -> 13.34837433 | S36: ='DNSP Inputs General'!$D73*S35 -> 13.20576938 | T36: ='DNSP Inputs General'!$D73*T35 -> 13.38991915 | V36: =ABS(D36-J36-P36) -> 3.552713679e-15 | W36: =ABS(E36-K36-Q36) -> 0 | X36: =ABS(F36-L36-R36) -> 1.776356839e-15 | Y36: =ABS(G36-M36-S36) -> 1.776356839e-15 | Z36: =ABS(H36-N36-T36) -> 0
A37: Category V LED L1 Standard Output | C37: ='DNSP Inputs General'!E74 -> 54.53 | D37: ='Charges Summary'!D$138 -> 55.58593779 | E37: ='Charges Summary'!E$138 -> 55.51540944 | F37: ='Charges Summary'!F$138 -> 55.92445667 | G37: ='Charges Summary'!G$138 -> 56.70239925 | H37: ='Charges Summary'!H$138 -> 58.20150408 | J37: =SUM('Charges Summary'!D132,'Charges Summary'!D8) -> 34.92535609 | K37: =SUM('Charges Summary'!E132,'Charges Summary'!E8) -> 35.87434231 | L37: =SUM('Charges Summary'!F132,'Charges Summary'!F8) -> 36.88834606 | M37: =SUM('Charges Summary'!G132,'Charges Summary'!G8) -> 38.00497261 | N37: =SUM('Charges Summary'!H132,'Charges Summary'!H8) -> 39.27820198 | P37: =SUM('Charges Summary'!D134,'Charges Summary'!D11) -> 20.6605817 | Q37: =SUM('Charges Summary'!E134,'Charges Summary'!E11) -> 19.64106713 | R37: =SUM('Charges Summary'!F134,'Charges Summary'!F11) -> 19.03611061 | S37: =SUM('Charges Summary'!G134,'Charges Summary'!G11) -> 18.69742664 | T37: =SUM('Charges Summary'!H134,'Charges Summary'!H11) -> 18.9233021 | V37: 0 | W37: 7.105427358e-15 | X37: 0 | Y37: 0 | Z37: 3.552713679e-15
A38: Category V LED L2 Medium Output | C38: ='DNSP Inputs General'!E75 -> 60.42 | D38: ='DNSP Inputs General'!$D75*D37 -> 61.58999379 | E38: ='DNSP Inputs General'!$D75*E37 -> 61.51184739 | F38: ='DNSP Inputs General'!$D75*F37 -> 61.96507742 | G38: ='DNSP Inputs General'!$D75*G37 -> 62.82704865 | H38: ='DNSP Inputs General'!$D75*H37 -> 64.48807769 | J38: ='DNSP Inputs General'!$D75*J37 -> 38.69778131 | K38: ='DNSP Inputs General'!$D75*K37 -> 39.74927127 | L38: ='DNSP Inputs General'!$D75*L37 -> 40.87280155 | M38: ='DNSP Inputs General'!$D75*M37 -> 42.11003934 | N38: ='DNSP Inputs General'!$D75*N37 -> 43.52079523 | P38: ='DNSP Inputs General'!$D75*P37 -> 22.89221248 | Q38: ='DNSP Inputs General'!$D75*Q37 -> 21.76257612 | R38: ='DNSP Inputs General'!$D75*R37 -> 21.09227587 | S38: ='DNSP Inputs General'!$D75*S37 -> 20.7170093 | T38: ='DNSP Inputs General'!$D75*T37 -> 20.96728247 | V38: =ABS(D38-J38-P38) -> 3.552713679e-15 | W38: =ABS(E38-K38-Q38) -> 3.552713679e-15 | X38: =ABS(F38-L38-R38) -> 0 | Y38: =ABS(G38-M38-S38) -> 3.552713679e-15 | Z38: =ABS(H38-N38-T38) -> 7.105427358e-15
A39: Category V L4 LED High Output | C39: ='DNSP Inputs General'!E76 -> 68.43 | D39: ='DNSP Inputs General'!$D76*D37 -> 69.7551022 | E39: ='DNSP Inputs General'!$D76*E37 -> 69.66659578 | F39: ='DNSP Inputs General'!$D76*F37 -> 70.17991142 | G39: ='DNSP Inputs General'!$D76*G37 -> 71.15615589 | H39: ='DNSP Inputs General'!$D76*H37 -> 73.03739087 | J39: ='DNSP Inputs General'!$D76*J37 -> 43.82802343 | K39: ='DNSP Inputs General'!$D76*K37 -> 45.0189115 | L39: ='DNSP Inputs General'!$D76*L37 -> 46.29139044 | M39: ='DNSP Inputs General'!$D76*M37 -> 47.69265131 | N39: ='DNSP Inputs General'!$D76*N37 -> 49.29043392 | P39: ='DNSP Inputs General'!$D76*P37 -> 25.92707878 | Q39: ='DNSP Inputs General'!$D76*Q37 -> 24.64768428 | R39: ='DNSP Inputs General'!$D76*R37 -> 23.88852098 | S39: ='DNSP Inputs General'!$D76*S37 -> 23.46350458 | T39: ='DNSP Inputs General'!$D76*T37 -> 23.74695695 | V39: 0 | W39: 3.552713679e-15 | X39: 7.105427358e-15 | Y39: 0 | Z39: 0

Sheet Cashflow Summary
A1: ='DNSP Inputs O & M'!$A$3 -> Powercor | E1: Check | F1: =SUM(C138,C144,C167) -> 1.885928214e-08
C2: 2020 | D2: ='DNSP Inputs General'!Q$2 -> 2021/22 | E2: ='DNSP Inputs General'!R$2 -> 2022/23 | F2: ='DNSP Inputs General'!S$2 -> 2023/24 | G2: ='DNSP Inputs General'!T$2 -> 2024/25 | H2: ='DNSP Inputs General'!U$2 -> 2025/26 | J2: =C2 -> 2020 | K2: =D2 -> 2021/22 | L2: 2022/23 | M2: 2023/24 | N2: 2024/25 | O2: 2025/26
A4: Public Lighting - Revenue | C4: Revenue - Nominal | J4: Revenue - Real 2021 $
C5: =C$2 -> 2020 | D5: 2021/22 | E5: 2022/23 | F5: 2023/24 | G5: 2024/25 | H5: 2025/26 | J5: =J$2 -> 2020 | K5: 2021/22 | L5: 2022/23 | M5: 2023/24 | N5: 2024/25 | O5: 2025/26
A6: ='DNSP Inputs General'!A$40 -> Existing Lights
A7: ='DNSP Inputs General'!A41 -> Mercury vapour 80 watt | C7: =IF('PL Tariffs'!C6="","",'DNSP Inputs General'!O41*'PL Tariffs'!C6) -> 1736903.43 | D7: =IF('PL Tariffs'!D6="","",'DNSP Inputs General'!Q41*'PL Tariffs'!D6) -> 1695177.187 | E7: =IF('PL Tariffs'!E6="","",'DNSP Inputs General'!R41*'PL Tariffs'!E6) -> 1435010.862 | F7: =IF('PL Tariffs'!F6="","",'DNSP Inputs General'!S41*'PL Tariffs'!F6) -> 1188061.561 | G7: =IF('PL Tariffs'!G6="","",'DNSP Inputs General'!T41*'PL Tariffs'!G6) -> 1052319.826 | H7: =IF('PL Tariffs'!H6="","",'DNSP Inputs General'!U41*'PL Tariffs'!H6) -> 996388.8184 | J7: =C7 -> 1736903.43 | K7: =IF(D7="","",D7/'Charges Summary'!D$4) -> 1655861.914 | L7: =IF(E7="","",E7/'Charges Summary'!E$4) -> 1369219.968 | M7: =IF(F7="","",F7/'Charges Summary'!F$4) -> 1107301.782 | N7: =IF(G7="","",G7/'Charges Summary'!G$4) -> 958040.4024 | O7: =IF(H7="","",H7/'Charges Summary'!H$4) -> 886082.0422
A8: ='DNSP Inputs General'!A42 -> Sodium high pressure 150 watt | C8: =IF('PL Tariffs'!C7="","",'DNSP Inputs General'!O42*'PL Tariffs'!C7) -> 2438688.672 | D8: =IF('PL Tariffs'!D7="","",'DNSP Inputs General'!Q42*'PL Tariffs'!D7) -> 2177238.232 | E8: =IF('PL Tariffs'!E7="","",'DNSP Inputs General'!R42*'PL Tariffs'!E7) -> 1863774.172 | F8: =IF('PL Tariffs'!F7="","",'DNSP Inputs General'!S42*'PL Tariffs'!F7) -> 1605463.879 | G8: =IF('PL Tariffs'!G7="","",'DNSP Inputs General'!T42*'PL Tariffs'!G7) -> 1417879.246 | H8: =IF('PL Tariffs'!H7="","",'DNSP Inputs General'!U42*'PL Tariffs'!H7) -> 1343305.025 | J8: 2438688.672 | K8: =IF(D8="","",D8/'Charges Summary'!D$4) -> 2126742.793 | L8: =IF(E8="","",E8/'Charges Summary'!E$4) -> 1778325.783 | M8: =IF(F8="","",F8/'Charges Summary'!F$4) -> 1496330.722 | N8: =IF(G8="","",G8/'Charges Summary'!G$4) -> 1290848.627 | O8: =IF(H8="","",H8/'Charges Summary'!H$4) -> 1194592.349
A9: ='DNSP Inputs General'!A43 -> Sodium high pressure 250 watt | C9: =IF('PL Tariffs'!C8="","",'DNSP Inputs General'!O43*'PL Tariffs'!C8) -> 1246364.388 | D9: =IF('PL Tariffs'!D8="","",'DNSP Inputs General'!Q43*'PL Tariffs'!D8) -> 1110334.47 | E9: =IF('PL Tariffs'!E8="","",'DNSP Inputs General'!R43*'PL Tariffs'!E8) -> 949140.8422 | F9: =IF('PL Tariffs'!F8="","",'DNSP Inputs General'!S43*'PL Tariffs'!F8) -> 808032.4701 | G9: =IF('PL Tariffs'!G8="","",'DNSP Inputs General'!T43*'PL Tariffs'!G8) -> 713712.17 | H9: =IF('PL Tariffs'!H8="","",'DNSP Inputs General'!U43*'PL Tariffs'!H8) -> 676169.0967 | J9: 1246364.388 | K9: =IF(D9="","",D9/'Charges Summary'!D$4) -> 1084583.119 | L9: =IF(E9="","",E9/'Charges Summary'!E$4) -> 905625.6149 | M9: =IF(F9="","",F9/'Charges Summary'!F$4) -> 753105.5823 | N9: =IF(G9="","",G9/'Charges Summary'!G$4) -> 649769.279 | O9: =IF(H9="","",H9/'Charges Summary'!H$4) -> 601312.7435
A10: ='DNSP Inputs General'!A44 -> Fluorescent 20 watt | C10: =IF('PL Tariffs'!C9="","",'DNSP Inputs General'!O44*'PL Tariffs'!C9) ->  | D10: =IF('PL Tariffs'!D9="","",'DNSP Inputs General'!Q44*'PL Tariffs'!D9) ->  | E10: =IF('PL Tariffs'!E9="","",'DNSP Inputs General'!R44*'PL Tariffs'!E9) ->  | F10: =IF('PL Tariffs'!F9="","",'DNSP Inputs General'!S44*'PL Tariffs'!F9) ->  | G10: =IF('PL Tariffs'!G9="","",'DNSP Inputs General'!T44*'PL Tariffs'!G9) ->  | H10: =IF('PL Tariffs'!H9="","",'DNSP Inputs General'!U44*'PL Tariffs'!H9) ->  | K10: =IF(D10="","",D10/'Charges Summary'!D$4) ->  | L10: =IF(E10="","",E10/'Charges Summary'!E$4) ->  | M10: =IF(F10="","",F10/'Charges Summary'!F$4) ->  | N10: =IF(G10="","",G10/'Charges Summary'!G$4) ->  | O10: =IF(H10="","",H10/'Charges Summary'!H$4) -> 
A11: ='DNSP Inputs General'!A45 -> Fluorescent 40 watt | C11: =IF('PL Tariffs'!C10="","",'DNSP Inputs General'!O45*'PL Tariffs'!C10) ->  | D11: =IF('PL Tariffs'!D10="","",'DNSP Inputs General'!Q45*'PL Tariffs'!D10) ->  | E11: =IF('PL Tariffs'!E10="","",'DNSP Inputs General'!R45*'PL Tariffs'!E10) ->  | F11: =IF('PL Tariffs'!F10="","",'DNSP Inputs General'!S45*'PL Tariffs'!F10) ->  | G11: =IF('PL Tariffs'!G10="","",'DNSP Inputs General'!T45*'PL Tariffs'!G10) ->  | H11: =IF('PL Tariffs'!H10="","",'DNSP Inputs General'!U45*'PL Tariffs'!H10) ->  | K11: =IF(D11="","",D11/'Charges Summary'!D$4) ->  | L11: =IF(E11="","",E11/'Charges Summary'!E$4) ->  | M11: =IF(F11="","",F11/'Charges Summary'!F$4) ->  | N11: =IF(G11="","",G11/'Charges Summary'!G$4) ->  | O11: =IF(H11="","",H11/'Charges Summary'!H$4) -> 
A12: ='DNSP Inputs General'!A46 -> Mercury vapour 50 watt | C12: =IF('PL Tariffs'!C11="","",'DNSP Inputs General'!O46*'PL Tariffs'!C11) -> 4462.29 | D12: =IF('PL Tariffs'!D11="","",'DNSP Inputs General'!Q46*'PL Tariffs'!D11) -> 3295.819794 | E12: =IF('PL Tariffs'!E11="","",'DNSP Inputs General'!R46*'PL Tariffs'!E11) -> 1351.555051 | F12: =IF('PL Tariffs'!F11="","",'DNSP Inputs General'!S46*'PL Tariffs'!F11) -> 0 | G12: =IF('PL Tariffs'!G11="","",'DNSP Inputs General'!T46*'PL Tariffs'!G11) -> 0 | H12: =IF('PL Tariffs'!H11="","",'DNSP Inputs General'!U46*'PL Tariffs'!H11) -> 0 | J12: 4462.29 | K12: =IF(D12="","",D12/'Charges Summary'!D$4) -> 3219.381734 | L12: =IF(E12="","",E12/'Charges Summary'!E$4) -> 1289.590353 | M12: =IF(F12="","",F12/'Charges Summary'!F$4) -> 0 | N12: =IF(G12="","",G12/'Charges Summary'!G$4) -> 0 | O12: =IF(H12="","",H12/'Charges Summary'!H$4) -> 0
A13: ='DNSP Inputs General'!A47 -> Mercury vapour 125 watt | C13: =IF('PL Tariffs'!C12="","",'DNSP Inputs General'!O47*'PL Tariffs'!C12) -> 34566.168 | D13: =IF('PL Tariffs'!D12="","",'DNSP Inputs General'!Q47*'PL Tariffs'!D12) -> 25528.77203 | E13: =IF('PL Tariffs'!E12="","",'DNSP Inputs General'!R47*'PL Tariffs'!E12) -> 10468.87965 | F13: =IF('PL Tariffs'!F12="","",'DNSP Inputs General'!S47*'PL Tariffs'!F12) -> 0 | G13: =IF('PL Tariffs'!G12="","",'DNSP Inputs General'!T47*'PL Tariffs'!G12) -> 0 | H13: =IF('PL Tariffs'!H12="","",'DNSP Inputs General'!U47*'PL Tariffs'!H12) -> 0 | J13: 34566.168 | K13: =IF(D13="","",D13/'Charges Summary'!D$4) -> 24936.69785 | L13: =IF(E13="","",E13/'Charges Summary'!E$4) -> 9988.913288 | M13: =IF(F13="","",F13/'Charges Summary'!F$4) -> 0 | N13: =IF(G13="","",G13/'Charges Summary'!G$4) -> 0 | O13: =IF(H13="","",H13/'Charges Summary'!H$4) -> 0
A14: ='DNSP Inputs General'!A48 -> Mercury vapour 250 watt | C14: =IF('PL Tariffs'!C13="","",'DNSP Inputs General'!O48*'PL Tariffs'!C13) -> 12298.44 | D14: =IF('PL Tariffs'!D13="","",'DNSP Inputs General'!Q48*'PL Tariffs'!D13) -> 7830.615356 | E14: =IF('PL Tariffs'!E13="","",'DNSP Inputs General'!R48*'PL Tariffs'!E13) -> 3242.671272 | F14: =IF('PL Tariffs'!F13="","",'DNSP Inputs General'!S48*'PL Tariffs'!F13) -> 0 | G14: =IF('PL Tariffs'!G13="","",'DNSP Inputs General'!T48*'PL Tariffs'!G13) -> 0 | H14: =IF('PL Tariffs'!H13="","",'DNSP Inputs General'!U48*'PL Tariffs'!H13) -> 0 | J14: 12298.44 | K14: =IF(D14="","",D14/'Charges Summary'!D$4) -> 7649.004381 | L14: =IF(E14="","",E14/'Charges Summary'!E$4) -> 3094.004634 | M14: =IF(F14="","",F14/'Charges Summary'!F$4) -> 0 | N14: =IF(G14="","",G14/'Charges Summary'!G$4) -> 0 | O14: =IF(H14="","",H14/'Charges Summary'!H$4) -> 0
A15: ='DNSP Inputs General'!A49 -> Mercury vapour 400 watt | C15: =IF('PL Tariffs'!C14="","",'DNSP Inputs General'!O49*'PL Tariffs'!C14) -> 4207.385 | D15: =IF('PL Tariffs'!D14="","",'DNSP Inputs General'!Q49*'PL Tariffs'!D14) -> 2678.894727 | E15: =IF('PL Tariffs'!E14="","",'DNSP Inputs General'!R49*'PL Tariffs'!E14) -> 1109.334909 | F15: =IF('PL Tariffs'!F14="","",'DNSP Inputs General'!S49*'PL Tariffs'!F14) -> 0 | G15: =IF('PL Tariffs'!G14="","",'DNSP Inputs General'!T49*'PL Tariffs'!G14) -> 0 | H15: =IF('PL Tariffs'!H14="","",'DNSP Inputs General'!U49*'PL Tariffs'!H14) -> 0 | J15: 4207.385 | K15: =IF(D15="","",D15/'Charges Summary'!D$4) -> 2616.764657 | L15: =IF(E15="","",E15/'Charges Summary'!E$4) -> 1058.47527 | M15: =IF(F15="","",F15/'Charges Summary'!F$4) -> 0 | N15: =IF(G15="","",G15/'Charges Summary'!G$4) -> 0 | O15: =IF(H15="","",H15/'Charges Summary'!H$4) -> 0
A16: ='DNSP Inputs General'!A50 -> Mercury vapour 700 watt | C16: =IF('PL Tariffs'!C15="","",'DNSP Inputs General'!O50*'PL Tariffs'!C15) ->  | D16: =IF('PL Tariffs'!D15="","",'DNSP Inputs General'!Q50*'PL Tariffs'!D15) ->  | E16: =IF('PL Tariffs'!E15="","",'DNSP Inputs General'!R50*'PL Tariffs'!E15) ->  | F16: =IF('PL Tariffs'!F15="","",'DNSP Inputs General'!S50*'PL Tariffs'!F15) ->  | G16: =IF('PL Tariffs'!G15="","",'DNSP Inputs General'!T50*'PL Tariffs'!G15) ->  | H16: =IF('PL Tariffs'!H15="","",'DNSP Inputs General'!U50*'PL Tariffs'!H15) ->  | K16: =IF(D16="","",D16/'Charges Summary'!D$4) ->  | L16: =IF(E16="","",E16/'Charges Summary'!E$4) ->  | M16: =IF(F16="","",F16/'Charges Summary'!F$4) ->  | N16: =IF(G16="","",G16/'Charges Summary'!G$4) ->  | O16: =IF(H16="","",H16/'Charges Summary'!H$4) -> 
A17: ='DNSP Inputs General'!A51 -> Sodium low pressure 90 watt | C17: =IF('PL Tariffs'!C16="","",'DNSP Inputs General'!O51*'PL Tariffs'!C16) ->  | D17: =IF('PL Tariffs'!D16="","",'DNSP Inputs General'!Q51*'PL Tariffs'!D16) ->  | E17: =IF('PL Tariffs'!E16="","",'DNSP Inputs General'!R51*'PL Tariffs'!E16) ->  | F17: =IF('PL Tariffs'!F16="","",'DNSP Inputs General'!S51*'PL Tariffs'!F16) ->  | G17: =IF('PL Tariffs'!G16="","",'DNSP Inputs General'!T51*'PL Tariffs'!G16) ->  | H17: =IF('PL Tariffs'!H16="","",'DNSP Inputs General'!U51*'PL Tariffs'!H16) ->  | K17: =IF(D17="","",D17/'Charges Summary'!D$4) ->  | L17: =IF(E17="","",E17/'Charges Summary'!E$4) ->  | M17: =IF(F17="","",F17/'Charges Summary'!F$4) ->  | N17: =IF(G17="","",G17/'Charges Summary'!G$4) ->  | O17: =IF(H17="","",H17/'Charges Summary'!H$4) -> 
A18: ='DNSP Inputs General'!A52 -> Sodium low pressure 180 watt | C18: =IF('PL Tariffs'!C17="","",'DNSP Inputs General'!O52*'PL Tariffs'!C17) ->  | D18: =IF('PL Tariffs'!D17="","",'DNSP Inputs General'!Q52*'PL Tariffs'!D17) ->  | E18: =IF('PL Tariffs'!E17="","",'DNSP Inputs General'!R52*'PL Tariffs'!E17) ->  | F18: =IF('PL Tariffs'!F17="","",'DNSP Inputs General'!S52*'PL Tariffs'!F17) ->  | G18: =IF('PL Tariffs'!G17="","",'DNSP Inputs General'!T52*'PL Tariffs'!G17) ->  | H18: =IF('PL Tariffs'!H17="","",'DNSP Inputs General'!U52*'PL Tariffs'!H17) ->  | K18: =IF(D18="","",D18/'Charges Summary'!D$4) ->  | L18: =IF(E18="","",E18/'Charges Summary'!E$4) ->  | M18: =IF(F18="","",F18/'Charges Summary'!F$4) ->  | N18: =IF(G18="","",G18/'Charges Summary'!G$4) ->  | O18: =IF(H18="","",H18/'Charges Summary'!H$4) -> 
A19: ='DNSP Inputs General'!A53 -> Sodium high pressure 400 watt | C19: =IF('PL Tariffs'!C18="","",'DNSP Inputs General'!O53*'PL Tariffs'!C18) -> 90180.675 | D19: =IF('PL Tariffs'!D18="","",'DNSP Inputs General'!Q53*'PL Tariffs'!D18) -> 80341.91165 | E19: =IF('PL Tariffs'!E18="","",'DNSP Inputs General'!R53*'PL Tariffs'!E18) -> 68678.21523 | F19: =IF('PL Tariffs'!F18="","",'DNSP Inputs General'!S53*'PL Tariffs'!F18) -> 58467.85369 | G19: =IF('PL Tariffs'!G18="","",'DNSP Inputs General'!T53*'PL Tariffs'!G18) -> 51642.99738 | H19: =IF('PL Tariffs'!H18="","",'DNSP Inputs General'!U53*'PL Tariffs'!H18) -> 48926.44452 | J19: 90180.675 | K19: =IF(D19="","",D19/'Charges Summary'!D$4) -> 78478.58773 | L19: =IF(E19="","",E19/'Charges Summary'!E$4) -> 65529.52748 | M19: =IF(F19="","",F19/'Charges Summary'!F$4) -> 54493.43761 | N19: =IF(G19="","",G19/'Charges Summary'!G$4) -> 47016.19866 | O19: =IF(H19="","",H19/'Charges Summary'!H$4) -> 43509.96626
A20: ='DNSP Inputs General'!A54 -> Incandescent 100 watt | C20: =IF('PL Tariffs'!C19="","",'DNSP Inputs General'!O54*'PL Tariffs'!C19) ->  | D20: =IF('PL Tariffs'!D19="","",'DNSP Inputs General'!Q54*'PL Tariffs'!D19) ->  | E20: =IF('PL Tariffs'!E19="","",'DNSP Inputs General'!R54*'PL Tariffs'!E19) ->  | F20: =IF('PL Tariffs'!F19="","",'DNSP Inputs General'!S54*'PL Tariffs'!F19) ->  | G20: =IF('PL Tariffs'!G19="","",'DNSP Inputs General'!T54*'PL Tariffs'!G19) ->  | H20: =IF('PL Tariffs'!H19="","",'DNSP Inputs General'!U54*'PL Tariffs'!H19) ->  | K20: =IF(D20="","",D20/'Charges Summary'!D$4) ->  | L20: =IF(E20="","",E20/'Charges Summary'!E$4) ->  | M20: =IF(F20="","",F20/'Charges Summary'!F$4) ->  | N20: =IF(G20="","",G20/'Charges Summary'!G$4) ->  | O20: =IF(H20="","",H20/'Charges Summary'!H$4) -> 
A21: ='DNSP Inputs General'!A55 -> Incandescent 150 watt | C21: =IF('PL Tariffs'!C20="","",'DNSP Inputs General'!O55*'PL Tariffs'!C20) ->  | D21: =IF('PL Tariffs'!D20="","",'DNSP Inputs General'!Q55*'PL Tariffs'!D20) ->  | E21: =IF('PL Tariffs'!E20="","",'DNSP Inputs General'!R55*'PL Tariffs'!E20) ->  | F21: =IF('PL Tariffs'!F20="","",'DNSP Inputs General'!S55*'PL Tariffs'!F20) ->  | G21: =IF('PL Tariffs'!G20="","",'DNSP Inputs General'!T55*'PL Tariffs'!G20) ->  | H21: =IF('PL Tariffs'!H20="","",'DNSP Inputs General'!U55*'PL Tariffs'!H20) ->  | K21: =IF(D21="","",D21/'Charges Summary'!D$4) ->  | L21: =IF(E21="","",E21/'Charges Summary'!E$4) ->  | M21: =IF(F21="","",F21/'Charges Summary'!F$4) ->  | N21: =IF(G21="","",G21/'Charges Summary'!G$4) ->  | O21: =IF(H21="","",H21/'Charges Summary'!H$4) -> 
A22: ='DNSP Inputs General'!A56 -> Metal halide 250 watt | C22: =IF('PL Tariffs'!C21="","",'DNSP Inputs General'!O56*'PL Tariffs'!C21) -> 1306.6625 | D22: =IF('PL Tariffs'!D21="","",'DNSP Inputs General'!Q56*'PL Tariffs'!D21) -> 1099.432379 | E22: =IF('PL Tariffs'!E21="","",'DNSP Inputs General'!R56*'PL Tariffs'!E21) -> 863.6197298 | F22: =IF('PL Tariffs'!F21="","",'DNSP Inputs General'!S56*'PL Tariffs'!F21) -> 605.4800259 | G22: =IF('PL Tariffs'!G21="","",'DNSP Inputs General'!T56*'PL Tariffs'!G21) -> 259.074282 | H22: =IF('PL Tariffs'!H21="","",'DNSP Inputs General'!U56*'PL Tariffs'!H21) -> 0 | J22: 1306.6625 | K22: =IF(D22="","",D22/'Charges Summary'!D$4) -> 1073.933874 | L22: =IF(E22="","",E22/'Charges Summary'!E$4) -> 824.025386 | M22: =IF(F22="","",F22/'Charges Summary'!F$4) -> 564.3218612 | N22: =IF(G22="","",G22/'Charges Summary'!G$4) -> 235.8633024 | O22: =IF(H22="","",H22/'Charges Summary'!H$4) -> 0
A23: ='DNSP Inputs General'!A57 -> Metal halide 400 watt | C23: =IF('PL Tariffs'!C22="","",'DNSP Inputs General'!O57*'PL Tariffs'!C22) -> 10334.5125 | D23: =IF('PL Tariffs'!D22="","",'DNSP Inputs General'!Q57*'PL Tariffs'!D22) -> 8695.510635 | E23: =IF('PL Tariffs'!E22="","",'DNSP Inputs General'!R57*'PL Tariffs'!E22) -> 6830.446954 | F23: =IF('PL Tariffs'!F22="","",'DNSP Inputs General'!S57*'PL Tariffs'!F22) -> 4788.796568 | G23: =IF('PL Tariffs'!G22="","",'DNSP Inputs General'!T57*'PL Tariffs'!G22) -> 3483.371482 | H23: =IF('PL Tariffs'!H22="","",'DNSP Inputs General'!U57*'PL Tariffs'!H22) -> 2957.562487 | J23: 10334.5125 | K23: =IF(D23="","",D23/'Charges Summary'!D$4) -> 8493.84064 | L23: =IF(E23="","",E23/'Charges Summary'!E$4) -> 6517.29169 | M23: =IF(F23="","",F23/'Charges Summary'!F$4) -> 4463.272902 | N23: =IF(G23="","",G23/'Charges Summary'!G$4) -> 3171.289312 | O23: =IF(H23="","",H23/'Charges Summary'!H$4) -> 2630.140925
A24: ='DNSP Inputs General'!A58 -> Metal halide 70 watt | C24: =IF('PL Tariffs'!C23="","",'DNSP Inputs General'!O58*'PL Tariffs'!C23) -> 32036.007 | D24: =IF('PL Tariffs'!D23="","",'DNSP Inputs General'!Q58*'PL Tariffs'!D23) -> 31267.54086 | E24: =IF('PL Tariffs'!E23="","",'DNSP Inputs General'!R58*'PL Tariffs'!E23) -> 24322.6566 | F24: =IF('PL Tariffs'!F23="","",'DNSP Inputs General'!S58*'PL Tariffs'!F23) -> 16583.41156 | G24: =IF('PL Tariffs'!G23="","",'DNSP Inputs General'!T58*'PL Tariffs'!G23) -> 12096.5577 | H24: =IF('PL Tariffs'!H23="","",'DNSP Inputs General'!U58*'PL Tariffs'!H23) -> 10264.66582 | J24: =C24 -> 32036.007 | K24: =IF(D24="","",D24/'Charges Summary'!D$4) -> 30542.3707 | L24: =IF(E24="","",E24/'Charges Summary'!E$4) -> 23207.5366 | M24: =IF(F24="","",F24/'Charges Summary'!F$4) -> 15456.13609 | N24: =IF(G24="","",G24/'Charges Summary'!G$4) -> 11012.80306 | O24: =IF(H24="","",H24/'Charges Summary'!H$4) -> 9128.300004
A25: ='DNSP Inputs General'!A59 -> Metal halide 150 watt | C25: =IF('PL Tariffs'!C24="","",'DNSP Inputs General'!O59*'PL Tariffs'!C24) ->  | D25: =IF('PL Tariffs'!D24="","",'DNSP Inputs General'!Q59*'PL Tariffs'!D24) ->  | E25: =IF('PL Tariffs'!E24="","",'DNSP Inputs General'!R59*'PL Tariffs'!E24) ->  | F25: =IF('PL Tariffs'!F24="","",'DNSP Inputs General'!S59*'PL Tariffs'!F24) ->  | G25: =IF('PL Tariffs'!G24="","",'DNSP Inputs General'!T59*'PL Tariffs'!G24) ->  | H25: =IF('PL Tariffs'!H24="","",'DNSP Inputs General'!U59*'PL Tariffs'!H24) ->  | K25: =IF(D25="","",D25/'Charges Summary'!D$4) ->  | L25: =IF(E25="","",E25/'Charges Summary'!E$4) ->  | M25: =IF(F25="","",F25/'Charges Summary'!F$4) ->  | N25: =IF(G25="","",G25/'Charges Summary'!G$4) ->  | O25: =IF(H25="","",H25/'Charges Summary'!H$4) -> 
A31: ='DNSP Inputs General'!A$67 -> Energy Efficient Lights
A32: ='DNSP Inputs General'!B68 -> T5 2X14W | C32: =IF('PL Tariffs'!C31="","",'DNSP Inputs General'!M68*'PL Tariffs'!C31) -> 468659.52 | D32: =IF('PL Tariffs'!D31="","",'DNSP Inputs General'!Q68*'PL Tariffs'!D31) -> 441210.0951 | E32: =IF('PL Tariffs'!E31="","",'DNSP Inputs General'!R68*'PL Tariffs'!E31) -> 379470.3699 | F32: =IF('PL Tariffs'!F31="","",'DNSP Inputs General'!S68*'PL Tariffs'!F31) -> 327957.7156 | G32: =IF('PL Tariffs'!G31="","",'DNSP Inputs General'!T68*'PL Tariffs'!G31) -> 284555.7781 | H32: =IF('PL Tariffs'!H31="","",'DNSP Inputs General'!U68*'PL Tariffs'!H31) -> 268982.3623 | J32: =C32 -> 468659.52 | K32: =IF(D32="","",D32/'Charges Summary'!D$4) -> 430977.3621 | L32: =IF(E32="","",E32/'Charges Summary'!E$4) -> 362072.805 | M32: =IF(F32="","",F32/'Charges Summary'!F$4) -> 305664.4325 | N32: =IF(G32="","",G32/'Charges Summary'!G$4) -> 259061.8607 | O32: =IF(H32="","",H32/'Charges Summary'!H$4) -> 239204.2509
A33: ='DNSP Inputs General'!B69 -> T5 2X14W | C33: =IF('PL Tariffs'!C32="","",'DNSP Inputs General'!M69*'PL Tariffs'!C32) -> 44945.61 | D33: =IF('PL Tariffs'!D32="","",'DNSP Inputs General'!Q69*'PL Tariffs'!D32) -> 42311.55135 | E33: =IF('PL Tariffs'!E32="","",'DNSP Inputs General'!R69*'PL Tariffs'!E32) -> 36390.78123 | F33: =IF('PL Tariffs'!F32="","",'DNSP Inputs General'!S69*'PL Tariffs'!F32) -> 31450.77568 | G33: =IF('PL Tariffs'!G32="","",'DNSP Inputs General'!T69*'PL Tariffs'!G32) -> 27288.57874 | H33: =IF('PL Tariffs'!H32="","",'DNSP Inputs General'!U69*'PL Tariffs'!H32) -> 25795.1057 | J33: =C33 -> 44945.61 | K33: =IF(D33="","",D33/'Charges Summary'!D$4) -> 41330.24379 | L33: =IF(E33="","",E33/'Charges Summary'!E$4) -> 34722.37434 | M33: =IF(F33="","",F33/'Charges Summary'!F$4) -> 29312.87492 | N33: =IF(G33="","",G33/'Charges Summary'!G$4) -> 24843.74076 | O33: =IF(H33="","",H33/'Charges Summary'!H$4) -> 22939.41834
A34: ='DNSP Inputs General'!B70 -> T5 2X14W | C34: =IF('PL Tariffs'!C33="","",'DNSP Inputs General'!M70*'PL Tariffs'!C33) -> 197966.12 | D34: =IF('PL Tariffs'!D33="","",'DNSP Inputs General'!Q70*'PL Tariffs'!D33) -> 116162.0881 | E34: =IF('PL Tariffs'!E33="","",'DNSP Inputs General'!R70*'PL Tariffs'!E33) -> 82276.52761 | F34: =IF('PL Tariffs'!F33="","",'DNSP Inputs General'!S70*'PL Tariffs'!F33) -> 58559.18864 | G34: =IF('PL Tariffs'!G33="","",'DNSP Inputs General'!T70*'PL Tariffs'!G33) -> 41843.08736 | H34: =IF('PL Tariffs'!H33="","",'DNSP Inputs General'!U70*'PL Tariffs'!H33) -> 35447.20829 | J34: 197966.12 | K34: =IF(D34="","",D34/'Charges Summary'!D$4) -> 113468.0074 | L34: =IF(E34="","",E34/'Charges Summary'!E$4) -> 78504.3985 | M34: =IF(F34="","",F34/'Charges Summary'!F$4) -> 54578.56397 | N34: =IF(G34="","",G34/'Charges Summary'!G$4) -> 38094.28205 | O34: =IF(H34="","",H34/'Charges Summary'!H$4) -> 31522.96988
A35: ='DNSP Inputs General'!B71 -> T5 2X14W | C35: =IF('PL Tariffs'!C34="","",'DNSP Inputs General'!M71*'PL Tariffs'!C34) -> 184719.46 | D35: =IF('PL Tariffs'!D34="","",'DNSP Inputs General'!Q71*'PL Tariffs'!D34) -> 108389.2445 | E35: =IF('PL Tariffs'!E34="","",'DNSP Inputs General'!R71*'PL Tariffs'!E34) -> 76771.09472 | F35: =IF('PL Tariffs'!F34="","",'DNSP Inputs General'!S71*'PL Tariffs'!F34) -> 54640.77239 | G35: =IF('PL Tariffs'!G34="","",'DNSP Inputs General'!T71*'PL Tariffs'!G34) -> 39043.20851 | H35: =IF('PL Tariffs'!H34="","",'DNSP Inputs General'!U71*'PL Tariffs'!H34) -> 33075.30184 | J35: 184719.46 | K35: =IF(D35="","",D35/'Charges Summary'!D$4) -> 105875.4349 | L35: =IF(E35="","",E35/'Charges Summary'!E$4) -> 73251.37301 | M35: =IF(F35="","",F35/'Charges Summary'!F$4) -> 50926.50634 | N35: =IF(G35="","",G35/'Charges Summary'!G$4) -> 35545.24991 | O35: =IF(H35="","",H35/'Charges Summary'!H$4) -> 29413.64903
A36: ='DNSP Inputs General'!B72 -> Category P LED Standard Output | C36: =IF('PL Tariffs'!C35="","",'DNSP Inputs General'!M72*'PL Tariffs'!C35) -> 1802814.2 | D36: =IF('PL Tariffs'!D35="","",'DNSP Inputs General'!Q72*'PL Tariffs'!D35) -> 2801453.812 | E36: =IF('PL Tariffs'!E35="","",'DNSP Inputs General'!R72*'PL Tariffs'!E35) -> 3070086.106 | F36: =IF('PL Tariffs'!F35="","",'DNSP Inputs General'!S72*'PL Tariffs'!F35) -> 3328615.067 | G36: =IF('PL Tariffs'!G35="","",'DNSP Inputs General'!T72*'PL Tariffs'!G35) -> 3585617.368 | H36: =IF('PL Tariffs'!H35="","",'DNSP Inputs General'!U72*'PL Tariffs'!H35) -> 3787317.116 | J36: 1802814.2 | K36: =IF(D36="","",D36/'Charges Summary'!D$4) -> 2736481.299 | L36: =IF(E36="","",E36/'Charges Summary'!E$4) -> 2929331.975 | M36: =IF(F36="","",F36/'Charges Summary'!F$4) -> 3102348.83 | N36: =IF(G36="","",G36/'Charges Summary'!G$4) -> 3264374.785 | O36: =IF(H36="","",H36/'Charges Summary'!H$4) -> 3368036.275
A37: ='DNSP Inputs General'!B73 -> Category P LED Standard Output | C37: =IF('PL Tariffs'!C36="","",'DNSP Inputs General'!M73*'PL Tariffs'!C36) -> 5894.9 | D37: =IF('PL Tariffs'!D36="","",'DNSP Inputs General'!Q73*'PL Tariffs'!D36) -> 14198.80759 | E37: =IF('PL Tariffs'!E36="","",'DNSP Inputs General'!R73*'PL Tariffs'!E36) -> 18866.31998 | F37: =IF('PL Tariffs'!F36="","",'DNSP Inputs General'!S73*'PL Tariffs'!F36) -> 22459.13742 | G37: =IF('PL Tariffs'!G36="","",'DNSP Inputs General'!T73*'PL Tariffs'!G36) -> 23159.79199 | H37: =IF('PL Tariffs'!H36="","",'DNSP Inputs General'!U73*'PL Tariffs'!H36) -> 23993.58909 | J37: =C37 -> 5894.9 | K37: =IF(D37="","",D37/'Charges Summary'!D$4) -> 13869.50278 | L37: =IF(E37="","",E37/'Charges Summary'!E$4) -> 18001.35647 | M37: =IF(F37="","",F37/'Charges Summary'!F$4) -> 20932.45307 | N37: =IF(G37="","",G37/'Charges Summary'!G$4) -> 21084.86022 | O37: =IF(H37="","",H37/'Charges Summary'!H$4) -> 21337.34143
A38: ='DNSP Inputs General'!B74 -> Category V LED L1 Standard Output | C38: =IF('PL Tariffs'!C37="","",'DNSP Inputs General'!M74*'PL Tariffs'!C37) -> 326743.76 | D38: =IF('PL Tariffs'!D37="","",'DNSP Inputs General'!Q74*'PL Tariffs'!D37) -> 737901.1518 | E38: =IF('PL Tariffs'!E37="","",'DNSP Inputs General'!R74*'PL Tariffs'!E37) -> 922443.5865 | F38: =IF('PL Tariffs'!F37="","",'DNSP Inputs General'!S74*'PL Tariffs'!F37) -> 1093721.753 | G38: =IF('PL Tariffs'!G37="","",'DNSP Inputs General'!T74*'PL Tariffs'!G37) -> 1254878.977 | H38: =IF('PL Tariffs'!H37="","",'DNSP Inputs General'!U74*'PL Tariffs'!H37) -> 1358572.024 | J38: 326743.76 | K38: =IF(D38="","",D38/'Charges Summary'!D$4) -> 720787.4332 | L38: =IF(E38="","",E38/'Charges Summary'!E$4) -> 880152.3474 | M38: =IF(F38="","",F38/'Charges Summary'!F$4) -> 1019374.824 | N38: =IF(G38="","",G38/'Charges Summary'!G$4) -> 1142451.877 | O38: =IF(H38="","",H38/'Charges Summary'!H$4) -> 1208169.192
A39: ='DNSP Inputs General'!B75 -> Category V LED L1 Standard Output | C39: =IF('PL Tariffs'!C38="","",'DNSP Inputs General'!M75*'PL Tariffs'!C38) -> 115643.88 | D39: =IF('PL Tariffs'!D38="","",'DNSP Inputs General'!Q75*'PL Tariffs'!D38) -> 343806.3552 | E39: =IF('PL Tariffs'!E38="","",'DNSP Inputs General'!R75*'PL Tariffs'!E38) -> 447049.8231 | F39: =IF('PL Tariffs'!F38="","",'DNSP Inputs General'!S75*'PL Tariffs'!F38) -> 542736.3109 | G39: =IF('PL Tariffs'!G38="","",'DNSP Inputs General'!T75*'PL Tariffs'!G38) -> 632075.699 | H39: =IF('PL Tariffs'!H38="","",'DNSP Inputs General'!U75*'PL Tariffs'!H38) -> 688154.9392 | J39: 115643.88 | K39: =IF(D39="","",D39/'Charges Summary'!D$4) -> 335832.6514 | L39: =IF(E39="","",E39/'Charges Summary'!E$4) -> 426553.9454 | M39: =IF(F39="","",F39/'Charges Summary'!F$4) -> 505843.2186 | N39: =IF(G39="","",G39/'Charges Summary'!G$4) -> 575446.7816 | O39: =IF(H39="","",H39/'Charges Summary'!H$4) -> 611971.6747
A40: ='DNSP Inputs General'!B76 -> Category V LED L1 Standard Output | C40: =IF('PL Tariffs'!C39="","",'DNSP Inputs General'!M76*'PL Tariffs'!C39) -> 5542.83 | D40: =IF('PL Tariffs'!D39="","",'DNSP Inputs General'!Q76*'PL Tariffs'!D39) -> 8687.375903 | E40: =IF('PL Tariffs'!E39="","",'DNSP Inputs General'!R76*'PL Tariffs'!E39) -> 9981.50963 | F40: =IF('PL Tariffs'!F39="","",'DNSP Inputs General'!S76*'PL Tariffs'!F39) -> 11054.13341 | G40: =IF('PL Tariffs'!G39="","",'DNSP Inputs General'!T76*'PL Tariffs'!G39) -> 11432.06107 | H40: =IF('PL Tariffs'!H39="","",'DNSP Inputs General'!U76*'PL Tariffs'!H39) -> 11850.48449 | J40: 5542.83 | K40: =IF(D40="","",D40/'Charges Summary'!D$4) -> 8485.894572 | L40: =IF(E40="","",E40/'Charges Summary'!E$4) -> 9523.887705 | M40: =IF(F40="","",F40/'Charges Summary'!F$4) -> 10302.71665 | N40: =IF(G40="","",G40/'Charges Summary'!G$4) -> 10407.84001 | O40: =IF(H40="","",H40/'Charges Summary'!H$4) -> 10538.55815
A42: Total Revenue | C42: =IF(SUM(C7:C41)=0,"",SUM(C7:C41)) -> 8764278.91 | D42: =SUM(D7:D41) -> 9757608.867 | E42: =SUM(E7:E41) -> 9408129.374 | F42: =SUM(F7:F41) -> 9153198.306 | G42: =SUM(G7:G41) -> 9151287.792 | H42: =SUM(H7:H41) -> 9311199.744 | J42: =IF(SUM(J7:J41)=0,"",SUM(J7:J41)) -> 8764278.91 | K42: =SUM(K7:K41) -> 9531306.236 | L42: =SUM(L7:L41) -> 8976795.193 | M42: =SUM(M7:M41) -> 8530999.676 | N42: =SUM(N7:N41) -> 8331405.741 | O42: =SUM(O7:O41) -> 8280388.872
A43: % Increase \ (Decrease) in Total Revenue | D43: =D42/C42-1 -> 0.1133384694 | E43: =E42/D42-1 -> -0.03581609984 | F43: -0.02709689221 | G43: -0.0002087263993 | H43: 0.01747425671 | K43: =K42/J42-1 -> 0.08751744827 | L43: -0.05817786455 | M43: -0.0496608765 | N43: -0.02339631251 | O43: -0.006123440699
A45: Public Lighting - O & M | D45: Forecast O & M - Nominal | K45: Forecast O & M - Real 2021 $
D46: =D$2 -> 2021/22 | E46: =E$2 -> 2022/23 | F46: =F$2 -> 2023/24 | G46: =G$2 -> 2024/25 | H46: =H$2 -> 2025/26 | K46: =K$2 -> 2021/22 | L46: =L$2 -> 2022/23 | M46: =M$2 -> 2023/24 | N46: =N$2 -> 2024/25 | O46: =O$2 -> 2025/26
A48: Unit cost
A49: ='DNSP Inputs General'!A$41 -> Mercury vapour 80 watt | D49: =SUM('Charges Summary'!D25,'Charges Summary'!D8) -> 44.82119634 | E49: =SUM('Charges Summary'!E25,'Charges Summary'!E8) -> 46.03652495 | F49: =SUM('Charges Summary'!F25,'Charges Summary'!F8) -> 47.32994938 | G49: =SUM('Charges Summary'!G25,'Charges Summary'!G8) -> 48.74433811 | H49: =SUM('Charges Summary'!H25,'Charges Summary'!H8) -> 50.33335659
A50: ='DNSP Inputs General'!A$42 -> Sodium high pressure 150 watt | D50: =SUM('Charges Summary'!D49,'Charges Summary'!D8) -> 84.94512417 | E50: =SUM('Charges Summary'!E49,'Charges Summary'!E8) -> 87.26338824 | F50: =SUM('Charges Summary'!F49,'Charges Summary'!F8) -> 89.72882436 | G50: =SUM('Charges Summary'!G49,'Charges Summary'!G8) -> 92.43021488 | H50: =SUM('Charges Summary'!H49,'Charges Summary'!H8) -> 95.42172591
A51: ='DNSP Inputs General'!A$43 -> Sodium high pressure 250 watt | D51: =SUM('Charges Summary'!D72,'Charges Summary'!D8) -> 84.92966051 | E51: =SUM('Charges Summary'!E72,'Charges Summary'!E8) -> 87.2470568 | F51: =SUM('Charges Summary'!F72,'Charges Summary'!F8) -> 89.71156352 | G51: =SUM('Charges Summary'!G72,'Charges Summary'!G8) -> 92.4120127 | H51: =SUM('Charges Summary'!H72,'Charges Summary'!H8) -> 95.4025907
A53: ='DNSP Inputs General'!A$40 -> Existing Lights
A54: ='DNSP Inputs General'!A$41 -> Mercury vapour 80 watt | D54: =D49*'DNSP Inputs General'!Q41 -> 1081060.279 | E54: =E49*'DNSP Inputs General'!R41 -> 943817.2825 | F54: =F49*'DNSP Inputs General'!S41 -> 824784.2472 | G54: =G49*'DNSP Inputs General'!T41 -> 722016.9961 | H54: =H49*'DNSP Inputs General'!U41 -> 685103.7261 | K54: =D54/'Charges Summary'!D$4 -> 1055987.867 | L54: =E54/'Charges Summary'!E$4 -> 900546.1243 | M54: =F54/'Charges Summary'!F$4 -> 768718.6391 | N54: =G54/'Charges Summary'!G$4 -> 657330.0593 | O54: =H54/'Charges Summary'!H$4 -> 609258.2509
A55: ='DNSP Inputs General'!A$42 -> Sodium high pressure 150 watt | D55: =D50*'DNSP Inputs General'!Q42 -> 1669793.743 | E55: =E50*'DNSP Inputs General'!R42 -> 1458059.917 | F55: =F50*'DNSP Inputs General'!S42 -> 1274366.079 | G55: =G50*'DNSP Inputs General'!T42 -> 1115822.498 | H55: =H50*'DNSP Inputs General'!U42 -> 1058535.948 | K55: =D55/'Charges Summary'!D$4 -> 1631067.174 | L55: =E55/'Charges Summary'!E$4 -> 1391212.295 | M55: =F55/'Charges Summary'!F$4 -> 1187739.656 | N55: =G55/'Charges Summary'!G$4 -> 1015853.744 | O55: =H55/'Charges Summary'!H$4 -> 941349.0772
A56: ='DNSP Inputs General'!A$43 -> Sodium high pressure 250 watt | D56: =D51*'DNSP Inputs General'!Q43 -> 838626.5309 | E56: =E51*'DNSP Inputs General'!R43 -> 732282.947 | F56: =F51*'DNSP Inputs General'!S43 -> 640022.8609 | G56: =G51*'DNSP Inputs General'!T43 -> 560395.2118 | H56: =H51*'DNSP Inputs General'!U43 -> 531622.4934 | K56: =D56/'Charges Summary'!D$4 -> 819176.7464 | L56: =E56/'Charges Summary'!E$4 -> 698709.9962 | M56: =F56/'Charges Summary'!F$4 -> 596516.6094 | N56: =G56/'Charges Summary'!G$4 -> 510188.2916 | O56: =H56/'Charges Summary'!H$4 -> 472768.3972
A57: ='DNSP Inputs General'!A$44 -> Fluorescent 20 watt | D57: =IF('DNSP Inputs General'!$B44='DNSP Inputs General'!$A$41,D$49,IF('DNSP Inputs General'!$B44='DNSP Inputs General'!$A$42,D$50,D$51))*'DNSP Inputs General'!$D44*'DNSP Inputs General'!Q44 -> 0 | E57: =IF('DNSP Inputs General'!$B44='DNSP Inputs General'!$A$41,E$49,IF('DNSP Inputs General'!$B44='DNSP Inputs General'!$A$42,E$50,E$51))*'DNSP Inputs General'!$D44*'DNSP Inputs General'!R44 -> 0 | F57: =IF('DNSP Inputs General'!$B44='DNSP Inputs General'!$A$41,F$49,IF('DNSP Inputs General'!$B44='DNSP Inputs General'!$A$42,F$50,F$51))*'DNSP Inputs General'!$D44*'DNSP Inputs General'!S44 -> 0 | G57: =IF('DNSP Inputs General'!$B44='DNSP Inputs General'!$A$41,G$49,IF('DNSP Inputs General'!$B44='DNSP Inputs General'!$A$42,G$50,G$51))*'DNSP Inputs General'!$D44*'DNSP Inputs General'!T44 -> 0 | H57: =IF('DNSP Inputs General'!$B44='DNSP Inputs General'!$A$41,H$49,IF('DNSP Inputs General'!$B44='DNSP Inputs General'!$A$42,H$50,H$51))*'DNSP Inputs General'!$D44*'DNSP Inputs General'!U44 -> 0 | K57: =D57/'Charges Summary'!D$4 -> 0 | L57: =E57/'Charges Summary'!E$4 -> 0 | M57: =F57/'Charges Summary'!F$4 -> 0 | N57: =G57/'Charges Summary'!G$4 -> 0 | O57: =H57/'Charges Summary'!H$4 -> 0
A58: ='DNSP Inputs General'!A$45 -> Fluorescent 40 watt | D58: =IF('DNSP Inputs General'!$B45='DNSP Inputs General'!$A$41,D$49,IF('DNSP Inputs General'!$B45='DNSP Inputs General'!$A$42,D$50,D$51))*'DNSP Inputs General'!$D45*'DNSP Inputs General'!Q45 -> 0 | E58: =IF('DNSP Inputs General'!$B45='DNSP Inputs General'!$A$41,E$49,IF('DNSP Inputs General'!$B45='DNSP Inputs General'!$A$42,E$50,E$51))*'DNSP Inputs General'!$D45*'DNSP Inputs General'!R45 -> 0 | F58: =IF('DNSP Inputs General'!$B45='DNSP Inputs General'!$A$41,F$49,IF('DNSP Inputs General'!$B45='DNSP Inputs General'!$A$42,F$50,F$51))*'DNSP Inputs General'!$D45*'DNSP Inputs General'!S45 -> 0 | G58: =IF('DNSP Inputs General'!$B45='DNSP Inputs General'!$A$41,G$49,IF('DNSP Inputs General'!$B45='DNSP Inputs General'!$A$42,G$50,G$51))*'DNSP Inputs General'!$D45*'DNSP Inputs General'!T45 -> 0 | H58: =IF('DNSP Inputs General'!$B45='DNSP Inputs General'!$A$41,H$49,IF('DNSP Inputs General'!$B45='DNSP Inputs General'!$A$42,H$50,H$51))*'DNSP Inputs General'!$D45*'DNSP Inputs General'!U45 -> 0 | K58: =D58/'Charges Summary'!D$4 -> 0 | L58: =E58/'Charges Summary'!E$4 -> 0 | M58: =F58/'Charges Summary'!F$4 -> 0 | N58: =G58/'Charges Summary'!G$4 -> 0 | O58: =H58/'Charges Summary'!H$4 -> 0
A59: ='DNSP Inputs General'!A$46 -> Mercury vapour 50 watt | D59: =IF('DNSP Inputs General'!$B46='DNSP Inputs General'!$A$41,D$49,IF('DNSP Inputs General'!$B46='DNSP Inputs General'!$A$42,D$50,D$51))*'DNSP Inputs General'!$D46*'DNSP Inputs General'!Q46 -> 2101.833304 | E59: =IF('DNSP Inputs General'!$B46='DNSP Inputs General'!$A$41,E$49,IF('DNSP Inputs General'!$B46='DNSP Inputs General'!$A$42,E$50,E$51))*'DNSP Inputs General'!$D46*'DNSP Inputs General'!R46 -> 888.9277769 | F59: =IF('DNSP Inputs General'!$B46='DNSP Inputs General'!$A$41,F$49,IF('DNSP Inputs General'!$B46='DNSP Inputs General'!$A$42,F$50,F$51))*'DNSP Inputs General'!$D46*'DNSP Inputs General'!S46 -> 0 | G59: =IF('DNSP Inputs General'!$B46='DNSP Inputs General'!$A$41,G$49,IF('DNSP Inputs General'!$B46='DNSP Inputs General'!$A$42,G$50,G$51))*'DNSP Inputs General'!$D46*'DNSP Inputs General'!T46 -> 0 | H59: =IF('DNSP Inputs General'!$B46='DNSP Inputs General'!$A$41,H$49,IF('DNSP Inputs General'!$B46='DNSP Inputs General'!$A$42,H$50,H$51))*'DNSP Inputs General'!$D46*'DNSP Inputs General'!U46 -> 0 | K59: =D59/'Charges Summary'!D$4 -> 2053.086688 | L59: =E59/'Charges Summary'!E$4 -> 848.173136 | M59: =F59/'Charges Summary'!F$4 -> 0 | N59: =G59/'Charges Summary'!G$4 -> 0 | O59: =H59/'Charges Summary'!H$4 -> 0
A60: ='DNSP Inputs General'!A$47 -> Mercury vapour 125 watt | D60: =IF('DNSP Inputs General'!$B47='DNSP Inputs General'!$A$41,D$49,IF('DNSP Inputs General'!$B47='DNSP Inputs General'!$A$42,D$50,D$51))*'DNSP Inputs General'!$D47*'DNSP Inputs General'!Q47 -> 16280.38746 | E60: =IF('DNSP Inputs General'!$B47='DNSP Inputs General'!$A$41,E$49,IF('DNSP Inputs General'!$B47='DNSP Inputs General'!$A$42,E$50,E$51))*'DNSP Inputs General'!$D47*'DNSP Inputs General'!R47 -> 6885.459759 | F60: =IF('DNSP Inputs General'!$B47='DNSP Inputs General'!$A$41,F$49,IF('DNSP Inputs General'!$B47='DNSP Inputs General'!$A$42,F$50,F$51))*'DNSP Inputs General'!$D47*'DNSP Inputs General'!S47 -> 0 | G60: =IF('DNSP Inputs General'!$B47='DNSP Inputs General'!$A$41,G$49,IF('DNSP Inputs General'!$B47='DNSP Inputs General'!$A$42,G$50,G$51))*'DNSP Inputs General'!$D47*'DNSP Inputs General'!T47 -> 0 | H60: =IF('DNSP Inputs General'!$B47='DNSP Inputs General'!$A$41,H$49,IF('DNSP Inputs General'!$B47='DNSP Inputs General'!$A$42,H$50,H$51))*'DNSP Inputs General'!$D47*'DNSP Inputs General'!U47 -> 0 | K60: =D60/'Charges Summary'!D$4 -> 15902.80576 | L60: =E60/'Charges Summary'!E$4 -> 6569.782324 | M60: =F60/'Charges Summary'!F$4 -> 0 | N60: =G60/'Charges Summary'!G$4 -> 0 | O60: =H60/'Charges Summary'!H$4 -> 0
A61: ='DNSP Inputs General'!A$48 -> Mercury vapour 250 watt | D61: =IF('DNSP Inputs General'!$B48='DNSP Inputs General'!$A$41,D$49,IF('DNSP Inputs General'!$B48='DNSP Inputs General'!$A$42,D$50,D$51))*'DNSP Inputs General'!$D48*'DNSP Inputs General'!Q48 -> 5914.399643 | E61: =IF('DNSP Inputs General'!$B48='DNSP Inputs General'!$A$41,E$49,IF('DNSP Inputs General'!$B48='DNSP Inputs General'!$A$42,E$50,E$51))*'DNSP Inputs General'!$D48*'DNSP Inputs General'!R48 -> 2501.791904 | F61: =IF('DNSP Inputs General'!$B48='DNSP Inputs General'!$A$41,F$49,IF('DNSP Inputs General'!$B48='DNSP Inputs General'!$A$42,F$50,F$51))*'DNSP Inputs General'!$D48*'DNSP Inputs General'!S48 -> 0 | G61: =IF('DNSP Inputs General'!$B48='DNSP Inputs General'!$A$41,G$49,IF('DNSP Inputs General'!$B48='DNSP Inputs General'!$A$42,G$50,G$51))*'DNSP Inputs General'!$D48*'DNSP Inputs General'!T48 -> 0 | H61: =IF('DNSP Inputs General'!$B48='DNSP Inputs General'!$A$41,H$49,IF('DNSP Inputs General'!$B48='DNSP Inputs General'!$A$42,H$50,H$51))*'DNSP Inputs General'!$D48*'DNSP Inputs General'!U48 -> 0 | K61: =D61/'Charges Summary'!D$4 -> 5777.230361 | L61: =E61/'Charges Summary'!E$4 -> 2387.092338 | M61: =F61/'Charges Summary'!F$4 -> 0 | N61: =G61/'Charges Summary'!G$4 -> 0 | O61: =H61/'Charges Summary'!H$4 -> 0
A62: ='DNSP Inputs General'!A$49 -> Mercury vapour 400 watt | D62: =IF('DNSP Inputs General'!$B49='DNSP Inputs General'!$A$41,D$49,IF('DNSP Inputs General'!$B49='DNSP Inputs General'!$A$42,D$50,D$51))*'DNSP Inputs General'!$D49*'DNSP Inputs General'!Q49 -> 2023.347246 | E62: =IF('DNSP Inputs General'!$B49='DNSP Inputs General'!$A$41,E$49,IF('DNSP Inputs General'!$B49='DNSP Inputs General'!$A$42,E$50,E$51))*'DNSP Inputs General'!$D49*'DNSP Inputs General'!R49 -> 855.8761778 | F62: =IF('DNSP Inputs General'!$B49='DNSP Inputs General'!$A$41,F$49,IF('DNSP Inputs General'!$B49='DNSP Inputs General'!$A$42,F$50,F$51))*'DNSP Inputs General'!$D49*'DNSP Inputs General'!S49 -> 0 | G62: =IF('DNSP Inputs General'!$B49='DNSP Inputs General'!$A$41,G$49,IF('DNSP Inputs General'!$B49='DNSP Inputs General'!$A$42,G$50,G$51))*'DNSP Inputs General'!$D49*'DNSP Inputs General'!T49 -> 0 | H62: =IF('DNSP Inputs General'!$B49='DNSP Inputs General'!$A$41,H$49,IF('DNSP Inputs General'!$B49='DNSP Inputs General'!$A$42,H$50,H$51))*'DNSP Inputs General'!$D49*'DNSP Inputs General'!U49 -> 0 | K62: =D62/'Charges Summary'!D$4 -> 1976.420913 | L62: =E62/'Charges Summary'!E$4 -> 816.6368524 | M62: =F62/'Charges Summary'!F$4 -> 0 | N62: =G62/'Charges Summary'!G$4 -> 0 | O62: =H62/'Charges Summary'!H$4 -> 0
A63: ='DNSP Inputs General'!A$50 -> Mercury vapour 700 watt | D63: =IF('DNSP Inputs General'!$B50='DNSP Inputs General'!$A$41,D$49,IF('DNSP Inputs General'!$B50='DNSP Inputs General'!$A$42,D$50,D$51))*'DNSP Inputs General'!$D50*'DNSP Inputs General'!Q50 -> 0 | E63: =IF('DNSP Inputs General'!$B50='DNSP Inputs General'!$A$41,E$49,IF('DNSP Inputs General'!$B50='DNSP Inputs General'!$A$42,E$50,E$51))*'DNSP Inputs General'!$D50*'DNSP Inputs General'!R50 -> 0 | F63: =IF('DNSP Inputs General'!$B50='DNSP Inputs General'!$A$41,F$49,IF('DNSP Inputs General'!$B50='DNSP Inputs General'!$A$42,F$50,F$51))*'DNSP Inputs General'!$D50*'DNSP Inputs General'!S50 -> 0 | G63: =IF('DNSP Inputs General'!$B50='DNSP Inputs General'!$A$41,G$49,IF('DNSP Inputs General'!$B50='DNSP Inputs General'!$A$42,G$50,G$51))*'DNSP Inputs General'!$D50*'DNSP Inputs General'!T50 -> 0 | H63: =IF('DNSP Inputs General'!$B50='DNSP Inputs General'!$A$41,H$49,IF('DNSP Inputs General'!$B50='DNSP Inputs General'!$A$42,H$50,H$51))*'DNSP Inputs General'!$D50*'DNSP Inputs General'!U50 -> 0 | K63: =D63/'Charges Summary'!D$4 -> 0 | L63: =E63/'Charges Summary'!E$4 -> 0 | M63: =F63/'Charges Summary'!F$4 -> 0 | N63: =G63/'Charges Summary'!G$4 -> 0 | O63: =H63/'Charges Summary'!H$4 -> 0
A64: ='DNSP Inputs General'!A$51 -> Sodium low pressure 90 watt | D64: =IF('DNSP Inputs General'!$B51='DNSP Inputs General'!$A$41,D$49,IF('DNSP Inputs General'!$B51='DNSP Inputs General'!$A$42,D$50,D$51))*'DNSP Inputs General'!$D51*'DNSP Inputs General'!Q51 -> 0 | E64: =IF('DNSP Inputs General'!$B51='DNSP Inputs General'!$A$41,E$49,IF('DNSP Inputs General'!$B51='DNSP Inputs General'!$A$42,E$50,E$51))*'DNSP Inputs General'!$D51*'DNSP Inputs General'!R51 -> 0 | F64: =IF('DNSP Inputs General'!$B51='DNSP Inputs General'!$A$41,F$49,IF('DNSP Inputs General'!$B51='DNSP Inputs General'!$A$42,F$50,F$51))*'DNSP Inputs General'!$D51*'DNSP Inputs General'!S51 -> 0 | G64: =IF('DNSP Inputs General'!$B51='DNSP Inputs General'!$A$41,G$49,IF('DNSP Inputs General'!$B51='DNSP Inputs General'!$A$42,G$50,G$51))*'DNSP Inputs General'!$D51*'DNSP Inputs General'!T51 -> 0 | H64: =IF('DNSP Inputs General'!$B51='DNSP Inputs General'!$A$41,H$49,IF('DNSP Inputs General'!$B51='DNSP Inputs General'!$A$42,H$50,H$51))*'DNSP Inputs General'!$D51*'DNSP Inputs General'!U51 -> 0 | K64: =D64/'Charges Summary'!D$4 -> 0 | L64: =E64/'Charges Summary'!E$4 -> 0 | M64: =F64/'Charges Summary'!F$4 -> 0 | N64: =G64/'Charges Summary'!G$4 -> 0 | O64: =H64/'Charges Summary'!H$4 -> 0
A65: ='DNSP Inputs General'!A$52 -> Sodium low pressure 180 watt | D65: =IF('DNSP Inputs General'!$B52='DNSP Inputs General'!$A$41,D$49,IF('DNSP Inputs General'!$B52='DNSP Inputs General'!$A$42,D$50,D$51))*'DNSP Inputs General'!$D52*'DNSP Inputs General'!Q52 -> 0 | E65: =IF('DNSP Inputs General'!$B52='DNSP Inputs General'!$A$41,E$49,IF('DNSP Inputs General'!$B52='DNSP Inputs General'!$A$42,E$50,E$51))*'DNSP Inputs General'!$D52*'DNSP Inputs General'!R52 -> 0 | F65: =IF('DNSP Inputs General'!$B52='DNSP Inputs General'!$A$41,F$49,IF('DNSP Inputs General'!$B52='DNSP Inputs General'!$A$42,F$50,F$51))*'DNSP Inputs General'!$D52*'DNSP Inputs General'!S52 -> 0 | G65: =IF('DNSP Inputs General'!$B52='DNSP Inputs General'!$A$41,G$49,IF('DNSP Inputs General'!$B52='DNSP Inputs General'!$A$42,G$50,G$51))*'DNSP Inputs General'!$D52*'DNSP Inputs General'!T52 -> 0 | H65: =IF('DNSP Inputs General'!$B52='DNSP Inputs General'!$A$41,H$49,IF('DNSP Inputs General'!$B52='DNSP Inputs General'!$A$42,H$50,H$51))*'DNSP Inputs General'!$D52*'DNSP Inputs General'!U52 -> 0 | K65: =D65/'Charges Summary'!D$4 -> 0 | L65: =E65/'Charges Summary'!E$4 -> 0 | M65: =F65/'Charges Summary'!F$4 -> 0 | N65: =G65/'Charges Summary'!G$4 -> 0 | O65: =H65/'Charges Summary'!H$4 -> 0
A66: ='DNSP Inputs General'!A$53 -> Sodium high pressure 400 watt | D66: =IF('DNSP Inputs General'!$B53='DNSP Inputs General'!$A$41,D$49,IF('DNSP Inputs General'!$B53='DNSP Inputs General'!$A$42,D$50,D$51))*'DNSP Inputs General'!$D53*'DNSP Inputs General'!Q53 -> 60681.58784 | E66: =IF('DNSP Inputs General'!$B53='DNSP Inputs General'!$A$41,E$49,IF('DNSP Inputs General'!$B53='DNSP Inputs General'!$A$42,E$50,E$51))*'DNSP Inputs General'!$D53*'DNSP Inputs General'!R53 -> 52986.74718 | F66: =IF('DNSP Inputs General'!$B53='DNSP Inputs General'!$A$41,F$49,IF('DNSP Inputs General'!$B53='DNSP Inputs General'!$A$42,F$50,F$51))*'DNSP Inputs General'!$D53*'DNSP Inputs General'!S53 -> 46310.96445 | G66: =IF('DNSP Inputs General'!$B53='DNSP Inputs General'!$A$41,G$49,IF('DNSP Inputs General'!$B53='DNSP Inputs General'!$A$42,G$50,G$51))*'DNSP Inputs General'!$D53*'DNSP Inputs General'!T53 -> 40549.24333 | H66: =IF('DNSP Inputs General'!$B53='DNSP Inputs General'!$A$41,H$49,IF('DNSP Inputs General'!$B53='DNSP Inputs General'!$A$42,H$50,H$51))*'DNSP Inputs General'!$D53*'DNSP Inputs General'!U53 -> 38467.29843 | K66: =D66/'Charges Summary'!D$4 -> 59274.23455 | L66: =E66/'Charges Summary'!E$4 -> 50557.46562 | M66: =F66/'Charges Summary'!F$4 -> 43162.92616 | N66: =G66/'Charges Summary'!G$4 -> 36916.35608 | O66: =H66/'Charges Summary'!H$4 -> 34208.71623
A67: ='DNSP Inputs General'!A$54 -> Incandescent 100 watt | D67: =IF('DNSP Inputs General'!$B54='DNSP Inputs General'!$A$41,D$49,IF('DNSP Inputs General'!$B54='DNSP Inputs General'!$A$42,D$50,D$51))*'DNSP Inputs General'!$D54*'DNSP Inputs General'!Q54 -> 0 | E67: =IF('DNSP Inputs General'!$B54='DNSP Inputs General'!$A$41,E$49,IF('DNSP Inputs General'!$B54='DNSP Inputs General'!$A$42,E$50,E$51))*'DNSP Inputs General'!$D54*'DNSP Inputs General'!R54 -> 0 | F67: =IF('DNSP Inputs General'!$B54='DNSP Inputs General'!$A$41,F$49,IF('DNSP Inputs General'!$B54='DNSP Inputs General'!$A$42,F$50,F$51))*'DNSP Inputs General'!$D54*'DNSP Inputs General'!S54 -> 0 | G67: =IF('DNSP Inputs General'!$B54='DNSP Inputs General'!$A$41,G$49,IF('DNSP Inputs General'!$B54='DNSP Inputs General'!$A$42,G$50,G$51))*'DNSP Inputs General'!$D54*'DNSP Inputs General'!T54 -> 0 | H67: =IF('DNSP Inputs General'!$B54='DNSP Inputs General'!$A$41,H$49,IF('DNSP Inputs General'!$B54='DNSP Inputs General'!$A$42,H$50,H$51))*'DNSP Inputs General'!$D54*'DNSP Inputs General'!U54 -> 0 | K67: =D67/'Charges Summary'!D$4 -> 0 | L67: =E67/'Charges Summary'!E$4 -> 0 | M67: =F67/'Charges Summary'!F$4 -> 0 | N67: =G67/'Charges Summary'!G$4 -> 0 | O67: =H67/'Charges Summary'!H$4 -> 0
A68: ='DNSP Inputs General'!A$55 -> Incandescent 150 watt | D68: =IF('DNSP Inputs General'!$B55='DNSP Inputs General'!$A$41,D$49,IF('DNSP Inputs General'!$B55='DNSP Inputs General'!$A$42,D$50,D$51))*'DNSP Inputs General'!$D55*'DNSP Inputs General'!Q55 -> 0 | E68: =IF('DNSP Inputs General'!$B55='DNSP Inputs General'!$A$41,E$49,IF('DNSP Inputs General'!$B55='DNSP Inputs General'!$A$42,E$50,E$51))*'DNSP Inputs General'!$D55*'DNSP Inputs General'!R55 -> 0 | F68: =IF('DNSP Inputs General'!$B55='DNSP Inputs General'!$A$41,F$49,IF('DNSP Inputs General'!$B55='DNSP Inputs General'!$A$42,F$50,F$51))*'DNSP Inputs General'!$D55*'DNSP Inputs General'!S55 -> 0 | G68: =IF('DNSP Inputs General'!$B55='DNSP Inputs General'!$A$41,G$49,IF('DNSP Inputs General'!$B55='DNSP Inputs General'!$A$42,G$50,G$51))*'DNSP Inputs General'!$D55*'DNSP Inputs General'!T55 -> 0 | H68: =IF('DNSP Inputs General'!$B55='DNSP Inputs General'!$A$41,H$49,IF('DNSP Inputs General'!$B55='DNSP Inputs General'!$A$42,H$50,H$51))*'DNSP Inputs General'!$D55*'DNSP Inputs General'!U55 -> 0 | K68: =D68/'Charges Summary'!D$4 -> 0 | L68: =E68/'Charges Summary'!E$4 -> 0 | M68: =F68/'Charges Summary'!F$4 -> 0 | N68: =G68/'Charges Summary'!G$4 -> 0 | O68: =H68/'Charges Summary'!H$4 -> 0
A69: ='DNSP Inputs General'!A$56 -> Metal halide 250 watt | D69: =IF('DNSP Inputs General'!$B56='DNSP Inputs General'!$A$41,D$49,IF('DNSP Inputs General'!$B56='DNSP Inputs General'!$A$42,D$50,D$51))*'DNSP Inputs General'!$D56*'DNSP Inputs General'!Q56 -> 830.3922713 | E69: =IF('DNSP Inputs General'!$B56='DNSP Inputs General'!$A$41,E$49,IF('DNSP Inputs General'!$B56='DNSP Inputs General'!$A$42,E$50,E$51))*'DNSP Inputs General'!$D56*'DNSP Inputs General'!R56 -> 666.3015359 | F69: =IF('DNSP Inputs General'!$B56='DNSP Inputs General'!$A$41,F$49,IF('DNSP Inputs General'!$B56='DNSP Inputs General'!$A$42,F$50,F$51))*'DNSP Inputs General'!$D56*'DNSP Inputs General'!S56 -> 479.5859978 | G69: =IF('DNSP Inputs General'!$B56='DNSP Inputs General'!$A$41,G$49,IF('DNSP Inputs General'!$B56='DNSP Inputs General'!$A$42,G$50,G$51))*'DNSP Inputs General'!$D56*'DNSP Inputs General'!T56 -> 203.4209212 | H69: =IF('DNSP Inputs General'!$B56='DNSP Inputs General'!$A$41,H$49,IF('DNSP Inputs General'!$B56='DNSP Inputs General'!$A$42,H$50,H$51))*'DNSP Inputs General'!$D56*'DNSP Inputs General'!U56 -> 0 | K69: =D69/'Charges Summary'!D$4 -> 811.1334591 | L69: =E69/'Charges Summary'!E$4 -> 635.7536325 | M69: =F69/'Charges Summary'!F$4 -> 446.9856169 | N69: =G69/'Charges Summary'!G$4 -> 185.1960368 | O69: =H69/'Charges Summary'!H$4 -> 0
A70: ='DNSP Inputs General'!A$57 -> Metal halide 400 watt | D70: =IF('DNSP Inputs General'!$B57='DNSP Inputs General'!$A$41,D$49,IF('DNSP Inputs General'!$B57='DNSP Inputs General'!$A$42,D$50,D$51))*'DNSP Inputs General'!$D57*'DNSP Inputs General'!Q57 -> 6567.647964 | E70: =IF('DNSP Inputs General'!$B57='DNSP Inputs General'!$A$41,E$49,IF('DNSP Inputs General'!$B57='DNSP Inputs General'!$A$42,E$50,E$51))*'DNSP Inputs General'!$D57*'DNSP Inputs General'!R57 -> 5269.83942 | F70: =IF('DNSP Inputs General'!$B57='DNSP Inputs General'!$A$41,F$49,IF('DNSP Inputs General'!$B57='DNSP Inputs General'!$A$42,F$50,F$51))*'DNSP Inputs General'!$D57*'DNSP Inputs General'!S57 -> 3793.089255 | G70: =IF('DNSP Inputs General'!$B57='DNSP Inputs General'!$A$41,G$49,IF('DNSP Inputs General'!$B57='DNSP Inputs General'!$A$42,G$50,G$51))*'DNSP Inputs General'!$D57*'DNSP Inputs General'!T57 -> 2735.08675 | H70: =IF('DNSP Inputs General'!$B57='DNSP Inputs General'!$A$41,H$49,IF('DNSP Inputs General'!$B57='DNSP Inputs General'!$A$42,H$50,H$51))*'DNSP Inputs General'!$D57*'DNSP Inputs General'!U57 -> 2325.315889 | K70: =D70/'Charges Summary'!D$4 -> 6415.328268 | L70: =E70/'Charges Summary'!E$4 -> 5028.233275 | M70: =F70/'Charges Summary'!F$4 -> 3535.249879 | N70: =G70/'Charges Summary'!G$4 -> 2490.044895 | O70: =H70/'Charges Summary'!H$4 -> 2067.888171
A71: ='DNSP Inputs General'!A$58 -> Metal halide 70 watt | D71: =IF('DNSP Inputs General'!$B58='DNSP Inputs General'!$A$41,D$49,IF('DNSP Inputs General'!$B58='DNSP Inputs General'!$A$42,D$50,D$51))*'DNSP Inputs General'!$D58*'DNSP Inputs General'!Q58 -> 19940.15535 | E71: =IF('DNSP Inputs General'!$B58='DNSP Inputs General'!$A$41,E$49,IF('DNSP Inputs General'!$B58='DNSP Inputs General'!$A$42,E$50,E$51))*'DNSP Inputs General'!$D58*'DNSP Inputs General'!R58 -> 15997.19156 | F71: =IF('DNSP Inputs General'!$B58='DNSP Inputs General'!$A$41,F$49,IF('DNSP Inputs General'!$B58='DNSP Inputs General'!$A$42,F$50,F$51))*'DNSP Inputs General'!$D58*'DNSP Inputs General'!S58 -> 11512.64974 | G71: =IF('DNSP Inputs General'!$B58='DNSP Inputs General'!$A$41,G$49,IF('DNSP Inputs General'!$B58='DNSP Inputs General'!$A$42,G$50,G$51))*'DNSP Inputs General'!$D58*'DNSP Inputs General'!T58 -> 8299.682317 | H71: =IF('DNSP Inputs General'!$B58='DNSP Inputs General'!$A$41,H$49,IF('DNSP Inputs General'!$B58='DNSP Inputs General'!$A$42,H$50,H$51))*'DNSP Inputs General'!$D58*'DNSP Inputs General'!U58 -> 7057.847974 | K71: =D71/'Charges Summary'!D$4 -> 19477.69475 | L71: =E71/'Charges Summary'!E$4 -> 15263.76888 | M71: =F71/'Charges Summary'!F$4 -> 10730.06483 | N71: =G71/'Charges Summary'!G$4 -> 7556.097292 | O71: =H71/'Charges Summary'!H$4 -> 6276.497919
A72: ='DNSP Inputs General'!A$59 -> Metal halide 150 watt | D72: =IF('DNSP Inputs General'!$B59='DNSP Inputs General'!$A$41,D$49,IF('DNSP Inputs General'!$B59='DNSP Inputs General'!$A$42,D$50,D$51))*'DNSP Inputs General'!$D59*'DNSP Inputs General'!Q59 -> 0 | E72: =IF('DNSP Inputs General'!$B59='DNSP Inputs General'!$A$41,E$49,IF('DNSP Inputs General'!$B59='DNSP Inputs General'!$A$42,E$50,E$51))*'DNSP Inputs General'!$D59*'DNSP Inputs General'!R59 -> 0 | F72: =IF('DNSP Inputs General'!$B59='DNSP Inputs General'!$A$41,F$49,IF('DNSP Inputs General'!$B59='DNSP Inputs General'!$A$42,F$50,F$51))*'DNSP Inputs General'!$D59*'DNSP Inputs General'!S59 -> 0 | G72: =IF('DNSP Inputs General'!$B59='DNSP Inputs General'!$A$41,G$49,IF('DNSP Inputs General'!$B59='DNSP Inputs General'!$A$42,G$50,G$51))*'DNSP Inputs General'!$D59*'DNSP Inputs General'!T59 -> 0 | H72: =IF('DNSP Inputs General'!$B59='DNSP Inputs General'!$A$41,H$49,IF('DNSP Inputs General'!$B59='DNSP Inputs General'!$A$42,H$50,H$51))*'DNSP Inputs General'!$D59*'DNSP Inputs General'!U59 -> 0 | K72: =D72/'Charges Summary'!D$4 -> 0 | L72: =E72/'Charges Summary'!E$4 -> 0 | M72: =F72/'Charges Summary'!F$4 -> 0 | N72: =G72/'Charges Summary'!G$4 -> 0 | O72: =H72/'Charges Summary'!H$4 -> 0
A78: ='DNSP Inputs General'!A$67 -> Energy Efficient Lights
A79: ='DNSP Inputs General'!B$68 -> T5 2X14W | D79: =SUM('Charges Summary'!D97,'Charges Summary'!D8)*'DNSP Inputs General'!$D68*'DNSP Inputs General'!Q68 -> 331160.3138 | E79: =SUM('Charges Summary'!E97,'Charges Summary'!E8)*'DNSP Inputs General'!$D68*'DNSP Inputs General'!R68 -> 289186.9905 | F79: =SUM('Charges Summary'!F97,'Charges Summary'!F8)*'DNSP Inputs General'!$D68*'DNSP Inputs General'!S68 -> 252779.2732 | G79: =SUM('Charges Summary'!G97,'Charges Summary'!G8)*'DNSP Inputs General'!$D68*'DNSP Inputs General'!T68 -> 221336.7841 | H79: =SUM('Charges Summary'!H97,'Charges Summary'!H8)*'DNSP Inputs General'!$D68*'DNSP Inputs General'!U68 -> 210079.1446 | K79: =D79/'Charges Summary'!D$4 -> 323479.9024 | L79: =E79/'Charges Summary'!E$4 -> 275928.6446 | M79: =F79/'Charges Summary'!F$4 -> 235596.3266 | N79: =G79/'Charges Summary'!G$4 -> 201506.7819 | O79: =H79/'Charges Summary'!H$4 -> 186822.0056
A80: ='DNSP Inputs General'!B$69 -> T5 2X14W | D80: =SUM('Charges Summary'!D$97,'Charges Summary'!D$8)*'DNSP Inputs General'!$D69*'DNSP Inputs General'!Q69 -> 31757.90123 | E80: =SUM('Charges Summary'!E$97,'Charges Summary'!E$8)*'DNSP Inputs General'!$D69*'DNSP Inputs General'!R69 -> 27732.70679 | F80: =SUM('Charges Summary'!F$97,'Charges Summary'!F$8)*'DNSP Inputs General'!$D69*'DNSP Inputs General'!S69 -> 24241.24769 | G80: =SUM('Charges Summary'!G$97,'Charges Summary'!G$8)*'DNSP Inputs General'!$D69*'DNSP Inputs General'!T69 -> 21225.94839 | H80: =SUM('Charges Summary'!H$97,'Charges Summary'!H$8)*'DNSP Inputs General'!$D69*'DNSP Inputs General'!U69 -> 20146.35344 | K80: =D80/'Charges Summary'!D$4 -> 31021.35843 | L80: =E80/'Charges Summary'!E$4 -> 26461.24634 | M80: =F80/'Charges Summary'!F$4 -> 22593.42246 | N80: =G80/'Charges Summary'!G$4 -> 19324.27351 | O80: =H80/'Charges Summary'!H$4 -> 17916.02
A81: ='DNSP Inputs General'!B$70 -> T5 2X14W | D81: =SUM('Charges Summary'!D$97,'Charges Summary'!D$8)*'DNSP Inputs General'!$D70*'DNSP Inputs General'!Q70 -> 87188.10829 | E81: =SUM('Charges Summary'!E$97,'Charges Summary'!E$8)*'DNSP Inputs General'!$D70*'DNSP Inputs General'!R70 -> 62701.34191 | F81: =SUM('Charges Summary'!F$97,'Charges Summary'!F$8)*'DNSP Inputs General'!$D70*'DNSP Inputs General'!S70 -> 45135.54168 | G81: =SUM('Charges Summary'!G$97,'Charges Summary'!G$8)*'DNSP Inputs General'!$D70*'DNSP Inputs General'!T70 -> 32546.92087 | H81: =SUM('Charges Summary'!H$97,'Charges Summary'!H$8)*'DNSP Inputs General'!$D70*'DNSP Inputs General'!U70 -> 27684.78621 | K81: =D81/'Charges Summary'!D$4 -> 85166.00446 | L81: =E81/'Charges Summary'!E$4 -> 59826.67566 | M81: =F81/'Charges Summary'!F$4 -> 42067.40404 | N81: =G81/'Charges Summary'!G$4 -> 29630.97758 | O81: =H81/'Charges Summary'!H$4 -> 24619.89883
A82: ='DNSP Inputs General'!B$71 -> T5 2X14W | D82: =SUM('Charges Summary'!D$97,'Charges Summary'!D$8)*'DNSP Inputs General'!$D71*'DNSP Inputs General'!Q71 -> 81354.02301 | E82: =SUM('Charges Summary'!E$97,'Charges Summary'!E$8)*'DNSP Inputs General'!$D71*'DNSP Inputs General'!R71 -> 58505.75855 | F82: =SUM('Charges Summary'!F$97,'Charges Summary'!F$8)*'DNSP Inputs General'!$D71*'DNSP Inputs General'!S71 -> 42115.35229 | G82: =SUM('Charges Summary'!G$97,'Charges Summary'!G$8)*'DNSP Inputs General'!$D71*'DNSP Inputs General'!T71 -> 30369.08359 | H82: =SUM('Charges Summary'!H$97,'Charges Summary'!H$8)*'DNSP Inputs General'!$D71*'DNSP Inputs General'!U71 -> 25832.29271 | K82: =D82/'Charges Summary'!D$4 -> 79467.22577 | L82: =E82/'Charges Summary'!E$4 -> 55823.44707 | M82: =F82/'Charges Summary'!F$4 -> 39252.51532 | N82: =G82/'Charges Summary'!G$4 -> 27648.25707 | O82: =H82/'Charges Summary'!H$4 -> 22972.48851
A83: ='DNSP Inputs General'!B$72 -> Category P LED Standard Output | D83: =SUM('Charges Summary'!D$114,'Charges Summary'!D$8)*'DNSP Inputs General'!$D72*'DNSP Inputs General'!Q72 -> 1370499.521 | E83: =SUM('Charges Summary'!E114,'Charges Summary'!E8)*'DNSP Inputs General'!$D72*'DNSP Inputs General'!R72 -> 1550265.201 | F83: =SUM('Charges Summary'!F114,'Charges Summary'!F8)*'DNSP Inputs General'!$D72*'DNSP Inputs General'!S72 -> 1721913.682 | G83: =SUM('Charges Summary'!G114,'Charges Summary'!G8)*'DNSP Inputs General'!$D72*'DNSP Inputs General'!T72 -> 1891944.784 | H83: =SUM('Charges Summary'!H114,'Charges Summary'!H8)*'DNSP Inputs General'!$D72*'DNSP Inputs General'!U72 -> 2019124.116 | K83: =D83/'Charges Summary'!D$4 -> 1338714.311 | L83: =E83/'Charges Summary'!E$4 -> 1479190.246 | M83: =F83/'Charges Summary'!F$4 -> 1604864.722 | N83: =G83/'Charges Summary'!G$4 -> 1722441.692 | O83: =H83/'Charges Summary'!H$4 -> 1795593.836
A84: ='DNSP Inputs General'!B$73 -> Category P LED Standard Output | D84: =SUM('Charges Summary'!D$114,'Charges Summary'!D$8)*'DNSP Inputs General'!$D73*'DNSP Inputs General'!Q73 -> 6946.20019 | E84: =SUM('Charges Summary'!E$114,'Charges Summary'!E$8)*'DNSP Inputs General'!$D73*'DNSP Inputs General'!R73 -> 9526.703272 | F84: =SUM('Charges Summary'!F$114,'Charges Summary'!F$8)*'DNSP Inputs General'!$D73*'DNSP Inputs General'!S73 -> 11618.2542 | G84: =SUM('Charges Summary'!G$114,'Charges Summary'!G$8)*'DNSP Inputs General'!$D73*'DNSP Inputs General'!T73 -> 12220.22407 | H84: =SUM('Charges Summary'!H$114,'Charges Summary'!H$8)*'DNSP Inputs General'!$D73*'DNSP Inputs General'!U73 -> 12791.64983 | K84: =D84/'Charges Summary'!D$4 -> 6785.10095 | L84: =E84/'Charges Summary'!E$4 -> 9089.932838 | M84: =F84/'Charges Summary'!F$4 -> 10828.49071 | N84: =G84/'Charges Summary'!G$4 -> 11125.38992 | O84: =H84/'Charges Summary'!H$4 -> 11375.53031
A85: ='DNSP Inputs General'!B$74 -> Category V LED L1 Standard Output | D85: =SUM('Charges Summary'!D$132,'Charges Summary'!D$8)*'DNSP Inputs General'!$D74*'DNSP Inputs General'!Q74 -> 463632.7372 | E85: =SUM('Charges Summary'!E$132,'Charges Summary'!E$8)*'DNSP Inputs General'!$D74*'DNSP Inputs General'!R74 -> 596087.7766 | F85: =SUM('Charges Summary'!F$132,'Charges Summary'!F$8)*'DNSP Inputs General'!$D74*'DNSP Inputs General'!S74 -> 721430.1024 | G85: =SUM('Charges Summary'!G$132,'Charges Summary'!G$8)*'DNSP Inputs General'!$D74*'DNSP Inputs General'!T74 -> 841086.8288 | H85: =SUM('Charges Summary'!H$132,'Charges Summary'!H$8)*'DNSP Inputs General'!$D74*'DNSP Inputs General'!U74 -> 916853.7347 | K85: =D85/'Charges Summary'!D$4 -> 452879.9688 | L85: =E85/'Charges Summary'!E$4 -> 568758.961 | M85: =F85/'Charges Summary'!F$4 -> 672390.1049 | N85: =G85/'Charges Summary'!G$4 -> 765732.1891 | O85: =H85/'Charges Summary'!H$4 -> 815352.0137
A86: ='DNSP Inputs General'!B$75 -> Category V LED L1 Standard Output | D86: =SUM('Charges Summary'!D$132,'Charges Summary'!D$8)*'DNSP Inputs General'!$D75*'DNSP Inputs General'!Q75 -> 216017.9329 | E86: =SUM('Charges Summary'!E$132,'Charges Summary'!E$8)*'DNSP Inputs General'!$D75*'DNSP Inputs General'!R75 -> 288885.8885 | F86: =SUM('Charges Summary'!F$132,'Charges Summary'!F$8)*'DNSP Inputs General'!$D75*'DNSP Inputs General'!S75 -> 357994.4455 | G86: =SUM('Charges Summary'!G$132,'Charges Summary'!G$8)*'DNSP Inputs General'!$D75*'DNSP Inputs General'!T75 -> 423650.8499 | H86: =SUM('Charges Summary'!H$132,'Charges Summary'!H$8)*'DNSP Inputs General'!$D75*'DNSP Inputs General'!U75 -> 464412.2024 | K86: =D86/'Charges Summary'!D$4 -> 211007.9528 | L86: =E86/'Charges Summary'!E$4 -> 275641.3472 | M86: =F86/'Charges Summary'!F$4 -> 333659.3829 | N86: =G86/'Charges Summary'!G$4 -> 385695.1287 | O86: =H86/'Charges Summary'!H$4 -> 412998.7261
A87: ='DNSP Inputs General'!B$76 -> Category V LED L1 Standard Output | D87: =SUM('Charges Summary'!D$132,'Charges Summary'!D$8)*'DNSP Inputs General'!$D76*'DNSP Inputs General'!Q76 -> 5458.389459 | E87: =SUM('Charges Summary'!E$132,'Charges Summary'!E$8)*'DNSP Inputs General'!$D76*'DNSP Inputs General'!R76 -> 6450.102717 | F87: =SUM('Charges Summary'!F$132,'Charges Summary'!F$8)*'DNSP Inputs General'!$D76*'DNSP Inputs General'!S76 -> 7291.419944 | G87: =SUM('Charges Summary'!G$132,'Charges Summary'!G$8)*'DNSP Inputs General'!$D76*'DNSP Inputs General'!T76 -> 7662.377141 | H87: =SUM('Charges Summary'!H$132,'Charges Summary'!H$8)*'DNSP Inputs General'!$D76*'DNSP Inputs General'!U76 -> 7997.486161 | K87: =D87/'Charges Summary'!D$4 -> 5331.79616 | L87: =E87/'Charges Summary'!E$4 -> 6154.385081 | M87: =F87/'Charges Summary'!F$4 -> 6795.777726 | N87: =G87/'Charges Summary'!G$4 -> 6975.889552 | O87: =H87/'Charges Summary'!H$4 -> 7112.111997
A89: Total O & M | D89: =SUM(D54:D88) -> 6297835.432 | E89: =SUM(E54:E88) -> 6109554.753 | F89: =SUM(F54:F88) -> 5985788.795 | G89: =SUM(G54:G88) -> 5932065.94 | H89: =SUM(H54:H88) -> 6028034.397 | K89: =SUM(K54:K88) -> 6151773.343 | L89: =SUM(L54:L88) -> 5829450.208 | M89: =SUM(M54:M88) -> 5578898.278 | N89: =SUM(N54:N88) -> 5400600.369 | O89: =SUM(O54:O88) -> 5360691.459
A92: Public Lighting - Capital Charge | D92: Capital Charge - Nominal | K92: Capital Charge - Real 2021 $
D93: =D$2 -> 2021/22 | E93: =E$2 -> 2022/23 | F93: =F$2 -> 2023/24 | G93: =G$2 -> 2024/25 | H93: =H$2 -> 2025/26 | K93: =K$2 -> 2021/22 | L93: =L$2 -> 2022/23 | M93: =M$2 -> 2023/24 | N93: =N$2 -> 2024/25 | O93: =O$2 -> 2025/26
A95: Unit cost
A96: ='DNSP Inputs General'!A$41 -> Mercury vapour 80 watt | D96: =SUM('Charges Summary'!D27,'Charges Summary'!D11) -> 25.46153533 | E96: =SUM('Charges Summary'!E27,'Charges Summary'!E11) -> 23.95892286 | F96: =SUM('Charges Summary'!F27,'Charges Summary'!F11) -> 20.84653888 | G96: =SUM('Charges Summary'!G27,'Charges Summary'!G11) -> 22.29918811 | H96: =SUM('Charges Summary'!H27,'Charges Summary'!H11) -> 22.86956406
A97: ='DNSP Inputs General'!A$42 -> Sodium high pressure 150 watt | D97: =SUM('Charges Summary'!D51,'Charges Summary'!D11) -> 25.81452667 | E97: =SUM('Charges Summary'!E51,'Charges Summary'!E11) -> 24.28158137 | F97: =SUM('Charges Summary'!F51,'Charges Summary'!F11) -> 23.31278027 | G97: =SUM('Charges Summary'!G51,'Charges Summary'!G11) -> 25.02115716 | H97: =SUM('Charges Summary'!H51,'Charges Summary'!H11) -> 25.67050915
A98: ='DNSP Inputs General'!A$43 -> Sodium high pressure 250 watt | D98: =SUM('Charges Summary'!D74,'Charges Summary'!D11) -> 27.5164953 | E98: =SUM('Charges Summary'!E74,'Charges Summary'!E11) -> 25.83729851 | F98: =SUM('Charges Summary'!F74,'Charges Summary'!F11) -> 23.54979117 | G98: =SUM('Charges Summary'!G74,'Charges Summary'!G11) -> 25.28274402 | H98: =SUM('Charges Summary'!H74,'Charges Summary'!H11) -> 25.93968577
A100: ='DNSP Inputs General'!A$40 -> Existing Lights
A101: ='DNSP Inputs General'!A$41 -> Mercury vapour 80 watt | D101: =D96*'DNSP Inputs General'!Q41 -> 614116.9076 | E101: =E96*'DNSP Inputs General'!R41 -> 491193.5792 | F101: =F96*'DNSP Inputs General'!S41 -> 363277.3138 | G101: =G96*'DNSP Inputs General'!T41 -> 330302.8298 | H101: =H96*'DNSP Inputs General'!U41 -> 311285.0923 | K101: =D101/'Charges Summary'!D$4 -> 599874.0461 | L101: =E101/'Charges Summary'!E$4 -> 468673.8442 | M101: =F101/'Charges Summary'!F$4 -> 338583.1425 | N101: =G101/'Charges Summary'!G$4 -> 300710.3432 | O101: =H101/'Charges Summary'!H$4 -> 276823.7913
A102: ='DNSP Inputs General'!A$42 -> Sodium high pressure 150 watt | D102: =D97*'DNSP Inputs General'!Q42 -> 507444.4889 | E102: =E97*'DNSP Inputs General'!R42 -> 405714.2548 | F102: =F97*'DNSP Inputs General'!S42 -> 331097.8004 | G102: =G97*'DNSP Inputs General'!T42 -> 302056.7476 | H102: =H97*'DNSP Inputs General'!U42 -> 284769.0763 | K102: =D102/'Charges Summary'!D$4 -> 495675.6197 | L102: =E102/'Charges Summary'!E$4 -> 387113.4875 | M102: =F102/'Charges Summary'!F$4 -> 308591.0666 | N102: =G102/'Charges Summary'!G$4 -> 274994.8836 | O102: =H102/'Charges Summary'!H$4 -> 253243.2721
A103: ='DNSP Inputs General'!A$43 -> Sodium high pressure 250 watt | D103: =D98*'DNSP Inputs General'!Q43 -> 271707.9388 | E103: =E98*'DNSP Inputs General'!R43 -> 216857.8951 | F103: =F98*'DNSP Inputs General'!S43 -> 168009.6091 | G103: =G98*'DNSP Inputs General'!T43 -> 153316.9582 | H103: =H98*'DNSP Inputs General'!U43 -> 144546.6032 | K103: =D103/'Charges Summary'!D$4 -> 265406.3722 | L103: =E103/'Charges Summary'!E$4 -> 206915.6187 | M103: =F103/'Charges Summary'!F$4 -> 156588.9728 | N103: =G103/'Charges Summary'!G$4 -> 139580.9874 | O103: =H103/'Charges Summary'!H$4 -> 128544.3464
A104: ='DNSP Inputs General'!A$44 -> Fluorescent 20 watt | D104: =IF('DNSP Inputs General'!$B44='DNSP Inputs General'!$A$41,D$96,IF('DNSP Inputs General'!$B44='DNSP Inputs General'!$A$42,D$97,D$98))*'DNSP Inputs General'!$D44*'DNSP Inputs General'!Q44 -> 0 | E104: =IF('DNSP Inputs General'!$B44='DNSP Inputs General'!$A$41,E$96,IF('DNSP Inputs General'!$B44='DNSP Inputs General'!$A$42,E$97,E$98))*'DNSP Inputs General'!$D44*'DNSP Inputs General'!R44 -> 0 | F104: =IF('DNSP Inputs General'!$B44='DNSP Inputs General'!$A$41,F$96,IF('DNSP Inputs General'!$B44='DNSP Inputs General'!$A$42,F$97,F$98))*'DNSP Inputs General'!$D44*'DNSP Inputs General'!S44 -> 0 | G104: =IF('DNSP Inputs General'!$B44='DNSP Inputs General'!$A$41,G$96,IF('DNSP Inputs General'!$B44='DNSP Inputs General'!$A$42,G$97,G$98))*'DNSP Inputs General'!$D44*'DNSP Inputs General'!T44 -> 0 | H104: =IF('DNSP Inputs General'!$B44='DNSP Inputs General'!$A$41,H$96,IF('DNSP Inputs General'!$B44='DNSP Inputs General'!$A$42,H$97,H$98))*'DNSP Inputs General'!$D44*'DNSP Inputs General'!U44 -> 0 | K104: =D104/'Charges Summary'!D$4 -> 0 | L104: =E104/'Charges Summary'!E$4 -> 0 | M104: =F104/'Charges Summary'!F$4 -> 0 | N104: =G104/'Charges Summary'!G$4 -> 0 | O104: =H104/'Charges Summary'!H$4 -> 0
A105: ='DNSP Inputs General'!A$45 -> Fluorescent 40 watt | D105: =IF('DNSP Inputs General'!$B45='DNSP Inputs General'!$A$41,D$96,IF('DNSP Inputs General'!$B45='DNSP Inputs General'!$A$42,D$97,D$98))*'DNSP Inputs General'!$D45*'DNSP Inputs General'!Q45 -> 0 | E105: =IF('DNSP Inputs General'!$B45='DNSP Inputs General'!$A$41,E$96,IF('DNSP Inputs General'!$B45='DNSP Inputs General'!$A$42,E$97,E$98))*'DNSP Inputs General'!$D45*'DNSP Inputs General'!R45 -> 0 | F105: =IF('DNSP Inputs General'!$B45='DNSP Inputs General'!$A$41,F$96,IF('DNSP Inputs General'!$B45='DNSP Inputs General'!$A$42,F$97,F$98))*'DNSP Inputs General'!$D45*'DNSP Inputs General'!S45 -> 0 | G105: =IF('DNSP Inputs General'!$B45='DNSP Inputs General'!$A$41,G$96,IF('DNSP Inputs General'!$B45='DNSP Inputs General'!$A$42,G$97,G$98))*'DNSP Inputs General'!$D45*'DNSP Inputs General'!T45 -> 0 | H105: =IF('DNSP Inputs General'!$B45='DNSP Inputs General'!$A$41,H$96,IF('DNSP Inputs General'!$B45='DNSP Inputs General'!$A$42,H$97,H$98))*'DNSP Inputs General'!$D45*'DNSP Inputs General'!U45 -> 0 | K105: =D105/'Charges Summary'!D$4 -> 0 | L105: =E105/'Charges Summary'!E$4 -> 0 | M105: =F105/'Charges Summary'!F$4 -> 0 | N105: =G105/'Charges Summary'!G$4 -> 0 | O105: =H105/'Charges Summary'!H$4 -> 0
A106: ='DNSP Inputs General'!A$46 -> Mercury vapour 50 watt | D106: =IF('DNSP Inputs General'!$B46='DNSP Inputs General'!$A$41,D$96,IF('DNSP Inputs General'!$B46='DNSP Inputs General'!$A$42,D$97,D$98))*'DNSP Inputs General'!$D46*'DNSP Inputs General'!Q46 -> 1193.986491 | E106: =IF('DNSP Inputs General'!$B46='DNSP Inputs General'!$A$41,E$96,IF('DNSP Inputs General'!$B46='DNSP Inputs General'!$A$42,E$97,E$98))*'DNSP Inputs General'!$D46*'DNSP Inputs General'!R46 -> 462.6272738 | F106: =IF('DNSP Inputs General'!$B46='DNSP Inputs General'!$A$41,F$96,IF('DNSP Inputs General'!$B46='DNSP Inputs General'!$A$42,F$97,F$98))*'DNSP Inputs General'!$D46*'DNSP Inputs General'!S46 -> 0 | G106: =IF('DNSP Inputs General'!$B46='DNSP Inputs General'!$A$41,G$96,IF('DNSP Inputs General'!$B46='DNSP Inputs General'!$A$42,G$97,G$98))*'DNSP Inputs General'!$D46*'DNSP Inputs General'!T46 -> 0 | H106: =IF('DNSP Inputs General'!$B46='DNSP Inputs General'!$A$41,H$96,IF('DNSP Inputs General'!$B46='DNSP Inputs General'!$A$42,H$97,H$98))*'DNSP Inputs General'!$D46*'DNSP Inputs General'!U46 -> 0 | K106: =D106/'Charges Summary'!D$4 -> 1166.295046 | L106: =E106/'Charges Summary'!E$4 -> 441.4172173 | M106: =F106/'Charges Summary'!F$4 -> 0 | N106: =G106/'Charges Summary'!G$4 -> 0 | O106: =H106/'Charges Summary'!H$4 -> 0
A107: ='DNSP Inputs General'!A$47 -> Mercury vapour 125 watt | D107: =IF('DNSP Inputs General'!$B47='DNSP Inputs General'!$A$41,D$96,IF('DNSP Inputs General'!$B47='DNSP Inputs General'!$A$42,D$97,D$98))*'DNSP Inputs General'!$D47*'DNSP Inputs General'!Q47 -> 9248.384568 | E107: =IF('DNSP Inputs General'!$B47='DNSP Inputs General'!$A$41,E$96,IF('DNSP Inputs General'!$B47='DNSP Inputs General'!$A$42,E$97,E$98))*'DNSP Inputs General'!$D47*'DNSP Inputs General'!R47 -> 3583.419891 | F107: =IF('DNSP Inputs General'!$B47='DNSP Inputs General'!$A$41,F$96,IF('DNSP Inputs General'!$B47='DNSP Inputs General'!$A$42,F$97,F$98))*'DNSP Inputs General'!$D47*'DNSP Inputs General'!S47 -> 0 | G107: =IF('DNSP Inputs General'!$B47='DNSP Inputs General'!$A$41,G$96,IF('DNSP Inputs General'!$B47='DNSP Inputs General'!$A$42,G$97,G$98))*'DNSP Inputs General'!$D47*'DNSP Inputs General'!T47 -> 0 | H107: =IF('DNSP Inputs General'!$B47='DNSP Inputs General'!$A$41,H$96,IF('DNSP Inputs General'!$B47='DNSP Inputs General'!$A$42,H$97,H$98))*'DNSP Inputs General'!$D47*'DNSP Inputs General'!U47 -> 0 | K107: =D107/'Charges Summary'!D$4 -> 9033.892084 | L107: =E107/'Charges Summary'!E$4 -> 3419.130963 | M107: =F107/'Charges Summary'!F$4 -> 0 | N107: =G107/'Charges Summary'!G$4 -> 0 | O107: =H107/'Charges Summary'!H$4 -> 0
A108: ='DNSP Inputs General'!A$48 -> Mercury vapour 250 watt | D108: =IF('DNSP Inputs General'!$B48='DNSP Inputs General'!$A$41,D$96,IF('DNSP Inputs General'!$B48='DNSP Inputs General'!$A$42,D$97,D$98))*'DNSP Inputs General'!$D48*'DNSP Inputs General'!Q48 -> 1916.215713 | E108: =IF('DNSP Inputs General'!$B48='DNSP Inputs General'!$A$41,E$96,IF('DNSP Inputs General'!$B48='DNSP Inputs General'!$A$42,E$97,E$98))*'DNSP Inputs General'!$D48*'DNSP Inputs General'!R48 -> 740.8793672 | F108: =IF('DNSP Inputs General'!$B48='DNSP Inputs General'!$A$41,F$96,IF('DNSP Inputs General'!$B48='DNSP Inputs General'!$A$42,F$97,F$98))*'DNSP Inputs General'!$D48*'DNSP Inputs General'!S48 -> 0 | G108: =IF('DNSP Inputs General'!$B48='DNSP Inputs General'!$A$41,G$96,IF('DNSP Inputs General'!$B48='DNSP Inputs General'!$A$42,G$97,G$98))*'DNSP Inputs General'!$D48*'DNSP Inputs General'!T48 -> 0 | H108: =IF('DNSP Inputs General'!$B48='DNSP Inputs General'!$A$41,H$96,IF('DNSP Inputs General'!$B48='DNSP Inputs General'!$A$42,H$97,H$98))*'DNSP Inputs General'!$D48*'DNSP Inputs General'!U48 -> 0 | K108: =D108/'Charges Summary'!D$4 -> 1871.77402 | L108: =E108/'Charges Summary'!E$4 -> 706.9122965 | M108: =F108/'Charges Summary'!F$4 -> 0 | N108: =G108/'Charges Summary'!G$4 -> 0 | O108: =H108/'Charges Summary'!H$4 -> 0
A109: ='DNSP Inputs General'!A$49 -> Mercury vapour 400 watt | D109: =IF('DNSP Inputs General'!$B49='DNSP Inputs General'!$A$41,D$96,IF('DNSP Inputs General'!$B49='DNSP Inputs General'!$A$42,D$97,D$98))*'DNSP Inputs General'!$D49*'DNSP Inputs General'!Q49 -> 655.5474808 | E109: =IF('DNSP Inputs General'!$B49='DNSP Inputs General'!$A$41,E$96,IF('DNSP Inputs General'!$B49='DNSP Inputs General'!$A$42,E$97,E$98))*'DNSP Inputs General'!$D49*'DNSP Inputs General'!R49 -> 253.4587309 | F109: =IF('DNSP Inputs General'!$B49='DNSP Inputs General'!$A$41,F$96,IF('DNSP Inputs General'!$B49='DNSP Inputs General'!$A$42,F$97,F$98))*'DNSP Inputs General'!$D49*'DNSP Inputs General'!S49 -> 0 | G109: =IF('DNSP Inputs General'!$B49='DNSP Inputs General'!$A$41,G$96,IF('DNSP Inputs General'!$B49='DNSP Inputs General'!$A$42,G$97,G$98))*'DNSP Inputs General'!$D49*'DNSP Inputs General'!T49 -> 0 | H109: =IF('DNSP Inputs General'!$B49='DNSP Inputs General'!$A$41,H$96,IF('DNSP Inputs General'!$B49='DNSP Inputs General'!$A$42,H$97,H$98))*'DNSP Inputs General'!$D49*'DNSP Inputs General'!U49 -> 0 | K109: =D109/'Charges Summary'!D$4 -> 640.3437437 | L109: =E109/'Charges Summary'!E$4 -> 241.8384172 | M109: =F109/'Charges Summary'!F$4 -> 0 | N109: =G109/'Charges Summary'!G$4 -> 0 | O109: =H109/'Charges Summary'!H$4 -> 0
A110: ='DNSP Inputs General'!A$50 -> Mercury vapour 700 watt | D110: =IF('DNSP Inputs General'!$B50='DNSP Inputs General'!$A$41,D$96,IF('DNSP Inputs General'!$B50='DNSP Inputs General'!$A$42,D$97,D$98))*'DNSP Inputs General'!$D50*'DNSP Inputs General'!Q50 -> 0 | E110: =IF('DNSP Inputs General'!$B50='DNSP Inputs General'!$A$41,E$96,IF('DNSP Inputs General'!$B50='DNSP Inputs General'!$A$42,E$97,E$98))*'DNSP Inputs General'!$D50*'DNSP Inputs General'!R50 -> 0 | F110: =IF('DNSP Inputs General'!$B50='DNSP Inputs General'!$A$41,F$96,IF('DNSP Inputs General'!$B50='DNSP Inputs General'!$A$42,F$97,F$98))*'DNSP Inputs General'!$D50*'DNSP Inputs General'!S50 -> 0 | G110: =IF('DNSP Inputs General'!$B50='DNSP Inputs General'!$A$41,G$96,IF('DNSP Inputs General'!$B50='DNSP Inputs General'!$A$42,G$97,G$98))*'DNSP Inputs General'!$D50*'DNSP Inputs General'!T50 -> 0 | H110: =IF('DNSP Inputs General'!$B50='DNSP Inputs General'!$A$41,H$96,IF('DNSP Inputs General'!$B50='DNSP Inputs General'!$A$42,H$97,H$98))*'DNSP Inputs General'!$D50*'DNSP Inputs General'!U50 -> 0 | K110: =D110/'Charges Summary'!D$4 -> 0 | L110: =E110/'Charges Summary'!E$4 -> 0 | M110: =F110/'Charges Summary'!F$4 -> 0 | N110: =G110/'Charges Summary'!G$4 -> 0 | O110: =H110/'Charges Summary'!H$4 -> 0
A111: ='DNSP Inputs General'!A$51 -> Sodium low pressure 90 watt | D111: =IF('DNSP Inputs General'!$B51='DNSP Inputs General'!$A$41,D$96,IF('DNSP Inputs General'!$B51='DNSP Inputs General'!$A$42,D$97,D$98))*'DNSP Inputs General'!$D51*'DNSP Inputs General'!Q51 -> 0 | E111: =IF('DNSP Inputs General'!$B51='DNSP Inputs General'!$A$41,E$96,IF('DNSP Inputs General'!$B51='DNSP Inputs General'!$A$42,E$97,E$98))*'DNSP Inputs General'!$D51*'DNSP Inputs General'!R51 -> 0 | F111: =IF('DNSP Inputs General'!$B51='DNSP Inputs General'!$A$41,F$96,IF('DNSP Inputs General'!$B51='DNSP Inputs General'!$A$42,F$97,F$98))*'DNSP Inputs General'!$D51*'DNSP Inputs General'!S51 -> 0 | G111: =IF('DNSP Inputs General'!$B51='DNSP Inputs General'!$A$41,G$96,IF('DNSP Inputs General'!$B51='DNSP Inputs General'!$A$42,G$97,G$98))*'DNSP Inputs General'!$D51*'DNSP Inputs General'!T51 -> 0 | H111: =IF('DNSP Inputs General'!$B51='DNSP Inputs General'!$A$41,H$96,IF('DNSP Inputs General'!$B51='DNSP Inputs General'!$A$42,H$97,H$98))*'DNSP Inputs General'!$D51*'DNSP Inputs General'!U51 -> 0 | K111: =D111/'Charges Summary'!D$4 -> 0 | L111: =E111/'Charges Summary'!E$4 -> 0 | M111: =F111/'Charges Summary'!F$4 -> 0 | N111: =G111/'Charges Summary'!G$4 -> 0 | O111: =H111/'Charges Summary'!H$4 -> 0
A112: ='DNSP Inputs General'!A$52 -> Sodium low pressure 180 watt | D112: =IF('DNSP Inputs General'!$B52='DNSP Inputs General'!$A$41,D$96,IF('DNSP Inputs General'!$B52='DNSP Inputs General'!$A$42,D$97,D$98))*'DNSP Inputs General'!$D52*'DNSP Inputs General'!Q52 -> 0 | E112: =IF('DNSP Inputs General'!$B52='DNSP Inputs General'!$A$41,E$96,IF('DNSP Inputs General'!$B52='DNSP Inputs General'!$A$42,E$97,E$98))*'DNSP Inputs General'!$D52*'DNSP Inputs General'!R52 -> 0 | F112: =IF('DNSP Inputs General'!$B52='DNSP Inputs General'!$A$41,F$96,IF('DNSP Inputs General'!$B52='DNSP Inputs General'!$A$42,F$97,F$98))*'DNSP Inputs General'!$D52*'DNSP Inputs General'!S52 -> 0 | G112: =IF('DNSP Inputs General'!$B52='DNSP Inputs General'!$A$41,G$96,IF('DNSP Inputs General'!$B52='DNSP Inputs General'!$A$42,G$97,G$98))*'DNSP Inputs General'!$D52*'DNSP Inputs General'!T52 -> 0 | H112: =IF('DNSP Inputs General'!$B52='DNSP Inputs General'!$A$41,H$96,IF('DNSP Inputs General'!$B52='DNSP Inputs General'!$A$42,H$97,H$98))*'DNSP Inputs General'!$D52*'DNSP Inputs General'!U52 -> 0 | K112: =D112/'Charges Summary'!D$4 -> 0 | L112: =E112/'Charges Summary'!E$4 -> 0 | M112: =F112/'Charges Summary'!F$4 -> 0 | N112: =G112/'Charges Summary'!G$4 -> 0 | O112: =H112/'Charges Summary'!H$4 -> 0
A113: ='DNSP Inputs General'!A$53 -> Sodium high pressure 400 watt | D113: =IF('DNSP Inputs General'!$B53='DNSP Inputs General'!$A$41,D$96,IF('DNSP Inputs General'!$B53='DNSP Inputs General'!$A$42,D$97,D$98))*'DNSP Inputs General'!$D53*'DNSP Inputs General'!Q53 -> 19660.32381 | E113: =IF('DNSP Inputs General'!$B53='DNSP Inputs General'!$A$41,E$96,IF('DNSP Inputs General'!$B53='DNSP Inputs General'!$A$42,E$97,E$98))*'DNSP Inputs General'!$D53*'DNSP Inputs General'!R53 -> 15691.46804 | F113: =IF('DNSP Inputs General'!$B53='DNSP Inputs General'!$A$41,F$96,IF('DNSP Inputs General'!$B53='DNSP Inputs General'!$A$42,F$97,F$98))*'DNSP Inputs General'!$D53*'DNSP Inputs General'!S53 -> 12156.88924 | G113: =IF('DNSP Inputs General'!$B53='DNSP Inputs General'!$A$41,G$96,IF('DNSP Inputs General'!$B53='DNSP Inputs General'!$A$42,G$97,G$98))*'DNSP Inputs General'!$D53*'DNSP Inputs General'!T53 -> 11093.75404 | H113: =IF('DNSP Inputs General'!$B53='DNSP Inputs General'!$A$41,H$96,IF('DNSP Inputs General'!$B53='DNSP Inputs General'!$A$42,H$97,H$98))*'DNSP Inputs General'!$D53*'DNSP Inputs General'!U53 -> 10459.14609 | K113: =D113/'Charges Summary'!D$4 -> 19204.35319 | L113: =E113/'Charges Summary'!E$4 -> 14972.06185 | M113: =F113/'Charges Summary'!F$4 -> 11330.51145 | N113: =G113/'Charges Summary'!G$4 -> 10099.84258 | O113: =H113/'Charges Summary'!H$4 -> 9301.250029
A114: ='DNSP Inputs General'!A$54 -> Incandescent 100 watt | D114: =IF('DNSP Inputs General'!$B54='DNSP Inputs General'!$A$41,D$96,IF('DNSP Inputs General'!$B54='DNSP Inputs General'!$A$42,D$97,D$98))*'DNSP Inputs General'!$D54*'DNSP Inputs General'!Q54 -> 0 | E114: =IF('DNSP Inputs General'!$B54='DNSP Inputs General'!$A$41,E$96,IF('DNSP Inputs General'!$B54='DNSP Inputs General'!$A$42,E$97,E$98))*'DNSP Inputs General'!$D54*'DNSP Inputs General'!R54 -> 0 | F114: =IF('DNSP Inputs General'!$B54='DNSP Inputs General'!$A$41,F$96,IF('DNSP Inputs General'!$B54='DNSP Inputs General'!$A$42,F$97,F$98))*'DNSP Inputs General'!$D54*'DNSP Inputs General'!S54 -> 0 | G114: =IF('DNSP Inputs General'!$B54='DNSP Inputs General'!$A$41,G$96,IF('DNSP Inputs General'!$B54='DNSP Inputs General'!$A$42,G$97,G$98))*'DNSP Inputs General'!$D54*'DNSP Inputs General'!T54 -> 0 | H114: =IF('DNSP Inputs General'!$B54='DNSP Inputs General'!$A$41,H$96,IF('DNSP Inputs General'!$B54='DNSP Inputs General'!$A$42,H$97,H$98))*'DNSP Inputs General'!$D54*'DNSP Inputs General'!U54 -> 0 | K114: =D114/'Charges Summary'!D$4 -> 0 | L114: =E114/'Charges Summary'!E$4 -> 0 | M114: =F114/'Charges Summary'!F$4 -> 0 | N114: =G114/'Charges Summary'!G$4 -> 0 | O114: =H114/'Charges Summary'!H$4 -> 0
A115: ='DNSP Inputs General'!A$55 -> Incandescent 150 watt | D115: =IF('DNSP Inputs General'!$B55='DNSP Inputs General'!$A$41,D$96,IF('DNSP Inputs General'!$B55='DNSP Inputs General'!$A$42,D$97,D$98))*'DNSP Inputs General'!$D55*'DNSP Inputs General'!Q55 -> 0 | E115: =IF('DNSP Inputs General'!$B55='DNSP Inputs General'!$A$41,E$96,IF('DNSP Inputs General'!$B55='DNSP Inputs General'!$A$42,E$97,E$98))*'DNSP Inputs General'!$D55*'DNSP Inputs General'!R55 -> 0 | F115: =IF('DNSP Inputs General'!$B55='DNSP Inputs General'!$A$41,F$96,IF('DNSP Inputs General'!$B55='DNSP Inputs General'!$A$42,F$97,F$98))*'DNSP Inputs General'!$D55*'DNSP Inputs General'!S55 -> 0 | G115: =IF('DNSP Inputs General'!$B55='DNSP Inputs General'!$A$41,G$96,IF('DNSP Inputs General'!$B55='DNSP Inputs General'!$A$42,G$97,G$98))*'DNSP Inputs General'!$D55*'DNSP Inputs General'!T55 -> 0 | H115: =IF('DNSP Inputs General'!$B55='DNSP Inputs General'!$A$41,H$96,IF('DNSP Inputs General'!$B55='DNSP Inputs General'!$A$42,H$97,H$98))*'DNSP Inputs General'!$D55*'DNSP Inputs General'!U55 -> 0 | K115: =D115/'Charges Summary'!D$4 -> 0 | L115: =E115/'Charges Summary'!E$4 -> 0 | M115: =F115/'Charges Summary'!F$4 -> 0 | N115: =G115/'Charges Summary'!G$4 -> 0 | O115: =H115/'Charges Summary'!H$4 -> 0
A116: ='DNSP Inputs General'!A$56 -> Metal halide 250 watt | D116: =IF('DNSP Inputs General'!$B56='DNSP Inputs General'!$A$41,D$96,IF('DNSP Inputs General'!$B56='DNSP Inputs General'!$A$42,D$97,D$98))*'DNSP Inputs General'!$D56*'DNSP Inputs General'!Q56 -> 269.0401079 | E116: =IF('DNSP Inputs General'!$B56='DNSP Inputs General'!$A$41,E$96,IF('DNSP Inputs General'!$B56='DNSP Inputs General'!$A$42,E$97,E$98))*'DNSP Inputs General'!$D56*'DNSP Inputs General'!R56 -> 197.318194 | F116: =IF('DNSP Inputs General'!$B56='DNSP Inputs General'!$A$41,F$96,IF('DNSP Inputs General'!$B56='DNSP Inputs General'!$A$42,F$97,F$98))*'DNSP Inputs General'!$D56*'DNSP Inputs General'!S56 -> 125.8940281 | G116: =IF('DNSP Inputs General'!$B56='DNSP Inputs General'!$A$41,G$96,IF('DNSP Inputs General'!$B56='DNSP Inputs General'!$A$42,G$97,G$98))*'DNSP Inputs General'!$D56*'DNSP Inputs General'!T56 -> 55.65336075 | H116: =IF('DNSP Inputs General'!$B56='DNSP Inputs General'!$A$41,H$96,IF('DNSP Inputs General'!$B56='DNSP Inputs General'!$A$42,H$97,H$98))*'DNSP Inputs General'!$D56*'DNSP Inputs General'!U56 -> 0 | K116: =D116/'Charges Summary'!D$4 -> 262.8004149 | L116: =E116/'Charges Summary'!E$4 -> 188.2717536 | M116: =F116/'Charges Summary'!F$4 -> 117.3362443 | N116: =G116/'Charges Summary'!G$4 -> 50.66726561 | O116: =H116/'Charges Summary'!H$4 -> 0
A117: ='DNSP Inputs General'!A$57 -> Metal halide 400 watt | D117: =IF('DNSP Inputs General'!$B57='DNSP Inputs General'!$A$41,D$96,IF('DNSP Inputs General'!$B57='DNSP Inputs General'!$A$42,D$97,D$98))*'DNSP Inputs General'!$D57*'DNSP Inputs General'!Q57 -> 2127.862672 | E117: =IF('DNSP Inputs General'!$B57='DNSP Inputs General'!$A$41,E$96,IF('DNSP Inputs General'!$B57='DNSP Inputs General'!$A$42,E$97,E$98))*'DNSP Inputs General'!$D57*'DNSP Inputs General'!R57 -> 1560.607534 | F117: =IF('DNSP Inputs General'!$B57='DNSP Inputs General'!$A$41,F$96,IF('DNSP Inputs General'!$B57='DNSP Inputs General'!$A$42,F$97,F$98))*'DNSP Inputs General'!$D57*'DNSP Inputs General'!S57 -> 995.7073131 | G117: =IF('DNSP Inputs General'!$B57='DNSP Inputs General'!$A$41,G$96,IF('DNSP Inputs General'!$B57='DNSP Inputs General'!$A$42,G$97,G$98))*'DNSP Inputs General'!$D57*'DNSP Inputs General'!T57 -> 748.2847322 | H117: =IF('DNSP Inputs General'!$B57='DNSP Inputs General'!$A$41,H$96,IF('DNSP Inputs General'!$B57='DNSP Inputs General'!$A$42,H$97,H$98))*'DNSP Inputs General'!$D57*'DNSP Inputs General'!U57 -> 632.2465985 | K117: =D117/'Charges Summary'!D$4 -> 2078.512372 | L117: =E117/'Charges Summary'!E$4 -> 1489.058415 | M117: =F117/'Charges Summary'!F$4 -> 928.0230233 | N117: =G117/'Charges Summary'!G$4 -> 681.2444167 | O117: =H117/'Charges Summary'!H$4 -> 562.2527539
A118: ='DNSP Inputs General'!A$58 -> Metal halide 70 watt | D118: =IF('DNSP Inputs General'!$B58='DNSP Inputs General'!$A$41,D$96,IF('DNSP Inputs General'!$B58='DNSP Inputs General'!$A$42,D$97,D$98))*'DNSP Inputs General'!$D58*'DNSP Inputs General'!Q58 -> 11327.38551 | E118: =IF('DNSP Inputs General'!$B58='DNSP Inputs General'!$A$41,E$96,IF('DNSP Inputs General'!$B58='DNSP Inputs General'!$A$42,E$97,E$98))*'DNSP Inputs General'!$D58*'DNSP Inputs General'!R58 -> 8325.465031 | F118: =IF('DNSP Inputs General'!$B58='DNSP Inputs General'!$A$41,F$96,IF('DNSP Inputs General'!$B58='DNSP Inputs General'!$A$42,F$97,F$98))*'DNSP Inputs General'!$D58*'DNSP Inputs General'!S58 -> 5070.761821 | G118: =IF('DNSP Inputs General'!$B58='DNSP Inputs General'!$A$41,G$96,IF('DNSP Inputs General'!$B58='DNSP Inputs General'!$A$42,G$97,G$98))*'DNSP Inputs General'!$D58*'DNSP Inputs General'!T58 -> 3796.875379 | H118: =IF('DNSP Inputs General'!$B58='DNSP Inputs General'!$A$41,H$96,IF('DNSP Inputs General'!$B58='DNSP Inputs General'!$A$42,H$97,H$98))*'DNSP Inputs General'!$D58*'DNSP Inputs General'!U58 -> 3206.81785 | K118: =D118/'Charges Summary'!D$4 -> 11064.67595 | L118: =E118/'Charges Summary'!E$4 -> 7943.767725 | M118: =F118/'Charges Summary'!F$4 -> 4726.07126 | N118: =G118/'Charges Summary'!G$4 -> 3456.705772 | O118: =H118/'Charges Summary'!H$4 -> 2851.802085
A119: ='DNSP Inputs General'!A$59 -> Metal halide 150 watt | D119: =IF('DNSP Inputs General'!$B59='DNSP Inputs General'!$A$41,D$96,IF('DNSP Inputs General'!$B59='DNSP Inputs General'!$A$42,D$97,D$98))*'DNSP Inputs General'!$D59*'DNSP Inputs General'!Q59 -> 0 | E119: =IF('DNSP Inputs General'!$B59='DNSP Inputs General'!$A$41,E$96,IF('DNSP Inputs General'!$B59='DNSP Inputs General'!$A$42,E$97,E$98))*'DNSP Inputs General'!$D59*'DNSP Inputs General'!R59 -> 0 | F119: =IF('DNSP Inputs General'!$B59='DNSP Inputs General'!$A$41,F$96,IF('DNSP Inputs General'!$B59='DNSP Inputs General'!$A$42,F$97,F$98))*'DNSP Inputs General'!$D59*'DNSP Inputs General'!S59 -> 0 | G119: =IF('DNSP Inputs General'!$B59='DNSP Inputs General'!$A$41,G$96,IF('DNSP Inputs General'!$B59='DNSP Inputs General'!$A$42,G$97,G$98))*'DNSP Inputs General'!$D59*'DNSP Inputs General'!T59 -> 0 | H119: =IF('DNSP Inputs General'!$B59='DNSP Inputs General'!$A$41,H$96,IF('DNSP Inputs General'!$B59='DNSP Inputs General'!$A$42,H$97,H$98))*'DNSP Inputs General'!$D59*'DNSP Inputs General'!U59 -> 0 | K119: =D119/'Charges Summary'!D$4 -> 0 | L119: =E119/'Charges Summary'!E$4 -> 0 | M119: =F119/'Charges Summary'!F$4 -> 0 | N119: =G119/'Charges Summary'!G$4 -> 0 | O119: =H119/'Charges Summary'!H$4 -> 0
A125: ='DNSP Inputs General'!A$67 -> Energy Efficient Lights
A126: ='DNSP Inputs General'!B$68 -> T5 2X14W | D126: =SUM('Charges Summary'!D99,'Charges Summary'!D$11)*'DNSP Inputs General'!$D68*'DNSP Inputs General'!Q68 -> 110049.7813 | E126: =SUM('Charges Summary'!E99,'Charges Summary'!E11)*'DNSP Inputs General'!$D68*'DNSP Inputs General'!R68 -> 90283.37941 | F126: =SUM('Charges Summary'!F99,'Charges Summary'!F11)*'DNSP Inputs General'!$D68*'DNSP Inputs General'!S68 -> 75178.44245 | G126: =SUM('Charges Summary'!G99,'Charges Summary'!G11)*'DNSP Inputs General'!$D68*'DNSP Inputs General'!T68 -> 63218.99403 | H126: =SUM('Charges Summary'!H99,'Charges Summary'!H11)*'DNSP Inputs General'!$D68*'DNSP Inputs General'!U68 -> 58903.21774 | K126: =D126/'Charges Summary'!D$4 -> 107497.4598 | L126: =E126/'Charges Summary'!E$4 -> 86144.16045 | M126: =F126/'Charges Summary'!F$4 -> 70068.10589 | N126: =G126/'Charges Summary'!G$4 -> 57555.07878 | O126: =H126/'Charges Summary'!H$4 -> 52382.24526
A127: ='DNSP Inputs General'!B$69 -> T5 2X14W | D127: =SUM('Charges Summary'!D$99,'Charges Summary'!D$11)*'DNSP Inputs General'!$D69*'DNSP Inputs General'!Q69 -> 10553.65012 | E127: =SUM('Charges Summary'!E$99,'Charges Summary'!E$11)*'DNSP Inputs General'!$D69*'DNSP Inputs General'!R69 -> 8658.074435 | F127: =SUM('Charges Summary'!F$99,'Charges Summary'!F$11)*'DNSP Inputs General'!$D69*'DNSP Inputs General'!S69 -> 7209.527987 | G127: =SUM('Charges Summary'!G$99,'Charges Summary'!G$11)*'DNSP Inputs General'!$D69*'DNSP Inputs General'!T69 -> 6062.630349 | H127: =SUM('Charges Summary'!H$99,'Charges Summary'!H$11)*'DNSP Inputs General'!$D69*'DNSP Inputs General'!U69 -> 5648.752261 | K127: =D127/'Charges Summary'!D$4 -> 10308.88536 | L127: =E127/'Charges Summary'!E$4 -> 8261.127996 | M127: =F127/'Charges Summary'!F$4 -> 6719.452464 | N127: =G127/'Charges Summary'!G$4 -> 5519.467253 | O127: =H127/'Charges Summary'!H$4 -> 5023.398343
A128: ='DNSP Inputs General'!B$70 -> T5 2X14W | D128: =SUM('Charges Summary'!D$99,'Charges Summary'!D$11)*'DNSP Inputs General'!$D70*'DNSP Inputs General'!Q70 -> 28973.97982 | E128: =SUM('Charges Summary'!E$99,'Charges Summary'!E$11)*'DNSP Inputs General'!$D70*'DNSP Inputs General'!R70 -> 19575.1857 | F128: =SUM('Charges Summary'!F$99,'Charges Summary'!F$11)*'DNSP Inputs General'!$D70*'DNSP Inputs General'!S70 -> 13423.64696 | G128: =SUM('Charges Summary'!G$99,'Charges Summary'!G$11)*'DNSP Inputs General'!$D70*'DNSP Inputs General'!T70 -> 9296.166494 | H128: =SUM('Charges Summary'!H$99,'Charges Summary'!H$11)*'DNSP Inputs General'!$D70*'DNSP Inputs General'!U70 -> 7762.422079 | K128: =D128/'Charges Summary'!D$4 -> 28302.00291 | L128: =E128/'Charges Summary'!E$4 -> 18677.72284 | M128: =F128/'Charges Summary'!F$4 -> 12511.15993 | N128: =G128/'Charges Summary'!G$4 -> 8463.304472 | O128: =H128/'Charges Summary'!H$4 -> 6903.071051
A129: ='DNSP Inputs General'!B$71 -> T5 2X14W | D129: =SUM('Charges Summary'!D$99,'Charges Summary'!D$11)*'DNSP Inputs General'!$D71*'DNSP Inputs General'!Q71 -> 27035.22152 | E129: =SUM('Charges Summary'!E$99,'Charges Summary'!E$11)*'DNSP Inputs General'!$D71*'DNSP Inputs General'!R71 -> 18265.33617 | F129: =SUM('Charges Summary'!F$99,'Charges Summary'!F$11)*'DNSP Inputs General'!$D71*'DNSP Inputs General'!S71 -> 12525.4201 | G129: =SUM('Charges Summary'!G$99,'Charges Summary'!G$11)*'DNSP Inputs General'!$D71*'DNSP Inputs General'!T71 -> 8674.12492 | H129: =SUM('Charges Summary'!H$99,'Charges Summary'!H$11)*'DNSP Inputs General'!$D71*'DNSP Inputs General'!U71 -> 7243.00913 | K129: =D129/'Charges Summary'!D$4 -> 26408.20912 | L129: =E129/'Charges Summary'!E$4 -> 17427.92594 | M129: =F129/'Charges Summary'!F$4 -> 11673.99102 | N129: =G129/'Charges Summary'!G$4 -> 7896.992839 | O129: =H129/'Charges Summary'!H$4 -> 6441.160522
A130: ='DNSP Inputs General'!B$72 -> Category P LED Standard Output | D130: =SUM('Charges Summary'!D$116,'Charges Summary'!D$11)*'DNSP Inputs General'!$D72*'DNSP Inputs General'!Q72 -> 1430954.29 | E130: =SUM('Charges Summary'!E116,'Charges Summary'!E11)*'DNSP Inputs General'!$D72*'DNSP Inputs General'!R72 -> 1519820.904 | F130: =SUM('Charges Summary'!F116,'Charges Summary'!F11)*'DNSP Inputs General'!$D72*'DNSP Inputs General'!S72 -> 1606701.386 | G130: =SUM('Charges Summary'!G116,'Charges Summary'!G11)*'DNSP Inputs General'!$D72*'DNSP Inputs General'!T72 -> 1693672.584 | H130: =SUM('Charges Summary'!H116,'Charges Summary'!H11)*'DNSP Inputs General'!$D72*'DNSP Inputs General'!U72 -> 1768193 | K130: =D130/'Charges Summary'!D$4 -> 1397766.988 | L130: =E130/'Charges Summary'!E$4 -> 1450141.728 | M130: =F130/'Charges Summary'!F$4 -> 1497484.108 | N130: =G130/'Charges Summary'!G$4 -> 1541933.093 | O130: =H130/'Charges Summary'!H$4 -> 1572442.44
A131: ='DNSP Inputs General'!B$73 -> Category P LED Standard Output | D131: =SUM('Charges Summary'!D$116,'Charges Summary'!D$11)*'DNSP Inputs General'!$D73*'DNSP Inputs General'!Q73 -> 7252.607395 | E131: =SUM('Charges Summary'!E$116,'Charges Summary'!E$11)*'DNSP Inputs General'!$D73*'DNSP Inputs General'!R73 -> 9339.616713 | F131: =SUM('Charges Summary'!F$116,'Charges Summary'!F$11)*'DNSP Inputs General'!$D73*'DNSP Inputs General'!S73 -> 10840.88322 | G131: =SUM('Charges Summary'!G$116,'Charges Summary'!G$11)*'DNSP Inputs General'!$D73*'DNSP Inputs General'!T73 -> 10939.56792 | H131: =SUM('Charges Summary'!H$116,'Charges Summary'!H$11)*'DNSP Inputs General'!$D73*'DNSP Inputs General'!U73 -> 11201.93925 | K131: =D131/'Charges Summary'!D$4 -> 7084.401828 | L131: =E131/'Charges Summary'!E$4 -> 8911.423629 | M131: =F131/'Charges Summary'!F$4 -> 10103.96236 | N131: =G131/'Charges Summary'!G$4 -> 9959.470304 | O131: =H131/'Charges Summary'!H$4 -> 9961.811117
A132: ='DNSP Inputs General'!B$74 -> Category V LED L1 Standard Output | D132: =SUM('Charges Summary'!D$134,'Charges Summary'!D$11)*'DNSP Inputs General'!$D74*'DNSP Inputs General'!Q74 -> 274268.4146 | E132: =SUM('Charges Summary'!E$134,'Charges Summary'!E$11)*'DNSP Inputs General'!$D74*'DNSP Inputs General'!R74 -> 326355.8098 | F132: =SUM('Charges Summary'!F$134,'Charges Summary'!F$11)*'DNSP Inputs General'!$D74*'DNSP Inputs General'!S74 -> 372291.6503 | G132: =SUM('Charges Summary'!G$134,'Charges Summary'!G$11)*'DNSP Inputs General'!$D74*'DNSP Inputs General'!T74 -> 413792.1486 | H132: =SUM('Charges Summary'!H$134,'Charges Summary'!H$11)*'DNSP Inputs General'!$D74*'DNSP Inputs General'!U74 -> 441718.2897 | K132: =D132/'Charges Summary'!D$4 -> 267907.4644 | L132: =E132/'Charges Summary'!E$4 -> 311393.3863 | M132: =F132/'Charges Summary'!F$4 -> 346984.7196 | N132: =G132/'Charges Summary'!G$4 -> 376719.6881 | O132: =H132/'Charges Summary'!H$4 -> 392817.1784
A133: ='DNSP Inputs General'!B$75 -> Category V LED L1 Standard Output | D133: =SUM('Charges Summary'!D$134,'Charges Summary'!D$11)*'DNSP Inputs General'!$D75*'DNSP Inputs General'!Q75 -> 127788.4223 | E133: =SUM('Charges Summary'!E$134,'Charges Summary'!E$11)*'DNSP Inputs General'!$D75*'DNSP Inputs General'!R75 -> 158163.9346 | F133: =SUM('Charges Summary'!F$134,'Charges Summary'!F$11)*'DNSP Inputs General'!$D75*'DNSP Inputs General'!S75 -> 184741.8654 | G133: =SUM('Charges Summary'!G$134,'Charges Summary'!G$11)*'DNSP Inputs General'!$D75*'DNSP Inputs General'!T75 -> 208424.8492 | H133: =SUM('Charges Summary'!H$134,'Charges Summary'!H$11)*'DNSP Inputs General'!$D75*'DNSP Inputs General'!U75 -> 223742.7367 | K133: =D133/'Charges Summary'!D$4 -> 124824.6986 | L133: =E133/'Charges Summary'!E$4 -> 150912.5982 | M133: =F133/'Charges Summary'!F$4 -> 172183.8358 | N133: =G133/'Charges Summary'!G$4 -> 189751.6529 | O133: =H133/'Charges Summary'!H$4 -> 198972.9485
A134: ='DNSP Inputs General'!B$76 -> Category V LED L1 Standard Output | D134: =SUM('Charges Summary'!D$134,'Charges Summary'!D$11)*'DNSP Inputs General'!$D76*'DNSP Inputs General'!Q76 -> 3228.986444 | E134: =SUM('Charges Summary'!E$134,'Charges Summary'!E$11)*'DNSP Inputs General'!$D76*'DNSP Inputs General'!R76 -> 3531.406914 | F134: =SUM('Charges Summary'!F$134,'Charges Summary'!F$11)*'DNSP Inputs General'!$D76*'DNSP Inputs General'!S76 -> 3762.713469 | G134: =SUM('Charges Summary'!G$134,'Charges Summary'!G$11)*'DNSP Inputs General'!$D76*'DNSP Inputs General'!T76 -> 3769.683928 | H134: =SUM('Charges Summary'!H$134,'Charges Summary'!H$11)*'DNSP Inputs General'!$D76*'DNSP Inputs General'!U76 -> 3852.99833 | K134: =D134/'Charges Summary'!D$4 -> 3154.098412 | L134: =E134/'Charges Summary'!E$4 -> 3369.502623 | M134: =F134/'Charges Summary'!F$4 -> 3506.93892 | N134: =G134/'Charges Summary'!G$4 -> 3431.950457 | O134: =H134/'Charges Summary'!H$4 -> 3426.446148
A136: Total Capital Charge | D136: =SUM(D101:D135) -> 3459773.436 | E136: =SUM(E101:E135) -> 3298574.621 | F136: =SUM(F101:F135) -> 3167409.512 | G136: =SUM(G101:G135) -> 3219221.852 | H136: =SUM(H101:H135) -> 3283165.348 | K136: =SUM(K101:K135) -> 3379532.893 | L136: =SUM(L101:L135) -> 3147344.985 | M136: =SUM(M101:M135) -> 2952101.398 | N136: =SUM(N101:N135) -> 2930805.372 | O136: =SUM(O101:O135) -> 2919697.413
A138: Check | C138: =SUM(D138:O138) -> 1.490116119e-08 | D138: =ABS(D42-SUM(D89,D136)) -> 3.725290298e-09 | E138: =ABS(E42-SUM(E89,E136)) -> 3.725290298e-09 | F138: =ABS(F42-SUM(F89,F136)) -> 0 | G138: =ABS(G42-SUM(G89,G136)) -> 0 | H138: =ABS(H42-SUM(H89,H136)) -> 3.725290298e-09 | K138: =ABS(K42-SUM(K89,K136)) -> 0 | L138: =ABS(L42-SUM(L89,L136)) -> 1.862645149e-09 | M138: =ABS(M42-SUM(M89,M136)) -> 0 | N138: =ABS(N42-SUM(N89,N136)) -> 9.313225746e-10 | O138: =ABS(O42-SUM(O89,O136)) -> 9.313225746e-10
A140: Public Lighting - Capital Expenditure | D140: Forecast Capital Expenditure - Nominal | K140: Forecast Capital Expenditure - Real 2021 $
D141: =D$2 -> 2021/22 | E141: =E$2 -> 2022/23 | F141: =F$2 -> 2023/24 | G141: =G$2 -> 2024/25 | H141: =H$2 -> 2025/26 | K141: =K$2 -> 2021/22 | L141: =L$2 -> 2022/23 | M141: =M$2 -> 2023/24 | N141: =N$2 -> 2024/25 | O141: =O$2 -> 2025/26
A143: Total Capital Expenditure | D143: =K143*'Charges Summary'!D$4 -> 1059657.858 | E143: =L143*'Charges Summary'!E$4 -> 1408426.138 | F143: =M143*'Charges Summary'!F$4 -> 1569738.509 | G143: =N143*'Charges Summary'!G$4 -> 1725919.576 | H143: =O143*'Charges Summary'!H$4 -> 1892806.97 | K143: ='DNSP Inputs General'!Q14 -> 1035081.821 | L143: ='DNSP Inputs General'!R14 -> 1343854.073 | M143: ='DNSP Inputs General'!S14 -> 1463033.823 | N143: ='DNSP Inputs General'!T14 -> 1571291.012 | O143: ='DNSP Inputs General'!U14 -> 1683260.826
A144: Check | C144: =SUM(D144:H144) -> 6.98491931e-10 | D144: =ABS(D143-D151) -> 2.328306437e-10 | E144: =ABS(E143-E151) -> 0 | F144: =ABS(F143-F151) -> 0 | G144: =ABS(G143-G151) -> 4.656612873e-10 | H144: =ABS(H143-H151) -> 0
A147: Public Lighting - RAB | D147: RAB - Historical Cost ($)
D148: =D$2 -> 2021/22 | E148: =E$2 -> 2022/23 | F148: =F$2 -> 2023/24 | G148: =G$2 -> 2024/25 | H148: =H$2 -> 2025/26
A150: Opening RAB | D150: ='Total RAB'!T157 -> 30478433 | E150: =D153 -> 29502041.69 | F150: =E153 -> 29000537.47 | G150: 28774235.17 | H150: 28643834.74
A151: Capex | D151: ='Total RAB'!T158 -> 1059657.858 | E151: ='Total RAB'!U158 -> 1408426.138 | F151: ='Total RAB'!V158 -> 1569738.509 | G151: ='Total RAB'!W158 -> 1725919.576 | H151: ='Total RAB'!X158 -> 1892806.97
A152: Depreciation | D152: ='Total RAB'!T159 -> 2036049.167 | E152: ='Total RAB'!U159 -> 1909930.364 | F152: ='Total RAB'!V159 -> 1796040.806 | G152: ='Total RAB'!W159 -> 1856320.008 | H152: ='Total RAB'!X159 -> 1924101.571
A153: Closing RAB | D153: =D150+D151-D152 -> 29502041.69 | E153: =E150+E151-E152 -> 29000537.47 | F153: =F150+F151-F152 -> 28774235.17 | G153: =G150+G151-G152 -> 28643834.74 | H153: =H150+H151-H152 -> 28612540.14
A155: Average RAB | D155: =SUM(D150,D153)/2 -> 29990237.35 | E155: =SUM(E150,E153)/2 -> 29251289.58 | F155: =SUM(F150,F153)/2 -> 28887386.32 | G155: =SUM(G150,G153)/2 -> 28709034.95 | H155: =SUM(H150,H153)/2 -> 28628187.44
A157: =WACC!A$8 -> Nominal Pre Tax WACC | D157: =WACC!E$8 -> 0.04747292436 | E157: =WACC!F$8 -> 0.04747292436 | F157: =WACC!G$8 -> 0.04747292436 | G157: =WACC!H$8 -> 0.04747292436 | H157: =WACC!I$8 -> 0.04747292436
A159: Capital Charge | D159: Capital Charge - Nominal
D160: =D$2 -> 2021/22 | E160: =E$2 -> 2022/23 | F160: =F$2 -> 2023/24 | G160: =G$2 -> 2024/25 | H160: =H$2 -> 2025/26
A162: Depreciation | D162: =D152 -> 2036049.167 | E162: =E152 -> 1909930.364 | F162: =F152 -> 1796040.806 | G162: =G152 -> 1856320.008 | H162: =H152 -> 1924101.571
A163: Return | D163: =D157*D155 -> 1423724.269 | E163: =E157*E155 -> 1388644.258 | F163: =F157*F155 -> 1371368.706 | G163: =G157*G155 -> 1362901.845 | H163: =H157*H155 -> 1359063.777
D165: =SUM(D162:D164) -> 3459773.436 | E165: =SUM(E162:E164) -> 3298574.621 | F165: =SUM(F162:F164) -> 3167409.512 | G165: =SUM(G162:G164) -> 3219221.852 | H165: =SUM(H162:H164) -> 3283165.348
A167: Check | C167: =SUM(D167:H167) -> 3.259629011e-09 | D167: =ABS(D136-D165)*IF('DNSP Inputs General'!Q80=0,0,1) -> 9.313225746e-10 | E167: =ABS(E136-E165)*IF('DNSP Inputs General'!R80=0,0,1) -> 0 | F167: =ABS(F136-F165)*IF('DNSP Inputs General'!S80=0,0,1) -> 4.656612873e-10 | G167: =ABS(G136-G165)*IF('DNSP Inputs General'!T80=0,0,1) -> 4.656612873e-10 | H167: =ABS(H136-H165)*IF('DNSP Inputs General'!U80=0,0,1) -> 1.396983862e-09

Sheet Charges Summary
A1: ='DNSP Inputs O & M'!$A$3 -> Powercor | D1: ='DNSP Inputs General'!Q$2 -> 2021/22 | E1: ='DNSP Inputs General'!R$2 -> 2022/23 | F1: ='DNSP Inputs General'!S$2 -> 2023/24 | G1: ='DNSP Inputs General'!T$2 -> 2024/25 | H1: ='DNSP Inputs General'!U$2 -> 2025/26
A2: Nominal $
A4: ='Total RAB'!A20 -> CPI Index | C4: 1 | D4: =(1+WACC!E6) -> 1.023743087 | E4: =D4*(1+WACC!F6) -> 1.048049908 | F4: =E4*(1+WACC!G6) -> 1.072933848 | G4: =F4*(1+WACC!H6) -> 1.098408609 | H4: =G4*(1+WACC!I6) -> 1.12448822
A6: ='DNSP Inputs General'!$A$6 -> Poles and Brackets | D6: =D$1 -> 2021/22 | E6: =E$1 -> 2022/23 | F6: 2023/24 | G6: 2024/25 | H6: 2025/26
A7: O & M
A8: ='O & M 2021-2025'!A$10 -> Dedicated poles - inspection | D8: ='O & M 2021-2025'!$B$10*D$4 -> 2.409281324 | E8: ='O & M 2021-2025'!$Y$10*E$4 -> 2.539848573 | F8: ='O & M 2021-2025'!$AV$10*F$4 -> 2.678010038 | G8: ='O & M 2021-2025'!$BS$10*G$4 -> 2.826199451 | H8: ='O & M 2021-2025'!$CP$10*H$4 -> 3.016192775
A10: Capital Charge
A11: Depreciation and Return | D11: ='Depn & WACC Post 2004'!H$80 -> 7.308994122 | E11: ='Depn & WACC Post 2004'!H$130 -> 7.366243719 | F11: ='Depn & WACC Post 2004'!H$182 -> 7.429663987 | G11: ='Depn & WACC Post 2004'!H$232 -> 7.491100657 | H11: ='Depn & WACC Post 2004'!H$282 -> 7.631830289
A13: Total Charge | D13: =SUM(D8,D11) -> 9.718275446 | E13: =SUM(E8,E11) -> 9.906092292 | F13: =SUM(F8,F11) -> 10.10767403 | G13: =SUM(G8,G11) -> 10.31730011 | H13: =SUM(H8,H11) -> 10.64802306
A18: ='DNSP Inputs General'!$A$8 -> Existing Lights
A20: ='O & M 2021-2025'!$A$8 -> MV80 | D20: =D$1 -> 2021/22 | E20: =E$1 -> 2022/23 | F20: 2023/24 | G20: 2024/25 | H20: 2025/26
A22: O & M Charge
A23: ='O & M 2021-2025'!A$9 -> Bulk change & repairs | D23: ='O & M 2021-2025'!$B$9*D$4 -> 41.28795894 | E23: ='O & M 2021-2025'!$Y$9*E$4 -> 42.38863758 | F23: ='O & M 2021-2025'!$AV$9*F$4 -> 43.55340608 | G23: ='O & M 2021-2025'!$BS$9*G$4 -> 44.82626818 | H23: ='O & M 2021-2025'!$CP$9*H$4 -> 46.2084689
A24: ='O & M 2021-2025'!A$11 -> Other costs | D24: ='O & M 2021-2025'!$B$11*D$4 -> 1.12395608 | E24: ='O & M 2021-2025'!$Y$11*E$4 -> 1.108038788 | F24: ='O & M 2021-2025'!$AV$11*F$4 -> 1.098533265 | G24: ='O & M 2021-2025'!$BS$11*G$4 -> 1.091870478 | H24: ='O & M 2021-2025'!$CP$11*H$4 -> 1.10869491
D25: =SUM(D23:D24) -> 42.41191502 | E25: =SUM(E23:E24) -> 43.49667637 | F25: =SUM(F23:F24) -> 44.65193934 | G25: =SUM(G23:G24) -> 45.91813865 | H25: =SUM(H23:H24) -> 47.31716381
A26: Capital Charge
A27: Depreciation and Return | D27: ='Depn & WACC Post 2004'!H$37 -> 18.15254121 | E27: ='Depn & WACC Post 2004'!H$89 -> 16.59267914 | F27: ='Depn & WACC Post 2004'!H$139 -> 13.41687489 | G27: ='Depn & WACC Post 2004'!H$191 -> 14.80808745 | H27: ='Depn & WACC Post 2004'!H$241 -> 15.23773377
A29: Poles & Brackets Charge | D29: =D$13 -> 9.718275446 | E29: =E$13 -> 9.906092292 | F29: =F$13 -> 10.10767403 | G29: =G$13 -> 10.31730011 | H29: =H$13 -> 10.64802306
A31: Total Charge | D31: =SUM(D25,D27,D29) -> 70.28273168 | E31: =SUM(E25,E27,E29) -> 69.9954478 | F31: =SUM(F25,F27,F29) -> 68.17648826 | G31: =SUM(G25,G27,G29) -> 71.04352621 | H31: =SUM(H25,H27,H29) -> 73.20292065
A33: WDV RAB - MV 80 Luminaire
A34: RAB WDV | D34: =MAX(0,'Depn & WACC Post 2004'!$I$8) -> 74.91266249 | E34: =MAX(0,'Depn & WACC Post 2004'!I$37) -> 70.14087161 | F34: =MAX(0,'Depn & WACC Post 2004'!I$89) -> 65.04276682 | G34: =MAX(0,'Depn & WACC Post 2004'!I$139) -> 57.10122838 | H34: =MAX(0,'Depn & WACC Post 2004'!I$191) -> 51.57345217
A36: Avoided Costs - MV 80 O & M
A37: Materials & labour - bulk lamp change | D37: ='O & M 2021-2025'!$G$9*D$4 -> -27.30115216 | E37: ='O & M 2021-2025'!$AD$9*E$4 -> -28.0212407 | F37: ='O & M 2021-2025'!$BA$9*F$4 -> -28.78362715 | G37: ='O & M 2021-2025'!$BX$9*G$4 -> -29.61962715 | H37: ='O & M 2021-2025'!$CU$9*H$4 -> -30.53052698
A38: Materials & Labour - repair of faults | D38: ='O & M 2021-2025'!$G$10*D$4 -> -9.689895535 | E38: ='O & M 2021-2025'!$AD$10*E$4 -> -9.950144859 | F38: ='O & M 2021-2025'!$BA$10*F$4 -> -10.22545565 | G38: ='O & M 2021-2025'!$BX$10*G$4 -> -10.52560048 | H38: ='O & M 2021-2025'!$CU$10*H$4 -> -10.85075581
D39: =SUM(D37:D38) -> -36.9910477 | E39: =SUM(E37:E38) -> -37.97138556 | F39: =SUM(F37:F38) -> -39.00908279 | G39: =SUM(G37:G38) -> -40.14522763 | H39: =SUM(H37:H38) -> -41.3812828
A44: ='O & M 2021-2025'!$A$14 -> S-HP 150 | D44: =D$1 -> 2021/22 | E44: =E$1 -> 2022/23 | F44: 2023/24 | G44: 2024/25 | H44: 2025/26
A46: O & M Charge
A47: ='O & M 2021-2025'!A$15 -> Patrols and repairs | D47: ='O & M 2021-2025'!$B$15*D$4 -> 81.41188676 | E47: ='O & M 2021-2025'!$Y$15*E$4 -> 83.61550088 | F47: ='O & M 2021-2025'!$AV$15*F$4 -> 85.95228106 | G47: ='O & M 2021-2025'!$BS$15*G$4 -> 88.51214495 | H47: ='O & M 2021-2025'!$CP$15*H$4 -> 91.29683822
A48: ='O & M 2021-2025'!A$17 -> Other costs | D48: ='O & M 2021-2025'!$B$17*D$4 -> 1.12395608 | E48: ='O & M 2021-2025'!$Y$17*E$4 -> 1.108038788 | F48: ='O & M 2021-2025'!$AV$17*F$4 -> 1.098533265 | G48: ='O & M 2021-2025'!$BS$17*G$4 -> 1.091870478 | H48: ='O & M 2021-2025'!$CP$17*H$4 -> 1.10869491
D49: =SUM(D47:D48) -> 82.53584284 | E49: =SUM(E47:E48) -> 84.72353967 | F49: =SUM(F47:F48) -> 87.05081432 | G49: =SUM(G47:G48) -> 89.60401543 | H49: =SUM(H47:H48) -> 92.40553313
A50: Capital Charge
A51: Depreciation and Return | D51: ='Depn & WACC Post 2004'!H$38 -> 18.50553255 | E51: ='Depn & WACC Post 2004'!H$90 -> 16.91533766 | F51: ='Depn & WACC Post 2004'!H$140 -> 15.88311628 | G51: ='Depn & WACC Post 2004'!H$192 -> 17.53005651 | H51: ='Depn & WACC Post 2004'!H$242 -> 18.03867886
A53: Poles & Brackets Charge | D53: =D$13 -> 9.718275446 | E53: =E$13 -> 9.906092292 | F53: =F$13 -> 10.10767403 | G53: =G$13 -> 10.31730011 | H53: =H$13 -> 10.64802306
A55: Total Charge | D55: =SUM(D49,D51,D53) -> 110.7596508 | E55: =SUM(E49,E51,E53) -> 111.5449696 | F55: =SUM(F49,F51,F53) -> 113.0416046 | G55: =SUM(G49,G51,G53) -> 117.451372 | H55: =SUM(H49,H51,H53) -> 121.0922351
A57: WDV RAB - S-HP 150 Luminaire
A58: RAB WDV | D58: =MAX(0,'Depn & WACC Post 2004'!$I$9) -> 76.36940184 | E58: =MAX(0,'Depn & WACC Post 2004'!I$38) -> 71.5048195 | F58: =MAX(0,'Depn & WACC Post 2004'!I$90) -> 66.3075778 | G58: =MAX(0,'Depn & WACC Post 2004'!I$140) -> 67.59736957 | H58: =MAX(0,'Depn & WACC Post 2004'!I$192) -> 61.05349755
A60: Avoided Costs - S-HP 150 O & M
A61: Materials & labour - bulk lamp change | D61: ='O & M 2021-2025'!$G$15*D$4 -> 0 | E61: ='O & M 2021-2025'!$AD$15*E$4 -> 0 | F61: ='O & M 2021-2025'!$BA$15*F$4 -> 0 | G61: ='O & M 2021-2025'!$BX$15*G$4 -> 0 | H61: ='O & M 2021-2025'!$CU$15*H$4 -> 0
A62: Materials & Labour - repair of faults | D62: ='O & M 2021-2025'!$G$16*D$4 -> -31.07953131 | E62: ='O & M 2021-2025'!$AD$16*E$4 -> -31.91899385 | F62: ='O & M 2021-2025'!$BA$16*F$4 -> -32.80837007 | G62: ='O & M 2021-2025'!$BX$16*G$4 -> -33.78071375 | H62: ='O & M 2021-2025'!$CU$16*H$4 -> -34.8366175
D63: =SUM(D61:D62) -> -31.07953131 | E63: =SUM(E61:E62) -> -31.91899385 | F63: =SUM(F61:F62) -> -32.80837007 | G63: =SUM(G61:G62) -> -33.78071375 | H63: =SUM(H61:H62) -> -34.8366175
A67: ='O & M 2021-2025'!$A$20 -> S-HP 250 | D67: =D$1 -> 2021/22 | E67: =E$1 -> 2022/23 | F67: 2023/24 | G67: 2024/25 | H67: 2025/26
A69: O & M Charge
A70: ='O & M 2021-2025'!A$21 -> Patrols and repairs | D70: ='O & M 2021-2025'!$B$21*D$4 -> 81.39642311 | E70: ='O & M 2021-2025'!$Y$21*E$4 -> 83.59916944 | F70: ='O & M 2021-2025'!$AV$21*F$4 -> 85.93502022 | G70: ='O & M 2021-2025'!$BS$21*G$4 -> 88.49394277 | H70: ='O & M 2021-2025'!$CP$21*H$4 -> 91.27770302
A71: ='O & M 2021-2025'!A$23 -> Other costs | D71: ='O & M 2021-2025'!$B$23*D$4 -> 1.12395608 | E71: ='O & M 2021-2025'!$Y$23*E$4 -> 1.108038788 | F71: ='O & M 2021-2025'!$AV$23*F$4 -> 1.098533265 | G71: ='O & M 2021-2025'!$BS$23*G$4 -> 1.091870478 | H71: ='O & M 2021-2025'!$CP$23*H$4 -> 1.10869491
D72: =SUM(D70:D71) -> 82.52037919 | E72: =SUM(E70:E71) -> 84.70720823 | F72: =SUM(F70:F71) -> 87.03355349 | G72: =SUM(G70:G71) -> 89.58581325 | H72: =SUM(H70:H71) -> 92.38639793
A73: Capital Charge
A74: Depreciation and Return | D74: ='Depn & WACC Post 2004'!H$39 -> 20.20750118 | E74: ='Depn & WACC Post 2004'!H$91 -> 18.47105479 | F74: ='Depn & WACC Post 2004'!H$141 -> 16.12012719 | G74: ='Depn & WACC Post 2004'!H$193 -> 17.79164336 | H74: ='Depn & WACC Post 2004'!H$243 -> 18.30785548
A76: Poles & Brackets Charge | D76: =D$13 -> 9.718275446 | E76: =E$13 -> 9.906092292 | F76: =F$13 -> 10.10767403 | G76: =G$13 -> 10.31730011 | H76: =H$13 -> 10.64802306
A78: Total Charge | D78: =SUM(D72,D74,D76) -> 112.4461558 | E78: =SUM(E72,E74,E76) -> 113.0843553 | F78: =SUM(F72,F74,F76) -> 113.2613547 | G78: =SUM(G72,G74,G76) -> 117.6947567 | H78: =SUM(H72,H74,H76) -> 121.3422765
A80: WDV RAB - S-HP 250 Luminaire
A81: RAB WDV | D81: =MAX(0,'Depn & WACC Post 2004'!$I$10) -> 83.3931568 | E81: =MAX(0,'Depn & WACC Post 2004'!I$39) -> 78.08117493 | F81: =MAX(0,'Depn & WACC Post 2004'!I$91) -> 72.40593875 | G81: =MAX(0,'Depn & WACC Post 2004'!I$141) -> 68.60607046 | H81: =MAX(0,'Depn & WACC Post 2004'!I$193) -> 61.96454952
A83: Avoided Costs - S-HP 250 O & M
A84: Materials & labour - bulk lamp change | D84: ='O & M 2021-2025'!$G$21*D$4 -> 0 | E84: ='O & M 2021-2025'!$AD$21*E$4 -> 0 | F84: ='O & M 2021-2025'!$BA$21*F$4 -> 0 | G84: ='O & M 2021-2025'!$BX$21*G$4 -> 0 | H84: ='O & M 2021-2025'!$CU$21*H$4 -> 0
A85: Materials & Labour - repair of faults | D85: ='O & M 2021-2025'!$G$22*D$4 -> -31.07862373 | E85: ='O & M 2021-2025'!$AD$22*E$4 -> -31.91788835 | F85: ='O & M 2021-2025'!$BA$22*F$4 -> -32.80705392 | G85: ='O & M 2021-2025'!$BX$22*G$4 -> -33.77920443 | H85: ='O & M 2021-2025'!$CU$22*H$4 -> -34.83494099
D86: =SUM(D84:D85) -> -31.07862373 | E86: =SUM(E84:E85) -> -31.91788835 | F86: =SUM(F84:F85) -> -32.80705392 | G86: =SUM(G84:G85) -> -33.77920443 | H86: =SUM(H84:H85) -> -34.83494099
A90: ='DNSP Inputs General'!$A$11 -> Energy Efficient Lights
A92: ='O & M 2021-2025'!$A$26 -> T5 (2 X 14W) | D92: =D$1 -> 2021/22 | E92: =E$1 -> 2022/23 | F92: 2023/24 | G92: 2024/25 | H92: 2025/26
A94: O & M Charge
A95: ='O & M 2021-2025'!A$27 -> Bulk change & repairs | D95: ='O & M 2021-2025'!$B$27*D$4 -> 38.94937256 | E95: ='O & M 2021-2025'!$Y$27*E$4 -> 39.99693506 | F95: ='O & M 2021-2025'!$AV$27*F$4 -> 41.1059024 | G95: ='O & M 2021-2025'!$BS$27*G$4 -> 42.31680885 | H95: ='O & M 2021-2025'!$CP$27*H$4 -> 43.63044502
A96: ='O & M 2021-2025'!A$29 -> Other costs | D96: ='O & M 2021-2025'!$B$29*D$4 -> 1.12395608 | E96: ='O & M 2021-2025'!$Y$29*E$4 -> 1.108038788 | F96: ='O & M 2021-2025'!$AV$29*F$4 -> 1.098533265 | G96: ='O & M 2021-2025'!$BS$29*G$4 -> 1.091870478 | H96: ='O & M 2021-2025'!$CP$29*H$4 -> 1.10869491
D97: =SUM(D95:D96) -> 40.07332864 | E97: =SUM(E95:E96) -> 41.10497385 | F97: =SUM(F95:F96) -> 42.20443567 | G97: =SUM(G95:G96) -> 43.40867932 | H97: =SUM(H95:H96) -> 44.73913993
A98: Capital Charge
A99: Depreciation and Return | D99: ='Depn & WACC Post 2004'!$H$64 -> 6.808645407 | E99: ='Depn & WACC Post 2004'!$H$115 -> 6.259549251 | F99: ='Depn & WACC Post 2004'!$H$165 -> 5.918710344 | G99: ='Depn & WACC Post 2004'!$H$217 -> 5.714668721 | H99: ='Depn & WACC Post 2004'!$H$267 -> 5.758088859
A101: Poles & Brackets Charge | D101: =D$13 -> 9.718275446 | E101: =E$13 -> 9.906092292 | F101: =F$13 -> 10.10767403 | G101: =G$13 -> 10.31730011 | H101: =H$13 -> 10.64802306
A103: Total Charge | D103: =SUM(D97,D99,D101) -> 56.60024949 | E103: =SUM(E97,E99,E101) -> 57.27061539 | F103: =SUM(F97,F99,F101) -> 58.23082003 | G103: =SUM(G97,G99,G101) -> 59.44064815 | H103: =SUM(H97,H99,H101) -> 61.14525185
A107: ='DNSP Inputs General'!$A$11 -> Energy Efficient Lights
A109: ='O & M 2021-2025'!A32 -> Category P LED 18 Watt | D109: =D$1 -> 2021/22 | E109: =E$1 -> 2022/23 | F109: 2023/24 | G109: 2024/25 | H109: 2025/26
A111: O & M Charge
A112: ='O & M 2021-2025'!A$27 -> Bulk change & repairs | D112: ='O & M 2021-2025'!$B$33*D$4 -> 9.987961942 | E112: ='O & M 2021-2025'!$Y$33*E$4 -> 10.25085072 | F112: ='O & M 2021-2025'!$AV$33*F$4 -> 10.52900755 | G112: ='O & M 2021-2025'!$BS$33*G$4 -> 10.8336517 | H112: ='O & M 2021-2025'!$CP$33*H$4 -> 11.16524675
A113: ='O & M 2021-2025'!A$29 -> Other costs | D113: ='O & M 2021-2025'!$B$35*D$4 -> 1.12395608 | E113: ='O & M 2021-2025'!$Y$35*E$4 -> 1.108038788 | F113: ='O & M 2021-2025'!$AV$35*F$4 -> 1.098533265 | G113: ='O & M 2021-2025'!$BS$35*G$4 -> 1.091870478 | H113: ='O & M 2021-2025'!$CP$35*H$4 -> 1.10869491
D114: =SUM(D112:D113) -> 11.11191802 | E114: =SUM(E112:E113) -> 11.35888951 | F114: =SUM(F112:F113) -> 11.62754082 | G114: =SUM(G112:G113) -> 11.92552218 | H114: =SUM(H112:H113) -> 12.27394165
A115: Capital Charge
A116: Depreciation and Return | D116: ='Depn & WACC Post 2004'!$H$68 -> 6.808645407 | E116: ='Depn & WACC Post 2004'!$H$119 -> 6.259549251 | F116: ='Depn & WACC Post 2004'!$H$169 -> 5.918710344 | G116: ='Depn & WACC Post 2004'!$H$221 -> 5.714668721 | H116: ='Depn & WACC Post 2004'!$H$271 -> 5.758088859
A118: Poles & Brackets Charge | D118: =D$13 -> 9.718275446 | E118: =E$13 -> 9.906092292 | F118: =F$13 -> 10.10767403 | G118: =G$13 -> 10.31730011 | H118: =H$13 -> 10.64802306
A120: Total Charge | D120: =SUM(D114,D116,D118) -> 27.63883888 | E120: =SUM(E114,E116,E118) -> 27.52453105 | F120: =SUM(F114,F116,F118) -> 27.65392519 | G120: =SUM(G114,G116,G118) -> 27.95749101 | H120: =SUM(H114,H116,H118) -> 28.68005358
A125: ='DNSP Inputs General'!$A$11 -> Energy Efficient Lights
A127: ='O & M 2021-2025'!A37 -> Category V LED L1 | D127: =D$1 -> 2021/22 | E127: =E$1 -> 2022/23 | F127: 2023/24 | G127: 2024/25 | H127: 2025/26
A129: O & M Charge
A130: ='O & M 2021-2025'!A$21 -> Patrols and repairs | D130: ='O & M 2021-2025'!$B$38*D$4 -> 31.39211869 | E130: ='O & M 2021-2025'!$Y$38*E$4 -> 32.22645495 | F130: ='O & M 2021-2025'!$AV$38*F$4 -> 33.11180275 | G130: ='O & M 2021-2025'!$BS$38*G$4 -> 34.08690268 | H130: ='O & M 2021-2025'!$CP$38*H$4 -> 35.1533143
A131: ='O & M 2021-2025'!A$29 -> Other costs | D131: ='O & M 2021-2025'!$B$40*D$4 -> 1.12395608 | E131: ='O & M 2021-2025'!$Y$40*E$4 -> 1.108038788 | F131: ='O & M 2021-2025'!$AV$40*F$4 -> 1.098533265 | G131: ='O & M 2021-2025'!$BS$40*G$4 -> 1.091870478 | H131: ='O & M 2021-2025'!$CP$40*H$4 -> 1.10869491
D132: =SUM(D130:D131) -> 32.51607477 | E132: =SUM(E130:E131) -> 33.33449373 | F132: =SUM(F130:F131) -> 34.21033602 | G132: =SUM(G130:G131) -> 35.17877316 | H132: =SUM(H130:H131) -> 36.26200921
A133: Capital Charge
A134: Depreciation and Return | D134: ='Depn & WACC Post 2004'!$H$70 -> 13.35158758 | E134: ='Depn & WACC Post 2004'!$H$121 -> 12.27482341 | F134: ='Depn & WACC Post 2004'!$H$171 -> 11.60644663 | G134: ='Depn & WACC Post 2004'!$H$223 -> 11.20632598 | H134: ='Depn & WACC Post 2004'!$H$273 -> 11.29147181
A136: Poles & Brackets Charge | D136: =D$13 -> 9.718275446 | E136: =E$13 -> 9.906092292 | F136: =F$13 -> 10.10767403 | G136: =G$13 -> 10.31730011 | H136: =H$13 -> 10.64802306
A138: Total Charge | D138: =SUM(D132,D134,D136) -> 55.58593779 | E138: =SUM(E132,E134,E136) -> 55.51540944 | F138: =SUM(F132,F134,F136) -> 55.92445667 | G138: =SUM(G132,G134,G136) -> 56.70239925 | H138: =SUM(H132,H134,H136) -> 58.20150408

Sheet O & M 2021-2025
A1: ='DNSP Inputs O & M'!$A$3 -> Powercor
A3: Public Lighting O & M Costs | B3: Year | C3: ='DNSP Inputs General'!$Q2 -> 2021/22 | Y3: Year | Z3: ='DNSP Inputs General'!$R2 -> 2022/23 | AV3: Year | AW3: ='DNSP Inputs General'!$T2 -> 2024/25 | BS3: Year | BT3: ='DNSP Inputs General'!$U2 -> 2025/26 | CP3: Year | CQ3: =BT3+1 -> 
A4: ='DNSP Inputs O & M'!C5 -> Real 2021 $
A6: Summary
A8: =$A$74 -> MV80 | D8: Avoided Costs - MV 80 O & M | AA8: Avoided Costs - MV 80 O & M | AX8: Avoided Costs - MV 80 O & M | BU8: Avoided Costs - MV 80 O & M | CR8: Avoided Costs - MV 80 O & M
A9: =$A$75 -> Bulk change & repairs | B9: =G95*C44+N95*C45+U95*C46 -> 40.33039097 | D9: Materials & labour - bulk lamp change | G9: =-((G77+G86)*C44+(N77+N86)*C45+(U77+U86)*C46)*2 -> -26.66797218 | Y9: =AD95*Z44+AK95*Z45+AR95*Z46 -> 40.44524719 | AA9: Materials & labour - bulk lamp change | AD9: =-((AD77+AD86)*Z44+(AK77+AK86)*Z45+(AR77+AR86)*Z46)*2 -> -26.73655185 | AV9: =BA95*AW44+BH95*AW45+BO95*AW46 -> 40.59281583 | AX9: Materials & labour - bulk lamp change | BA9: =-((BA77+BA86)*AW44+(BH77+BH86)*AW45+(BO77+BO86)*AW46)*2 -> -26.82702872 | BS9: =BX95*BT44+CE95*BT45+CL95*BT46 -> 40.81019377 | BU9: Materials & labour - bulk lamp change | BX9: =-((BX77+BX86)*BT44+(CE77+CE86)*BT45+(CL77+CL86)*BT46)*2 -> -26.96594591 | CP9: =CU95*CQ44+DB95*CQ45+DI95*CQ46 -> 41.09288837 | CR9: Materials & labour - bulk lamp change | CU9: =-((CU77+CU86)*CQ44+(DB77+DB86)*CQ45+(DI77+DI86)*CQ46)*2 -> -27.15059744
A10: =A97 -> Dedicated poles - inspection | B10: =(G98*C44+N98*C45+U98*C46)*C48 -> 2.353404243 | D10: Materials & Labour - repair of faults | G10: =-((G81+G89+G91)*C44+(N81+N89+N91)*C45+(U81+U89+U91)*C46)/2 -> -9.465163341 | Y10: =(AD98*Z44+AK98*Z45+AR98*Z46)*Z48 -> 2.423404224 | AA10: Materials & Labour - repair of faults | AD10: =-((AD81+AD89+AD91)*Z44+(AK81+AK89+AK91)*Z45+(AR81+AR89+AR91)*Z46)/2 -> -9.493960913 | AV10: =(BA98*AW44+BH98*AW45+BO98*AW46)*AW48 -> 2.495969387 | AX10: Materials & Labour - repair of faults | BA10: =-((BA81+BA89+BA91)*AW44+(BH81+BH89+BH91)*AW45+(BO81+BO89+BO91)*AW46)/2 -> -9.530369153 | BS10: =(BX98*BT44+CE98*BT45+CL98*BT46)*BT48 -> 2.572994628 | BU10: Materials & Labour - repair of faults | BX10: =-((BX81+BX89+BX91)*BT44+(CE81+CE89+CE91)*BT45+(CL81+CL89+CL91)*BT46)/2 -> -9.582591029 | CP10: =(CU98*CQ44+DB98*CQ45+DI98*CQ46)*CQ48 -> 2.682280456 | CR10: Materials & Labour - repair of faults | CU10: =-((CU81+CU89+CU91)*CQ44+(DB81+DB89+DB91)*CQ45+(DI81+DI89+DI91)*CQ46)/2 -> -9.649505989
A11: Other costs | B11: =IF(C56=0,0,C54/C56) -> 1.097888811 | G11: =SUM(G9:G10) -> -36.13313552 | Y11: =IF(Z56=0,0,Z54/Z56) -> 1.057238573 | AD11: =SUM(AD9:AD10) -> -36.23051276 | AV11: =IF(AW56=0,0,AW54/AW56) -> 1.023859269 | BA11: =SUM(BA9:BA10) -> -36.35739787 | BS11: =IF(BT56=0,0,BT54/BT56) -> 0.9940476327 | BX11: =SUM(BX9:BX10) -> -36.54853694 | CP11: =IF(CQ56=0,0,CQ54/CQ56) -> 0.9859551127 | CU11: =SUM(CU9:CU10) -> -36.80010343
A14: =$A$115 -> S-HP 150 | D14: Avoided Costs - S-HP 150 O & M | AA14: Avoided Costs - S-HP 150 O & M | AX14: Avoided Costs - S-HP 150 O & M | BU14: Avoided Costs - S-HP 150 O & M | CR14: Avoided Costs - S-HP 150 O & M
A15: =$A$116 -> Patrols and repairs | B15: =G132*E44+N132*E45+U132*E46 -> 79.52374752 | D15: Materials & labour - bulk lamp change | Y15: =AD132*AB44+AK132*AB45+AR132*AB46 -> 79.78198392 | AA15: Materials & labour - bulk lamp change | AV15: =BA132*AY44+BH132*AY45+BO132*AY46 -> 80.10958107 | AX15: Materials & labour - bulk lamp change | BS15: =BX132*BV44+CE132*BV45+CL132*BV46 -> 80.58216607 | BU15: Materials & labour - bulk lamp change | CP15: =CU132*CS44+DB132*CS45+DI132*CS46 -> 81.18967953 | CR15: Materials & labour - bulk lamp change
A16: =$A$10 -> Dedicated poles - inspection | B16: =B10 -> 2.353404243 | D16: Materials & Labour - repair of faults | G16: =-((G118+G125+G128)*E44+(N118+N125+N128)*E45+(U118+U125+U128)*E46)/2 -> -30.35872155 | I16: The cost of patroling not included as we would still need to patrol. | Y16: =Y10 -> 2.423404224 | AA16: Materials & Labour - repair of faults | AD16: =-((AD118+AD125+AD128)*AB44+(AK118+AK125+AK128)*AB45+(AR118+AR125+AR128)*AB46)/2 -> -30.45560485 | AV16: =AV10 -> 2.495969387 | AX16: Materials & Labour - repair of faults | BA16: =-((BA118+BA125+BA128)*AY44+(BH118+BH125+BH128)*AY45+(BO118+BO125+BO128)*AY46)/2 -> -30.57818536 | BS16: =BS10 -> 2.572994628 | BU16: Materials & Labour - repair of faults | BX16: =-((BX118+BX125+BX128)*BV44+(CE118+CE125+CE128)*BV45+(CL118+CL125+CL128)*BV46)/2 -> -30.7542325 | CP16: =CP10 -> 2.682280456 | CR16: Materials & Labour - repair of faults | CU16: =-((CU118+CU125+CU128)*CS44+(DB118+DB125+DB128)*CS45+(DI118+DI125+DI128)*CS46)/2 -> -30.9799755
A17: =$A$11 -> Other costs | B17: =B11 -> 1.097888811 | G17: =SUM(G15:G16) -> -30.35872155 | Y17: =Y11 -> 1.057238573 | AD17: =SUM(AD15:AD16) -> -30.45560485 | AV17: =AV11 -> 1.023859269 | BA17: =SUM(BA15:BA16) -> -30.57818536 | BS17: =BS11 -> 0.9940476327 | BX17: =SUM(BX15:BX16) -> -30.7542325 | CP17: =CP11 -> 0.9859551127 | CU17: =SUM(CU15:CU16) -> -30.9799755
A20: =$A$147 -> S-HP 250 | D20: Avoided Costs - S-HP 250 O & M | AA20: Avoided Costs - MV 80 O & M | AX20: Avoided Costs - MV 80 O & M | BU20: Avoided Costs - MV 80 O & M | CR20: Avoided Costs - MV 80 O & M
A21: =$A$148 -> Patrols and repairs | B21: =G164*G44+N164*G45+U164*G46 -> 79.50864251 | D21: Materials & labour - bulk lamp change | Y21: =AD164*AD44+AK164*AD45+AR164*AD46 -> 79.76640122 | AA21: Materials & labour - bulk lamp change | AV21: =BA164*BA44+BH164*BA45+BO164*BA46 -> 80.09349356 | AX21: Materials & labour - bulk lamp change | BS21: =BX164*BX44+CE164*BX45+CL164*BX46 -> 80.56559465 | BU21: Materials & labour - bulk lamp change | CP21: =CU164*CU44+DB164*CU45+DI164*CU46 -> 81.17266272 | CR21: Materials & labour - bulk lamp change
A22: =$A$10 -> Dedicated poles - inspection | B22: =B10 -> 2.353404243 | D22: Materials & Labour - repair of faults | G22: =-((G150+G157+G160)*G44+(N150+N157+N160)*G45+(U150+U157+U160)*G46)/2 -> -30.35783502 | I22: The cost of patroling not included as we would still need to patrol. | Y22: =Y10 -> 2.423404224 | AA22: Materials & Labour - repair of faults | AD22: =-((AD150+AD157+AD160)*AD44+(AK150+AK157+AK160)*AD45+(AR150+AR157+AR160)*AD46)/2 -> -30.45455003 | AV22: =AV10 -> 2.495969387 | AX22: Materials & Labour - repair of faults | BA22: =-((BA150+BA157+BA160)*BA44+(BH150+BH157+BH160)*BA45+(BO150+BO157+BO160)*BA46)/2 -> -30.57695868 | BS22: =BS10 -> 2.572994628 | BU22: Materials & Labour - repair of faults | BX22: =-((BX150+BX157+BX160)*BX44+(CE150+CE157+CE160)*BX45+(CL150+CL157+CL160)*BX46)/2 -> -30.75285841 | CP22: =CP10 -> 2.682280456 | CR22: Materials & Labour - repair of faults | CU22: =-((CU150+CU157+CU160)*CU44+(DB150+DB157+DB160)*CU45+(DI150+DI157+DI160)*CU46)/2 -> -30.97848459
A23: =$A$11 -> Other costs | B23: =B11 -> 1.097888811 | G23: =SUM(G21:G22) -> -30.35783502 | Y23: =Y11 -> 1.057238573 | AD23: =SUM(AD21:AD22) -> -30.45455003 | AV23: =AV11 -> 1.023859269 | BA23: =SUM(BA21:BA22) -> -30.57695868 | BS23: =BS11 -> 0.9940476327 | BX23: =SUM(BX21:BX22) -> -30.75285841 | CP23: =CP11 -> 0.9859551127 | CU23: =SUM(CU21:CU22) -> -30.97848459
A26: =$A$181 -> T5 (2 X 14W)
A27: =$A$182 -> Bulk change & repairs | B27: =G202*I44+N202*I45+U202*I46 -> 38.04604208 | Y27: =AD202*AF44+AK202*AF45+AR202*AF46 -> 38.16319697 | AV27: =BA202*BC44+BH202*BC45+BO202*BC46 -> 38.31168388 | BS27: =BX202*BZ44+CE202*BZ45+CL202*BZ46 -> 38.52556188 | CP27: =CU202*CW44+DB202*CW45+DI202*CW46 -> 38.80026864
A28: =$A$10 -> Dedicated poles - inspection | B28: =B10 -> 2.353404243 | Y28: =Y10 -> 2.423404224 | AV28: =AV10 -> 2.495969387 | BS28: =BS10 -> 2.572994628 | CP28: =CP10 -> 2.682280456
A29: =$A$11 -> Other costs | B29: =B11 -> 1.097888811 | Y29: =Y11 -> 1.057238573 | AV29: =AV11 -> 1.023859269 | BS29: =BS11 -> 0.9940476327 | CP29: =CP11 -> 0.9859551127
A32: =$A$219 -> Category P LED 18 Watt
A33: =$A$220 -> Bulk change & repairs | B33: =G238*K44+N238*K45+U238*K46 -> 9.756316864 | Y33: =AD238*AH44+AK238*AH45+AR238*AH46 -> 9.780880323 | AV33: =BA238*BE44+BH238*BE45+BO238*BE46 -> 9.81328679 | BS33: =BX238*CB44+CE238*CB45+CL238*CB46 -> 9.863043326 | CP33: =CU238*CY44+DB238*CY45+DI238*CY46 -> 9.929180712
A34: =$A$10 -> Dedicated poles - inspection | B34: =B16 -> 2.353404243 | Y34: =$Y$16 -> 2.423404224 | AV34: =$AV$16 -> 2.495969387 | BS34: =BS16 -> 2.572994628 | CP34: =CP16 -> 2.682280456
A35: =$A$11 -> Other costs | B35: =B17 -> 1.097888811 | Y35: =$Y$17 -> 1.057238573 | AV35: =$AV$17 -> 1.023859269 | BS35: =BS17 -> 0.9940476327 | CP35: =CP17 -> 0.9859551127
A37: =A253 -> Category V LED L1
A38: =A254 -> Patrols and repairs | B38: =G268*M44+N268*M45+U268*M46 -> 30.66405927 | Y38: =AD268*AJ44+AK268*AJ45+AR268*AJ46 -> 30.74896978 | AV38: =BA268*BG44+BH268*BG45+BO268*BG46 -> 30.86099187 | BS38: =BX268*CD44+CE268*CD45+CL268*CD46 -> 31.03298936 | CP38: =CU268*DA44+DB268*DA45+DI268*DA46 -> 31.26161188
A39: =$A$10 -> Dedicated poles - inspection | B39: =B16 -> 2.353404243 | Y39: =$Y$16 -> 2.423404224 | AV39: =$AV$16 -> 2.495969387 | BS39: =$BS$16 -> 2.572994628 | CP39: =$CP$16 -> 2.682280456
A40: =$A$11 -> Other costs | B40: =B17 -> 1.097888811 | Y40: =$Y$17 -> 1.057238573 | AV40: =$AV$17 -> 1.023859269 | BS40: =$BS$17 -> 0.9940476327 | CP40: =$CP$17 -> 0.9859551127
A43: ='DNSP Inputs O & M'!A54 -> Location of selected public lighting assets within distributors' areas (%) | C43: =$A$74 -> MV80 | E43: =$A$115 -> S-HP 150 | G43: =$A$147 -> S-HP 250 | I43: =$A$181 -> T5 (2 X 14W) | K43: =$A$219 -> Category P LED 18 Watt | M43: =$A$253 -> Category V LED L1 | Z43: =$A$74 -> MV80 | AB43: =$A$115 -> S-HP 150 | AD43: =$A$147 -> S-HP 250 | AF43: =$A$181 -> T5 (2 X 14W) | AH43: =$A$219 -> Category P LED 18 Watt | AJ43: =$A$253 -> Category V LED L1 | AW43: =$A$74 -> MV80 | AY43: =$A$115 -> S-HP 150 | BA43: =$A$147 -> S-HP 250 | BC43: =$A$181 -> T5 (2 X 14W) | BE43: =$A$219 -> Category P LED 18 Watt | BG43: =$A$253 -> Category V LED L1 | BT43: =$A$74 -> MV80 | BV43: =$A$115 -> S-HP 150 | BX43: =$A$147 -> S-HP 250 | BZ43: =$A$181 -> T5 (2 X 14W) | CB43: =$A$219 -> Category P LED 18 Watt | CD43: =$A$253 -> Category V LED L1 | CQ43: =$A$74 -> MV80 | CS43: =$A$115 -> S-HP 150 | CU43: =$A$147 -> S-HP 250 | CW43: =$A$181 -> T5 (2 X 14W) | CY43: =$A$219 -> Category P LED 18 Watt | DA43: =$A$253 -> Category V LED L1
A44: ='DNSP Inputs O & M'!A55 -> Urban | C44: ='DNSP Inputs O & M'!$D$55 -> 0.7537060972 | E44: ='DNSP Inputs O & M'!$D$87 -> 0.7849450786 | G44: ='DNSP Inputs O & M'!$D$119 -> 0.7724111283 | I44: ='DNSP Inputs O & M'!$D$178 -> 0.7798005229 | K44: ='DNSP Inputs O & M'!$D$213 -> 0.6061337397 | M44: ='DNSP Inputs O & M'!$D$242 -> 0.614083602 | Z44: ='DNSP Inputs O & M'!$E$55 -> 0.7537060972 | AB44: ='DNSP Inputs O & M'!$E$87 -> 0.7849450786 | AD44: ='DNSP Inputs O & M'!$E$119 -> 0.7724111283 | AF44: ='DNSP Inputs O & M'!$E$178 -> 0.7798005229 | AH44: ='DNSP Inputs O & M'!$E$213 -> 0.6061337397 | AJ44: ='DNSP Inputs O & M'!$E$242 -> 0.614083602 | AW44: ='DNSP Inputs O & M'!$F$55 -> 0.7537060972 | AY44: ='DNSP Inputs O & M'!$F$87 -> 0.7849450786 | BA44: ='DNSP Inputs O & M'!$F$119 -> 0.7724111283 | BC44: ='DNSP Inputs O & M'!$F$178 -> 0.7798005229 | BE44: ='DNSP Inputs O & M'!$F$213 -> 0.6061337397 | BG44: ='DNSP Inputs O & M'!$F$242 -> 0.614083602 | BT44: ='DNSP Inputs O & M'!$G$55 -> 0.7537060972 | BV44: ='DNSP Inputs O & M'!$G$87 -> 0.7849450786 | BX44: ='DNSP Inputs O & M'!$G$119 -> 0.7724111283 | BZ44: ='DNSP Inputs O & M'!$G$178 -> 0.7798005229 | CB44: ='DNSP Inputs O & M'!$G$213 -> 0.6061337397 | CD44: ='DNSP Inputs O & M'!$G$242 -> 0.614083602 | CQ44: ='DNSP Inputs O & M'!$H$55 -> 0.7537060972 | CS44: ='DNSP Inputs O & M'!$H$87 -> 0.7849450786 | CU44: ='DNSP Inputs O & M'!$H$119 -> 0.7724111283 | CW44: ='DNSP Inputs O & M'!$H$178 -> 0.7798005229 | CY44: ='DNSP Inputs O & M'!$H$213 -> 0.6061337397 | DA44: ='DNSP Inputs O & M'!$H$242 -> 0.614083602
A45: ='DNSP Inputs O & M'!A56 -> Rural | C45: ='DNSP Inputs O & M'!$D$56 -> 0.1885136274 | E45: ='DNSP Inputs O & M'!$D$88 -> 0.185117381 | G45: ='DNSP Inputs O & M'!$D$120 -> 0.2045595054 | I45: ='DNSP Inputs O & M'!$D$179 -> 0.2198121429 | K45: ='DNSP Inputs O & M'!$D$214 -> 0.34853219 | M45: ='DNSP Inputs O & M'!$D$243 -> 0.3423158953 | Z45: ='DNSP Inputs O & M'!$E$56 -> 0.1885136274 | AB45: ='DNSP Inputs O & M'!$E$88 -> 0.185117381 | AD45: ='DNSP Inputs O & M'!$E$120 -> 0.2045595054 | AF45: ='DNSP Inputs O & M'!$E$179 -> 0.2198121429 | AH45: ='DNSP Inputs O & M'!$E$214 -> 0.34853219 | AJ45: ='DNSP Inputs O & M'!$E$243 -> 0.3423158953 | AW45: ='DNSP Inputs O & M'!$F$56 -> 0.1885136274 | AY45: ='DNSP Inputs O & M'!$F$88 -> 0.185117381 | BA45: ='DNSP Inputs O & M'!$F$120 -> 0.2045595054 | BC45: ='DNSP Inputs O & M'!$F$179 -> 0.2198121429 | BE45: ='DNSP Inputs O & M'!$F$214 -> 0.34853219 | BG45: ='DNSP Inputs O & M'!$F$243 -> 0.3423158953 | BT45: ='DNSP Inputs O & M'!$G$56 -> 0.1885136274 | BV45: ='DNSP Inputs O & M'!$G$88 -> 0.185117381 | BX45: ='DNSP Inputs O & M'!$G$120 -> 0.2045595054 | BZ45: ='DNSP Inputs O & M'!$G$179 -> 0.2198121429 | CB45: ='DNSP Inputs O & M'!$G$214 -> 0.34853219 | CD45: ='DNSP Inputs O & M'!$G$243 -> 0.3423158953 | CQ45: ='DNSP Inputs O & M'!$H$56 -> 0.1885136274 | CS45: ='DNSP Inputs O & M'!$H$88 -> 0.185117381 | CU45: ='DNSP Inputs O & M'!$H$120 -> 0.2045595054 | CW45: ='DNSP Inputs O & M'!$H$179 -> 0.2198121429 | CY45: ='DNSP Inputs O & M'!$H$214 -> 0.34853219 | DA45: ='DNSP Inputs O & M'!$H$243 -> 0.3423158953
A46: ='DNSP Inputs O & M'!A57 -> Remote | C46: ='DNSP Inputs O & M'!$D$57 -> 0.05778027536 | E46: ='DNSP Inputs O & M'!$D$89 -> 0.02993754038 | G46: ='DNSP Inputs O & M'!$D$121 -> 0.02302936631 | I46: ='DNSP Inputs O & M'!$D$180 -> 0.0003873341726 | K46: ='DNSP Inputs O & M'!$D$215 -> 0.04533407033 | M46: ='DNSP Inputs O & M'!$D$244 -> 0.04360050272 | Z46: ='DNSP Inputs O & M'!$E$57 -> 0.05778027536 | AB46: ='DNSP Inputs O & M'!$E$89 -> 0.02993754038 | AD46: ='DNSP Inputs O & M'!$E$121 -> 0.02302936631 | AF46: ='DNSP Inputs O & M'!$E$180 -> 0.0003873341726 | AH46: ='DNSP Inputs O & M'!$E$215 -> 0.04533407033 | AJ46: ='DNSP Inputs O & M'!$E$244 -> 0.04360050272 | AW46: ='DNSP Inputs O & M'!$F$57 -> 0.05778027536 | AY46: ='DNSP Inputs O & M'!$F$89 -> 0.02993754038 | BA46: ='DNSP Inputs O & M'!$F$121 -> 0.02302936631 | BC46: ='DNSP Inputs O & M'!$F$180 -> 0.0003873341726 | BE46: ='DNSP Inputs O & M'!$F$215 -> 0.04533407033 | BG46: ='DNSP Inputs O & M'!$F$244 -> 0.04360050272 | BT46: ='DNSP Inputs O & M'!$G$57 -> 0.05778027536 | BV46: ='DNSP Inputs O & M'!$G$89 -> 0.02993754038 | BX46: ='DNSP Inputs O & M'!$G$121 -> 0.02302936631 | BZ46: ='DNSP Inputs O & M'!$G$180 -> 0.0003873341726 | CB46: ='DNSP Inputs O & M'!$G$215 -> 0.04533407033 | CD46: ='DNSP Inputs O & M'!$G$244 -> 0.04360050272 | CQ46: ='DNSP Inputs O & M'!$H$57 -> 0.05778027536 | CS46: ='DNSP Inputs O & M'!$H$89 -> 0.02993754038 | CU46: ='DNSP Inputs O & M'!$H$121 -> 0.02302936631 | CW46: ='DNSP Inputs O & M'!$H$180 -> 0.0003873341726 | CY46: ='DNSP Inputs O & M'!$H$215 -> 0.04533407033 | DA46: ='DNSP Inputs O & M'!$H$244 -> 0.04360050272
A48: ='DNSP Inputs O & M'!A130 -> Proportion of lights on dedicated poles | C48: ='DNSP Inputs O & M'!$D$130 -> 0.5596134309 | Z48: ='DNSP Inputs O & M'!$E$130 -> 0.5740572578 | AW48: ='DNSP Inputs O & M'!$F$130 -> 0.5882816491 | BT48: ='DNSP Inputs O & M'!$G$130 -> 0.6018024107 | CQ48: ='DNSP Inputs O & M'!$H$130 -> 0.6210560203
A50: ='DNSP Inputs O & M'!A134 -> Other direct costs
A51: ='DNSP Inputs O & M'!$A$135 -> Call centre | C51: ='DNSP Inputs O & M'!$D$138 -> 41653.88236 | Z51: ='DNSP Inputs O & M'!$E$138 -> 35985.13095 | AW51: ='DNSP Inputs O & M'!$F$138 -> 31104.80544 | BT51: ='DNSP Inputs O & M'!$G$138 -> 26853.41361 | CQ51: ='DNSP Inputs O & M'!$H$138 -> 25019.26266
A52: ='DNSP Inputs O & M'!$A$140 -> GIS and other | C52: ='DNSP Inputs O & M'!$D$140 -> 127086.5836 | Z52: ='DNSP Inputs O & M'!$E$140 -> 129166.0506 | AW52: ='DNSP Inputs O & M'!$F$140 -> 131351.1431 | BT52: ='DNSP Inputs O & M'!$G$140 -> 133409.5572 | CQ52: ='DNSP Inputs O & M'!$H$140 -> 135264.7877
A53: ='DNSP Inputs O & M'!A141 -> Complaints handling | C53: ='DNSP Inputs O & M'!$D$141 -> 38125.97508 | Z53: ='DNSP Inputs O & M'!$E$141 -> 38749.81517 | AW53: ='DNSP Inputs O & M'!$F$141 -> 39405.34292 | BT53: ='DNSP Inputs O & M'!$G$141 -> 40022.86717 | CQ53: ='DNSP Inputs O & M'!$H$141 -> 40579.43631
C54: =SUM(C51:C53) -> 206866.4411 | Z54: =SUM(Z51:Z53) -> 203900.9967 | AW54: =SUM(AW51:AW53) -> 201861.2914 | BT54: =SUM(BT51:BT53) -> 200285.838 | CQ54: =SUM(CQ51:CQ53) -> 200863.4867
A56: ='DNSP Inputs General'!A80 -> Total Number of Lights | C56: ='DNSP Inputs General'!$Q$80 -> 188422.0324 | Z56: ='DNSP Inputs General'!$R$80 -> 192861.8592 | AW56: ='DNSP Inputs General'!$S$80 -> 197157.2633 | BT56: ='DNSP Inputs General'!$T$80 -> 201485.1517 | CQ56: ='DNSP Inputs General'!$U$80 -> 203724.7782
A62: Mercury Vapour 80 Watt Standard Light Type - Cost build-up
A64: Additional assumptions
A65: Proportion of lamps that will fail before bulk change | D65: ='DNSP Inputs O & M'!$D$29 -> 0.5324658987 | AA65: ='DNSP Inputs O & M'!$E$29 -> 0.5324658987 | AX65: ='DNSP Inputs O & M'!$F$29 -> 0.5324658987 | BU65: ='DNSP Inputs O & M'!$G$29 -> 0.5324658987 | CR65: ='DNSP Inputs O & M'!$H$29 -> 0.5324658987
A66: Proportion of lamps that will fail before bulk change (per year) | D66: =D65/'DNSP Inputs O & M'!$D$27 -> 0.1331164747 | AA66: =AA65/'DNSP Inputs O & M'!$E$27 -> 0.1331164747 | AX66: =AX65/'DNSP Inputs O & M'!$F$27 -> 0.1331164747 | BU66: =BU65/'DNSP Inputs O & M'!$G$27 -> 0.1331164747 | CR66: =CR65/'DNSP Inputs O & M'!$H$27 -> 0.1331164747
A67: Overheads are applied to material and labour components
A68: All costs and charges are exclusive of GST
B70: Urban | I70: Rural | P70: Remote | Y70: Urban | AF70: Rural | AM70: Remote | AV70: Urban | BC70: Rural | BJ70: Remote | BS70: Urban | BZ70: Rural | CG70: Remote | CP70: Urban | CW70: Rural | DD70: Remote
B72: Unit rate | C72: Number | D72: Hours | E72: Cost | F72: Annualised | G72: Annualised | I72: Unit rate | J72: Number | K72: Hours | L72: Cost | M72: Annualised | N72: Annualised | P72: Unit rate | Q72: Number | R72: Hours | S72: Cost | T72: Annualised | U72: Annualised | Y72: Unit rate | Z72: Number | AA72: Hours | AB72: Cost | AC72: Annualised | AD72: Annualised | AF72: Unit rate | AG72: Number | AH72: Hours | AI72: Cost | AJ72: Annualised | AK72: Annualised | AM72: Unit rate | AN72: Number | AO72: Hours | AP72: Cost | AQ72: Annualised | AR72: Annualised | AV72: Unit rate | AW72: Number | AX72: Hours | AY72: Cost | AZ72: Annualised | BA72: Annualised | BC72: Unit rate | BD72: Number | BE72: Hours | BF72: Cost | BG72: Annualised | BH72: Annualised | BJ72: Unit rate | BK72: Number | BL72: Hours | BM72: Cost | BN72: Annualised | BO72: Annualised | BS72: Unit rate | BT72: Number | BU72: Hours | BV72: Cost | BW72: Annualised | BX72: Annualised | BZ72: Unit rate | CA72: Number | CB72: Hours | CC72: Cost | CD72: Annualised | CE72: Annualised | CG72: Unit rate | CH72: Number | CI72: Hours | CJ72: Cost | CK72: Annualised | CL72: Annualised | CP72: Unit rate | CQ72: Number | CR72: Hours | CS72: Cost | CT72: Annualised | CU72: Annualised | CW72: Unit rate | CX72: Number | CY72: Hours | CZ72: Cost | DA72: Annualised | DB72: Annualised | DD72: Unit rate | DE72: Number | DF72: Hours | DG72: Cost | DH72: Annualised | DI72: Annualised
F73: cost | G73: unit cost | M73: cost | N73: unit cost | T73: cost | U73: unit cost | AC73: cost | AD73: unit cost | AJ73: cost | AK73: unit cost | AQ73: cost | AR73: unit cost | AZ73: cost | BA73: unit cost | BG73: cost | BH73: unit cost | BN73: cost | BO73: unit cost | BW73: cost | BX73: unit cost | CD73: cost | CE73: unit cost | CK73: cost | CL73: unit cost | CT73: cost | CU73: unit cost | DA73: cost | DB73: unit cost | DH73: cost | DI73: unit cost
A74: MV80
A75: Bulk change & repairs
A76: Materials - bulk lamp change
A77: Lamp | B77: ='DNSP Inputs O & M'!$D$30 -> 6.31520058 | C77: ='DNSP Inputs O & M'!$D$36 -> 86.4 | E77: =B77*C77 -> 545.6333301 | F77: =E77/'DNSP Inputs O & M'!$D$27*0.8 -> 109.126666 | G77: =(F77+F78+F79)/C77 -> 4.765765427 | I77: =('DNSP Inputs O & M'!$D$30)*(1+'DNSP Inputs O & M'!$D$11) -> 6.630960609 | J77: ='DNSP Inputs O & M'!$D$37 -> 72 | L77: =I77*J77 -> 477.4291639 | M77: =L77/'DNSP Inputs O & M'!$D$27*0.8 -> 95.48583277 | N77: =(M77+M78+M79)/J77 -> 5.004053698 | P77: =('DNSP Inputs O & M'!$D$30)*(1+'DNSP Inputs O & M'!$D$11) -> 6.630960609 | Q77: ='DNSP Inputs O & M'!$D$38 -> 60 | S77: =P77*Q77 -> 397.8576366 | T77: =S77/'DNSP Inputs O & M'!$D$27*0.8 -> 79.57152731 | U77: =(T77+T78+T79)/Q77 -> 5.004053698 | Y77: =('DNSP Inputs O & M'!$E$30) -> 6.31520058 | Z77: ='DNSP Inputs O & M'!$E$36 -> 86.4 | AB77: =Y77*Z77 -> 545.6333301 | AC77: =AB77/'DNSP Inputs O & M'!$E$27*0.8 -> 109.126666 | AD77: =(AC77+AC78+AC79)/Z77 -> 4.765765427 | AF77: =('DNSP Inputs O & M'!$E$30)*(1+'DNSP Inputs O & M'!$E$11) -> 6.630960609 | AG77: ='DNSP Inputs O & M'!$E$37 -> 72 | AI77: =AF77*AG77 -> 477.4291639 | AJ77: =AI77/'DNSP Inputs O & M'!$E$27*0.8 -> 95.48583277 | AK77: =(AJ77+AJ78+AJ79)/AG77 -> 5.004053698 | AM77: =('DNSP Inputs O & M'!$E$30)*(1+'DNSP Inputs O & M'!$E$11) -> 6.630960609 | AN77: ='DNSP Inputs O & M'!$E$38 -> 60 | AP77: =AM77*AN77 -> 397.8576366 | AQ77: =AP77/'DNSP Inputs O & M'!$E$27*0.8 -> 79.57152731 | AR77: =(AQ77+AQ78+AQ79)/AN77 -> 5.004053698 | AV77: =('DNSP Inputs O & M'!$F$30) -> 6.31520058 | AW77: ='DNSP Inputs O & M'!$F$36 -> 86.4 | AY77: =AV77*AW77 -> 545.6333301 | AZ77: =AY77/'DNSP Inputs O & M'!$F$27*0.8 -> 109.126666 | BA77: =(AZ77+AZ78+AZ79)/AW77 -> 4.765765427 | BC77: =('DNSP Inputs O & M'!$F$30)*(1+'DNSP Inputs O & M'!$F$11) -> 6.630960609 | BD77: ='DNSP Inputs O & M'!$F$37 -> 72 | BF77: =BC77*BD77 -> 477.4291639 | BG77: =BF77/'DNSP Inputs O & M'!$F$27*0.8 -> 95.48583277 | BH77: =(BG77+BG78+BG79)/BD77 -> 5.004053698 | BJ77: =('DNSP Inputs O & M'!$F$30)*(1+'DNSP Inputs O & M'!$F$11) -> 6.630960609 | BK77: ='DNSP Inputs O & M'!$F$38 -> 60 | BM77: =BJ77*BK77 -> 397.8576366 | BN77: =BM77/'DNSP Inputs O & M'!$F$27*0.8 -> 79.57152731 | BO77: =(BN77+BN78+BN79)/BK77 -> 5.004053698 | BS77: =('DNSP Inputs O & M'!$G$30) -> 6.31520058 | BT77: ='DNSP Inputs O & M'!$G$36 -> 86.4 | BV77: =BS77*BT77 -> 545.6333301 | BW77: =BV77/'DNSP Inputs O & M'!$G$27*0.8 -> 109.126666 | BX77: =(BW77+BW78+BW79)/BT77 -> 4.765765427 | BZ77: =('DNSP Inputs O & M'!$G$30)*(1+'DNSP Inputs O & M'!$G$11) -> 6.630960609 | CA77: ='DNSP Inputs O & M'!$G$37 -> 72 | CC77: =BZ77*CA77 -> 477.4291639 | CD77: =CC77/'DNSP Inputs O & M'!$G$27*0.8 -> 95.48583277 | CE77: =(CD77+CD78+CD79)/CA77 -> 5.004053698 | CG77: =('DNSP Inputs O & M'!$G$30)*(1+'DNSP Inputs O & M'!$G$11) -> 6.630960609 | CH77: ='DNSP Inputs O & M'!$G$38 -> 60 | CJ77: =CG77*CH77 -> 397.8576366 | CK77: =CJ77/'DNSP Inputs O & M'!$G$27*0.8 -> 79.57152731 | CL77: =(CK77+CK78+CK79)/CH77 -> 5.004053698 | CP77: =('DNSP Inputs O & M'!$H$30) -> 6.31520058 | CQ77: ='DNSP Inputs O & M'!$H$36 -> 86.4 | CS77: =CP77*CQ77 -> 545.6333301 | CT77: =CS77/'DNSP Inputs O & M'!$H$27*0.8 -> 109.126666 | CU77: =(CT77+CT78+CT79)/CQ77 -> 4.765765427 | CW77: =('DNSP Inputs O & M'!$H$30)*(1+'DNSP Inputs O & M'!$H$11) -> 6.630960609 | CX77: ='DNSP Inputs O & M'!$H$37 -> 72 | CZ77: =CW77*CX77 -> 477.4291639 | DA77: =CZ77/'DNSP Inputs O & M'!$H$27*0.8 -> 95.48583277 | DB77: =(DA77+DA78+DA79)/CX77 -> 5.004053698 | DD77: =('DNSP Inputs O & M'!$H$30)*(1+'DNSP Inputs O & M'!$H$11) -> 6.630960609 | DE77: ='DNSP Inputs O & M'!$H$38 -> 60 | DG77: =DD77*DE77 -> 397.8576366 | DH77: =DG77/'DNSP Inputs O & M'!$H$27*0.8 -> 79.57152731 | DI77: =(DH77+DH78+DH79)/DE77 -> 5.004053698
A78: PE cell | B78: ='DNSP Inputs O & M'!$D$31 -> 25.49572226 | C78: =C77*'DNSP Inputs O & M'!$D$27/'DNSP Inputs O & M'!$D$28 -> 43.2 | E78: =B78*C78 -> 1101.415201 | F78: =E78/'DNSP Inputs O & M'!$D$27 -> 275.3538004 | I78: ='DNSP Inputs O & M'!$D$31*(1+'DNSP Inputs O & M'!$D$11) -> 26.77050837 | J78: =J77*'DNSP Inputs O & M'!$D$27/'DNSP Inputs O & M'!$D$28 -> 36 | L78: =I78*J78 -> 963.7383013 | M78: =L78/'DNSP Inputs O & M'!$D$27 -> 240.9345753 | P78: ='DNSP Inputs O & M'!$D$31*(1+'DNSP Inputs O & M'!$D$11) -> 26.77050837 | Q78: =Q77*'DNSP Inputs O & M'!$D$27/'DNSP Inputs O & M'!$D$28 -> 30 | S78: =P78*Q78 -> 803.115251 | T78: =S78/'DNSP Inputs O & M'!$D$27 -> 200.7788128 | Y78: ='DNSP Inputs O & M'!$E$31 -> 25.49572226 | Z78: =Z77*'DNSP Inputs O & M'!$E$27/'DNSP Inputs O & M'!$E$28 -> 43.2 | AB78: =Y78*Z78 -> 1101.415201 | AC78: =AB78/'DNSP Inputs O & M'!$E$27 -> 275.3538004 | AF78: ='DNSP Inputs O & M'!$E$31*(1+'DNSP Inputs O & M'!$E$11) -> 26.77050837 | AG78: =AG77*'DNSP Inputs O & M'!$E$27/'DNSP Inputs O & M'!$E$28 -> 36 | AI78: =AF78*AG78 -> 963.7383013 | AJ78: =AI78/'DNSP Inputs O & M'!$E$27 -> 240.9345753 | AM78: ='DNSP Inputs O & M'!$E$31*(1+'DNSP Inputs O & M'!$E$11) -> 26.77050837 | AN78: =AN77*'DNSP Inputs O & M'!$E$27/'DNSP Inputs O & M'!$E$28 -> 30 | AP78: =AM78*AN78 -> 803.115251 | AQ78: =AP78/'DNSP Inputs O & M'!$E$27 -> 200.7788128 | AV78: ='DNSP Inputs O & M'!$F$31 -> 25.49572226 | AW78: =AW77*'DNSP Inputs O & M'!$F$27/'DNSP Inputs O & M'!$F$28 -> 43.2 | AY78: =AV78*AW78 -> 1101.415201 | AZ78: =AY78/'DNSP Inputs O & M'!$F$27 -> 275.3538004 | BC78: ='DNSP Inputs O & M'!$F$31*(1+'DNSP Inputs O & M'!$F$11) -> 26.77050837 | BD78: =BD77*'DNSP Inputs O & M'!$F$27/'DNSP Inputs O & M'!$F$28 -> 36 | BF78: =BC78*BD78 -> 963.7383013 | BG78: =BF78/'DNSP Inputs O & M'!$F$27 -> 240.9345753 | BJ78: ='DNSP Inputs O & M'!$F$31*(1+'DNSP Inputs O & M'!$F$11) -> 26.77050837 | BK78: =BK77*'DNSP Inputs O & M'!$F$27/'DNSP Inputs O & M'!$F$28 -> 30 | BM78: =BJ78*BK78 -> 803.115251 | BN78: =BM78/'DNSP Inputs O & M'!$F$27 -> 200.7788128 | BS78: ='DNSP Inputs O & M'!$G$31 -> 25.49572226 | BT78: =BT77*'DNSP Inputs O & M'!$G$27/'DNSP Inputs O & M'!$G$28 -> 43.2 | BV78: =BS78*BT78 -> 1101.415201 | BW78: =BV78/'DNSP Inputs O & M'!$G$27 -> 275.3538004 | BZ78: ='DNSP Inputs O & M'!$G$31*(1+'DNSP Inputs O & M'!$G$11) -> 26.77050837 | CA78: =CA77*'DNSP Inputs O & M'!$G$27/'DNSP Inputs O & M'!$G$28 -> 36 | CC78: =BZ78*CA78 -> 963.7383013 | CD78: =CC78/'DNSP Inputs O & M'!$G$27 -> 240.9345753 | CG78: ='DNSP Inputs O & M'!$G$31*(1+'DNSP Inputs O & M'!$G$11) -> 26.77050837 | CH78: =CH77*'DNSP Inputs O & M'!$G$27/'DNSP Inputs O & M'!$G$28 -> 30 | CJ78: =CG78*CH78 -> 803.115251 | CK78: =CJ78/'DNSP Inputs O & M'!$G$27 -> 200.7788128 | CP78: ='DNSP Inputs O & M'!$H$31 -> 25.49572226 | CQ78: =CQ77*'DNSP Inputs O & M'!$H$27/'DNSP Inputs O & M'!$H$28 -> 43.2 | CS78: =CP78*CQ78 -> 1101.415201 | CT78: =CS78/'DNSP Inputs O & M'!$H$27 -> 275.3538004 | CW78: ='DNSP Inputs O & M'!$H$31*(1+'DNSP Inputs O & M'!$H$11) -> 26.77050837 | CX78: =CX77*'DNSP Inputs O & M'!$H$27/'DNSP Inputs O & M'!$H$28 -> 36 | CZ78: =CW78*CX78 -> 963.7383013 | DA78: =CZ78/'DNSP Inputs O & M'!$H$27 -> 240.9345753 | DD78: ='DNSP Inputs O & M'!$H$31*(1+'DNSP Inputs O & M'!$H$11) -> 26.77050837 | DE78: =DE77*'DNSP Inputs O & M'!$H$27/'DNSP Inputs O & M'!$H$28 -> 30 | DG78: =DD78*DE78 -> 803.115251 | DH78: =DG78/'DNSP Inputs O & M'!$H$27 -> 200.7788128
A79: Miscellaneous | B79: ='DNSP Inputs O & M'!$D$33 -> 1.578800145 | C79: ='DNSP Inputs O & M'!$D$36 -> 86.4 | E79: =B79*C79 -> 136.4083325 | F79: =E79/'DNSP Inputs O & M'!$D$27*0.8 -> 27.28166651 | I79: ='DNSP Inputs O & M'!$D$33*(1+'DNSP Inputs O & M'!$D$11) -> 1.657740152 | J79: ='DNSP Inputs O & M'!$D$37 -> 72 | L79: =I79*J79 -> 119.357291 | M79: =L79/'DNSP Inputs O & M'!$D$27*0.8 -> 23.87145819 | P79: ='DNSP Inputs O & M'!$D$33*(1+'DNSP Inputs O & M'!$D$11) -> 1.657740152 | Q79: ='DNSP Inputs O & M'!$D$38 -> 60 | S79: =P79*Q79 -> 99.46440914 | T79: =S79/'DNSP Inputs O & M'!$D$27*0.8 -> 19.89288183 | Y79: ='DNSP Inputs O & M'!$E$33 -> 1.578800145 | Z79: ='DNSP Inputs O & M'!$E$36 -> 86.4 | AB79: =Y79*Z79 -> 136.4083325 | AC79: =AB79/'DNSP Inputs O & M'!$E$27*0.8 -> 27.28166651 | AF79: ='DNSP Inputs O & M'!$E$33*(1+'DNSP Inputs O & M'!$E$11) -> 1.657740152 | AG79: ='DNSP Inputs O & M'!$E$37 -> 72 | AI79: =AF79*AG79 -> 119.357291 | AJ79: =AI79/'DNSP Inputs O & M'!$E$27*0.8 -> 23.87145819 | AM79: ='DNSP Inputs O & M'!$E$33*(1+'DNSP Inputs O & M'!$E$11) -> 1.657740152 | AN79: ='DNSP Inputs O & M'!$E$38 -> 60 | AP79: =AM79*AN79 -> 99.46440914 | AQ79: =AP79/'DNSP Inputs O & M'!$E$27*0.8 -> 19.89288183 | AV79: ='DNSP Inputs O & M'!$F$33 -> 1.578800145 | AW79: ='DNSP Inputs O & M'!$F$36 -> 86.4 | AY79: =AV79*AW79 -> 136.4083325 | AZ79: =AY79/'DNSP Inputs O & M'!$F$27*0.8 -> 27.28166651 | BC79: ='DNSP Inputs O & M'!$F$33*(1+'DNSP Inputs O & M'!$F$11) -> 1.657740152 | BD79: ='DNSP Inputs O & M'!$F$37 -> 72 | BF79: =BC79*BD79 -> 119.357291 | BG79: =BF79/'DNSP Inputs O & M'!$F$27*0.8 -> 23.87145819 | BJ79: ='DNSP Inputs O & M'!$F$33*(1+'DNSP Inputs O & M'!$F$11) -> 1.657740152 | BK79: ='DNSP Inputs O & M'!$F$38 -> 60 | BM79: =BJ79*BK79 -> 99.46440914 | BN79: =BM79/'DNSP Inputs O & M'!$F$27*0.8 -> 19.89288183 | BS79: ='DNSP Inputs O & M'!$G$33 -> 1.578800145 | BT79: ='DNSP Inputs O & M'!$G$36 -> 86.4 | BV79: =BS79*BT79 -> 136.4083325 | BW79: =BV79/'DNSP Inputs O & M'!$G$27*0.8 -> 27.28166651 | BZ79: ='DNSP Inputs O & M'!$G$33*(1+'DNSP Inputs O & M'!$G$11) -> 1.657740152 | CA79: ='DNSP Inputs O & M'!$G$37 -> 72 | CC79: =BZ79*CA79 -> 119.357291 | CD79: =CC79/'DNSP Inputs O & M'!$G$27*0.8 -> 23.87145819 | CG79: ='DNSP Inputs O & M'!$G$33*(1+'DNSP Inputs O & M'!$G$11) -> 1.657740152 | CH79: ='DNSP Inputs O & M'!$G$38 -> 60 | CJ79: =CG79*CH79 -> 99.46440914 | CK79: =CJ79/'DNSP Inputs O & M'!$G$27*0.8 -> 19.89288183 | CP79: ='DNSP Inputs O & M'!$H$33 -> 1.578800145 | CQ79: ='DNSP Inputs O & M'!$H$36 -> 86.4 | CS79: =CP79*CQ79 -> 136.4083325 | CT79: =CS79/'DNSP Inputs O & M'!$H$27*0.8 -> 27.28166651 | CW79: ='DNSP Inputs O & M'!$H$33*(1+'DNSP Inputs O & M'!$H$11) -> 1.657740152 | CX79: ='DNSP Inputs O & M'!$H$37 -> 72 | CZ79: =CW79*CX79 -> 119.357291 | DA79: =CZ79/'DNSP Inputs O & M'!$H$27*0.8 -> 23.87145819 | DD79: ='DNSP Inputs O & M'!$H$33*(1+'DNSP Inputs O & M'!$H$11) -> 1.657740152 | DE79: ='DNSP Inputs O & M'!$H$38 -> 60 | DG79: =DD79*DE79 -> 99.46440914 | DH79: =DG79/'DNSP Inputs O & M'!$H$27*0.8 -> 19.89288183
A80: Materials - repair of faults
A81: Lamp | B81: ='DNSP Inputs O & M'!$D$30 -> 6.31520058 | C81: ='DNSP Inputs O & M'!$D$39*'DNSP Inputs O & M'!$D$42 -> 17.28 | E81: =B81*C81 -> 109.126666 | F81: =(E81+E82+E83+E84)/'DNSP Inputs O & M'!$D$39 -> 50.78347128 | G81: =F81*D66 -> 6.760116667 | I81: =('DNSP Inputs O & M'!$D$30)*(1+'DNSP Inputs O & M'!$D$11) -> 6.630960609 | J81: ='DNSP Inputs O & M'!$D$40*'DNSP Inputs O & M'!$D$42 -> 14.4 | L81: =I81*J81 -> 95.48583277 | M81: =(L81+L82+L83+L84)/'DNSP Inputs O & M'!$D$40 -> 53.32264484 | N81: =M81*$D$66 -> 7.098122501 | P81: =('DNSP Inputs O & M'!$D$30)*(1+'DNSP Inputs O & M'!$D$11) -> 6.630960609 | Q81: ='DNSP Inputs O & M'!$D$41*'DNSP Inputs O & M'!$D$42 -> 11.52 | S81: =P81*Q81 -> 76.38866622 | T81: =(S81+S82+S83+S84)/'DNSP Inputs O & M'!$D$41 -> 53.32264484 | U81: =T81*D66 -> 7.098122501 | Y81: =('DNSP Inputs O & M'!$E$30) -> 6.31520058 | Z81: ='DNSP Inputs O & M'!$E$39*'DNSP Inputs O & M'!$E$42 -> 17.28 | AB81: =Y81*Z81 -> 109.126666 | AC81: =(AB81+AB82+AB83+AB84)/'DNSP Inputs O & M'!$E$39 -> 50.78347128 | AD81: =AC81*AA66 -> 6.760116667 | AF81: =('DNSP Inputs O & M'!$E$30)*(1+'DNSP Inputs O & M'!$E$11) -> 6.630960609 | AG81: ='DNSP Inputs O & M'!$E$40*'DNSP Inputs O & M'!$E$42 -> 14.4 | AI81: =AF81*AG81 -> 95.48583277 | AJ81: =(AI81+AI82+AI83+AI84)/'DNSP Inputs O & M'!$E$40 -> 53.32264484 | AK81: =AJ81*$AA$66 -> 7.098122501 | AM81: =('DNSP Inputs O & M'!$E$30)*(1+'DNSP Inputs O & M'!$E$11) -> 6.630960609 | AN81: ='DNSP Inputs O & M'!$E$41*'DNSP Inputs O & M'!$E$42 -> 11.52 | AP81: =AM81*AN81 -> 76.38866622 | AQ81: =(AP81+AP82+AP83+AP84)/'DNSP Inputs O & M'!$E$41 -> 53.32264484 | AR81: =AQ81*AA66 -> 7.098122501 | AV81: =('DNSP Inputs O & M'!$F$30) -> 6.31520058 | AW81: ='DNSP Inputs O & M'!$F$39*'DNSP Inputs O & M'!$F$42 -> 17.28 | AY81: =AV81*AW81 -> 109.126666 | AZ81: =(AY81+AY82+AY83+AY84)/'DNSP Inputs O & M'!$F$39 -> 50.78347128 | BA81: =AZ81*AX66 -> 6.760116667 | BC81: =('DNSP Inputs O & M'!$F$30)*(1+'DNSP Inputs O & M'!$F$11) -> 6.630960609 | BD81: ='DNSP Inputs O & M'!$F$40*'DNSP Inputs O & M'!$F$42 -> 14.4 | BF81: =BC81*BD81 -> 95.48583277 | BG81: =(BF81+BF82+BF83+BF84)/'DNSP Inputs O & M'!$F$40 -> 53.32264484 | BH81: =BG81*$AX$66 -> 7.098122501 | BJ81: =('DNSP Inputs O & M'!$F$30)*(1+'DNSP Inputs O & M'!$F$11) -> 6.630960609 | BK81: ='DNSP Inputs O & M'!$F$41*'DNSP Inputs O & M'!$F$42 -> 11.52 | BM81: =BJ81*BK81 -> 76.38866622 | BN81: =(BM81+BM82+BM83+BM84)/'DNSP Inputs O & M'!$F$41 -> 53.32264484 | BO81: =BN81*AX66 -> 7.098122501 | BS81: =('DNSP Inputs O & M'!$G$30) -> 6.31520058 | BT81: ='DNSP Inputs O & M'!$G$39*'DNSP Inputs O & M'!$G$42 -> 17.28 | BV81: =BS81*BT81 -> 109.126666 | BW81: =(BV81+BV82+BV83+BV84)/'DNSP Inputs O & M'!$G$39 -> 50.78347128 | BX81: =BW81*BU66 -> 6.760116667 | BZ81: =('DNSP Inputs O & M'!$G$30)*(1+'DNSP Inputs O & M'!$G$11) -> 6.630960609 | CA81: ='DNSP Inputs O & M'!$G$40*'DNSP Inputs O & M'!$G$42 -> 14.4 | CC81: =BZ81*CA81 -> 95.48583277 | CD81: =(CC81+CC82+CC83+CC84)/'DNSP Inputs O & M'!$G$40 -> 53.32264484 | CE81: =CD81*$BU$66 -> 7.098122501 | CG81: =('DNSP Inputs O & M'!$G$30)*(1+'DNSP Inputs O & M'!$G$11) -> 6.630960609 | CH81: ='DNSP Inputs O & M'!$G$41*'DNSP Inputs O & M'!$G$42 -> 11.52 | CJ81: =CG81*CH81 -> 76.38866622 | CK81: =(CJ81+CJ82+CJ83+CJ84)/'DNSP Inputs O & M'!$G$41 -> 53.32264484 | CL81: =CK81*BU66 -> 7.098122501 | CP81: =('DNSP Inputs O & M'!$H$30) -> 6.31520058 | CQ81: ='DNSP Inputs O & M'!$H$39*'DNSP Inputs O & M'!$H$42 -> 17.28 | CS81: =CP81*CQ81 -> 109.126666 | CT81: =(CS81+CS82+CS83+CS84)/'DNSP Inputs O & M'!$H$39 -> 50.78347128 | CU81: =CT81*CR66 -> 6.760116667 | CW81: =('DNSP Inputs O & M'!$H$30)*(1+'DNSP Inputs O & M'!$H$11) -> 6.630960609 | CX81: ='DNSP Inputs O & M'!$H$40*'DNSP Inputs O & M'!$H$42 -> 14.4 | CZ81: =CW81*CX81 -> 95.48583277 | DA81: =(CZ81+CZ82+CZ83+CZ84)/'DNSP Inputs O & M'!$H$40 -> 53.32264484 | DB81: =DA81*$CR$66 -> 7.098122501 | DD81: =('DNSP Inputs O & M'!$H$30)*(1+'DNSP Inputs O & M'!$H$11) -> 6.630960609 | DE81: ='DNSP Inputs O & M'!$H$41*'DNSP Inputs O & M'!$H$42 -> 11.52 | DG81: =DD81*DE81 -> 76.38866622 | DH81: =(DG81+DG82+DG83+DG84)/'DNSP Inputs O & M'!$H$41 -> 53.32264484 | DI81: =DH81*CR66 -> 7.098122501
A82: PE cell | B82: ='DNSP Inputs O & M'!$D$31 -> 25.49572226 | C82: ='DNSP Inputs O & M'!$D$39*'DNSP Inputs O & M'!$D$43 -> 14.4 | E82: =B82*C82 -> 367.1384005 | I82: ='DNSP Inputs O & M'!$D$31*(1+'DNSP Inputs O & M'!$D$11) -> 26.77050837 | J82: ='DNSP Inputs O & M'!$D$40*'DNSP Inputs O & M'!$D$43 -> 12 | L82: =I82*J82 -> 321.2461004 | P82: ='DNSP Inputs O & M'!$D$31*(1+'DNSP Inputs O & M'!$D$11) -> 26.77050837 | Q82: ='DNSP Inputs O & M'!$D$41*'DNSP Inputs O & M'!$D$43 -> 9.6 | S82: =P82*Q82 -> 256.9968803 | Y82: ='DNSP Inputs O & M'!$E$31 -> 25.49572226 | Z82: ='DNSP Inputs O & M'!$E$39*'DNSP Inputs O & M'!$E$43 -> 14.4 | AB82: =Y82*Z82 -> 367.1384005 | AF82: ='DNSP Inputs O & M'!$E$31*(1+'DNSP Inputs O & M'!$E$11) -> 26.77050837 | AG82: ='DNSP Inputs O & M'!$E$40*'DNSP Inputs O & M'!$E$43 -> 12 | AI82: =AF82*AG82 -> 321.2461004 | AM82: ='DNSP Inputs O & M'!$E$31*(1+'DNSP Inputs O & M'!$E$11) -> 26.77050837 | AN82: ='DNSP Inputs O & M'!$E$41*'DNSP Inputs O & M'!$E$43 -> 9.6 | AP82: =AM82*AN82 -> 256.9968803 | AV82: ='DNSP Inputs O & M'!$F$31 -> 25.49572226 | AW82: ='DNSP Inputs O & M'!$F$39*'DNSP Inputs O & M'!$F$43 -> 14.4 | AY82: =AV82*AW82 -> 367.1384005 | BC82: ='DNSP Inputs O & M'!$F$31*(1+'DNSP Inputs O & M'!$F$11) -> 26.77050837 | BD82: ='DNSP Inputs O & M'!$F$40*'DNSP Inputs O & M'!$F$43 -> 12 | BF82: =BC82*BD82 -> 321.2461004 | BJ82: ='DNSP Inputs O & M'!$F$31*(1+'DNSP Inputs O & M'!$F$11) -> 26.77050837 | BK82: ='DNSP Inputs O & M'!$F$41*'DNSP Inputs O & M'!$F$43 -> 9.6 | BM82: =BJ82*BK82 -> 256.9968803 | BS82: ='DNSP Inputs O & M'!$G$31 -> 25.49572226 | BT82: ='DNSP Inputs O & M'!$G$39*'DNSP Inputs O & M'!$G$43 -> 14.4 | BV82: =BS82*BT82 -> 367.1384005 | BZ82: ='DNSP Inputs O & M'!$G$31*(1+'DNSP Inputs O & M'!$G$11) -> 26.77050837 | CA82: ='DNSP Inputs O & M'!$G$40*'DNSP Inputs O & M'!$G$43 -> 12 | CC82: =BZ82*CA82 -> 321.2461004 | CG82: ='DNSP Inputs O & M'!$G$31*(1+'DNSP Inputs O & M'!$G$11) -> 26.77050837 | CH82: ='DNSP Inputs O & M'!$G$41*'DNSP Inputs O & M'!$G$43 -> 9.6 | CJ82: =CG82*CH82 -> 256.9968803 | CP82: ='DNSP Inputs O & M'!$H$31 -> 25.49572226 | CQ82: ='DNSP Inputs O & M'!$H$39*'DNSP Inputs O & M'!$H$43 -> 14.4 | CS82: =CP82*CQ82 -> 367.1384005 | CW82: ='DNSP Inputs O & M'!$H$31*(1+'DNSP Inputs O & M'!$H$11) -> 26.77050837 | CX82: ='DNSP Inputs O & M'!$H$40*'DNSP Inputs O & M'!$H$43 -> 12 | CZ82: =CW82*CX82 -> 321.2461004 | DD82: ='DNSP Inputs O & M'!$H$31*(1+'DNSP Inputs O & M'!$H$11) -> 26.77050837 | DE82: ='DNSP Inputs O & M'!$H$41*'DNSP Inputs O & M'!$H$43 -> 9.6 | DG82: =DD82*DE82 -> 256.9968803
